Workbook

Sheet AER Draft Decision - HID
B1: AER Draft Decision - Public Lighting - SA Power Networks 2025-30
B3: Reading guide:
B4: Table 1 | C4: sets out our draft decision prices for SAPN's HID Tariffs (smoothed).
B5: Table 2 | C5: sets out our draft decision prices for SAPN's LED Tariffs (smoothed).
B7: Table 1 | C7: Draft Decision $2025-26 prices for SAPN's HID Tariffs (Smoothed)
D10: ENERGY | F10: CLER | H10: SLUOS | K10: Difference ($) | O10: Difference (%)
B11: Base Lamp | C11: Lamp Type | D11: Initial Proposal | E11: AER Draft Decision | F11: Initial Proposal | G11: AER Draft Decision | H11: Initial Proposal | I11: AER Draft Decision | K11: ENERGY | L11: CLER | M11: SLUOS | O11: ENERGY | P11: CLER | Q11: SLUOS
B12: HID-P
B13: cf-42 | D13: 3.099356356 | E13: 3.108148588 | F13: 37.10477218 | G13: 37.21048276 | H13: 77.22510248 | I13: 76.34243411 | K13: 0.008792232257 | L13: 0.1057105794 | M13: -0.8826683693 | O13: 0.002836792949 | P13: 0.002848975299 | Q13: -0.01142981156
B14: cf-42 | C14: F14X2 | D14: 3.099356356 | E14: 3.108148588 | F14: 37.10477218 | G14: 37.21048276 | H14: 77.22510248 | I14: 76.34243411 | K14: 0.008792232257 | L14: 0.1057105794 | M14: -0.8826683693 | O14: 0.002836792949 | P14: 0.002848975299 | Q14: -0.01142981156
B15: cf-42 | C15: F2X8 | D15: 3.099356356 | E15: 3.108148588 | F15: 37.10477218 | G15: 37.21048276 | H15: 77.22510248 | I15: 76.34243411 | K15: 0.008792232257 | L15: 0.1057105794 | M15: -0.8826683693 | O15: 0.002836792949 | P15: 0.002848975299 | Q15: -0.01142981156
B16: cf-42 | C16: F42 | D16: 3.099356356 | E16: 3.108148588 | F16: 37.10477218 | G16: 37.21048276 | H16: 77.22510248 | I16: 76.34243411 | K16: 0.008792232257 | L16: 0.1057105794 | M16: -0.8826683693 | O16: 0.002836792949 | P16: 0.002848975299 | Q16: -0.01142981156
B18: cf-42 PT | D18: 3.099356356 | E18: 3.108148588 | F18: 37.10477218 | G18: 37.21048276 | H18: 77.22510248 | I18: 76.34243411 | K18: 0.008792232257 | L18: 0.1057105794 | M18: -0.8826683693 | O18: 0.002836792949 | P18: 0.002848975299 | Q18: -0.01142981156
B19: cf-42 PT | C19: F32 | D19: 3.099356356 | E19: 3.108148588 | F19: 37.10477218 | G19: 37.21048276 | H19: 77.22510248 | I19: 76.34243411 | K19: 0.008792232257 | L19: 0.1057105794 | M19: -0.8826683693 | O19: 0.002836792949 | P19: 0.002848975299 | Q19: -0.01142981156
B20: cf-42 PT | C20: PT F42 | D20: 3.099356356 | E20: 3.108148588 | F20: 37.10477218 | G20: 37.21048276 | H20: 77.22510248 | I20: 76.34243411 | K20: 0.008792232257 | L20: 0.1057105794 | M20: -0.8826683693 | O20: 0.002836792949 | P20: 0.002848975299 | Q20: -0.01142981156
B22: F-40 | D22: 3.099356356 | E22: 3.108148588 | F22: 40.34457015 | G22: 40.4653184 | H22: 80.94835778 | I22: 80.0829737 | K22: 0.008792232257 | L22: 0.1207482433 | M22: -0.8653840827 | O22: 0.002836792949 | P22: 0.002992924274 | Q22: -0.01069056997
B23: F-40 | C23: F11X2 | D23: 3.099356356 | E23: 3.108148588 | F23: 40.34457015 | G23: 40.4653184 | H23: 80.94835778 | I23: 80.0829737 | K23: 0.008792232257 | L23: 0.1207482433 | M23: -0.8653840827 | O23: 0.002836792949 | P23: 0.002992924274 | Q23: -0.01069056997
B24: F-40 | C24: F20 | D24: 3.099356356 | E24: 3.108148588 | F24: 40.34457015 | G24: 40.4653184 | H24: 80.94835778 | I24: 80.0829737 | K24: 0.008792232257 | L24: 0.1207482433 | M24: -0.8653840827 | O24: 0.002836792949 | P24: 0.002992924274 | Q24: -0.01069056997
B25: F-40 | C25: F20X2 | D25: 3.099356356 | E25: 3.108148588 | F25: 40.34457015 | G25: 40.4653184 | H25: 80.94835778 | I25: 80.0829737 | K25: 0.008792232257 | L25: 0.1207482433 | M25: -0.8653840827 | O25: 0.002836792949 | P25: 0.002992924274 | Q25: -0.01069056997
B26: F-40 | C26: F2X20 | D26: 3.099356356 | E26: 3.108148588 | F26: 40.34457015 | G26: 40.4653184 | H26: 80.94835778 | I26: 80.0829737 | K26: 0.008792232257 | L26: 0.1207482433 | M26: -0.8653840827 | O26: 0.002836792949 | P26: 0.002992924274 | Q26: -0.01069056997
B27: F-40 | C27: F2X40 | D27: 3.099356356 | E27: 3.108148588 | F27: 40.34457015 | G27: 40.4653184 | H27: 80.94835778 | I27: 80.0829737 | K27: 0.008792232257 | L27: 0.1207482433 | M27: -0.8653840827 | O27: 0.002836792949 | P27: 0.002992924274 | Q27: -0.01069056997
B28: F-40 | C28: F40 | D28: 3.099356356 | E28: 3.108148588 | F28: 40.34457015 | G28: 40.4653184 | H28: 80.94835778 | I28: 80.0829737 | K28: 0.008792232257 | L28: 0.1207482433 | M28: -0.8653840827 | O28: 0.002836792949 | P28: 0.002992924274 | Q28: -0.01069056997
B29: F-40 | C29: F40X2 | D29: 3.099356356 | E29: 3.108148588 | F29: 40.34457015 | G29: 40.4653184 | H29: 80.94835778 | I29: 80.0829737 | K29: 0.008792232257 | L29: 0.1207482433 | M29: -0.8653840827 | O29: 0.002836792949 | P29: 0.002992924274 | Q29: -0.01069056997
B30: F-40 | C30: F40X3 | D30: 3.099356356 | E30: 3.108148588 | F30: 40.34457015 | G30: 40.4653184 | H30: 80.94835778 | I30: 80.0829737 | K30: 0.008792232257 | L30: 0.1207482433 | M30: -0.8653840827 | O30: 0.002836792949 | P30: 0.002992924274 | Q30: -0.01069056997
B31: F-40 | C31: F40X4 | D31: 3.099356356 | E31: 3.108148588 | F31: 40.34457015 | G31: 40.4653184 | H31: 80.94835778 | I31: 80.0829737 | K31: 0.008792232257 | L31: 0.1207482433 | M31: -0.8653840827 | O31: 0.002836792949 | P31: 0.002992924274 | Q31: -0.01069056997
B32: F-40 | C32: F4X40 | D32: 3.099356356 | E32: 3.108148588 | F32: 40.34457015 | G32: 40.4653184 | H32: 80.94835778 | I32: 80.0829737 | K32: 0.008792232257 | L32: 0.1207482433 | M32: -0.8653840827 | O32: 0.002836792949 | P32: 0.002992924274 | Q32: -0.01069056997
B33: F-40 | C33: F8X2 | D33: 3.099356356 | E33: 3.108148588 | F33: 40.34457015 | G33: 40.4653184 | H33: 80.94835778 | I33: 80.0829737 | K33: 0.008792232257 | L33: 0.1207482433 | M33: -0.8653840827 | O33: 0.002836792949 | P33: 0.002992924274 | Q33: -0.01069056997
B34: F-40 | C34: I100 | D34: 3.099356356 | E34: 3.108148588 | F34: 40.34457015 | G34: 40.4653184 | H34: 80.94835778 | I34: 80.0829737 | K34: 0.008792232257 | L34: 0.1207482433 | M34: -0.8653840827 | O34: 0.002836792949 | P34: 0.002992924274 | Q34: -0.01069056997
B36: MV-80 | D36: 3.099356356 | E36: 3.108148588 | F36: 43.1364249 | G36: 43.27013166 | H36: 83.74122904 | I36: 82.88880927 | K36: 0.008792232257 | L36: 0.1337067592 | M36: -0.85241977 | O36: 0.002836792949 | P36: 0.003099625421 | Q36: -0.01017921256
B37: MV-80 | C37: M50 | D37: 3.099356356 | E37: 3.108148588 | F37: 43.1364249 | G37: 43.27013166 | H37: 83.74122904 | I37: 82.88880927 | K37: 0.008792232257 | L37: 0.1337067592 | M37: -0.85241977 | O37: 0.002836792949 | P37: 0.003099625421 | Q37: -0.01017921256
B38: MV-80 | C38: M70 | D38: 3.099356356 | E38: 3.108148588 | F38: 43.1364249 | G38: 43.27013166 | H38: 83.74122904 | I38: 82.88880927 | K38: 0.008792232257 | L38: 0.1337067592 | M38: -0.85241977 | O38: 0.002836792949 | P38: 0.003099625421 | Q38: -0.01017921256
B39: MV-80 | C39: M80 | D39: 3.099356356 | E39: 3.108148588 | F39: 43.1364249 | G39: 43.27013166 | H39: 83.74122904 | I39: 82.88880927 | K39: 0.008792232257 | L39: 0.1337067592 | M39: -0.85241977 | O39: 0.002836792949 | P39: 0.003099625421 | Q39: -0.01017921256
B41: MV-80 PT | D41: 3.099356356 | E41: 3.108148588 | F41: 37.10477218 | G41: 37.21048276 | H41: 77.22510248 | I41: 76.34243411 | K41: 0.008792232257 | L41: 0.1057105794 | M41: -0.8826683693 | O41: 0.002836792949 | P41: 0.002848975299 | Q41: -0.01142981156
B42: MV-80 PT | C42: PT M50 | D42: 3.099356356 | E42: 3.108148588 | F42: 37.10477218 | G42: 37.21048276 | H42: 77.22510248 | I42: 76.34243411 | K42: 0.008792232257 | L42: 0.1057105794 | M42: -0.8826683693 | O42: 0.002836792949 | P42: 0.002848975299 | Q42: -0.01142981156
B43: MV-80 PT | C43: PT M80 | D43: 3.099356356 | E43: 3.108148588 | F43: 37.10477218 | G43: 37.21048276 | H43: 77.22510248 | I43: 76.34243411 | K43: 0.008792232257 | L43: 0.1057105794 | M43: -0.8826683693 | O43: 0.002836792949 | P43: 0.002848975299 | Q43: -0.01142981156
B45: S-HP50 | D45: 3.099356356 | E45: 3.108148588 | F45: 37.10477218 | G45: 37.21048276 | H45: 77.22510248 | I45: 76.34243411 | K45: 0.008792232257 | L45: 0.1057105794 | M45: -0.8826683693 | O45: 0.002836792949 | P45: 0.002848975299 | Q45: -0.01142981156
B46: S-HP50 | C46: S50 | D46: 3.099356356 | E46: 3.108148588 | F46: 37.10477218 | G46: 37.21048276 | H46: 77.22510248 | I46: 76.34243411 | K46: 0.008792232257 | L46: 0.1057105794 | M46: -0.8826683693 | O46: 0.002836792949 | P46: 0.002848975299 | Q46: -0.01142981156
B48: S-LP18 | D48: 3.099356356 | E48: 3.108148588 | F48: 37.10477218 | G48: 37.21048276 | H48: 77.22510248 | I48: 76.34243411 | K48: 0.008792232257 | L48: 0.1057105794 | M48: -0.8826683693 | O48: 0.002836792949 | P48: 0.002848975299 | Q48: -0.01142981156
B49: S-LP18 | C49: L18 | D49: 3.099356356 | E49: 3.108148588 | F49: 37.10477218 | G49: 37.21048276 | H49: 77.22510248 | I49: 76.34243411 | K49: 0.008792232257 | L49: 0.1057105794 | M49: -0.8826683693 | O49: 0.002836792949 | P49: 0.002848975299 | Q49: -0.01142981156
B50: S-LP18 | C50: L26 | D50: 3.099356356 | E50: 3.108148588 | F50: 37.10477218 | G50: 37.21048276 | H50: 77.22510248 | I50: 76.34243411 | K50: 0.008792232257 | L50: 0.1057105794 | M50: -0.8826683693 | O50: 0.002836792949 | P50: 0.002848975299 | Q50: -0.01142981156
B51: S-LP18 | C51: PT L18 | D51: 3.099356356 | E51: 3.108148588 | F51: 37.10477218 | G51: 37.21048276 | H51: 77.22510248 | I51: 76.34243411 | K51: 0.008792232257 | L51: 0.1057105794 | M51: -0.8826683693 | O51: 0.002836792949 | P51: 0.002848975299 | Q51: -0.01142981156
B53: S-HP Other | D53: 3.099356356 | E53: 3.108148588 | F53: 37.10477218 | G53: 37.21048276 | H53: 77.22510248 | I53: 76.34243411 | K53: 0.008792232257 | L53: 0.1057105794 | M53: -0.8826683693 | O53: 0.002836792949 | P53: 0.002848975299 | Q53: -0.01142981156
B54: S-HP Other | C54: MH100 | D54: 3.099356356 | E54: 3.108148588 | F54: 37.10477218 | G54: 37.21048276 | H54: 77.22510248 | I54: 76.34243411 | K54: 0.008792232257 | L54: 0.1057105794 | M54: -0.8826683693 | O54: 0.002836792949 | P54: 0.002848975299 | Q54: -0.01142981156
B55: S-HP Other | C55: MH125 | D55: 3.099356356 | E55: 3.108148588 | F55: 37.10477218 | G55: 37.21048276 | H55: 77.22510248 | I55: 76.34243411 | K55: 0.008792232257 | L55: 0.1057105794 | M55: -0.8826683693 | O55: 0.002836792949 | P55: 0.002848975299 | Q55: -0.01142981156
B56: S-HP Other | C56: MH150 | D56: 3.099356356 | E56: 3.108148588 | F56: 37.10477218 | G56: 37.21048276 | H56: 77.22510248 | I56: 76.34243411 | K56: 0.008792232257 | L56: 0.1057105794 | M56: -0.8826683693 | O56: 0.002836792949 | P56: 0.002848975299 | Q56: -0.01142981156
B57: S-HP Other | C57: MH250 | D57: 3.099356356 | E57: 3.108148588 | F57: 37.10477218 | G57: 37.21048276 | H57: 77.22510248 | I57: 76.34243411 | K57: 0.008792232257 | L57: 0.1057105794 | M57: -0.8826683693 | O57: 0.002836792949 | P57: 0.002848975299 | Q57: -0.01142981156
B58: S-HP Other | C58: MH400 | D58: 3.099356356 | E58: 3.108148588 | F58: 37.10477218 | G58: 37.21048276 | H58: 77.22510248 | I58: 76.34243411 | K58: 0.008792232257 | L58: 0.1057105794 | M58: -0.8826683693 | O58: 0.002836792949 | P58: 0.002848975299 | Q58: -0.01142981156
B59: S-HP Other | C59: MH50 | D59: 3.099356356 | E59: 3.108148588 | F59: 37.10477218 | G59: 37.21048276 | H59: 77.22510248 | I59: 76.34243411 | K59: 0.008792232257 | L59: 0.1057105794 | M59: -0.8826683693 | O59: 0.002836792949 | P59: 0.002848975299 | Q59: -0.01142981156
B60: S-HP Other | C60: MH70 | D60: 3.099356356 | E60: 3.108148588 | F60: 37.10477218 | G60: 37.21048276 | H60: 77.22510248 | I60: 76.34243411 | K60: 0.008792232257 | L60: 0.1057105794 | M60: -0.8826683693 | O60: 0.002836792949 | P60: 0.002848975299 | Q60: -0.01142981156
B61: S-HP Other | C61: PT MH100 | D61: 3.099356356 | E61: 3.108148588 | F61: 37.10477218 | G61: 37.21048276 | H61: 77.22510248 | I61: 76.34243411 | K61: 0.008792232257 | L61: 0.1057105794 | M61: -0.8826683693 | O61: 0.002836792949 | P61: 0.002848975299 | Q61: -0.01142981156
B62: S-HP Other | C62: PT S70 | D62: 3.099356356 | E62: 3.108148588 | F62: 37.10477218 | G62: 37.21048276 | H62: 77.22510248 | I62: 76.34243411 | K62: 0.008792232257 | L62: 0.1057105794 | M62: -0.8826683693 | O62: 0.002836792949 | P62: 0.002848975299 | Q62: -0.01142981156
B63: S-HP Other | C63: S70 | D63: 3.099356356 | E63: 3.108148588 | F63: 37.10477218 | G63: 37.21048276 | H63: 77.22510248 | I63: 76.34243411 | K63: 0.008792232257 | L63: 0.1057105794 | M63: -0.8826683693 | O63: 0.002836792949 | P63: 0.002848975299 | Q63: -0.01142981156
K64: 0 | L64: 0 | M64: 0
B65: S-HP50 PT | D65: 3.099356356 | E65: 3.108148588 | F65: 38.1186659 | G65: 38.23008673 | H65: 77.22510248 | I65: 76.34243411 | K65: 0.008792232257 | L65: 0.1114208314 | M65: -0.8826683693 | O65: 0.002836792949 | P65: 0.002922999238 | Q65: -0.01142981156
B66: S-HP50 PT | C66: PT S50 | D66: 3.099356356 | E66: 3.108148588 | F66: 38.1186659 | G66: 38.23008673 | H66: 77.22510248 | I66: 76.34243411 | K66: 0.008792232257 | L66: 0.1114208314 | M66: -0.8826683693 | O66: 0.002836792949 | P66: 0.002922999238 | Q66: -0.01142981156
B68: HID-V
B69: MV-80+ | D69: 3.099356356 | E69: 3.108148588 | F69: 37.10477218 | G69: 37.21048276 | H69: 77.22510248 | I69: 76.34243411 | K69: 0.008792232257 | L69: 0.1057105794 | M69: -0.8826683693 | O69: 0.002836792949 | P69: 0.002848975299 | Q69: -0.01142981156
B70: MV-80+ | C70: M100 | D70: 3.099356356 | E70: 3.108148588 | F70: 37.10477218 | G70: 37.21048276 | H70: 77.22510248 | I70: 76.34243411 | K70: 0.008792232257 | L70: 0.1057105794 | M70: -0.8826683693 | O70: 0.002836792949 | P70: 0.002848975299 | Q70: -0.01142981156
B71: MV-80+ | C71: M125 | D71: 3.099356356 | E71: 3.108148588 | F71: 37.10477218 | G71: 37.21048276 | H71: 77.22510248 | I71: 76.34243411 | K71: 0.008792232257 | L71: 0.1057105794 | M71: -0.8826683693 | O71: 0.002836792949 | P71: 0.002848975299 | Q71: -0.01142981156
B72: MV-80+ | C72: M125X3 | D72: 3.099356356 | E72: 3.108148588 | F72: 37.10477218 | G72: 37.21048276 | H72: 77.22510248 | I72: 76.34243411 | K72: 0.008792232257 | L72: 0.1057105794 | M72: -0.8826683693 | O72: 0.002836792949 | P72: 0.002848975299 | Q72: -0.01142981156
B73: MV-80+ | C73: M250 | D73: 3.099356356 | E73: 3.108148588 | F73: 37.10477218 | G73: 37.21048276 | H73: 77.22510248 | I73: 76.34243411 | K73: 0.008792232257 | L73: 0.1057105794 | M73: -0.8826683693 | O73: 0.002836792949 | P73: 0.002848975299 | Q73: -0.01142981156
B74: MV-80+ | C74: M400 | D74: 3.099356356 | E74: 3.108148588 | F74: 37.10477218 | G74: 37.21048276 | H74: 77.22510248 | I74: 76.34243411 | K74: 0.008792232257 | L74: 0.1057105794 | M74: -0.8826683693 | O74: 0.002836792949 | P74: 0.002848975299 | Q74: -0.01142981156
B75: MV-80+ | C75: M400X2 | D75: 3.099356356 | E75: 3.108148588 | F75: 37.10477218 | G75: 37.21048276 | H75: 77.22510248 | I75: 76.34243411 | K75: 0.008792232257 | L75: 0.1057105794 | M75: -0.8826683693 | O75: 0.002836792949 | P75: 0.002848975299 | Q75: -0.01142981156
B76: MV-80+ | C76: PT M125 | D76: 3.099356356 | E76: 3.108148588 | F76: 37.10477218 | G76: 37.21048276 | H76: 77.22510248 | I76: 76.34243411 | K76: 0.008792232257 | L76: 0.1057105794 | M76: -0.8826683693 | O76: 0.002836792949 | P76: 0.002848975299 | Q76: -0.01142981156
K77: 0 | L77: 0 | M77: 0
B78: S-HP100 | D78: 3.099356356 | E78: 3.108148588 | F78: 37.10477218 | G78: 37.21048276 | H78: 77.22510248 | I78: 76.34243411 | K78: 0.008792232257 | L78: 0.1057105794 | M78: -0.8826683693 | O78: 0.002836792949 | P78: 0.002848975299 | Q78: -0.01142981156
B79: S-HP100 | C79: PT S100 | D79: 3.099356356 | E79: 3.108148588 | F79: 37.10477218 | G79: 37.21048276 | H79: 77.22510248 | I79: 76.34243411 | K79: 0.008792232257 | L79: 0.1057105794 | M79: -0.8826683693 | O79: 0.002836792949 | P79: 0.002848975299 | Q79: -0.01142981156
B80: S-HP100 | C80: S100 | D80: 3.099356356 | E80: 3.108148588 | F80: 37.10477218 | G80: 37.21048276 | H80: 77.22510248 | I80: 76.34243411 | K80: 0.008792232257 | L80: 0.1057105794 | M80: -0.8826683693 | O80: 0.002836792949 | P80: 0.002848975299 | Q80: -0.01142981156
K81: 0 | L81: 0 | M81: 0
B82: S-HP150 | D82: 3.099356356 | E82: 3.108148588 | F82: 37.10477218 | G82: 37.21048276 | H82: 77.22510248 | I82: 76.34243411 | K82: 0.008792232257 | L82: 0.1057105794 | M82: -0.8826683693 | O82: 0.002836792949 | P82: 0.002848975299 | Q82: -0.01142981156
B83: S-HP150 | C83: PT S150 | D83: 3.099356356 | E83: 3.108148588 | F83: 37.10477218 | G83: 37.21048276 | H83: 77.22510248 | I83: 76.34243411 | K83: 0.008792232257 | L83: 0.1057105794 | M83: -0.8826683693 | O83: 0.002836792949 | P83: 0.002848975299 | Q83: -0.01142981156
B84: S-HP150 | C84: S150 | D84: 3.099356356 | E84: 3.108148588 | F84: 37.10477218 | G84: 37.21048276 | H84: 77.22510248 | I84: 76.34243411 | K84: 0.008792232257 | L84: 0.1057105794 | M84: -0.8826683693 | O84: 0.002836792949 | P84: 0.002848975299 | Q84: -0.01142981156
K85: 0 | L85: 0 | M85: 0
B86: S-HP250 | D86: 3.099356356 | E86: 3.108148588 | F86: 37.10477218 | G86: 37.21048276 | H86: 77.22510248 | I86: 76.34243411 | K86: 0.008792232257 | L86: 0.1057105794 | M86: -0.8826683693 | O86: 0.002836792949 | P86: 0.002848975299 | Q86: -0.01142981156
B87: S-HP250 | C87: S250 | D87: 3.099356356 | E87: 3.108148588 | F87: 37.10477218 | G87: 37.21048276 | H87: 77.22510248 | I87: 76.34243411 | K87: 0.008792232257 | L87: 0.1057105794 | M87: -0.8826683693 | O87: 0.002836792949 | P87: 0.002848975299 | Q87: -0.01142981156
B88: S-HP250 | C88: S400 | D88: 3.099356356 | E88: 3.108148588 | F88: 37.10477218 | G88: 37.21048276 | H88: 77.22510248 | I88: 76.34243411 | K88: 0.008792232257 | L88: 0.1057105794 | M88: -0.8826683693 | O88: 0.002836792949 | P88: 0.002848975299 | Q88: -0.01142981156
B90: S-LP90 | D90: 3.099356356 | E90: 3.108148588 | F90: 37.10477218 | G90: 37.21048276 | H90: 77.22510248 | I90: 76.34243411 | K90: 0.008792232257 | L90: 0.1057105794 | M90: -0.8826683693 | O90: 0.002836792949 | P90: 0.002848975299 | Q90: -0.01142981156
B91: S-LP90 | C91: L135 | D91: 3.099356356 | E91: 3.108148588 | F91: 37.10477218 | G91: 37.21048276 | H91: 77.22510248 | I91: 76.34243411 | K91: 0.008792232257 | L91: 0.1057105794 | M91: -0.8826683693 | O91: 0.002836792949 | P91: 0.002848975299 | Q91: -0.01142981156
B92: S-LP90 | C92: L55 | D92: 3.099356356 | E92: 3.108148588 | F92: 37.10477218 | G92: 37.21048276 | H92: 77.22510248 | I92: 76.34243411 | K92: 0.008792232257 | L92: 0.1057105794 | M92: -0.8826683693 | O92: 0.002836792949 | P92: 0.002848975299 | Q92: -0.01142981156
B93: S-LP90 | C93: L90 | D93: 3.099356356 | E93: 3.108148588 | F93: 37.10477218 | G93: 37.21048276 | H93: 77.22510248 | I93: 76.34243411 | K93: 0.008792232257 | L93: 0.1057105794 | M93: -0.8826683693 | O93: 0.002836792949 | P93: 0.002848975299 | Q93: -0.01142981156
B95: HID-F
B96: S-HP360f | D96: 3.099356356 | E96: 3.108148588 | F96: 38.1186659 | G96: 38.23008673 | H96: 77.22510248 | I96: 76.34243411 | K96: 0.008792232257 | L96: 0.1114208314 | M96: -0.8826683693 | O96: 0.002836792949 | P96: 0.002922999238 | Q96: -0.01142981156
B97: S-HP360f | C97: I1000 F | D97: 3.099356356 | E97: 3.108148588 | F97: 38.1186659 | G97: 38.23008673 | H97: 77.22510248 | I97: 76.34243411 | K97: 0.008792232257 | L97: 0.1114208314 | M97: -0.8826683693 | O97: 0.002836792949 | P97: 0.002922999238 | Q97: -0.01142981156
B98: S-HP360f | C98: I150 F | D98: 3.099356356 | E98: 3.108148588 | F98: 38.1186659 | G98: 38.23008673 | H98: 77.22510248 | I98: 76.34243411 | K98: 0.008792232257 | L98: 0.1114208314 | M98: -0.8826683693 | O98: 0.002836792949 | P98: 0.002922999238 | Q98: -0.01142981156
B99: S-HP360f | C99: I1500 F | D99: 3.099356356 | E99: 3.108148588 | F99: 38.1186659 | G99: 38.23008673 | H99: 77.22510248 | I99: 76.34243411 | K99: 0.008792232257 | L99: 0.1114208314 | M99: -0.8826683693 | O99: 0.002836792949 | P99: 0.002922999238 | Q99: -0.01142981156
B100: S-HP360f | C100: I500 F | D100: 3.099356356 | E100: 3.108148588 | F100: 38.1186659 | G100: 38.23008673 | H100: 77.22510248 | I100: 76.34243411 | K100: 0.008792232257 | L100: 0.1114208314 | M100: -0.8826683693 | O100: 0.002836792949 | P100: 0.002922999238 | Q100: -0.01142981156
B101: S-HP360f | C101: I750 F | D101: 3.099356356 | E101: 3.108148588 | F101: 38.1186659 | G101: 38.23008673 | H101: 77.22510248 | I101: 76.34243411 | K101: 0.008792232257 | L101: 0.1114208314 | M101: -0.8826683693 | O101: 0.002836792949 | P101: 0.002922999238 | Q101: -0.01142981156
B102: S-HP360f | C102: M1000 F | D102: 3.099356356 | E102: 3.108148588 | F102: 38.1186659 | G102: 38.23008673 | H102: 77.22510248 | I102: 76.34243411 | K102: 0.008792232257 | L102: 0.1114208314 | M102: -0.8826683693 | O102: 0.002836792949 | P102: 0.002922999238 | Q102: -0.01142981156
B103: S-HP360f | C103: M250 F | D103: 3.099356356 | E103: 3.108148588 | F103: 38.1186659 | G103: 38.23008673 | H103: 77.22510248 | I103: 76.34243411 | K103: 0.008792232257 | L103: 0.1114208314 | M103: -0.8826683693 | O103: 0.002836792949 | P103: 0.002922999238 | Q103: -0.01142981156
B104: S-HP360f | C104: M400 F | D104: 3.099356356 | E104: 3.108148588 | F104: 38.1186659 | G104: 38.23008673 | H104: 77.22510248 | I104: 76.34243411 | K104: 0.008792232257 | L104: 0.1114208314 | M104: -0.8826683693 | O104: 0.002836792949 | P104: 0.002922999238 | Q104: -0.01142981156
B105: S-HP360f | C105: M400 F COST | D105: 3.099356356 | E105: 3.108148588 | F105: 38.1186659 | G105: 38.23008673 | H105: 77.22510248 | I105: 76.34243411 | K105: 0.008792232257 | L105: 0.1114208314 | M105: -0.8826683693 | O105: 0.002836792949 | P105: 0.002922999238 | Q105: -0.01142981156
B106: S-HP360f | C106: M400 F SACON | D106: 3.099356356 | E106: 3.108148588 | F106: 38.1186659 | G106: 38.23008673 | H106: 77.22510248 | I106: 76.34243411 | K106: 0.008792232257 | L106: 0.1114208314 | M106: -0.8826683693 | O106: 0.002836792949 | P106: 0.002922999238 | Q106: -0.01142981156
B107: S-HP360f | C107: M750 F | D107: 3.099356356 | E107: 3.108148588 | F107: 38.1186659 | G107: 38.23008673 | H107: 77.22510248 | I107: 76.34243411 | K107: 0.008792232257 | L107: 0.1114208314 | M107: -0.8826683693 | O107: 0.002836792949 | P107: 0.002922999238 | Q107: -0.01142981156
B108: S-HP360f | C108: M80 F | D108: 3.099356356 | E108: 3.108148588 | F108: 38.1186659 | G108: 38.23008673 | H108: 77.22510248 | I108: 76.34243411 | K108: 0.008792232257 | L108: 0.1114208314 | M108: -0.8826683693 | O108: 0.002836792949 | P108: 0.002922999238 | Q108: -0.01142981156
B109: S-HP360f | C109: S360 F | D109: 3.099356356 | E109: 3.108148588 | F109: 38.1186659 | G109: 38.23008673 | H109: 77.22510248 | I109: 76.34243411 | K109: 0.008792232257 | L109: 0.1114208314 | M109: -0.8826683693 | O109: 0.002836792949 | P109: 0.002922999238 | Q109: -0.01142981156
B110: S-HP360f | C110: S400 F | D110: 3.099356356 | E110: 3.108148588 | F110: 38.1186659 | G110: 38.23008673 | H110: 77.22510248 | I110: 76.34243411 | K110: 0.008792232257 | L110: 0.1114208314 | M110: -0.8826683693 | O110: 0.002836792949 | P110: 0.002922999238 | Q110: -0.01142981156
B113: End

Sheet AER Draft Decision - LED
B1: AER Draft Decision - Public Lighting - SA Power Networks 2025-30
B3: Reading guide:
B4: Table 1 | C4: sets out our draft decision prices for SAPN's HID Tariffs (smoothed).
B5: Table 2 | C5: sets out our draft decision prices for SAPN's LED Tariffs (smoothed).
B7: Table 2 | C7: Draft Decision $2025-26 prices for SAPN's LED Tariffs (Smoothed)
D10: ENERGY | F10: CLER | H10: PLC | J10: TFI | L10: SAPN | O10: Difference ($) | U10: Difference (%)
B11: Base Lamp | C11: Lamp Type | D11: Initial Proposal | E11: AER Draft Decision | F11: Initial Proposal | G11: AER Draft Decision | H11: Initial Proposal | I11: AER Draft Decision | J11: Initial Proposal | K11: AER Draft Decision | L11: Initial Proposal | M11: AER Draft Decision | O11: ENERGY | P11: CLER | Q11: PLC | R11: TFI | S11: SAPN | U11: ENERGY | V11: CLER | W11: PLC | X11: TFI | Y11: SAPN
B12: LED-P
C13: LED16 | D13: 3.099356356 | E13: 3.108148588 | F13: 15.88287843 | G13: 15.96777399 | H13: 62.55121149 | I13: 61.66414505 | J13: 83.88609288 | K13: 84.54961008 | L13: 101.344983 | M13: 98.84094264 | O13: 0.008792232257 | P13: 0.08489556686 | Q13: -0.8870664398 | R13: 0.6635171982 | S13: -2.50404039 | U13: 0.002836792949 | V13: 0.005345099584 | W13: -0.01418144299 | X13: 0.007909740165 | Y13: -0.02470808436
C14: LED17 | D14: 3.099356356 | E14: 3.108148588 | F14: 16.23267392 | G14: 16.33203585 | H14: 62.88120723 | I14: 62.00778831 | J14: 87.8935204 | K14: 88.84097414 | L14: 108.3617489 | M14: 105.5975479 | O14: 0.008792232257 | P14: 0.09936193886 | Q14: -0.873418919 | R14: 0.9474537439 | S14: -2.764201042 | U14: 0.002836792949 | V14: 0.006121107304 | W14: -0.01388998331 | X14: 0.01077956304 | Y14: -0.02550901097
C15: LED29 | D15: 3.099356356 | E15: 3.108148588 | F15: 16.35735879 | G15: 16.46187728 | H15: 62.99883447 | I15: 62.13028023 | J15: 89.32197109 | K15: 90.37063424 | L15: 110.8628806 | M15: 108.0059451 | O15: 0.008792232257 | P15: 0.1045184885 | Q15: -0.8685542495 | R15: 1.048663149 | S15: -2.856935511 | U15: 0.002836792949 | V15: 0.00638969224 | W15: -0.01378683045 | X15: 0.01174025983 | Y15: -0.02576999168
C16: LED22 | D16: 3.099356356 | E16: 3.108148588 | F16: 16.7182887 | G16: 16.83773404 | H16: 63.33933439 | I16: 62.48486208 | J16: 93.45695993 | K16: 94.79859767 | L16: 118.1029988 | M16: 114.9776214 | O16: 0.008792232257 | P16: 0.1194453429 | Q16: -0.8544723114 | R16: 1.341637743 | S16: -3.125377396 | U16: 0.002836792949 | V16: 0.007144591473 | W16: -0.01349038981 | X16: 0.014355675 | Y16: -0.0264631502
C17: LED46 | D17: 3.099356356 | E17: 3.108148588 | F17: 16.25892336 | G17: 16.35937089 | H17: 62.90597086 | I17: 62.03357608 | J17: 88.19424686 | K17: 89.16300785 | L17: 108.888303 | M17: 106.1045789 | O17: 0.008792232257 | P17: 0.1004475283 | Q17: -0.872394778 | R17: 0.9687609871 | S17: -2.783724088 | U17: 0.002836792949 | V17: 0.006177993833 | W17: -0.01386823486 | X17: 0.01098440116 | Y17: -0.02556495062
C18: LED43 | D18: 3.099356356 | E18: 3.108148588 | F18: 16.25892336 | G18: 16.35937089 | H18: 62.90597086 | I18: 62.03357608 | J18: 88.19424686 | K18: 89.16300785 | L18: 108.888303 | M18: 106.1045789 | O18: 0.008792232257 | P18: 0.1004475283 | Q18: -0.872394778 | R18: 0.9687609871 | S18: -2.783724088 | U18: 0.002836792949 | V18: 0.006177993833 | W18: -0.01386823486 | X18: 0.01098440116 | Y18: -0.02556495062
C19: LED17 PT | D19: 3.099356356 | E19: 3.108148588 | F19: 20.8700448 | G19: 21.16119289 | H19: 67.25608542 | I19: 66.56359684 | J19: 141.0215001 | K19: 145.7332078 | L19: 201.3856637 | M19: 195.1724147 | O19: 0.008792232257 | P19: 0.2911480948 | Q19: -0.6924885832 | R19: 4.711707742 | S19: -6.213249042 | U19: 0.002836792949 | V19: 0.01395052563 | W19: -0.0102962963 | X19: 0.03341127232 | Y19: -0.03085248934
C20: LED35 | D20: 3.099356356 | E20: 3.108148588 | F20: 19.38917002 | G20: 19.61907409 | H20: 65.85903375 | I20: 65.10876778 | J20: 124.0558773 | K20: 127.5655271 | L20: 171.679873 | M20: 166.5680257 | O20: 0.008792232257 | P20: 0.229904065 | Q20: -0.7502659698 | R20: 3.509649737 | S20: -5.111847341 | U20: 0.002836792949 | V20: 0.01185734432 | W20: -0.01139199783 | X20: 0.02829087837 | Y20: -0.02977546087
C21: LED39 | D21: 3.099356356 | E21: 3.108148588 | F21: 16.25892336 | G21: 16.35937089 | H21: 62.90597086 | I21: 62.03357608 | J21: 88.19424686 | K21: 89.16300785 | L21: 108.888303 | M21: 106.1045789 | O21: 0.008792232257 | P21: 0.1004475283 | Q21: -0.872394778 | R21: 0.9687609871 | S21: -2.783724088 | U21: 0.002836792949 | V21: 0.006177993833 | W21: -0.01386823486 | X21: 0.01098440116 | Y21: -0.02556495062
C22: LED26 | D22: 3.099356356 | E22: 3.108148588 | F22: 16.25892336 | G22: 16.35937089 | H22: 62.90597086 | I22: 62.03357608 | J22: 88.19424686 | K22: 89.16300785 | L22: 108.888303 | M22: 106.1045789 | O22: 0.008792232257 | P22: 0.1004475283 | Q22: -0.872394778 | R22: 0.9687609871 | S22: -2.783724088 | U22: 0.002836792949 | V22: 0.006177993833 | W22: -0.01386823486 | X22: 0.01098440116 | Y22: -0.02556495062
C23: LED20 | D23: 3.099356356 | E23: 3.108148588 | F23: 19.38917002 | G23: 19.61907409 | H23: 65.85903375 | I23: 65.10876778 | J23: 124.0558773 | K23: 127.5655271 | L23: 171.679873 | M23: 166.5680257 | O23: 0.008792232257 | P23: 0.229904065 | Q23: -0.7502659698 | R23: 3.509649737 | S23: -5.111847341 | U23: 0.002836792949 | V23: 0.01185734432 | W23: -0.01139199783 | X23: 0.02829087837 | Y23: -0.02977546087
C24: LED28 | D24: 3.099356356 | E24: 3.108148588 | F24: 19.38917002 | G24: 19.61907409 | H24: 65.85903375 | I24: 65.10876778 | J24: 124.0558773 | K24: 127.5655271 | L24: 171.679873 | M24: 166.5680257 | O24: 0.008792232257 | P24: 0.229904065 | Q24: -0.7502659698 | R24: 3.509649737 | S24: -5.111847341 | U24: 0.002836792949 | V24: 0.01185734432 | W24: -0.01139199783 | X24: 0.02829087837 | Y24: -0.02977546087
C25: LED23 PT | D25: 3.099356356 | E25: 3.108148588 | F25: 19.064098 | G25: 19.28055817 | H25: 65.55236203 | I25: 64.78941314 | J25: 120.3316939 | K25: 123.5774757 | L25: 165.1590505 | M25: 160.2889757 | O25: 0.008792232257 | P25: 0.2164601729 | Q25: -0.7629488869 | R25: 3.245781762 | S25: -4.870074784 | U25: 0.002836792949 | V25: 0.01135433593 | W25: -0.01163877034 | X25: 0.02697362313 | Y25: -0.0294871808
C26: LED24 | D26: 3.099356356 | E26: 3.108148588 | F26: 16.21954183 | G26: 16.31836067 | H26: 62.86881847 | I26: 61.99488719 | J26: 87.74307282 | K26: 88.67986697 | L26: 108.0983242 | M26: 105.3438902 | O26: 0.008792232257 | P26: 0.09881883968 | Q26: -0.8739312767 | R26: 0.9367941461 | S26: -2.754434043 | U26: 0.002836792949 | V26: 0.006092578984 | W26: -0.01390087007 | X26: 0.0106765596 | Y26: -0.02548082094
C27: LED18 PT | D27: 3.099356356 | E27: 3.108148588 | F27: 18.45189196 | G27: 18.64303334 | H27: 64.97480916 | I27: 64.18797462 | J27: 113.3179633 | K27: 116.0668042 | L27: 152.8784278 | M27: 148.4636817 | O27: 0.008792232257 | P27: 0.191141378 | Q27: -0.7868345425 | R27: 2.748840913 | S27: -4.414746095 | U27: 0.002836792949 | V27: 0.01035890403 | W27: -0.01210983999 | X27: 0.02425776843 | Y27: -0.02887749539
C28: LED19 PT | D28: 3.099356356 | E28: 3.108148588 | F28: 18.78861083 | G28: 18.99367777 | H28: 65.29246847 | I28: 64.51877126 | J28: 117.1755787 | K28: 120.1977416 | L28: 159.6328816 | M28: 154.9677006 | O28: 0.008792232257 | P28: 0.2050669446 | Q28: -0.7736972155 | R28: 3.022162882 | S28: -4.665180999 | U28: 0.002836792949 | V28: 0.01091442824 | W28: -0.01184971611 | X28: 0.02579174702 | Y28: -0.02922443643
C29: LED32 PT | D29: 3.099356356 | E29: 3.108148588 | F29: 18.83123455 | G29: 19.03806427 | H29: 65.33267953 | I29: 64.56064531 | J29: 117.6638968 | K29: 120.7206583 | L29: 160.4878974 | M29: 155.791015 | O29: 0.008792232257 | P29: 0.2068297193 | Q29: -0.7720342205 | R29: 3.056761479 | S29: -4.696882425 | U29: 0.002836792949 | V29: 0.01098333297 | W29: -0.01181696857 | X29: 0.02597875441 | Y29: -0.02926627179
C30: LED33 PT | D30: 3.099356356 | E30: 3.108148588 | F30: 19.74243235 | G30: 19.98694617 | H30: 66.1923001 | I30: 65.45581691 | J30: 128.1030227 | K30: 131.8994231 | L30: 178.7661824 | M30: 173.391596 | O30: 0.008792232257 | P30: 0.244513814 | Q30: -0.7364831877 | R30: 3.796400393 | S30: -5.374586459 | U30: 0.002836792949 | V30: 0.01238519194 | W30: -0.01112641783 | X30: 0.02963552548 | Y30: -0.03006489475
B32: LED-V
C33: LED200 | D33: 3.099356356 | E33: 3.108148588 | F33: 21.78433571 | G33: 22.01471132 | H33: 68.11862402 | I33: 67.36880291 | J33: 112.5173261 | K33: 115.0132655 | L33: 148.8499425 | M33: 144.7658993 | O33: 0.008792232257 | P33: 0.230375608 | Q33: -0.7498211179 | R33: 2.495939477 | S33: -4.084043134 | U33: 0.002836792949 | V33: 0.01057528726 | W33: -0.01100757874 | X33: 0.02218271234 | Y33: -0.02743731752
C34: LED105 | D34: 3.099356356 | E34: 3.108148588 | F34: 26.04982996 | G34: 26.45661215 | H34: 72.1426752 | I34: 71.55927538 | J34: 149.2429727 | K34: 154.3088811 | L34: 212.336158 | M34: 205.9836945 | O34: 0.008792232257 | P34: 0.4067821896 | Q34: -0.5833998145 | R34: 5.065908396 | S34: -6.352463501 | U34: 0.002836792949 | V34: 0.01561554107 | W34: -0.008086750497 | X34: 0.03394403303 | Y34: -0.02991701254
C35: LED198 | D35: 3.099356356 | E35: 3.108148588 | F35: 26.04982996 | G35: 26.45661215 | H35: 72.1426752 | I35: 71.55927538 | J35: 149.2429727 | K35: 154.3088811 | L35: 212.336158 | M35: 205.9836945 | O35: 0.008792232257 | P35: 0.4067821896 | Q35: -0.5833998145 | R35: 5.065908396 | S35: -6.352463501 | U35: 0.002836792949 | V35: 0.01561554107 | W35: -0.008086750497 | X35: 0.03394403303 | Y35: -0.02991701254
C36: LED88 | D36: 3.099356356 | E36: 3.108148588 | F36: 21.78433571 | G36: 22.01471132 | H36: 68.11862402 | I36: 67.36880291 | J36: 112.5173261 | K36: 115.0132655 | L36: 148.8499425 | M36: 144.7658993 | O36: 0.008792232257 | P36: 0.230375608 | Q36: -0.7498211179 | R36: 2.495939477 | S36: -4.084043134 | U36: 0.002836792949 | V36: 0.01057528726 | W36: -0.01100757874 | X36: 0.02218271234 | Y36: -0.02743731752
C37: LED70 | D37: 3.099356356 | E37: 3.108148588 | F37: 21.78433571 | G37: 22.01471132 | H37: 68.11862402 | I37: 67.36880291 | J37: 112.5173261 | K37: 115.0132655 | L37: 148.8499425 | M37: 144.7658993 | O37: 0.008792232257 | P37: 0.230375608 | Q37: -0.7498211179 | R37: 2.495939477 | S37: -4.084043134 | U37: 0.002836792949 | V37: 0.01057528726 | W37: -0.01100757874 | X37: 0.02218271234 | Y37: -0.02743731752
C38: LED150 | D38: 3.099356356 | E38: 3.108148588 | F38: 20.97443174 | G38: 21.17131243 | H38: 67.35456367 | I38: 66.57314357 | J38: 105.544102 | K38: 107.5520727 | L38: 136.7955977 | M38: 133.1422673 | O38: 0.008792232257 | P38: 0.1968806875 | Q38: -0.7814200995 | R38: 2.007970695 | S38: -3.653330406 | U38: 0.002836792949 | V38: 0.009386699477 | W38: -0.011601591 | X38: 0.01902494461 | Y38: -0.02670649105
C39: LED90 | D39: 3.099356356 | E39: 3.108148588 | F39: 21.78433571 | G39: 22.01471132 | H39: 68.11862402 | I39: 67.36880291 | J39: 112.5173261 | K39: 115.0132655 | L39: 148.8499425 | M39: 144.7658993 | O39: 0.008792232257 | P39: 0.230375608 | Q39: -0.7498211179 | R39: 2.495939477 | S39: -4.084043134 | U39: 0.002836792949 | V39: 0.01057528726 | W39: -0.01100757874 | X39: 0.02218271234 | Y39: -0.02743731752
C40: LED72 | D40: 3.099356356 | E40: 3.108148588 | F40: 21.78433571 | G40: 22.01471132 | H40: 68.11862402 | I40: 67.36880291 | J40: 112.5173261 | K40: 115.0132655 | L40: 148.8499425 | M40: 144.7658993 | O40: 0.008792232257 | P40: 0.230375608 | Q40: -0.7498211179 | R40: 2.495939477 | S40: -4.084043134 | U40: 0.002836792949 | V40: 0.01057528726 | W40: -0.01100757874 | X40: 0.02218271234 | Y40: -0.02743731752
C41: LED117 | D41: 3.099356356 | E41: 3.108148588 | F41: 23.58412232 | G41: 23.88893108 | H41: 69.81653591 | I41: 69.13693475 | J41: 128.0133795 | K41: 131.5936941 | L41: 175.6373752 | M41: 170.5961926 | O41: 0.008792232257 | P41: 0.3048087648 | Q41: -0.6796011587 | R41: 3.580314548 | S41: -5.04118253 | U41: 0.002836792949 | V41: 0.01292432089 | W41: -0.009734100236 | X41: 0.02796828396 | Y41: -0.0287022197
C42: LED158 | D42: 3.099356356 | E42: 3.108148588 | F42: 23.58412232 | G42: 23.88893108 | H42: 69.81653591 | I42: 69.13693475 | J42: 128.0133795 | K42: 131.5936941 | L42: 175.6373752 | M42: 170.5961926 | O42: 0.008792232257 | P42: 0.3048087648 | Q42: -0.6796011587 | R42: 3.580314548 | S42: -5.04118253 | U42: 0.002836792949 | V42: 0.01292432089 | W42: -0.009734100236 | X42: 0.02796828396 | Y42: -0.0287022197
C43: LED298 | D43: 3.099356356 | E43: 3.108148588 | F43: 26.04982996 | G43: 26.45661215 | H43: 72.1426752 | I43: 71.55927538 | J43: 149.2429727 | K43: 154.3088811 | L43: 212.336158 | M43: 205.9836945 | O43: 0.008792232257 | P43: 0.4067821896 | Q43: -0.5833998145 | R43: 5.065908396 | S43: -6.352463501 | U43: 0.002836792949 | V43: 0.01561554107 | W43: -0.008086750497 | X43: 0.03394403303 | Y43: -0.02991701254
C44: LED178 | D44: 3.099356356 | E44: 3.108148588 | F44: 21.78433571 | G44: 22.01471132 | H44: 68.11862402 | I44: 67.36880291 | J44: 112.5173261 | K44: 115.0132655 | L44: 148.8499425 | M44: 144.7658993 | O44: 0.008792232257 | P44: 0.230375608 | Q44: -0.7498211179 | R44: 2.495939477 | S44: -4.084043134 | U44: 0.002836792949 | V44: 0.01057528726 | W44: -0.01100757874 | X44: 0.02218271234 | Y44: -0.02743731752
C45: LED175 | D45: 3.099356356 | E45: 3.108148588 | F45: 22.23428236 | G45: 22.48326626 | H45: 68.54310199 | I45: 67.81083587 | J45: 116.3913394 | K45: 119.1583727 | L45: 155.5468006 | M45: 151.2234727 | O45: 0.008792232257 | P45: 0.2489838972 | Q45: -0.7322661281 | R45: 2.767033245 | S45: -4.323327983 | U45: 0.002836792949 | V45: 0.01119819804 | W45: -0.01068329426 | X45: 0.02377353211 | Y45: -0.02779438706
C46: LED79 | D46: 3.099356356 | E46: 3.108148588 | F46: 23.58412232 | G46: 23.88893108 | H46: 69.81653591 | I46: 69.13693475 | J46: 128.0133795 | K46: 131.5936941 | L46: 175.6373752 | M46: 170.5961926 | O46: 0.008792232257 | P46: 0.3048087648 | Q46: -0.6796011587 | R46: 3.580314548 | S46: -5.04118253 | U46: 0.002836792949 | V46: 0.01292432089 | W46: -0.009734100236 | X46: 0.02796828396 | Y46: -0.0287022197
C47: LED80 | D47: 3.099356356 | E47: 3.108148588 | F47: 20.97443174 | G47: 21.17131243 | H47: 67.35456367 | I47: 66.57314357 | J47: 105.544102 | K47: 107.5520727 | L47: 136.7955977 | M47: 133.1422673 | O47: 0.008792232257 | P47: 0.1968806875 | Q47: -0.7814200995 | R47: 2.007970695 | S47: -3.653330406 | U47: 0.002836792949 | V47: 0.009386699477 | W47: -0.011601591 | X47: 0.01902494461 | Y47: -0.02670649105
C48: LED60 | D48: 3.099356356 | E48: 3.108148588 | F48: 20.74945842 | G48: 20.93703496 | H48: 67.14232469 | I48: 66.35212709 | J48: 103.6070953 | K48: 105.4795192 | L48: 133.4471687 | M48: 129.9134807 | O48: 0.008792232257 | P48: 0.1875765429 | Q48: -0.7901975945 | R48: 1.872423811 | S48: -3.533687982 | U48: 0.002836792949 | V48: 0.009040069341 | W48: -0.01176899367 | X48: 0.01807235118 | Y48: -0.02648005212
C49: LED155 TM | D49: 3.099356356 | E49: 3.108148588 | F49: 24.77539932 | G49: 25.12947532 | H49: 70.94038214 | I49: 70.3072595 | J49: 138.2702022 | K49: 142.5682636 | L49: 193.3679508 | M49: 187.6932387 | O49: 0.008792232257 | P49: 0.3540759989 | Q49: -0.6331226359 | R49: 4.298061353 | S49: -5.674712165 | U49: 0.002836792949 | V49: 0.0142914346 | W49: -0.008924714201 | X49: 0.03108450906 | Y49: -0.02934670477
C50: LED81 TM | D50: 3.099356356 | E50: 3.108148588 | F50: 24.43960854 | G50: 24.77979736 | H50: 70.62359839 | I50: 69.97737463 | J50: 135.379064 | K50: 139.4748107 | L50: 188.3701512 | M50: 182.874015 | O50: 0.008792232257 | P50: 0.340188815 | Q50: -0.6462237528 | R50: 4.095746731 | S50: -5.496136227 | U50: 0.002836792949 | V50: 0.0139195689 | W50: -0.009150252431 | X50: 0.03025391526 | Y50: -0.02917732025
C51: LED101 TM | D51: 3.099356356 | E51: 3.108148588 | F51: 24.6074659 | G51: 24.95459673 | H51: 70.78195439 | I51: 70.14227971 | J51: 136.8243057 | K51: 141.0211868 | L51: 190.868485 | M51: 185.283081 | O51: 0.008792232257 | P51: 0.3471308342 | Q51: -0.6396746781 | R51: 4.19688113 | S51: -5.585403972 | U51: 0.002836792949 | V51: 0.01410672824 | W51: -0.00903725651 | X51: 0.03067350577 | Y51: -0.02926310214
C52: LED58 | D52: 3.099356356 | E52: 3.108148588 | F52: 20.74438886 | G52: 20.93175575 | H52: 67.13754209 | I52: 66.3471467 | J52: 103.5634468 | K52: 105.4328162 | L52: 133.371715 | M52: 129.8407231 | O52: 0.008792232257 | P52: 0.187366883 | Q52: -0.7903953868 | R52: 1.869369394 | S52: -3.530991956 | U52: 0.002836792949 | V52: 0.009032171747 | W52: -0.01177277812 | X52: 0.01805047487 | Y52: -0.02647481855
C53: LED78 | D53: 3.099356356 | E53: 3.108148588 | F53: 20.96236765 | G53: 21.15874941 | H53: 67.34318246 | I53: 66.56129167 | J53: 105.4402309 | K53: 107.440933 | L53: 136.6160398 | M53: 132.9691252 | O53: 0.008792232257 | P53: 0.1963817571 | Q53: -0.7818907886 | R53: 2.000702057 | S53: -3.646914637 | U53: 0.002836792949 | V53: 0.00936830039 | W53: -0.01161054111 | X53: 0.01897475033 | Y53: -0.02669463002
C54: LED151 | D54: 3.099356356 | E54: 3.108148588 | F54: 20.98617343 | G54: 21.18353972 | H54: 67.36564074 | I54: 66.58467875 | J54: 105.6451973 | K54: 107.6602423 | L54: 136.9703572 | M54: 133.3107825 | O54: 0.008792232257 | P54: 0.1973662845 | Q54: -0.7809619892 | R54: 2.015045087 | S54: -3.659574721 | U54: 0.002836792949 | V54: 0.009404586555 | W54: -0.01159288297 | X54: 0.01907370273 | Y54: -0.02671800524
C55: LED180 F | D55: 3.099356356 | E55: 3.108148588 | F55: 25.60176042 | G55: 25.98581412 | H55: 71.71996809 | I55: 71.1151263 | J55: 141.9610799 | K55: 146.4748272 | L55: 199.4412146 | M55: 193.5348518 | O55: 0.008792232257 | P55: 0.3840536971 | Q55: -0.6048417886 | R55: 4.513747239 | S55: -5.906362851 | U55: 0.002836792949 | V55: 0.01500106597 | W55: -0.008433380615 | X55: 0.0317956671 | Y55: -0.02961455516
C56: LED360 F | D56: 3.099356356 | E56: 3.108148588 | F56: 31.67466782 | G56: 32.30987666 | H56: 77.44912601 | I56: 77.08122304 | J56: 196.5347637 | K56: 204.871084 | L56: 293.9856484 | M56: 284.6722765 | O56: 0.008792232257 | P56: 0.6352088438 | Q56: -0.3679029709 | R56: 8.336320305 | S56: -9.313371868 | U56: 0.002836792949 | V56: 0.02005415961 | W56: -0.004750253358 | X56: 0.04241651781 | Y56: -0.03167968205
C57: LED100 | D57: 3.099356356 | E57: 3.108148588 | F57: 20.94053935 | G57: 21.13601836 | H57: 67.32258972 | I57: 66.53984728 | J57: 105.2522906 | K57: 107.239841 | L57: 136.2911545 | M57: 132.6558483 | O57: 0.008792232257 | P57: 0.1954790115 | Q57: -0.7827424354 | R57: 1.987550461 | S57: -3.63530619 | U57: 0.002836792949 | V57: 0.009334955905 | W57: -0.0116267428 | X57: 0.01888367892 | Y57: -0.0266730897
C58: LED120 | D58: 3.099356356 | E58: 3.108148588 | F58: 20.94053935 | G58: 21.13601836 | H58: 67.32258972 | I58: 66.53984728 | J58: 105.2522906 | K58: 107.239841 | L58: 136.2911545 | M58: 132.6558483 | O58: 0.008792232257 | P58: 0.1954790115 | Q58: -0.7827424354 | R58: 1.987550461 | S58: -3.63530619 | U58: 0.002836792949 | V58: 0.009334955905 | W58: -0.0116267428 | X58: 0.01888367892 | Y58: -0.0266730897
B62: End

Sheet Draft Decision changes
A1: Cells | B1: Description of changes
A2: Global Assumptions - row 11 | B2: updated forecast CPI
A3: Global Assumptions - row 18 | B3: substituted with our labour escalation rates
A4: PTRM Integration | B4: updated PTRM outputs - as per our draft decision Public Lighting PTRM

Sheet Contents
B1: =A_Name_Model -> Public Lighting Model
B2: =RIGHT(CELL("filename",A2),LEN(CELL("filename",A2))-FIND("]",CELL("filename",A2))) -> Contents
B4: Model Administration
B5: =HYPERLINK("["&A_Name_File&"]'"&E5&"'!A1",E5) -> Contents | E5: Contents
B8: Model Outputs
B9: =HYPERLINK("["&A_Name_File&"]'"&E9&"'!A1",E9) -> HID Tariffs Smoothed | C9: Summary of All HID Tariffs | E9: HID Tariffs Smoothed
B10: =HYPERLINK("["&A_Name_File&"]'"&E10&"'!A1",E10) -> LED Tariffs Smoothed | C10: Summary of All LED Tariffs | E10: LED Tariffs Smoothed
B11: HID Tariffs Unsmoothed | C11: Summary of All HID tarriffs unsmoothed with labour esclation applied per year | E11: HID Tariffs Unsmoothed
B12: LED Tariffs Unsmoothed | C12: Summary of All LED tarriffs unsmoothed with labour esclation applied per year | E12: LED Tariffs Unsmoothed
B13: HID | C13: Individual Tariff Detail Unsmoothed and in 2024/25 $ | E13: HID
B14: LED | C14: Individual Tariff Detail Unsmoothed and in 2024/25 $ | E14: LED
B15: =HYPERLINK("["&A_Name_File&"]'"&E15&"'!A1",E15) -> PTRM Integration | C15: Summary of inputs and outputs from the PTRM | E15: PTRM Integration
B16: =HYPERLINK("["&A_Name_File&"]'"&E16&"'!A1",E16) -> RIN_ReportOutputs | C16: Summary of outputs to be used the Reset RIN | E16: RIN_ReportOutputs
B18: Expenditure Summaries and Graphs
B19: =HYPERLINK("["&A_Name_File&"]'"&E19&"'!A1",E19) -> Total Expenditure | C19: Total Expenditure (CAPEX and OPEX) | E19: Total Expenditure
B20: =HYPERLINK("["&A_Name_File&"]'"&E20&"'!A1",E20) -> CAPEX Graph | C20: Total Capital Expenditure | E20: CAPEX Graph
B21: =HYPERLINK("["&A_Name_File&"]'"&E21&"'!A1",E21) -> OPEX Graph | C21: Total Operating Expenditure | E21: OPEX Graph
B23: Model Calculations
B24: Provides outputs for PTRM Integration
B25: =HYPERLINK("["&A_Name_File&"]'"&E25&"'!A1",E25) -> Cable Replacement | C25: Input into PTRM Integration | E25: Cable Replacement
B26: Brackets Replacement | C26: Input into PTRM Integration | E26: Brackets Replacement
B27: Column Replacement | C27: Input into PTRM Integration | E27: Column Replacement
B28: Provides outputs for HID and LED Tariffs
B29: =HYPERLINK("["&A_Name_File&"]'"&E29&"'!A1",E29) -> Column Inspections | C29: Opex cost recovered via relevant HID and LED tariffs | E29: Column Inspections
B30: =HYPERLINK("["&A_Name_File&"]'"&E30&"'!A1",E30) -> Cable Faults | C30: Opex cost recovered via relevant HID and LED tariffs | E30: Cable Faults
B31: =HYPERLINK("["&A_Name_File&"]'"&E31&"'!A1",E31) -> GSL | C31: Cost no longer recoverable for 2025-30 as per the changes to the ESCOSA Distribtion Code | E31: GSL
B32: Provides outputs for HID Tariffs
B33: =HYPERLINK("["&A_Name_File&"]'"&E33&"'!A1",E33) -> FailureRates-HIDOpex | C33: Light populations, HID opex costs and HID conversions to LED which results in the LED capital budget | E33: FailureRates-HIDOpex
B34: Provides outputs for LED Tariffs
B35: =HYPERLINK("["&A_Name_File&"]'"&E35&"'!A1",E35) -> LEDOpex | C35: LED operating costs to be included in the maintenance cost | E35: LEDOpex
B36: =HYPERLINK("["&A_Name_File&"]'"&E36&"'!A1",E36) -> AnnuitySupportingCalculations | C36: Supporting calculations to determine the Present Value cost to be recovered through an annuity | E36: AnnuitySupportingCalculations
B37: =HYPERLINK("["&A_Name_File&"]'"&E37&"'!A1",E37) -> AnnuityResults | C37: Summary of Annuity Results for LEDs | E37: AnnuityResults
B39: Model Inputs
B40: =HYPERLINK("["&A_Name_File&"]'"&E40&"'!A1",E40) -> Global Assumptions | C40: Summary of key assumption used throughout the model | E40: Global Assumptions
B41: LEDCapexandOpexInputs | C41: Summary of key LED costs used in the modelling | E41: LEDCapexandOpexInputs
B42: AMP | C42: Summary of Asset Management Plan for Cable repairs | E42: AMP
B43: SLOFault_Data | C43: Summary of SLO fault data | E43: SLOFault_Data
B44: Bracket_Data | C44: Summary of bracket data | E44: Bracket_Data
B45: ColumnData | C45: Summary of column data | E45: ColumnData

Sheet Administration
B1: =A_Name_Model -> Public Lighting Model
B2: =RIGHT(CELL("filename",B2),LEN(CELL("filename",B2))-FIND("]",CELL("filename",B2))) -> Administration
B4: Model Name: | C4: Public Lighting Model
B6: File Name: | C6: =MID(CELL("filename",$C$6),FIND("[",CELL("filename",$C$6))+1,FIND("]",CELL("filename",$C$6))-FIND("[",CELL("filename",$C$6))-1) -> AER - Draft Decision - SA Power Networks - 2025-30 Distribution revenue proposal - Public Lighting Pricing Model - September 2024 - Public.xlsm
B8: Version: | C8: AER Draft Version 1
B10: Confidentiality: | C10: Yes Confidential

Sheet HID Tariffs Smoothed
A1: Public Lighting Model
A2: HID Tariffs Smoothed
B3: Discount Rate (Real) | C3: 0.03083957728 | F3: Year | G3: 2025/26 | O3: Year | P3: 2026/27 | X3: Year | Y3: 2027/28 | AG3: Year | AH3: 2028/29 | AP3: Year | AQ3: 2029/30
F5: CPI Index | G5: June 2025 $ | O5: CPI Index | P5: June 2025 $ | X5: CPI Index | Y5: June 2025 $ | AG5: CPI Index | AH5: June 2025 $ | AP5: CPI Index | AQ5: June 2025 $
F6: Discount Factor | G6: 0.9700830488 | O6: Discount Factor | P6: 0.9410611217 | X6: Discount Factor | Y6: 0.9129074421 | AG6: Discount Factor | AH6: 0.8855960347 | AP6: Discount Factor | AQ6: 0.8591017014
B7: Base Lamp | C7: Lamp Type | D7: ENERGY | E7: CLER | F7: PLC | G7: TFI | H7: SAPN | I7: SLUOS | K7: Base Lamp | L7: Lamp Type | M7: ENERGY | N7: CLER | O7: PLC | P7: TFI | Q7: SAPN | R7: SLUOS | T7: Base Lamp | U7: Lamp Type | V7: ENERGY | W7: CLER | X7: PLC | Y7: TFI | Z7: SAPN | AA7: SLUOS | AC7: Base Lamp | AD7: Lamp Type | AE7: ENERGY | AF7: CLER | AG7: PLC | AH7: TFI | AI7: SAPN | AJ7: SLUOS | AL7: Base Lamp | AM7: Lamp Type | AN7: ENERGY | AO7: CLER | AP7: PLC | AQ7: TFI | AR7: SAPN | AS7: SLUOS
B8: HID-P | K8: HID-P | T8: HID-P | AC8: HID-P | AL8: HID-P
B9: cf-42 | D9: 3.108148588 | E9: 37.21048276 | I9: 76.34243411 | K9: cf-42 | M9: 3.108148588 | N9: 37.21048276 | R9: 76.34243411 | T9: cf-42 | V9: 3.108148588 | W9: 37.21048276 | AA9: 76.34243411 | AC9: cf-42 | AE9: 3.108148588 | AF9: 37.21048276 | AJ9: 76.34243411 | AL9: cf-42 | AN9: 3.108148588 | AO9: 37.21048276 | AS9: 76.34243411
B10: cf-42 | C10: F14X2 | D10: 3.108148588 | E10: 37.21048276 | I10: 76.34243411 | K10: cf-42 | L10: F14X2 | M10: 3.108148588 | N10: 37.21048276 | R10: 76.34243411 | T10: cf-42 | U10: F14X2 | V10: 3.108148588 | W10: 37.21048276 | AA10: 76.34243411 | AC10: cf-42 | AD10: F14X2 | AE10: 3.108148588 | AF10: 37.21048276 | AJ10: 76.34243411 | AL10: cf-42 | AM10: F14X2 | AN10: 3.108148588 | AO10: 37.21048276 | AS10: 76.34243411
B11: cf-42 | C11: F2X8 | D11: 3.108148588 | E11: 37.21048276 | I11: 76.34243411 | K11: cf-42 | L11: F2X8 | M11: 3.108148588 | N11: 37.21048276 | R11: 76.34243411 | T11: cf-42 | U11: F2X8 | V11: 3.108148588 | W11: 37.21048276 | AA11: 76.34243411 | AC11: cf-42 | AD11: F2X8 | AE11: 3.108148588 | AF11: 37.21048276 | AJ11: 76.34243411 | AL11: cf-42 | AM11: F2X8 | AN11: 3.108148588 | AO11: 37.21048276 | AS11: 76.34243411
B12: cf-42 | C12: F42 | D12: 3.108148588 | E12: 37.21048276 | I12: 76.34243411 | K12: cf-42 | L12: F42 | M12: 3.108148588 | N12: 37.21048276 | R12: 76.34243411 | T12: cf-42 | U12: F42 | V12: 3.108148588 | W12: 37.21048276 | AA12: 76.34243411 | AC12: cf-42 | AD12: F42 | AE12: 3.108148588 | AF12: 37.21048276 | AJ12: 76.34243411 | AL12: cf-42 | AM12: F42 | AN12: 3.108148588 | AO12: 37.21048276 | AS12: 76.34243411
B14: cf-42 PT | D14: 3.108148588 | E14: 37.21048276 | I14: 76.34243411 | K14: cf-42 PT | M14: 3.108148588 | N14: 37.21048276 | R14: 76.34243411 | T14: cf-42 PT | V14: 3.108148588 | W14: 37.21048276 | AA14: 76.34243411 | AC14: cf-42 PT | AE14: 3.108148588 | AF14: 37.21048276 | AJ14: 76.34243411 | AL14: cf-42 PT | AN14: 3.108148588 | AO14: 37.21048276 | AS14: 76.34243411
B15: cf-42 PT | C15: F32 | D15: 3.108148588 | E15: 37.21048276 | I15: 76.34243411 | K15: cf-42 PT | L15: F32 | M15: 3.108148588 | N15: 37.21048276 | R15: 76.34243411 | T15: cf-42 PT | U15: F32 | V15: 3.108148588 | W15: 37.21048276 | AA15: 76.34243411 | AC15: cf-42 PT | AD15: F32 | AE15: 3.108148588 | AF15: 37.21048276 | AJ15: 76.34243411 | AL15: cf-42 PT | AM15: F32 | AN15: 3.108148588 | AO15: 37.21048276 | AS15: 76.34243411
B16: cf-42 PT | C16: PT F42 | D16: 3.108148588 | E16: 37.21048276 | I16: 76.34243411 | K16: cf-42 PT | L16: PT F42 | M16: 3.108148588 | N16: 37.21048276 | R16: 76.34243411 | T16: cf-42 PT | U16: PT F42 | V16: 3.108148588 | W16: 37.21048276 | AA16: 76.34243411 | AC16: cf-42 PT | AD16: PT F42 | AE16: 3.108148588 | AF16: 37.21048276 | AJ16: 76.34243411 | AL16: cf-42 PT | AM16: PT F42 | AN16: 3.108148588 | AO16: 37.21048276 | AS16: 76.34243411
B18: F-40 | D18: 3.108148588 | E18: 40.4653184 | I18: 80.0829737 | K18: F-40 | M18: 3.108148588 | N18: 40.4653184 | R18: 80.0829737 | T18: F-40 | V18: 3.108148588 | W18: 40.4653184 | AA18: 80.0829737 | AC18: F-40 | AE18: 3.108148588 | AF18: 40.4653184 | AJ18: 80.0829737 | AL18: F-40 | AN18: 3.108148588 | AO18: 40.4653184 | AS18: 80.0829737
B19: F-40 | C19: F11X2 | D19: 3.108148588 | E19: 40.4653184 | I19: 80.0829737 | K19: F-40 | L19: F11X2 | M19: 3.108148588 | N19: 40.4653184 | R19: 80.0829737 | T19: F-40 | U19: F11X2 | V19: 3.108148588 | W19: 40.4653184 | AA19: 80.0829737 | AC19: F-40 | AD19: F11X2 | AE19: 3.108148588 | AF19: 40.4653184 | AJ19: 80.0829737 | AL19: F-40 | AM19: F11X2 | AN19: 3.108148588 | AO19: 40.4653184 | AS19: 80.0829737
B20: F-40 | C20: F20 | D20: 3.108148588 | E20: 40.4653184 | I20: 80.0829737 | K20: F-40 | L20: F20 | M20: 3.108148588 | N20: 40.4653184 | R20: 80.0829737 | T20: F-40 | U20: F20 | V20: 3.108148588 | W20: 40.4653184 | AA20: 80.0829737 | AC20: F-40 | AD20: F20 | AE20: 3.108148588 | AF20: 40.4653184 | AJ20: 80.0829737 | AL20: F-40 | AM20: F20 | AN20: 3.108148588 | AO20: 40.4653184 | AS20: 80.0829737
B21: F-40 | C21: F20X2 | D21: 3.108148588 | E21: 40.4653184 | I21: 80.0829737 | K21: F-40 | L21: F20X2 | M21: 3.108148588 | N21: 40.4653184 | R21: 80.0829737 | T21: F-40 | U21: F20X2 | V21: 3.108148588 | W21: 40.4653184 | AA21: 80.0829737 | AC21: F-40 | AD21: F20X2 | AE21: 3.108148588 | AF21: 40.4653184 | AJ21: 80.0829737 | AL21: F-40 | AM21: F20X2 | AN21: 3.108148588 | AO21: 40.4653184 | AS21: 80.0829737
B22: F-40 | C22: F2X20 | D22: 3.108148588 | E22: 40.4653184 | I22: 80.0829737 | K22: F-40 | L22: F2X20 | M22: 3.108148588 | N22: 40.4653184 | R22: 80.0829737 | T22: F-40 | U22: F2X20 | V22: 3.108148588 | W22: 40.4653184 | AA22: 80.0829737 | AC22: F-40 | AD22: F2X20 | AE22: 3.108148588 | AF22: 40.4653184 | AJ22: 80.0829737 | AL22: F-40 | AM22: F2X20 | AN22: 3.108148588 | AO22: 40.4653184 | AS22: 80.0829737
B23: F-40 | C23: F2X40 | D23: 3.108148588 | E23: 40.4653184 | I23: 80.0829737 | K23: F-40 | L23: F2X40 | M23: 3.108148588 | N23: 40.4653184 | R23: 80.0829737 | T23: F-40 | U23: F2X40 | V23: 3.108148588 | W23: 40.4653184 | AA23: 80.0829737 | AC23: F-40 | AD23: F2X40 | AE23: 3.108148588 | AF23: 40.4653184 | AJ23: 80.0829737 | AL23: F-40 | AM23: F2X40 | AN23: 3.108148588 | AO23: 40.4653184 | AS23: 80.0829737
B24: F-40 | C24: F40 | D24: 3.108148588 | E24: 40.4653184 | I24: 80.0829737 | K24: F-40 | L24: F40 | M24: 3.108148588 | N24: 40.4653184 | R24: 80.0829737 | T24: F-40 | U24: F40 | V24: 3.108148588 | W24: 40.4653184 | AA24: 80.0829737 | AC24: F-40 | AD24: F40 | AE24: 3.108148588 | AF24: 40.4653184 | AJ24: 80.0829737 | AL24: F-40 | AM24: F40 | AN24: 3.108148588 | AO24: 40.4653184 | AS24: 80.0829737
B25: F-40 | C25: F40X2 | D25: 3.108148588 | E25: 40.4653184 | I25: 80.0829737 | K25: F-40 | L25: F40X2 | M25: 3.108148588 | N25: 40.4653184 | R25: 80.0829737 | T25: F-40 | U25: F40X2 | V25: 3.108148588 | W25: 40.4653184 | AA25: 80.0829737 | AC25: F-40 | AD25: F40X2 | AE25: 3.108148588 | AF25: 40.4653184 | AJ25: 80.0829737 | AL25: F-40 | AM25: F40X2 | AN25: 3.108148588 | AO25: 40.4653184 | AS25: 80.0829737
B26: F-40 | C26: F40X3 | D26: 3.108148588 | E26: 40.4653184 | I26: 80.0829737 | K26: F-40 | L26: F40X3 | M26: 3.108148588 | N26: 40.4653184 | R26: 80.0829737 | T26: F-40 | U26: F40X3 | V26: 3.108148588 | W26: 40.4653184 | AA26: 80.0829737 | AC26: F-40 | AD26: F40X3 | AE26: 3.108148588 | AF26: 40.4653184 | AJ26: 80.0829737 | AL26: F-40 | AM26: F40X3 | AN26: 3.108148588 | AO26: 40.4653184 | AS26: 80.0829737
B27: F-40 | C27: F40X4 | D27: 3.108148588 | E27: 40.4653184 | I27: 80.0829737 | K27: F-40 | L27: F40X4 | M27: 3.108148588 | N27: 40.4653184 | R27: 80.0829737 | T27: F-40 | U27: F40X4 | V27: 3.108148588 | W27: 40.4653184 | AA27: 80.0829737 | AC27: F-40 | AD27: F40X4 | AE27: 3.108148588 | AF27: 40.4653184 | AJ27: 80.0829737 | AL27: F-40 | AM27: F40X4 | AN27: 3.108148588 | AO27: 40.4653184 | AS27: 80.0829737
B28: F-40 | C28: F4X40 | D28: 3.108148588 | E28: 40.4653184 | I28: 80.0829737 | K28: F-40 | L28: F4X40 | M28: 3.108148588 | N28: 40.4653184 | R28: 80.0829737 | T28: F-40 | U28: F4X40 | V28: 3.108148588 | W28: 40.4653184 | AA28: 80.0829737 | AC28: F-40 | AD28: F4X40 | AE28: 3.108148588 | AF28: 40.4653184 | AJ28: 80.0829737 | AL28: F-40 | AM28: F4X40 | AN28: 3.108148588 | AO28: 40.4653184 | AS28: 80.0829737
B29: F-40 | C29: F8X2 | D29: 3.108148588 | E29: 40.4653184 | I29: 80.0829737 | K29: F-40 | L29: F8X2 | M29: 3.108148588 | N29: 40.4653184 | R29: 80.0829737 | T29: F-40 | U29: F8X2 | V29: 3.108148588 | W29: 40.4653184 | AA29: 80.0829737 | AC29: F-40 | AD29: F8X2 | AE29: 3.108148588 | AF29: 40.4653184 | AJ29: 80.0829737 | AL29: F-40 | AM29: F8X2 | AN29: 3.108148588 | AO29: 40.4653184 | AS29: 80.0829737
B30: F-40 | C30: I100 | D30: 3.108148588 | E30: 40.4653184 | I30: 80.0829737 | K30: F-40 | L30: I100 | M30: 3.108148588 | N30: 40.4653184 | R30: 80.0829737 | T30: F-40 | U30: I100 | V30: 3.108148588 | W30: 40.4653184 | AA30: 80.0829737 | AC30: F-40 | AD30: I100 | AE30: 3.108148588 | AF30: 40.4653184 | AJ30: 80.0829737 | AL30: F-40 | AM30: I100 | AN30: 3.108148588 | AO30: 40.4653184 | AS30: 80.0829737
B32: MV-80 | D32: 3.108148588 | E32: 43.27013166 | I32: 82.88880927 | K32: MV-80 | M32: 3.108148588 | N32: 43.27013166 | R32: 82.88880927 | T32: MV-80 | V32: 3.108148588 | W32: 43.27013166 | AA32: 82.88880927 | AC32: MV-80 | AE32: 3.108148588 | AF32: 43.27013166 | AJ32: 82.88880927 | AL32: MV-80 | AN32: 3.108148588 | AO32: 43.27013166 | AS32: 82.88880927
B33: MV-80 | C33: M50 | D33: 3.108148588 | E33: 43.27013166 | I33: 82.88880927 | K33: MV-80 | L33: M50 | M33: 3.108148588 | N33: 43.27013166 | R33: 82.88880927 | T33: MV-80 | U33: M50 | V33: 3.108148588 | W33: 43.27013166 | AA33: 82.88880927 | AC33: MV-80 | AD33: M50 | AE33: 3.108148588 | AF33: 43.27013166 | AJ33: 82.88880927 | AL33: MV-80 | AM33: M50 | AN33: 3.108148588 | AO33: 43.27013166 | AS33: 82.88880927
B34: MV-80 | C34: M70 | D34: 3.108148588 | E34: 43.27013166 | I34: 82.88880927 | K34: MV-80 | L34: M70 | M34: 3.108148588 | N34: 43.27013166 | R34: 82.88880927 | T34: MV-80 | U34: M70 | V34: 3.108148588 | W34: 43.27013166 | AA34: 82.88880927 | AC34: MV-80 | AD34: M70 | AE34: 3.108148588 | AF34: 43.27013166 | AJ34: 82.88880927 | AL34: MV-80 | AM34: M70 | AN34: 3.108148588 | AO34: 43.27013166 | AS34: 82.88880927
B35: MV-80 | C35: M80 | D35: 3.108148588 | E35: 43.27013166 | I35: 82.88880927 | K35: MV-80 | L35: M80 | M35: 3.108148588 | N35: 43.27013166 | R35: 82.88880927 | T35: MV-80 | U35: M80 | V35: 3.108148588 | W35: 43.27013166 | AA35: 82.88880927 | AC35: MV-80 | AD35: M80 | AE35: 3.108148588 | AF35: 43.27013166 | AJ35: 82.88880927 | AL35: MV-80 | AM35: M80 | AN35: 3.108148588 | AO35: 43.27013166 | AS35: 82.88880927
B37: MV-80 PT | D37: 3.108148588 | E37: 37.21048276 | I37: 76.34243411 | K37: MV-80 PT | M37: 3.108148588 | N37: 37.21048276 | R37: 76.34243411 | T37: MV-80 PT | V37: 3.108148588 | W37: 37.21048276 | AA37: 76.34243411 | AC37: MV-80 PT | AE37: 3.108148588 | AF37: 37.21048276 | AJ37: 76.34243411 | AL37: MV-80 PT | AN37: 3.108148588 | AO37: 37.21048276 | AS37: 76.34243411
B38: MV-80 PT | C38: PT M50 | D38: 3.108148588 | E38: 37.21048276 | I38: 76.34243411 | K38: MV-80 PT | L38: PT M50 | M38: 3.108148588 | N38: 37.21048276 | R38: 76.34243411 | T38: MV-80 PT | U38: PT M50 | V38: 3.108148588 | W38: 37.21048276 | AA38: 76.34243411 | AC38: MV-80 PT | AD38: PT M50 | AE38: 3.108148588 | AF38: 37.21048276 | AJ38: 76.34243411 | AL38: MV-80 PT | AM38: PT M50 | AN38: 3.108148588 | AO38: 37.21048276 | AS38: 76.34243411
B39: MV-80 PT | C39: PT M80 | D39: 3.108148588 | E39: 37.21048276 | I39: 76.34243411 | K39: MV-80 PT | L39: PT M80 | M39: 3.108148588 | N39: 37.21048276 | R39: 76.34243411 | T39: MV-80 PT | U39: PT M80 | V39: 3.108148588 | W39: 37.21048276 | AA39: 76.34243411 | AC39: MV-80 PT | AD39: PT M80 | AE39: 3.108148588 | AF39: 37.21048276 | AJ39: 76.34243411 | AL39: MV-80 PT | AM39: PT M80 | AN39: 3.108148588 | AO39: 37.21048276 | AS39: 76.34243411
B41: S-HP50 | D41: 3.108148588 | E41: 37.21048276 | I41: 76.34243411 | K41: S-HP50 | M41: 3.108148588 | N41: 37.21048276 | R41: 76.34243411 | T41: S-HP50 | V41: 3.108148588 | W41: 37.21048276 | AA41: 76.34243411 | AC41: S-HP50 | AE41: 3.108148588 | AF41: 37.21048276 | AJ41: 76.34243411 | AL41: S-HP50 | AN41: 3.108148588 | AO41: 37.21048276 | AS41: 76.34243411
B42: S-HP50 | C42: S50 | D42: 3.108148588 | E42: 37.21048276 | I42: 76.34243411 | K42: S-HP50 | L42: S50 | M42: 3.108148588 | N42: 37.21048276 | R42: 76.34243411 | T42: S-HP50 | U42: S50 | V42: 3.108148588 | W42: 37.21048276 | AA42: 76.34243411 | AC42: S-HP50 | AD42: S50 | AE42: 3.108148588 | AF42: 37.21048276 | AJ42: 76.34243411 | AL42: S-HP50 | AM42: S50 | AN42: 3.108148588 | AO42: 37.21048276 | AS42: 76.34243411
B44: S-LP18 | D44: 3.108148588 | E44: 37.21048276 | I44: 76.34243411 | K44: S-LP18 | M44: 3.108148588 | N44: 37.21048276 | R44: 76.34243411 | T44: S-LP18 | V44: 3.108148588 | W44: 37.21048276 | AA44: 76.34243411 | AC44: S-LP18 | AE44: 3.108148588 | AF44: 37.21048276 | AJ44: 76.34243411 | AL44: S-LP18 | AN44: 3.108148588 | AO44: 37.21048276 | AS44: 76.34243411
B45: S-LP18 | C45: L18 | D45: 3.108148588 | E45: 37.21048276 | I45: 76.34243411 | K45: S-LP18 | L45: L18 | M45: 3.108148588 | N45: 37.21048276 | R45: 76.34243411 | T45: S-LP18 | U45: L18 | V45: 3.108148588 | W45: 37.21048276 | AA45: 76.34243411 | AC45: S-LP18 | AD45: L18 | AE45: 3.108148588 | AF45: 37.21048276 | AJ45: 76.34243411 | AL45: S-LP18 | AM45: L18 | AN45: 3.108148588 | AO45: 37.21048276 | AS45: 76.34243411
B46: S-LP18 | C46: L26 | D46: 3.108148588 | E46: 37.21048276 | I46: 76.34243411 | K46: S-LP18 | L46: L26 | M46: 3.108148588 | N46: 37.21048276 | R46: 76.34243411 | T46: S-LP18 | U46: L26 | V46: 3.108148588 | W46: 37.21048276 | AA46: 76.34243411 | AC46: S-LP18 | AD46: L26 | AE46: 3.108148588 | AF46: 37.21048276 | AJ46: 76.34243411 | AL46: S-LP18 | AM46: L26 | AN46: 3.108148588 | AO46: 37.21048276 | AS46: 76.34243411
B47: S-LP18 | C47: PT L18 | D47: 3.108148588 | E47: 37.21048276 | I47: 76.34243411 | K47: S-LP18 | L47: PT L18 | M47: 3.108148588 | N47: 37.21048276 | R47: 76.34243411 | T47: S-LP18 | U47: PT L18 | V47: 3.108148588 | W47: 37.21048276 | AA47: 76.34243411 | AC47: S-LP18 | AD47: PT L18 | AE47: 3.108148588 | AF47: 37.21048276 | AJ47: 76.34243411 | AL47: S-LP18 | AM47: PT L18 | AN47: 3.108148588 | AO47: 37.21048276 | AS47: 76.34243411
B49: S-HP Other | D49: 3.108148588 | E49: 37.21048276 | I49: 76.34243411 | K49: S-HP Other | M49: 3.108148588 | N49: 37.21048276 | R49: 76.34243411 | T49: S-HP Other | V49: 3.108148588 | W49: 37.21048276 | AA49: 76.34243411 | AC49: S-HP Other | AE49: 3.108148588 | AF49: 37.21048276 | AJ49: 76.34243411 | AL49: S-HP Other | AN49: 3.108148588 | AO49: 37.21048276 | AS49: 76.34243411
B50: S-HP Other | C50: MH100 | D50: 3.108148588 | E50: 37.21048276 | I50: 76.34243411 | K50: S-HP Other | L50: MH100 | M50: 3.108148588 | N50: 37.21048276 | R50: 76.34243411 | T50: S-HP Other | U50: MH100 | V50: 3.108148588 | W50: 37.21048276 | AA50: 76.34243411 | AC50: S-HP Other | AD50: MH100 | AE50: 3.108148588 | AF50: 37.21048276 | AJ50: 76.34243411 | AL50: S-HP Other | AM50: MH100 | AN50: 3.108148588 | AO50: 37.21048276 | AS50: 76.34243411
B51: S-HP Other | C51: MH125 | D51: 3.108148588 | E51: 37.21048276 | I51: 76.34243411 | K51: S-HP Other | L51: MH125 | M51: 3.108148588 | N51: 37.21048276 | R51: 76.34243411 | T51: S-HP Other | U51: MH125 | V51: 3.108148588 | W51: 37.21048276 | AA51: 76.34243411 | AC51: S-HP Other | AD51: MH125 | AE51: 3.108148588 | AF51: 37.21048276 | AJ51: 76.34243411 | AL51: S-HP Other | AM51: MH125 | AN51: 3.108148588 | AO51: 37.21048276 | AS51: 76.34243411
B52: S-HP Other | C52: MH150 | D52: 3.108148588 | E52: 37.21048276 | I52: 76.34243411 | K52: S-HP Other | L52: MH150 | M52: 3.108148588 | N52: 37.21048276 | R52: 76.34243411 | T52: S-HP Other | U52: MH150 | V52: 3.108148588 | W52: 37.21048276 | AA52: 76.34243411 | AC52: S-HP Other | AD52: MH150 | AE52: 3.108148588 | AF52: 37.21048276 | AJ52: 76.34243411 | AL52: S-HP Other | AM52: MH150 | AN52: 3.108148588 | AO52: 37.21048276 | AS52: 76.34243411
B53: S-HP Other | C53: MH250 | D53: 3.108148588 | E53: 37.21048276 | I53: 76.34243411 | K53: S-HP Other | L53: MH250 | M53: 3.108148588 | N53: 37.21048276 | R53: 76.34243411 | T53: S-HP Other | U53: MH250 | V53: 3.108148588 | W53: 37.21048276 | AA53: 76.34243411 | AC53: S-HP Other | AD53: MH250 | AE53: 3.108148588 | AF53: 37.21048276 | AJ53: 76.34243411 | AL53: S-HP Other | AM53: MH250 | AN53: 3.108148588 | AO53: 37.21048276 | AS53: 76.34243411
B54: S-HP Other | C54: MH400 | D54: 3.108148588 | E54: 37.21048276 | I54: 76.34243411 | K54: S-HP Other | L54: MH400 | M54: 3.108148588 | N54: 37.21048276 | R54: 76.34243411 | T54: S-HP Other | U54: MH400 | V54: 3.108148588 | W54: 37.21048276 | AA54: 76.34243411 | AC54: S-HP Other | AD54: MH400 | AE54: 3.108148588 | AF54: 37.21048276 | AJ54: 76.34243411 | AL54: S-HP Other | AM54: MH400 | AN54: 3.108148588 | AO54: 37.21048276 | AS54: 76.34243411
B55: S-HP Other | C55: MH50 | D55: 3.108148588 | E55: 37.21048276 | I55: 76.34243411 | K55: S-HP Other | L55: MH50 | M55: 3.108148588 | N55: 37.21048276 | R55: 76.34243411 | T55: S-HP Other | U55: MH50 | V55: 3.108148588 | W55: 37.21048276 | AA55: 76.34243411 | AC55: S-HP Other | AD55: MH50 | AE55: 3.108148588 | AF55: 37.21048276 | AJ55: 76.34243411 | AL55: S-HP Other | AM55: MH50 | AN55: 3.108148588 | AO55: 37.21048276 | AS55: 76.34243411
B56: S-HP Other | C56: MH70 | D56: 3.108148588 | E56: 37.21048276 | I56: 76.34243411 | K56: S-HP Other | L56: MH70 | M56: 3.108148588 | N56: 37.21048276 | R56: 76.34243411 | T56: S-HP Other | U56: MH70 | V56: 3.108148588 | W56: 37.21048276 | AA56: 76.34243411 | AC56: S-HP Other | AD56: MH70 | AE56: 3.108148588 | AF56: 37.21048276 | AJ56: 76.34243411 | AL56: S-HP Other | AM56: MH70 | AN56: 3.108148588 | AO56: 37.21048276 | AS56: 76.34243411
B57: S-HP Other | C57: PT MH100 | D57: 3.108148588 | E57: 37.21048276 | I57: 76.34243411 | K57: S-HP Other | L57: PT MH100 | M57: 3.108148588 | N57: 37.21048276 | R57: 76.34243411 | T57: S-HP Other | U57: PT MH100 | V57: 3.108148588 | W57: 37.21048276 | AA57: 76.34243411 | AC57: S-HP Other | AD57: PT MH100 | AE57: 3.108148588 | AF57: 37.21048276 | AJ57: 76.34243411 | AL57: S-HP Other | AM57: PT MH100 | AN57: 3.108148588 | AO57: 37.21048276 | AS57: 76.34243411
B58: S-HP Other | C58: PT S70 | D58: 3.108148588 | E58: 37.21048276 | I58: 76.34243411 | K58: S-HP Other | L58: PT S70 | M58: 3.108148588 | N58: 37.21048276 | R58: 76.34243411 | T58: S-HP Other | U58: PT S70 | V58: 3.108148588 | W58: 37.21048276 | AA58: 76.34243411 | AC58: S-HP Other | AD58: PT S70 | AE58: 3.108148588 | AF58: 37.21048276 | AJ58: 76.34243411 | AL58: S-HP Other | AM58: PT S70 | AN58: 3.108148588 | AO58: 37.21048276 | AS58: 76.34243411
B59: S-HP Other | C59: S70 | D59: 3.108148588 | E59: 37.21048276 | I59: 76.34243411 | K59: S-HP Other | L59: S70 | M59: 3.108148588 | N59: 37.21048276 | R59: 76.34243411 | T59: S-HP Other | U59: S70 | V59: 3.108148588 | W59: 37.21048276 | AA59: 76.34243411 | AC59: S-HP Other | AD59: S70 | AE59: 3.108148588 | AF59: 37.21048276 | AJ59: 76.34243411 | AL59: S-HP Other | AM59: S70 | AN59: 3.108148588 | AO59: 37.21048276 | AS59: 76.34243411
B61: S-HP50 PT | D61: 3.108148588 | E61: 38.23008673 | I61: 76.34243411 | K61: S-HP50 PT | M61: 3.108148588 | N61: 38.23008673 | R61: 76.34243411 | T61: S-HP50 PT | V61: 3.108148588 | W61: 38.23008673 | AA61: 76.34243411 | AC61: S-HP50 PT | AE61: 3.108148588 | AF61: 38.23008673 | AJ61: 76.34243411 | AL61: S-HP50 PT | AN61: 3.108148588 | AO61: 38.23008673 | AS61: 76.34243411
B62: S-HP50 PT | C62: PT S50 | D62: 3.108148588 | E62: 38.23008673 | I62: 76.34243411 | K62: S-HP50 PT | L62: PT S50 | M62: 3.108148588 | N62: 38.23008673 | R62: 76.34243411 | T62: S-HP50 PT | U62: PT S50 | V62: 3.108148588 | W62: 38.23008673 | AA62: 76.34243411 | AC62: S-HP50 PT | AD62: PT S50 | AE62: 3.108148588 | AF62: 38.23008673 | AJ62: 76.34243411 | AL62: S-HP50 PT | AM62: PT S50 | AN62: 3.108148588 | AO62: 38.23008673 | AS62: 76.34243411
B64: HID-V | K64: HID-V | T64: HID-V | AC64: HID-V | AL64: HID-V
B65: MV-80+ | D65: 3.108148588 | E65: 37.21048276 | I65: 76.34243411 | K65: MV-80+ | M65: 3.108148588 | N65: 37.21048276 | R65: 76.34243411 | T65: MV-80+ | V65: 3.108148588 | W65: 37.21048276 | AA65: 76.34243411 | AC65: MV-80+ | AE65: 3.108148588 | AF65: 37.21048276 | AJ65: 76.34243411 | AL65: MV-80+ | AN65: 3.108148588 | AO65: 37.21048276 | AS65: 76.34243411
B66: MV-80+ | C66: M100 | D66: 3.108148588 | E66: 37.21048276 | I66: 76.34243411 | K66: MV-80+ | L66: M100 | M66: 3.108148588 | N66: 37.21048276 | R66: 76.34243411 | T66: MV-80+ | U66: M100 | V66: 3.108148588 | W66: 37.21048276 | AA66: 76.34243411 | AC66: MV-80+ | AD66: M100 | AE66: 3.108148588 | AF66: 37.21048276 | AJ66: 76.34243411 | AL66: MV-80+ | AM66: M100 | AN66: 3.108148588 | AO66: 37.21048276 | AS66: 76.34243411
B67: MV-80+ | C67: M125 | D67: 3.108148588 | E67: 37.21048276 | I67: 76.34243411 | K67: MV-80+ | L67: M125 | M67: 3.108148588 | N67: 37.21048276 | R67: 76.34243411 | T67: MV-80+ | U67: M125 | V67: 3.108148588 | W67: 37.21048276 | AA67: 76.34243411 | AC67: MV-80+ | AD67: M125 | AE67: 3.108148588 | AF67: 37.21048276 | AJ67: 76.34243411 | AL67: MV-80+ | AM67: M125 | AN67: 3.108148588 | AO67: 37.21048276 | AS67: 76.34243411
B68: MV-80+ | C68: M125X3 | D68: 3.108148588 | E68: 37.21048276 | I68: 76.34243411 | K68: MV-80+ | L68: M125X3 | M68: 3.108148588 | N68: 37.21048276 | R68: 76.34243411 | T68: MV-80+ | U68: M125X3 | V68: 3.108148588 | W68: 37.21048276 | AA68: 76.34243411 | AC68: MV-80+ | AD68: M125X3 | AE68: 3.108148588 | AF68: 37.21048276 | AJ68: 76.34243411 | AL68: MV-80+ | AM68: M125X3 | AN68: 3.108148588 | AO68: 37.21048276 | AS68: 76.34243411
B69: MV-80+ | C69: M250 | D69: 3.108148588 | E69: 37.21048276 | I69: 76.34243411 | K69: MV-80+ | L69: M250 | M69: 3.108148588 | N69: 37.21048276 | R69: 76.34243411 | T69: MV-80+ | U69: M250 | V69: 3.108148588 | W69: 37.21048276 | AA69: 76.34243411 | AC69: MV-80+ | AD69: M250 | AE69: 3.108148588 | AF69: 37.21048276 | AJ69: 76.34243411 | AL69: MV-80+ | AM69: M250 | AN69: 3.108148588 | AO69: 37.21048276 | AS69: 76.34243411
B70: MV-80+ | C70: M400 | D70: 3.108148588 | E70: 37.21048276 | I70: 76.34243411 | K70: MV-80+ | L70: M400 | M70: 3.108148588 | N70: 37.21048276 | R70: 76.34243411 | T70: MV-80+ | U70: M400 | V70: 3.108148588 | W70: 37.21048276 | AA70: 76.34243411 | AC70: MV-80+ | AD70: M400 | AE70: 3.108148588 | AF70: 37.21048276 | AJ70: 76.34243411 | AL70: MV-80+ | AM70: M400 | AN70: 3.108148588 | AO70: 37.21048276 | AS70: 76.34243411
B71: MV-80+ | C71: M400X2 | D71: 3.108148588 | E71: 37.21048276 | I71: 76.34243411 | K71: MV-80+ | L71: M400X2 | M71: 3.108148588 | N71: 37.21048276 | R71: 76.34243411 | T71: MV-80+ | U71: M400X2 | V71: 3.108148588 | W71: 37.21048276 | AA71: 76.34243411 | AC71: MV-80+ | AD71: M400X2 | AE71: 3.108148588 | AF71: 37.21048276 | AJ71: 76.34243411 | AL71: MV-80+ | AM71: M400X2 | AN71: 3.108148588 | AO71: 37.21048276 | AS71: 76.34243411
B72: MV-80+ | C72: PT M125 | D72: 3.108148588 | E72: 37.21048276 | I72: 76.34243411 | K72: MV-80+ | L72: PT M125 | M72: 3.108148588 | N72: 37.21048276 | R72: 76.34243411 | T72: MV-80+ | U72: PT M125 | V72: 3.108148588 | W72: 37.21048276 | AA72: 76.34243411 | AC72: MV-80+ | AD72: PT M125 | AE72: 3.108148588 | AF72: 37.21048276 | AJ72: 76.34243411 | AL72: MV-80+ | AM72: PT M125 | AN72: 3.108148588 | AO72: 37.21048276 | AS72: 76.34243411
B74: S-HP100 | D74: 3.108148588 | E74: 37.21048276 | I74: 76.34243411 | K74: S-HP100 | M74: 3.108148588 | N74: 37.21048276 | R74: 76.34243411 | T74: S-HP100 | V74: 3.108148588 | W74: 37.21048276 | AA74: 76.34243411 | AC74: S-HP100 | AE74: 3.108148588 | AF74: 37.21048276 | AJ74: 76.34243411 | AL74: S-HP100 | AN74: 3.108148588 | AO74: 37.21048276 | AS74: 76.34243411
B75: S-HP100 | C75: PT S100 | D75: 3.108148588 | E75: 37.21048276 | I75: 76.34243411 | K75: S-HP100 | L75: PT S100 | M75: 3.108148588 | N75: 37.21048276 | R75: 76.34243411 | T75: S-HP100 | U75: PT S100 | V75: 3.108148588 | W75: 37.21048276 | AA75: 76.34243411 | AC75: S-HP100 | AD75: PT S100 | AE75: 3.108148588 | AF75: 37.21048276 | AJ75: 76.34243411 | AL75: S-HP100 | AM75: PT S100 | AN75: 3.108148588 | AO75: 37.21048276 | AS75: 76.34243411
B76: S-HP100 | C76: S100 | D76: 3.108148588 | E76: 37.21048276 | I76: 76.34243411 | K76: S-HP100 | L76: S100 | M76: 3.108148588 | N76: 37.21048276 | R76: 76.34243411 | T76: S-HP100 | U76: S100 | V76: 3.108148588 | W76: 37.21048276 | AA76: 76.34243411 | AC76: S-HP100 | AD76: S100 | AE76: 3.108148588 | AF76: 37.21048276 | AJ76: 76.34243411 | AL76: S-HP100 | AM76: S100 | AN76: 3.108148588 | AO76: 37.21048276 | AS76: 76.34243411
B78: S-HP150 | D78: 3.108148588 | E78: 37.21048276 | I78: 76.34243411 | K78: S-HP150 | M78: 3.108148588 | N78: 37.21048276 | R78: 76.34243411 | T78: S-HP150 | V78: 3.108148588 | W78: 37.21048276 | AA78: 76.34243411 | AC78: S-HP150 | AE78: 3.108148588 | AF78: 37.21048276 | AJ78: 76.34243411 | AL78: S-HP150 | AN78: 3.108148588 | AO78: 37.21048276 | AS78: 76.34243411
B79: S-HP150 | C79: PT S150 | D79: 3.108148588 | E79: 37.21048276 | I79: 76.34243411 | K79: S-HP150 | L79: PT S150 | M79: 3.108148588 | N79: 37.21048276 | R79: 76.34243411 | T79: S-HP150 | U79: PT S150 | V79: 3.108148588 | W79: 37.21048276 | AA79: 76.34243411 | AC79: S-HP150 | AD79: PT S150 | AE79: 3.108148588 | AF79: 37.21048276 | AJ79: 76.34243411 | AL79: S-HP150 | AM79: PT S150 | AN79: 3.108148588 | AO79: 37.21048276 | AS79: 76.34243411
B80: S-HP150 | C80: S150 | D80: 3.108148588 | E80: 37.21048276 | I80: 76.34243411 | K80: S-HP150 | L80: S150 | M80: 3.108148588 | N80: 37.21048276 | R80: 76.34243411 | T80: S-HP150 | U80: S150 | V80: 3.108148588 | W80: 37.21048276 | AA80: 76.34243411 | AC80: S-HP150 | AD80: S150 | AE80: 3.108148588 | AF80: 37.21048276 | AJ80: 76.34243411 | AL80: S-HP150 | AM80: S150 | AN80: 3.108148588 | AO80: 37.21048276 | AS80: 76.34243411
B82: S-HP250 | D82: 3.108148588 | E82: 37.21048276 | I82: 76.34243411 | K82: S-HP250 | M82: 3.108148588 | N82: 37.21048276 | R82: 76.34243411 | T82: S-HP250 | V82: 3.108148588 | W82: 37.21048276 | AA82: 76.34243411 | AC82: S-HP250 | AE82: 3.108148588 | AF82: 37.21048276 | AJ82: 76.34243411 | AL82: S-HP250 | AN82: 3.108148588 | AO82: 37.21048276 | AS82: 76.34243411
B83: S-HP250 | C83: S250 | D83: 3.108148588 | E83: 37.21048276 | I83: 76.34243411 | K83: S-HP250 | L83: S250 | M83: 3.108148588 | N83: 37.21048276 | R83: 76.34243411 | T83: S-HP250 | U83: S250 | V83: 3.108148588 | W83: 37.21048276 | AA83: 76.34243411 | AC83: S-HP250 | AD83: S250 | AE83: 3.108148588 | AF83: 37.21048276 | AJ83: 76.34243411 | AL83: S-HP250 | AM83: S250 | AN83: 3.108148588 | AO83: 37.21048276 | AS83: 76.34243411
B84: S-HP250 | C84: S400 | D84: 3.108148588 | E84: 37.21048276 | I84: 76.34243411 | K84: S-HP250 | L84: S400 | M84: 3.108148588 | N84: 37.21048276 | R84: 76.34243411 | T84: S-HP250 | U84: S400 | V84: 3.108148588 | W84: 37.21048276 | AA84: 76.34243411 | AC84: S-HP250 | AD84: S400 | AE84: 3.108148588 | AF84: 37.21048276 | AJ84: 76.34243411 | AL84: S-HP250 | AM84: S400 | AN84: 3.108148588 | AO84: 37.21048276 | AS84: 76.34243411
B86: S-LP90 | D86: 3.108148588 | E86: 37.21048276 | I86: 76.34243411 | K86: S-LP90 | M86: 3.108148588 | N86: 37.21048276 | R86: 76.34243411 | T86: S-LP90 | V86: 3.108148588 | W86: 37.21048276 | AA86: 76.34243411 | AC86: S-LP90 | AE86: 3.108148588 | AF86: 37.21048276 | AJ86: 76.34243411 | AL86: S-LP90 | AN86: 3.108148588 | AO86: 37.21048276 | AS86: 76.34243411
B87: S-LP90 | C87: L135 | D87: 3.108148588 | E87: 37.21048276 | I87: 76.34243411 | K87: S-LP90 | L87: L135 | M87: 3.108148588 | N87: 37.21048276 | R87: 76.34243411 | T87: S-LP90 | U87: L135 | V87: 3.108148588 | W87: 37.21048276 | AA87: 76.34243411 | AC87: S-LP90 | AD87: L135 | AE87: 3.108148588 | AF87: 37.21048276 | AJ87: 76.34243411 | AL87: S-LP90 | AM87: L135 | AN87: 3.108148588 | AO87: 37.21048276 | AS87: 76.34243411
B88: S-LP90 | C88: L55 | D88: 3.108148588 | E88: 37.21048276 | I88: 76.34243411 | K88: S-LP90 | L88: L55 | M88: 3.108148588 | N88: 37.21048276 | R88: 76.34243411 | T88: S-LP90 | U88: L55 | V88: 3.108148588 | W88: 37.21048276 | AA88: 76.34243411 | AC88: S-LP90 | AD88: L55 | AE88: 3.108148588 | AF88: 37.21048276 | AJ88: 76.34243411 | AL88: S-LP90 | AM88: L55 | AN88: 3.108148588 | AO88: 37.21048276 | AS88: 76.34243411
B89: S-LP90 | C89: L90 | D89: 3.108148588 | E89: 37.21048276 | I89: 76.34243411 | K89: S-LP90 | L89: L90 | M89: 3.108148588 | N89: 37.21048276 | R89: 76.34243411 | T89: S-LP90 | U89: L90 | V89: 3.108148588 | W89: 37.21048276 | AA89: 76.34243411 | AC89: S-LP90 | AD89: L90 | AE89: 3.108148588 | AF89: 37.21048276 | AJ89: 76.34243411 | AL89: S-LP90 | AM89: L90 | AN89: 3.108148588 | AO89: 37.21048276 | AS89: 76.34243411
B91: HID-F | K91: HID-F | T91: HID-F | AC91: HID-F | AL91: HID-F
B92: S-HP360f | D92: 3.108148588 | E92: 38.23008673 | I92: 76.34243411 | K92: S-HP360f | M92: 3.108148588 | N92: 38.23008673 | R92: 76.34243411 | T92: S-HP360f | V92: 3.108148588 | W92: 38.23008673 | AA92: 76.34243411 | AC92: S-HP360f | AE92: 3.108148588 | AF92: 38.23008673 | AJ92: 76.34243411 | AL92: S-HP360f | AN92: 3.108148588 | AO92: 38.23008673 | AS92: 76.34243411
B93: S-HP360f | C93: I1000 F | D93: 3.108148588 | E93: 38.23008673 | I93: 76.34243411 | K93: S-HP360f | L93: I1000 F | M93: 3.108148588 | N93: 38.23008673 | R93: 76.34243411 | T93: S-HP360f | U93: I1000 F | V93: 3.108148588 | W93: 38.23008673 | AA93: 76.34243411 | AC93: S-HP360f | AD93: I1000 F | AE93: 3.108148588 | AF93: 38.23008673 | AJ93: 76.34243411 | AL93: S-HP360f | AM93: I1000 F | AN93: 3.108148588 | AO93: 38.23008673 | AS93: 76.34243411
B94: S-HP360f | C94: I150 F | D94: 3.108148588 | E94: 38.23008673 | I94: 76.34243411 | K94: S-HP360f | L94: I150 F | M94: 3.108148588 | N94: 38.23008673 | R94: 76.34243411 | T94: S-HP360f | U94: I150 F | V94: 3.108148588 | W94: 38.23008673 | AA94: 76.34243411 | AC94: S-HP360f | AD94: I150 F | AE94: 3.108148588 | AF94: 38.23008673 | AJ94: 76.34243411 | AL94: S-HP360f | AM94: I150 F | AN94: 3.108148588 | AO94: 38.23008673 | AS94: 76.34243411
B95: S-HP360f | C95: I1500 F | D95: 3.108148588 | E95: 38.23008673 | I95: 76.34243411 | K95: S-HP360f | L95: I1500 F | M95: 3.108148588 | N95: 38.23008673 | R95: 76.34243411 | T95: S-HP360f | U95: I1500 F | V95: 3.108148588 | W95: 38.23008673 | AA95: 76.34243411 | AC95: S-HP360f | AD95: I1500 F | AE95: 3.108148588 | AF95: 38.23008673 | AJ95: 76.34243411 | AL95: S-HP360f | AM95: I1500 F | AN95: 3.108148588 | AO95: 38.23008673 | AS95: 76.34243411
B96: S-HP360f | C96: I500 F | D96: 3.108148588 | E96: 38.23008673 | I96: 76.34243411 | K96: S-HP360f | L96: I500 F | M96: 3.108148588 | N96: 38.23008673 | R96: 76.34243411 | T96: S-HP360f | U96: I500 F | V96: 3.108148588 | W96: 38.23008673 | AA96: 76.34243411 | AC96: S-HP360f | AD96: I500 F | AE96: 3.108148588 | AF96: 38.23008673 | AJ96: 76.34243411 | AL96: S-HP360f | AM96: I500 F | AN96: 3.108148588 | AO96: 38.23008673 | AS96: 76.34243411
B97: S-HP360f | C97: I750 F | D97: 3.108148588 | E97: 38.23008673 | I97: 76.34243411 | K97: S-HP360f | L97: I750 F | M97: 3.108148588 | N97: 38.23008673 | R97: 76.34243411 | T97: S-HP360f | U97: I750 F | V97: 3.108148588 | W97: 38.23008673 | AA97: 76.34243411 | AC97: S-HP360f | AD97: I750 F | AE97: 3.108148588 | AF97: 38.23008673 | AJ97: 76.34243411 | AL97: S-HP360f | AM97: I750 F | AN97: 3.108148588 | AO97: 38.23008673 | AS97: 76.34243411
B98: S-HP360f | C98: M1000 F | D98: 3.108148588 | E98: 38.23008673 | I98: 76.34243411 | K98: S-HP360f | L98: M1000 F | M98: 3.108148588 | N98: 38.23008673 | R98: 76.34243411 | T98: S-HP360f | U98: M1000 F | V98: 3.108148588 | W98: 38.23008673 | AA98: 76.34243411 | AC98: S-HP360f | AD98: M1000 F | AE98: 3.108148588 | AF98: 38.23008673 | AJ98: 76.34243411 | AL98: S-HP360f | AM98: M1000 F | AN98: 3.108148588 | AO98: 38.23008673 | AS98: 76.34243411
B99: S-HP360f | C99: M250 F | D99: 3.108148588 | E99: 38.23008673 | I99: 76.34243411 | K99: S-HP360f | L99: M250 F | M99: 3.108148588 | N99: 38.23008673 | R99: 76.34243411 | T99: S-HP360f | U99: M250 F | V99: 3.108148588 | W99: 38.23008673 | AA99: 76.34243411 | AC99: S-HP360f | AD99: M250 F | AE99: 3.108148588 | AF99: 38.23008673 | AJ99: 76.34243411 | AL99: S-HP360f | AM99: M250 F | AN99: 3.108148588 | AO99: 38.23008673 | AS99: 76.34243411
B100: S-HP360f | C100: M400 F | D100: 3.108148588 | E100: 38.23008673 | I100: 76.34243411 | K100: S-HP360f | L100: M400 F | M100: 3.108148588 | N100: 38.23008673 | R100: 76.34243411 | T100: S-HP360f | U100: M400 F | V100: 3.108148588 | W100: 38.23008673 | AA100: 76.34243411 | AC100: S-HP360f | AD100: M400 F | AE100: 3.108148588 | AF100: 38.23008673 | AJ100: 76.34243411 | AL100: S-HP360f | AM100: M400 F | AN100: 3.108148588 | AO100: 38.23008673 | AS100: 76.34243411
B101: S-HP360f | C101: M400 F COST | D101: 3.108148588 | E101: 38.23008673 | I101: 76.34243411 | K101: S-HP360f | L101: M400 F COST | M101: 3.108148588 | N101: 38.23008673 | R101: 76.34243411 | T101: S-HP360f | U101: M400 F COST | V101: 3.108148588 | W101: 38.23008673 | AA101: 76.34243411 | AC101: S-HP360f | AD101: M400 F COST | AE101: 3.108148588 | AF101: 38.23008673 | AJ101: 76.34243411 | AL101: S-HP360f | AM101: M400 F COST | AN101: 3.108148588 | AO101: 38.23008673 | AS101: 76.34243411
B102: S-HP360f | C102: M400 F SACON | D102: 3.108148588 | E102: 38.23008673 | I102: 76.34243411 | K102: S-HP360f | L102: M400 F SACON | M102: 3.108148588 | N102: 38.23008673 | R102: 76.34243411 | T102: S-HP360f | U102: M400 F SACON | V102: 3.108148588 | W102: 38.23008673 | AA102: 76.34243411 | AC102: S-HP360f | AD102: M400 F SACON | AE102: 3.108148588 | AF102: 38.23008673 | AJ102: 76.34243411 | AL102: S-HP360f | AM102: M400 F SACON | AN102: 3.108148588 | AO102: 38.23008673 | AS102: 76.34243411
B103: S-HP360f | C103: M750 F | D103: 3.108148588 | E103: 38.23008673 | I103: 76.34243411 | K103: S-HP360f | L103: M750 F | M103: 3.108148588 | N103: 38.23008673 | R103: 76.34243411 | T103: S-HP360f | U103: M750 F | V103: 3.108148588 | W103: 38.23008673 | AA103: 76.34243411 | AC103: S-HP360f | AD103: M750 F | AE103: 3.108148588 | AF103: 38.23008673 | AJ103: 76.34243411 | AL103: S-HP360f | AM103: M750 F | AN103: 3.108148588 | AO103: 38.23008673 | AS103: 76.34243411
B104: S-HP360f | C104: M80 F | D104: 3.108148588 | E104: 38.23008673 | I104: 76.34243411 | K104: S-HP360f | L104: M80 F | M104: 3.108148588 | N104: 38.23008673 | R104: 76.34243411 | T104: S-HP360f | U104: M80 F | V104: 3.108148588 | W104: 38.23008673 | AA104: 76.34243411 | AC104: S-HP360f | AD104: M80 F | AE104: 3.108148588 | AF104: 38.23008673 | AJ104: 76.34243411 | AL104: S-HP360f | AM104: M80 F | AN104: 3.108148588 | AO104: 38.23008673 | AS104: 76.34243411
B105: S-HP360f | C105: S360 F | D105: 3.108148588 | E105: 38.23008673 | I105: 76.34243411 | K105: S-HP360f | L105: S360 F | M105: 3.108148588 | N105: 38.23008673 | R105: 76.34243411 | T105: S-HP360f | U105: S360 F | V105: 3.108148588 | W105: 38.23008673 | AA105: 76.34243411 | AC105: S-HP360f | AD105: S360 F | AE105: 3.108148588 | AF105: 38.23008673 | AJ105: 76.34243411 | AL105: S-HP360f | AM105: S360 F | AN105: 3.108148588 | AO105: 38.23008673 | AS105: 76.34243411
B106: S-HP360f | C106: S400 F | D106: 3.108148588 | E106: 38.23008673 | I106: 76.34243411 | K106: S-HP360f | L106: S400 F | M106: 3.108148588 | N106: 38.23008673 | R106: 76.34243411 | T106: S-HP360f | U106: S400 F | V106: 3.108148588 | W106: 38.23008673 | AA106: 76.34243411 | AC106: S-HP360f | AD106: S400 F | AE106: 3.108148588 | AF106: 38.23008673 | AJ106: 76.34243411 | AL106: S-HP360f | AM106: S400 F | AN106: 3.108148588 | AO106: 38.23008673 | AS106: 76.34243411

Sheet LED Tariffs Smoothed
A1: Public Lighting Model
A2: LED Tariffs Smoothed
B3: Discount Rate (Real) | C3: 0.03083957728 | F3: Year | G3: 2025/26 | N3: Year | O3: 2026/27 | V3: Year | W3: 2027/28 | AD3: Year | AE3: 2028/29 | AL3: Year | AM3: 2029/30
F5: CPI Index | G5: June 2025 $ | N5: CPI Index | O5: June 2025 $ | V5: CPI Index | W5: June 2025 $ | AD5: CPI Index | AE5: June 2025 $ | AL5: CPI Index | AM5: June 2025 $
F6: Discount Factor | G6: 0.9700830488 | N6: Discount Factor | O6: 0.9410611217 | V6: Discount Factor | W6: 0.9129074421 | AD6: Discount Factor | AE6: 0.8855960347 | AL6: Discount Factor | AM6: 0.8591017014
B7: Base Lamp | C7: Lamp Type | D7: ENERGY | E7: CLER | F7: PLC | G7: TFI | H7: SAPN | J7: Base Lamp | K7: Lamp Type | L7: ENERGY | M7: CLER | N7: PLC | O7: TFI | P7: SAPN | R7: Base Lamp | S7: Lamp Type | T7: ENERGY | U7: CLER | V7: PLC | W7: TFI | X7: SAPN | Z7: Base Lamp | AA7: Lamp Type | AB7: ENERGY | AC7: CLER | AD7: PLC | AE7: TFI | AF7: SAPN | AH7: Base Lamp | AI7: Lamp Type | AJ7: ENERGY | AK7: CLER | AL7: PLC | AM7: TFI | AN7: SAPN
B8: LED-P | J8: LED-P | R8: LED-P | Z8: LED-P | AH8: LED-P
C9: LED16 | D9: 3.108148588 | E9: 15.96777399 | F9: 61.66414505 | G9: 84.54961008 | H9: 98.84094264 | K9: LED16 | L9: 3.108148588 | M9: 15.96777399 | N9: 61.66414505 | O9: 84.54961008 | P9: 98.84094264 | S9: LED16 | T9: 3.108148588 | U9: 15.96777399 | V9: 61.66414505 | W9: 84.54961008 | X9: 98.84094264 | AA9: LED16 | AB9: 3.108148588 | AC9: 15.96777399 | AD9: 61.66414505 | AE9: 84.54961008 | AF9: 98.84094264 | AI9: LED16 | AJ9: 3.108148588 | AK9: 15.96777399 | AL9: 61.66414505 | AM9: 84.54961008 | AN9: 98.84094264
C10: LED17 | D10: 3.108148588 | E10: 16.33203585 | F10: 62.00778831 | G10: 88.84097414 | H10: 105.5975479 | K10: LED17 | L10: 3.108148588 | M10: 16.33203585 | N10: 62.00778831 | O10: 88.84097414 | P10: 105.5975479 | S10: LED17 | T10: 3.108148588 | U10: 16.33203585 | V10: 62.00778831 | W10: 88.84097414 | X10: 105.5975479 | AA10: LED17 | AB10: 3.108148588 | AC10: 16.33203585 | AD10: 62.00778831 | AE10: 88.84097414 | AF10: 105.5975479 | AI10: LED17 | AJ10: 3.108148588 | AK10: 16.33203585 | AL10: 62.00778831 | AM10: 88.84097414 | AN10: 105.5975479
C11: LED29 | D11: 3.108148588 | E11: 16.46187728 | F11: 62.13028023 | G11: 90.37063424 | H11: 108.0059451 | K11: LED29 | L11: 3.108148588 | M11: 16.46187728 | N11: 62.13028023 | O11: 90.37063424 | P11: 108.0059451 | S11: LED29 | T11: 3.108148588 | U11: 16.46187728 | V11: 62.13028023 | W11: 90.37063424 | X11: 108.0059451 | AA11: LED29 | AB11: 3.108148588 | AC11: 16.46187728 | AD11: 62.13028023 | AE11: 90.37063424 | AF11: 108.0059451 | AI11: LED29 | AJ11: 3.108148588 | AK11: 16.46187728 | AL11: 62.13028023 | AM11: 90.37063424 | AN11: 108.0059451
C12: LED22 | D12: 3.108148588 | E12: 16.83773404 | F12: 62.48486208 | G12: 94.79859767 | H12: 114.9776214 | K12: LED22 | L12: 3.108148588 | M12: 16.83773404 | N12: 62.48486208 | O12: 94.79859767 | P12: 114.9776214 | S12: LED22 | T12: 3.108148588 | U12: 16.83773404 | V12: 62.48486208 | W12: 94.79859767 | X12: 114.9776214 | AA12: LED22 | AB12: 3.108148588 | AC12: 16.83773404 | AD12: 62.48486208 | AE12: 94.79859767 | AF12: 114.9776214 | AI12: LED22 | AJ12: 3.108148588 | AK12: 16.83773404 | AL12: 62.48486208 | AM12: 94.79859767 | AN12: 114.9776214
C13: LED46 | D13: 3.108148588 | E13: 16.35937089 | F13: 62.03357608 | G13: 89.16300785 | H13: 106.1045789 | K13: LED46 | L13: 3.108148588 | M13: 16.35937089 | N13: 62.03357608 | O13: 89.16300785 | P13: 106.1045789 | S13: LED46 | T13: 3.108148588 | U13: 16.35937089 | V13: 62.03357608 | W13: 89.16300785 | X13: 106.1045789 | AA13: LED46 | AB13: 3.108148588 | AC13: 16.35937089 | AD13: 62.03357608 | AE13: 89.16300785 | AF13: 106.1045789 | AI13: LED46 | AJ13: 3.108148588 | AK13: 16.35937089 | AL13: 62.03357608 | AM13: 89.16300785 | AN13: 106.1045789
C14: LED43 | D14: 3.108148588 | E14: 16.35937089 | F14: 62.03357608 | G14: 89.16300785 | H14: 106.1045789 | K14: LED43 | L14: 3.108148588 | M14: 16.35937089 | N14: 62.03357608 | O14: 89.16300785 | P14: 106.1045789 | S14: LED43 | T14: 3.108148588 | U14: 16.35937089 | V14: 62.03357608 | W14: 89.16300785 | X14: 106.1045789 | AA14: LED43 | AB14: 3.108148588 | AC14: 16.35937089 | AD14: 62.03357608 | AE14: 89.16300785 | AF14: 106.1045789 | AI14: LED43 | AJ14: 3.108148588 | AK14: 16.35937089 | AL14: 62.03357608 | AM14: 89.16300785 | AN14: 106.1045789
C15: LED17 PT | D15: 3.108148588 | E15: 21.16119289 | F15: 66.56359684 | G15: 145.7332078 | H15: 195.1724147 | K15: LED17 PT | L15: 3.108148588 | M15: 21.16119289 | N15: 66.56359684 | O15: 145.7332078 | P15: 195.1724147 | S15: LED17 PT | T15: 3.108148588 | U15: 21.16119289 | V15: 66.56359684 | W15: 145.7332078 | X15: 195.1724147 | AA15: LED17 PT | AB15: 3.108148588 | AC15: 21.16119289 | AD15: 66.56359684 | AE15: 145.7332078 | AF15: 195.1724147 | AI15: LED17 PT | AJ15: 3.108148588 | AK15: 21.16119289 | AL15: 66.56359684 | AM15: 145.7332078 | AN15: 195.1724147
C16: LED35 | D16: 3.108148588 | E16: 19.61907409 | F16: 65.10876778 | G16: 127.5655271 | H16: 166.5680257 | K16: LED35 | L16: 3.108148588 | M16: 19.61907409 | N16: 65.10876778 | O16: 127.5655271 | P16: 166.5680257 | S16: LED35 | T16: 3.108148588 | U16: 19.61907409 | V16: 65.10876778 | W16: 127.5655271 | X16: 166.5680257 | AA16: LED35 | AB16: 3.108148588 | AC16: 19.61907409 | AD16: 65.10876778 | AE16: 127.5655271 | AF16: 166.5680257 | AI16: LED35 | AJ16: 3.108148588 | AK16: 19.61907409 | AL16: 65.10876778 | AM16: 127.5655271 | AN16: 166.5680257
C17: LED39 | D17: 3.108148588 | E17: 16.35937089 | F17: 62.03357608 | G17: 89.16300785 | H17: 106.1045789 | K17: LED39 | L17: 3.108148588 | M17: 16.35937089 | N17: 62.03357608 | O17: 89.16300785 | P17: 106.1045789 | S17: LED39 | T17: 3.108148588 | U17: 16.35937089 | V17: 62.03357608 | W17: 89.16300785 | X17: 106.1045789 | AA17: LED39 | AB17: 3.108148588 | AC17: 16.35937089 | AD17: 62.03357608 | AE17: 89.16300785 | AF17: 106.1045789 | AI17: LED39 | AJ17: 3.108148588 | AK17: 16.35937089 | AL17: 62.03357608 | AM17: 89.16300785 | AN17: 106.1045789
C18: LED26 | D18: 3.108148588 | E18: 16.35937089 | F18: 62.03357608 | G18: 89.16300785 | H18: 106.1045789 | K18: LED26 | L18: 3.108148588 | M18: 16.35937089 | N18: 62.03357608 | O18: 89.16300785 | P18: 106.1045789 | S18: LED26 | T18: 3.108148588 | U18: 16.35937089 | V18: 62.03357608 | W18: 89.16300785 | X18: 106.1045789 | AA18: LED26 | AB18: 3.108148588 | AC18: 16.35937089 | AD18: 62.03357608 | AE18: 89.16300785 | AF18: 106.1045789 | AI18: LED26 | AJ18: 3.108148588 | AK18: 16.35937089 | AL18: 62.03357608 | AM18: 89.16300785 | AN18: 106.1045789
C19: LED20 | D19: 3.108148588 | E19: 19.61907409 | F19: 65.10876778 | G19: 127.5655271 | H19: 166.5680257 | K19: LED20 | L19: 3.108148588 | M19: 19.61907409 | N19: 65.10876778 | O19: 127.5655271 | P19: 166.5680257 | S19: LED20 | T19: 3.108148588 | U19: 19.61907409 | V19: 65.10876778 | W19: 127.5655271 | X19: 166.5680257 | AA19: LED20 | AB19: 3.108148588 | AC19: 19.61907409 | AD19: 65.10876778 | AE19: 127.5655271 | AF19: 166.5680257 | AI19: LED20 | AJ19: 3.108148588 | AK19: 19.61907409 | AL19: 65.10876778 | AM19: 127.5655271 | AN19: 166.5680257
C20: LED28 | D20: 3.108148588 | E20: 19.61907409 | F20: 65.10876778 | G20: 127.5655271 | H20: 166.5680257 | K20: LED28 | L20: 3.108148588 | M20: 19.61907409 | N20: 65.10876778 | O20: 127.5655271 | P20: 166.5680257 | S20: LED28 | T20: 3.108148588 | U20: 19.61907409 | V20: 65.10876778 | W20: 127.5655271 | X20: 166.5680257 | AA20: LED28 | AB20: 3.108148588 | AC20: 19.61907409 | AD20: 65.10876778 | AE20: 127.5655271 | AF20: 166.5680257 | AI20: LED28 | AJ20: 3.108148588 | AK20: 19.61907409 | AL20: 65.10876778 | AM20: 127.5655271 | AN20: 166.5680257
C21: LED23 PT | D21: 3.108148588 | E21: 19.28055817 | F21: 64.78941314 | G21: 123.5774757 | H21: 160.2889757 | K21: LED23 PT | L21: 3.108148588 | M21: 19.28055817 | N21: 64.78941314 | O21: 123.5774757 | P21: 160.2889757 | S21: LED23 PT | T21: 3.108148588 | U21: 19.28055817 | V21: 64.78941314 | W21: 123.5774757 | X21: 160.2889757 | AA21: LED23 PT | AB21: 3.108148588 | AC21: 19.28055817 | AD21: 64.78941314 | AE21: 123.5774757 | AF21: 160.2889757 | AI21: LED23 PT | AJ21: 3.108148588 | AK21: 19.28055817 | AL21: 64.78941314 | AM21: 123.5774757 | AN21: 160.2889757
C22: LED24 | D22: 3.108148588 | E22: 16.31836067 | F22: 61.99488719 | G22: 88.67986697 | H22: 105.3438902 | K22: LED24 | L22: 3.108148588 | M22: 16.31836067 | N22: 61.99488719 | O22: 88.67986697 | P22: 105.3438902 | S22: LED24 | T22: 3.108148588 | U22: 16.31836067 | V22: 61.99488719 | W22: 88.67986697 | X22: 105.3438902 | AA22: LED24 | AB22: 3.108148588 | AC22: 16.31836067 | AD22: 61.99488719 | AE22: 88.67986697 | AF22: 105.3438902 | AI22: LED24 | AJ22: 3.108148588 | AK22: 16.31836067 | AL22: 61.99488719 | AM22: 88.67986697 | AN22: 105.3438902
C23: LED18 PT | D23: 3.108148588 | E23: 18.64303334 | F23: 64.18797462 | G23: 116.0668042 | H23: 148.4636817 | K23: LED18 PT | L23: 3.108148588 | M23: 18.64303334 | N23: 64.18797462 | O23: 116.0668042 | P23: 148.4636817 | S23: LED18 PT | T23: 3.108148588 | U23: 18.64303334 | V23: 64.18797462 | W23: 116.0668042 | X23: 148.4636817 | AA23: LED18 PT | AB23: 3.108148588 | AC23: 18.64303334 | AD23: 64.18797462 | AE23: 116.0668042 | AF23: 148.4636817 | AI23: LED18 PT | AJ23: 3.108148588 | AK23: 18.64303334 | AL23: 64.18797462 | AM23: 116.0668042 | AN23: 148.4636817
C24: LED19 PT | D24: 3.108148588 | E24: 18.99367777 | F24: 64.51877126 | G24: 120.1977416 | H24: 154.9677006 | K24: LED19 PT | L24: 3.108148588 | M24: 18.99367777 | N24: 64.51877126 | O24: 120.1977416 | P24: 154.9677006 | S24: LED19 PT | T24: 3.108148588 | U24: 18.99367777 | V24: 64.51877126 | W24: 120.1977416 | X24: 154.9677006 | AA24: LED19 PT | AB24: 3.108148588 | AC24: 18.99367777 | AD24: 64.51877126 | AE24: 120.1977416 | AF24: 154.9677006 | AI24: LED19 PT | AJ24: 3.108148588 | AK24: 18.99367777 | AL24: 64.51877126 | AM24: 120.1977416 | AN24: 154.9677006
C25: LED32 PT | D25: 3.108148588 | E25: 19.03806427 | F25: 64.56064531 | G25: 120.7206583 | H25: 155.791015 | K25: LED32 PT | L25: 3.108148588 | M25: 19.03806427 | N25: 64.56064531 | O25: 120.7206583 | P25: 155.791015 | S25: LED32 PT | T25: 3.108148588 | U25: 19.03806427 | V25: 64.56064531 | W25: 120.7206583 | X25: 155.791015 | AA25: LED32 PT | AB25: 3.108148588 | AC25: 19.03806427 | AD25: 64.56064531 | AE25: 120.7206583 | AF25: 155.791015 | AI25: LED32 PT | AJ25: 3.108148588 | AK25: 19.03806427 | AL25: 64.56064531 | AM25: 120.7206583 | AN25: 155.791015
C26: LED33 PT | D26: 3.108148588 | E26: 19.98694617 | F26: 65.45581691 | G26: 131.8994231 | H26: 173.391596 | K26: LED33 PT | L26: 3.108148588 | M26: 19.98694617 | N26: 65.45581691 | O26: 131.8994231 | P26: 173.391596 | S26: LED33 PT | T26: 3.108148588 | U26: 19.98694617 | V26: 65.45581691 | W26: 131.8994231 | X26: 173.391596 | AA26: LED33 PT | AB26: 3.108148588 | AC26: 19.98694617 | AD26: 65.45581691 | AE26: 131.8994231 | AF26: 173.391596 | AI26: LED33 PT | AJ26: 3.108148588 | AK26: 19.98694617 | AL26: 65.45581691 | AM26: 131.8994231 | AN26: 173.391596
B28: LED-V | J28: LED-V | R28: LED-V | Z28: LED-V | AH28: LED-V
C29: LED200 | D29: 3.108148588 | E29: 22.01471132 | F29: 67.36880291 | G29: 115.0132655 | H29: 144.7658993 | K29: LED200 | L29: 3.108148588 | M29: 22.01471132 | N29: 67.36880291 | O29: 115.0132655 | P29: 144.7658993 | S29: LED200 | T29: 3.108148588 | U29: 22.01471132 | V29: 67.36880291 | W29: 115.0132655 | X29: 144.7658993 | AA29: LED200 | AB29: 3.108148588 | AC29: 22.01471132 | AD29: 67.36880291 | AE29: 115.0132655 | AF29: 144.7658993 | AI29: LED200 | AJ29: 3.108148588 | AK29: 22.01471132 | AL29: 67.36880291 | AM29: 115.0132655 | AN29: 144.7658993
C30: LED105 | D30: 3.108148588 | E30: 26.45661215 | F30: 71.55927538 | G30: 154.3088811 | H30: 205.9836945 | K30: LED105 | L30: 3.108148588 | M30: 26.45661215 | N30: 71.55927538 | O30: 154.3088811 | P30: 205.9836945 | S30: LED105 | T30: 3.108148588 | U30: 26.45661215 | V30: 71.55927538 | W30: 154.3088811 | X30: 205.9836945 | AA30: LED105 | AB30: 3.108148588 | AC30: 26.45661215 | AD30: 71.55927538 | AE30: 154.3088811 | AF30: 205.9836945 | AI30: LED105 | AJ30: 3.108148588 | AK30: 26.45661215 | AL30: 71.55927538 | AM30: 154.3088811 | AN30: 205.9836945
C31: LED198 | D31: 3.108148588 | E31: 26.45661215 | F31: 71.55927538 | G31: 154.3088811 | H31: 205.9836945 | K31: LED198 | L31: 3.108148588 | M31: 26.45661215 | N31: 71.55927538 | O31: 154.3088811 | P31: 205.9836945 | S31: LED198 | T31: 3.108148588 | U31: 26.45661215 | V31: 71.55927538 | W31: 154.3088811 | X31: 205.9836945 | AA31: LED198 | AB31: 3.108148588 | AC31: 26.45661215 | AD31: 71.55927538 | AE31: 154.3088811 | AF31: 205.9836945 | AI31: LED198 | AJ31: 3.108148588 | AK31: 26.45661215 | AL31: 71.55927538 | AM31: 154.3088811 | AN31: 205.9836945
C32: LED88 | D32: 3.108148588 | E32: 22.01471132 | F32: 67.36880291 | G32: 115.0132655 | H32: 144.7658993 | K32: LED88 | L32: 3.108148588 | M32: 22.01471132 | N32: 67.36880291 | O32: 115.0132655 | P32: 144.7658993 | S32: LED88 | T32: 3.108148588 | U32: 22.01471132 | V32: 67.36880291 | W32: 115.0132655 | X32: 144.7658993 | AA32: LED88 | AB32: 3.108148588 | AC32: 22.01471132 | AD32: 67.36880291 | AE32: 115.0132655 | AF32: 144.7658993 | AI32: LED88 | AJ32: 3.108148588 | AK32: 22.01471132 | AL32: 67.36880291 | AM32: 115.0132655 | AN32: 144.7658993
C33: LED70 | D33: 3.108148588 | E33: 22.01471132 | F33: 67.36880291 | G33: 115.0132655 | H33: 144.7658993 | K33: LED70 | L33: 3.108148588 | M33: 22.01471132 | N33: 67.36880291 | O33: 115.0132655 | P33: 144.7658993 | S33: LED70 | T33: 3.108148588 | U33: 22.01471132 | V33: 67.36880291 | W33: 115.0132655 | X33: 144.7658993 | AA33: LED70 | AB33: 3.108148588 | AC33: 22.01471132 | AD33: 67.36880291 | AE33: 115.0132655 | AF33: 144.7658993 | AI33: LED70 | AJ33: 3.108148588 | AK33: 22.01471132 | AL33: 67.36880291 | AM33: 115.0132655 | AN33: 144.7658993
C34: LED150 | D34: 3.108148588 | E34: 21.17131243 | F34: 66.57314357 | G34: 107.5520727 | H34: 133.1422673 | K34: LED150 | L34: 3.108148588 | M34: 21.17131243 | N34: 66.57314357 | O34: 107.5520727 | P34: 133.1422673 | S34: LED150 | T34: 3.108148588 | U34: 21.17131243 | V34: 66.57314357 | W34: 107.5520727 | X34: 133.1422673 | AA34: LED150 | AB34: 3.108148588 | AC34: 21.17131243 | AD34: 66.57314357 | AE34: 107.5520727 | AF34: 133.1422673 | AI34: LED150 | AJ34: 3.108148588 | AK34: 21.17131243 | AL34: 66.57314357 | AM34: 107.5520727 | AN34: 133.1422673
C35: LED90 | D35: 3.108148588 | E35: 22.01471132 | F35: 67.36880291 | G35: 115.0132655 | H35: 144.7658993 | K35: LED90 | L35: 3.108148588 | M35: 22.01471132 | N35: 67.36880291 | O35: 115.0132655 | P35: 144.7658993 | S35: LED90 | T35: 3.108148588 | U35: 22.01471132 | V35: 67.36880291 | W35: 115.0132655 | X35: 144.7658993 | AA35: LED90 | AB35: 3.108148588 | AC35: 22.01471132 | AD35: 67.36880291 | AE35: 115.0132655 | AF35: 144.7658993 | AI35: LED90 | AJ35: 3.108148588 | AK35: 22.01471132 | AL35: 67.36880291 | AM35: 115.0132655 | AN35: 144.7658993
C36: LED72 | D36: 3.108148588 | E36: 22.01471132 | F36: 67.36880291 | G36: 115.0132655 | H36: 144.7658993 | K36: LED72 | L36: 3.108148588 | M36: 22.01471132 | N36: 67.36880291 | O36: 115.0132655 | P36: 144.7658993 | S36: LED72 | T36: 3.108148588 | U36: 22.01471132 | V36: 67.36880291 | W36: 115.0132655 | X36: 144.7658993 | AA36: LED72 | AB36: 3.108148588 | AC36: 22.01471132 | AD36: 67.36880291 | AE36: 115.0132655 | AF36: 144.7658993 | AI36: LED72 | AJ36: 3.108148588 | AK36: 22.01471132 | AL36: 67.36880291 | AM36: 115.0132655 | AN36: 144.7658993
C37: LED117 | D37: 3.108148588 | E37: 23.88893108 | F37: 69.13693475 | G37: 131.5936941 | H37: 170.5961926 | K37: LED117 | L37: 3.108148588 | M37: 23.88893108 | N37: 69.13693475 | O37: 131.5936941 | P37: 170.5961926 | S37: LED117 | T37: 3.108148588 | U37: 23.88893108 | V37: 69.13693475 | W37: 131.5936941 | X37: 170.5961926 | AA37: LED117 | AB37: 3.108148588 | AC37: 23.88893108 | AD37: 69.13693475 | AE37: 131.5936941 | AF37: 170.5961926 | AI37: LED117 | AJ37: 3.108148588 | AK37: 23.88893108 | AL37: 69.13693475 | AM37: 131.5936941 | AN37: 170.5961926
C38: LED158 | D38: 3.108148588 | E38: 23.88893108 | F38: 69.13693475 | G38: 131.5936941 | H38: 170.5961926 | K38: LED158 | L38: 3.108148588 | M38: 23.88893108 | N38: 69.13693475 | O38: 131.5936941 | P38: 170.5961926 | S38: LED158 | T38: 3.108148588 | U38: 23.88893108 | V38: 69.13693475 | W38: 131.5936941 | X38: 170.5961926 | AA38: LED158 | AB38: 3.108148588 | AC38: 23.88893108 | AD38: 69.13693475 | AE38: 131.5936941 | AF38: 170.5961926 | AI38: LED158 | AJ38: 3.108148588 | AK38: 23.88893108 | AL38: 69.13693475 | AM38: 131.5936941 | AN38: 170.5961926
C39: LED298 | D39: 3.108148588 | E39: 26.45661215 | F39: 71.55927538 | G39: 154.3088811 | H39: 205.9836945 | K39: LED298 | L39: 3.108148588 | M39: 26.45661215 | N39: 71.55927538 | O39: 154.3088811 | P39: 205.9836945 | S39: LED298 | T39: 3.108148588 | U39: 26.45661215 | V39: 71.55927538 | W39: 154.3088811 | X39: 205.9836945 | AA39: LED298 | AB39: 3.108148588 | AC39: 26.45661215 | AD39: 71.55927538 | AE39: 154.3088811 | AF39: 205.9836945 | AI39: LED298 | AJ39: 3.108148588 | AK39: 26.45661215 | AL39: 71.55927538 | AM39: 154.3088811 | AN39: 205.9836945
C40: LED178 | D40: 3.108148588 | E40: 22.01471132 | F40: 67.36880291 | G40: 115.0132655 | H40: 144.7658993 | K40: LED178 | L40: 3.108148588 | M40: 22.01471132 | N40: 67.36880291 | O40: 115.0132655 | P40: 144.7658993 | S40: LED178 | T40: 3.108148588 | U40: 22.01471132 | V40: 67.36880291 | W40: 115.0132655 | X40: 144.7658993 | AA40: LED178 | AB40: 3.108148588 | AC40: 22.01471132 | AD40: 67.36880291 | AE40: 115.0132655 | AF40: 144.7658993 | AI40: LED178 | AJ40: 3.108148588 | AK40: 22.01471132 | AL40: 67.36880291 | AM40: 115.0132655 | AN40: 144.7658993
C41: LED175 | D41: 3.108148588 | E41: 22.48326626 | F41: 67.81083587 | G41: 119.1583727 | H41: 151.2234727 | K41: LED175 | L41: 3.108148588 | M41: 22.48326626 | N41: 67.81083587 | O41: 119.1583727 | P41: 151.2234727 | S41: LED175 | T41: 3.108148588 | U41: 22.48326626 | V41: 67.81083587 | W41: 119.1583727 | X41: 151.2234727 | AA41: LED175 | AB41: 3.108148588 | AC41: 22.48326626 | AD41: 67.81083587 | AE41: 119.1583727 | AF41: 151.2234727 | AI41: LED175 | AJ41: 3.108148588 | AK41: 22.48326626 | AL41: 67.81083587 | AM41: 119.1583727 | AN41: 151.2234727
C42: LED79 | D42: 3.108148588 | E42: 23.88893108 | F42: 69.13693475 | G42: 131.5936941 | H42: 170.5961926 | K42: LED79 | L42: 3.108148588 | M42: 23.88893108 | N42: 69.13693475 | O42: 131.5936941 | P42: 170.5961926 | S42: LED79 | T42: 3.108148588 | U42: 23.88893108 | V42: 69.13693475 | W42: 131.5936941 | X42: 170.5961926 | AA42: LED79 | AB42: 3.108148588 | AC42: 23.88893108 | AD42: 69.13693475 | AE42: 131.5936941 | AF42: 170.5961926 | AI42: LED79 | AJ42: 3.108148588 | AK42: 23.88893108 | AL42: 69.13693475 | AM42: 131.5936941 | AN42: 170.5961926
C43: LED80 | D43: 3.108148588 | E43: 21.17131243 | F43: 66.57314357 | G43: 107.5520727 | H43: 133.1422673 | K43: LED80 | L43: 3.108148588 | M43: 21.17131243 | N43: 66.57314357 | O43: 107.5520727 | P43: 133.1422673 | S43: LED80 | T43: 3.108148588 | U43: 21.17131243 | V43: 66.57314357 | W43: 107.5520727 | X43: 133.1422673 | AA43: LED80 | AB43: 3.108148588 | AC43: 21.17131243 | AD43: 66.57314357 | AE43: 107.5520727 | AF43: 133.1422673 | AI43: LED80 | AJ43: 3.108148588 | AK43: 21.17131243 | AL43: 66.57314357 | AM43: 107.5520727 | AN43: 133.1422673
C44: LED60 | D44: 3.108148588 | E44: 20.93703496 | F44: 66.35212709 | G44: 105.4795192 | H44: 129.9134807 | K44: LED60 | L44: 3.108148588 | M44: 20.93703496 | N44: 66.35212709 | O44: 105.4795192 | P44: 129.9134807 | S44: LED60 | T44: 3.108148588 | U44: 20.93703496 | V44: 66.35212709 | W44: 105.4795192 | X44: 129.9134807 | AA44: LED60 | AB44: 3.108148588 | AC44: 20.93703496 | AD44: 66.35212709 | AE44: 105.4795192 | AF44: 129.9134807 | AI44: LED60 | AJ44: 3.108148588 | AK44: 20.93703496 | AL44: 66.35212709 | AM44: 105.4795192 | AN44: 129.9134807
C45: LED155 TM | D45: 3.108148588 | E45: 25.12947532 | F45: 70.3072595 | G45: 142.5682636 | H45: 187.6932387 | K45: LED155 TM | L45: 3.108148588 | M45: 25.12947532 | N45: 70.3072595 | O45: 142.5682636 | P45: 187.6932387 | S45: LED155 TM | T45: 3.108148588 | U45: 25.12947532 | V45: 70.3072595 | W45: 142.5682636 | X45: 187.6932387 | AA45: LED155 TM | AB45: 3.108148588 | AC45: 25.12947532 | AD45: 70.3072595 | AE45: 142.5682636 | AF45: 187.6932387 | AI45: LED155 TM | AJ45: 3.108148588 | AK45: 25.12947532 | AL45: 70.3072595 | AM45: 142.5682636 | AN45: 187.6932387
C46: LED81 TM | D46: 3.108148588 | E46: 24.77979736 | F46: 69.97737463 | G46: 139.4748107 | H46: 182.874015 | K46: LED81 TM | L46: 3.108148588 | M46: 24.77979736 | N46: 69.97737463 | O46: 139.4748107 | P46: 182.874015 | S46: LED81 TM | T46: 3.108148588 | U46: 24.77979736 | V46: 69.97737463 | W46: 139.4748107 | X46: 182.874015 | AA46: LED81 TM | AB46: 3.108148588 | AC46: 24.77979736 | AD46: 69.97737463 | AE46: 139.4748107 | AF46: 182.874015 | AI46: LED81 TM | AJ46: 3.108148588 | AK46: 24.77979736 | AL46: 69.97737463 | AM46: 139.4748107 | AN46: 182.874015
C47: LED101 TM | D47: 3.108148588 | E47: 24.95459673 | F47: 70.14227971 | G47: 141.0211868 | H47: 185.283081 | K47: LED101 TM | L47: 3.108148588 | M47: 24.95459673 | N47: 70.14227971 | O47: 141.0211868 | P47: 185.283081 | S47: LED101 TM | T47: 3.108148588 | U47: 24.95459673 | V47: 70.14227971 | W47: 141.0211868 | X47: 185.283081 | AA47: LED101 TM | AB47: 3.108148588 | AC47: 24.95459673 | AD47: 70.14227971 | AE47: 141.0211868 | AF47: 185.283081 | AI47: LED101 TM | AJ47: 3.108148588 | AK47: 24.95459673 | AL47: 70.14227971 | AM47: 141.0211868 | AN47: 185.283081
C48: LED58 | D48: 3.108148588 | E48: 20.93175575 | F48: 66.3471467 | G48: 105.4328162 | H48: 129.8407231 | K48: LED58 | L48: 3.108148588 | M48: 20.93175575 | N48: 66.3471467 | O48: 105.4328162 | P48: 129.8407231 | S48: LED58 | T48: 3.108148588 | U48: 20.93175575 | V48: 66.3471467 | W48: 105.4328162 | X48: 129.8407231 | AA48: LED58 | AB48: 3.108148588 | AC48: 20.93175575 | AD48: 66.3471467 | AE48: 105.4328162 | AF48: 129.8407231 | AI48: LED58 | AJ48: 3.108148588 | AK48: 20.93175575 | AL48: 66.3471467 | AM48: 105.4328162 | AN48: 129.8407231
C49: LED78 | D49: 3.108148588 | E49: 21.15874941 | F49: 66.56129167 | G49: 107.440933 | H49: 132.9691252 | K49: LED78 | L49: 3.108148588 | M49: 21.15874941 | N49: 66.56129167 | O49: 107.440933 | P49: 132.9691252 | S49: LED78 | T49: 3.108148588 | U49: 21.15874941 | V49: 66.56129167 | W49: 107.440933 | X49: 132.9691252 | AA49: LED78 | AB49: 3.108148588 | AC49: 21.15874941 | AD49: 66.56129167 | AE49: 107.440933 | AF49: 132.9691252 | AI49: LED78 | AJ49: 3.108148588 | AK49: 21.15874941 | AL49: 66.56129167 | AM49: 107.440933 | AN49: 132.9691252
C50: LED151 | D50: 3.108148588 | E50: 21.18353972 | F50: 66.58467875 | G50: 107.6602423 | H50: 133.3107825 | K50: LED151 | L50: 3.108148588 | M50: 21.18353972 | N50: 66.58467875 | O50: 107.6602423 | P50: 133.3107825 | S50: LED151 | T50: 3.108148588 | U50: 21.18353972 | V50: 66.58467875 | W50: 107.6602423 | X50: 133.3107825 | AA50: LED151 | AB50: 3.108148588 | AC50: 21.18353972 | AD50: 66.58467875 | AE50: 107.6602423 | AF50: 133.3107825 | AI50: LED151 | AJ50: 3.108148588 | AK50: 21.18353972 | AL50: 66.58467875 | AM50: 107.6602423 | AN50: 133.3107825
C51: LED180 F | D51: 3.108148588 | E51: 25.98581412 | F51: 71.1151263 | G51: 146.4748272 | H51: 193.5348518 | K51: LED180 F | L51: 3.108148588 | M51: 25.98581412 | N51: 71.1151263 | O51: 146.4748272 | P51: 193.5348518 | S51: LED180 F | T51: 3.108148588 | U51: 25.98581412 | V51: 71.1151263 | W51: 146.4748272 | X51: 193.5348518 | AA51: LED180 F | AB51: 3.108148588 | AC51: 25.98581412 | AD51: 71.1151263 | AE51: 146.4748272 | AF51: 193.5348518 | AI51: LED180 F | AJ51: 3.108148588 | AK51: 25.98581412 | AL51: 71.1151263 | AM51: 146.4748272 | AN51: 193.5348518
C52: LED360 F | D52: 3.108148588 | E52: 32.30987666 | F52: 77.08122304 | G52: 204.871084 | H52: 284.6722765 | K52: LED360 F | L52: 3.108148588 | M52: 32.30987666 | N52: 77.08122304 | O52: 204.871084 | P52: 284.6722765 | S52: LED360 F | T52: 3.108148588 | U52: 32.30987666 | V52: 77.08122304 | W52: 204.871084 | X52: 284.6722765 | AA52: LED360 F | AB52: 3.108148588 | AC52: 32.30987666 | AD52: 77.08122304 | AE52: 204.871084 | AF52: 284.6722765 | AI52: LED360 F | AJ52: 3.108148588 | AK52: 32.30987666 | AL52: 77.08122304 | AM52: 204.871084 | AN52: 284.6722765
C53: LED100 | D53: 3.108148588 | E53: 21.13601836 | F53: 66.53984728 | G53: 107.239841 | H53: 132.6558483 | K53: LED100 | L53: 3.108148588 | M53: 21.13601836 | N53: 66.53984728 | O53: 107.239841 | P53: 132.6558483 | S53: LED100 | T53: 3.108148588 | U53: 21.13601836 | V53: 66.53984728 | W53: 107.239841 | X53: 132.6558483 | AA53: LED100 | AB53: 3.108148588 | AC53: 21.13601836 | AD53: 66.53984728 | AE53: 107.239841 | AF53: 132.6558483 | AI53: LED100 | AJ53: 3.108148588 | AK53: 21.13601836 | AL53: 66.53984728 | AM53: 107.239841 | AN53: 132.6558483
C54: LED120 | D54: 3.108148588 | E54: 21.13601836 | F54: 66.53984728 | G54: 107.239841 | H54: 132.6558483 | K54: LED120 | L54: 3.108148588 | M54: 21.13601836 | N54: 66.53984728 | O54: 107.239841 | P54: 132.6558483 | S54: LED120 | T54: 3.108148588 | U54: 21.13601836 | V54: 66.53984728 | W54: 107.239841 | X54: 132.6558483 | AA54: LED120 | AB54: 3.108148588 | AC54: 21.13601836 | AD54: 66.53984728 | AE54: 107.239841 | AF54: 132.6558483 | AI54: LED120 | AJ54: 3.108148588 | AK54: 21.13601836 | AL54: 66.53984728 | AM54: 107.239841 | AN54: 132.6558483

Sheet HID Tariffs Unsmoothed
A1: Public Lighting Model
A2: HID Tariffs Unsmoothed
F3: Year | G3: 2025/26 | O3: Year | P3: 2026/27 | X3: Year | Y3: 2027/28 | AG3: Year | AH3: 2028/29 | AP3: Year | AQ3: 2029/30
F5: CPI Index | G5: June 2025 $ | O5: CPI Index | P5: June 2025 $ | X5: CPI Index | Y5: June 2025 $ | AG5: CPI Index | AH5: June 2025 $ | AP5: CPI Index | AQ5: June 2025 $
F6: Labour | G6: June 2026 $ | O6: Labour | P6: June 2027 $ | X6: Labour | Y6: June 2028 $ | AG6: Labour | AH6: June 2029 $ | AP6: Labour | AQ6: June 2030 $
B7: Base Lamp | C7: Lamp Type | D7: ENERGY | E7: CLER | F7: PLC | G7: TFI | H7: SAPN | I7: SLUOS | K7: Base Lamp | L7: Lamp Type | M7: ENERGY | N7: CLER | O7: PLC | P7: TFI | Q7: SAPN | R7: SLUOS | T7: Base Lamp | U7: Lamp Type | V7: ENERGY | W7: CLER | X7: PLC | Y7: TFI | Z7: SAPN | AA7: SLUOS | AC7: Base Lamp | AD7: Lamp Type | AE7: ENERGY | AF7: CLER | AG7: PLC | AH7: TFI | AI7: SAPN | AJ7: SLUOS | AL7: Base Lamp | AM7: Lamp Type | AN7: ENERGY | AO7: CLER | AP7: PLC | AQ7: TFI | AR7: SAPN | AS7: SLUOS
B8: HID-P | K8: HID-P | T8: HID-P | AC8: HID-P | AL8: HID-P
B9: cf-42 | D9: 3.075179002 | E9: 36.81577376 | I9: 75.5326342 | K9: cf-42 | M9: 3.092231276 | N9: 37.0199221 | R9: 75.95147264 | T9: cf-42 | V9: 3.106804423 | W9: 37.19439053 | AA9: 76.30941869 | AC9: cf-42 | AE9: 3.12504107 | AF9: 37.41271807 | AJ9: 76.75734772 | AL9: cf-42 | AN9: 3.146828041 | AO9: 37.67354978 | AS9: 77.29247992
B10: cf-42 | C10: F14X2 | D10: 3.075179002 | E10: 36.81577376 | I10: 75.5326342 | K10: cf-42 | L10: F14X2 | M10: 3.092231276 | N10: 37.0199221 | R10: 75.95147264 | T10: cf-42 | U10: F14X2 | V10: 3.106804423 | W10: 37.19439053 | AA10: 76.30941869 | AC10: cf-42 | AD10: F14X2 | AE10: 3.12504107 | AF10: 37.41271807 | AJ10: 76.75734772 | AL10: cf-42 | AM10: F14X2 | AN10: 3.146828041 | AO10: 37.67354978 | AS10: 77.29247992
B11: cf-42 | C11: F2X8 | D11: 3.075179002 | E11: 36.81577376 | I11: 75.5326342 | K11: cf-42 | L11: F2X8 | M11: 3.092231276 | N11: 37.0199221 | R11: 75.95147264 | T11: cf-42 | U11: F2X8 | V11: 3.106804423 | W11: 37.19439053 | AA11: 76.30941869 | AC11: cf-42 | AD11: F2X8 | AE11: 3.12504107 | AF11: 37.41271807 | AJ11: 76.75734772 | AL11: cf-42 | AM11: F2X8 | AN11: 3.146828041 | AO11: 37.67354978 | AS11: 77.29247992
B12: cf-42 | C12: F42 | D12: 3.075179002 | E12: 36.81577376 | I12: 75.5326342 | K12: cf-42 | L12: F42 | M12: 3.092231276 | N12: 37.0199221 | R12: 75.95147264 | T12: cf-42 | U12: F42 | V12: 3.106804423 | W12: 37.19439053 | AA12: 76.30941869 | AC12: cf-42 | AD12: F42 | AE12: 3.12504107 | AF12: 37.41271807 | AJ12: 76.75734772 | AL12: cf-42 | AM12: F42 | AN12: 3.146828041 | AO12: 37.67354978 | AS12: 77.29247992
B14: cf-42 PT | D14: 3.075179002 | E14: 36.81577376 | I14: 75.5326342 | K14: cf-42 PT | M14: 3.092231276 | N14: 37.0199221 | R14: 75.95147264 | T14: cf-42 PT | V14: 3.106804423 | W14: 37.19439053 | AA14: 76.30941869 | AC14: cf-42 PT | AE14: 3.12504107 | AF14: 37.41271807 | AJ14: 76.75734772 | AL14: cf-42 PT | AN14: 3.146828041 | AO14: 37.67354978 | AS14: 77.29247992
B15: cf-42 PT | C15: F32 | D15: 3.075179002 | E15: 36.81577376 | I15: 75.5326342 | K15: cf-42 PT | L15: F32 | M15: 3.092231276 | N15: 37.0199221 | R15: 75.95147264 | T15: cf-42 PT | U15: F32 | V15: 3.106804423 | W15: 37.19439053 | AA15: 76.30941869 | AC15: cf-42 PT | AD15: F32 | AE15: 3.12504107 | AF15: 37.41271807 | AJ15: 76.75734772 | AL15: cf-42 PT | AM15: F32 | AN15: 3.146828041 | AO15: 37.67354978 | AS15: 77.29247992
B16: cf-42 PT | C16: PT F42 | D16: 3.075179002 | E16: 36.81577376 | I16: 75.5326342 | K16: cf-42 PT | L16: PT F42 | M16: 3.092231276 | N16: 37.0199221 | R16: 75.95147264 | T16: cf-42 PT | U16: PT F42 | V16: 3.106804423 | W16: 37.19439053 | AA16: 76.30941869 | AC16: cf-42 PT | AD16: PT F42 | AE16: 3.12504107 | AF16: 37.41271807 | AJ16: 76.75734772 | AL16: cf-42 PT | AM16: PT F42 | AN16: 3.146828041 | AO16: 37.67354978 | AS16: 77.29247992
B18: F-40 | D18: 3.075179002 | E18: 40.03608384 | I18: 79.23349614 | K18: F-40 | M18: 3.092231276 | N18: 40.25808922 | R18: 79.67285635 | T18: F-40 | V18: 3.106804423 | W18: 40.44781857 | AA18: 80.04834063 | AC18: F-40 | AE18: 3.12504107 | AF18: 40.68524342 | AJ18: 80.51821677 | AL18: F-40 | AN18: 3.146828041 | AO18: 40.96889032 | AS18: 81.07956878
B19: F-40 | C19: F11X2 | D19: 3.075179002 | E19: 40.03608384 | I19: 79.23349614 | K19: F-40 | L19: F11X2 | M19: 3.092231276 | N19: 40.25808922 | R19: 79.67285635 | T19: F-40 | U19: F11X2 | V19: 3.106804423 | W19: 40.44781857 | AA19: 80.04834063 | AC19: F-40 | AD19: F11X2 | AE19: 3.12504107 | AF19: 40.68524342 | AJ19: 80.51821677 | AL19: F-40 | AM19: F11X2 | AN19: 3.146828041 | AO19: 40.96889032 | AS19: 81.07956878
B20: F-40 | C20: F20 | D20: 3.075179002 | E20: 40.03608384 | I20: 79.23349614 | K20: F-40 | L20: F20 | M20: 3.092231276 | N20: 40.25808922 | R20: 79.67285635 | T20: F-40 | U20: F20 | V20: 3.106804423 | W20: 40.44781857 | AA20: 80.04834063 | AC20: F-40 | AD20: F20 | AE20: 3.12504107 | AF20: 40.68524342 | AJ20: 80.51821677 | AL20: F-40 | AM20: F20 | AN20: 3.146828041 | AO20: 40.96889032 | AS20: 81.07956878
B21: F-40 | C21: F20X2 | D21: 3.075179002 | E21: 40.03608384 | I21: 79.23349614 | K21: F-40 | L21: F20X2 | M21: 3.092231276 | N21: 40.25808922 | R21: 79.67285635 | T21: F-40 | U21: F20X2 | V21: 3.106804423 | W21: 40.44781857 | AA21: 80.04834063 | AC21: F-40 | AD21: F20X2 | AE21: 3.12504107 | AF21: 40.68524342 | AJ21: 80.51821677 | AL21: F-40 | AM21: F20X2 | AN21: 3.146828041 | AO21: 40.96889032 | AS21: 81.07956878
B22: F-40 | C22: F2X20 | D22: 3.075179002 | E22: 40.03608384 | I22: 79.23349614 | K22: F-40 | L22: F2X20 | M22: 3.092231276 | N22: 40.25808922 | R22: 79.67285635 | T22: F-40 | U22: F2X20 | V22: 3.106804423 | W22: 40.44781857 | AA22: 80.04834063 | AC22: F-40 | AD22: F2X20 | AE22: 3.12504107 | AF22: 40.68524342 | AJ22: 80.51821677 | AL22: F-40 | AM22: F2X20 | AN22: 3.146828041 | AO22: 40.96889032 | AS22: 81.07956878
B23: F-40 | C23: F2X40 | D23: 3.075179002 | E23: 40.03608384 | I23: 79.23349614 | K23: F-40 | L23: F2X40 | M23: 3.092231276 | N23: 40.25808922 | R23: 79.67285635 | T23: F-40 | U23: F2X40 | V23: 3.106804423 | W23: 40.44781857 | AA23: 80.04834063 | AC23: F-40 | AD23: F2X40 | AE23: 3.12504107 | AF23: 40.68524342 | AJ23: 80.51821677 | AL23: F-40 | AM23: F2X40 | AN23: 3.146828041 | AO23: 40.96889032 | AS23: 81.07956878
B24: F-40 | C24: F40 | D24: 3.075179002 | E24: 40.03608384 | I24: 79.23349614 | K24: F-40 | L24: F40 | M24: 3.092231276 | N24: 40.25808922 | R24: 79.67285635 | T24: F-40 | U24: F40 | V24: 3.106804423 | W24: 40.44781857 | AA24: 80.04834063 | AC24: F-40 | AD24: F40 | AE24: 3.12504107 | AF24: 40.68524342 | AJ24: 80.51821677 | AL24: F-40 | AM24: F40 | AN24: 3.146828041 | AO24: 40.96889032 | AS24: 81.07956878
B25: F-40 | C25: F40X2 | D25: 3.075179002 | E25: 40.03608384 | I25: 79.23349614 | K25: F-40 | L25: F40X2 | M25: 3.092231276 | N25: 40.25808922 | R25: 79.67285635 | T25: F-40 | U25: F40X2 | V25: 3.106804423 | W25: 40.44781857 | AA25: 80.04834063 | AC25: F-40 | AD25: F40X2 | AE25: 3.12504107 | AF25: 40.68524342 | AJ25: 80.51821677 | AL25: F-40 | AM25: F40X2 | AN25: 3.146828041 | AO25: 40.96889032 | AS25: 81.07956878
B26: F-40 | C26: F40X3 | D26: 3.075179002 | E26: 40.03608384 | I26: 79.23349614 | K26: F-40 | L26: F40X3 | M26: 3.092231276 | N26: 40.25808922 | R26: 79.67285635 | T26: F-40 | U26: F40X3 | V26: 3.106804423 | W26: 40.44781857 | AA26: 80.04834063 | AC26: F-40 | AD26: F40X3 | AE26: 3.12504107 | AF26: 40.68524342 | AJ26: 80.51821677 | AL26: F-40 | AM26: F40X3 | AN26: 3.146828041 | AO26: 40.96889032 | AS26: 81.07956878
B27: F-40 | C27: F40X4 | D27: 3.075179002 | E27: 40.03608384 | I27: 79.23349614 | K27: F-40 | L27: F40X4 | M27: 3.092231276 | N27: 40.25808922 | R27: 79.67285635 | T27: F-40 | U27: F40X4 | V27: 3.106804423 | W27: 40.44781857 | AA27: 80.04834063 | AC27: F-40 | AD27: F40X4 | AE27: 3.12504107 | AF27: 40.68524342 | AJ27: 80.51821677 | AL27: F-40 | AM27: F40X4 | AN27: 3.146828041 | AO27: 40.96889032 | AS27: 81.07956878
B28: F-40 | C28: F4X40 | D28: 3.075179002 | E28: 40.03608384 | I28: 79.23349614 | K28: F-40 | L28: F4X40 | M28: 3.092231276 | N28: 40.25808922 | R28: 79.67285635 | T28: F-40 | U28: F4X40 | V28: 3.106804423 | W28: 40.44781857 | AA28: 80.04834063 | AC28: F-40 | AD28: F4X40 | AE28: 3.12504107 | AF28: 40.68524342 | AJ28: 80.51821677 | AL28: F-40 | AM28: F4X40 | AN28: 3.146828041 | AO28: 40.96889032 | AS28: 81.07956878
B29: F-40 | C29: F8X2 | D29: 3.075179002 | E29: 40.03608384 | I29: 79.23349614 | K29: F-40 | L29: F8X2 | M29: 3.092231276 | N29: 40.25808922 | R29: 79.67285635 | T29: F-40 | U29: F8X2 | V29: 3.106804423 | W29: 40.44781857 | AA29: 80.04834063 | AC29: F-40 | AD29: F8X2 | AE29: 3.12504107 | AF29: 40.68524342 | AJ29: 80.51821677 | AL29: F-40 | AM29: F8X2 | AN29: 3.146828041 | AO29: 40.96889032 | AS29: 81.07956878
B30: F-40 | C30: I100 | D30: 3.075179002 | E30: 40.03608384 | I30: 79.23349614 | K30: F-40 | L30: I100 | M30: 3.092231276 | N30: 40.25808922 | R30: 79.67285635 | T30: F-40 | U30: I100 | V30: 3.106804423 | W30: 40.44781857 | AA30: 80.04834063 | AC30: F-40 | AD30: I100 | AE30: 3.12504107 | AF30: 40.68524342 | AJ30: 80.51821677 | AL30: F-40 | AM30: I100 | AN30: 3.146828041 | AO30: 40.96889032 | AS30: 81.07956878
B32: MV-80 | D32: 3.075179002 | E32: 42.81114513 | I32: 82.0095689 | K32: MV-80 | M32: 3.092231276 | N32: 43.04853859 | R32: 82.4643228 | T32: MV-80 | V32: 3.106804423 | W32: 43.25141885 | AA32: 82.85296277 | AC32: MV-80 | AE32: 3.12504107 | AF32: 43.50530056 | AJ32: 83.33930178 | AL32: MV-80 | AN32: 3.146828041 | AO32: 43.80860817 | AS32: 83.92032166
B33: MV-80 | C33: M50 | D33: 3.075179002 | E33: 42.81114513 | I33: 82.0095689 | K33: MV-80 | L33: M50 | M33: 3.092231276 | N33: 43.04853859 | R33: 82.4643228 | T33: MV-80 | U33: M50 | V33: 3.106804423 | W33: 43.25141885 | AA33: 82.85296277 | AC33: MV-80 | AD33: M50 | AE33: 3.12504107 | AF33: 43.50530056 | AJ33: 83.33930178 | AL33: MV-80 | AM33: M50 | AN33: 3.146828041 | AO33: 43.80860817 | AS33: 83.92032166
B34: MV-80 | C34: M70 | D34: 3.075179002 | E34: 42.81114513 | I34: 82.0095689 | K34: MV-80 | L34: M70 | M34: 3.092231276 | N34: 43.04853859 | R34: 82.4643228 | T34: MV-80 | U34: M70 | V34: 3.106804423 | W34: 43.25141885 | AA34: 82.85296277 | AC34: MV-80 | AD34: M70 | AE34: 3.12504107 | AF34: 43.50530056 | AJ34: 83.33930178 | AL34: MV-80 | AM34: M70 | AN34: 3.146828041 | AO34: 43.80860817 | AS34: 83.92032166
B35: MV-80 | C35: M80 | D35: 3.075179002 | E35: 42.81114513 | I35: 82.0095689 | K35: MV-80 | L35: M80 | M35: 3.092231276 | N35: 43.04853859 | R35: 82.4643228 | T35: MV-80 | U35: M80 | V35: 3.106804423 | W35: 43.25141885 | AA35: 82.85296277 | AC35: MV-80 | AD35: M80 | AE35: 3.12504107 | AF35: 43.50530056 | AJ35: 83.33930178 | AL35: MV-80 | AM35: M80 | AN35: 3.146828041 | AO35: 43.80860817 | AS35: 83.92032166
B37: MV-80 PT | D37: 3.075179002 | E37: 36.81577376 | I37: 75.5326342 | K37: MV-80 PT | M37: 3.092231276 | N37: 37.0199221 | R37: 75.95147264 | T37: MV-80 PT | V37: 3.106804423 | W37: 37.19439053 | AA37: 76.30941869 | AC37: MV-80 PT | AE37: 3.12504107 | AF37: 37.41271807 | AJ37: 76.75734772 | AL37: MV-80 PT | AN37: 3.146828041 | AO37: 37.67354978 | AS37: 77.29247992
B38: MV-80 PT | C38: PT M50 | D38: 3.075179002 | E38: 36.81577376 | I38: 75.5326342 | K38: MV-80 PT | L38: PT M50 | M38: 3.092231276 | N38: 37.0199221 | R38: 75.95147264 | T38: MV-80 PT | U38: PT M50 | V38: 3.106804423 | W38: 37.19439053 | AA38: 76.30941869 | AC38: MV-80 PT | AD38: PT M50 | AE38: 3.12504107 | AF38: 37.41271807 | AJ38: 76.75734772 | AL38: MV-80 PT | AM38: PT M50 | AN38: 3.146828041 | AO38: 37.67354978 | AS38: 77.29247992
B39: MV-80 PT | C39: PT M80 | D39: 3.075179002 | E39: 36.81577376 | I39: 75.5326342 | K39: MV-80 PT | L39: PT M80 | M39: 3.092231276 | N39: 37.0199221 | R39: 75.95147264 | T39: MV-80 PT | U39: PT M80 | V39: 3.106804423 | W39: 37.19439053 | AA39: 76.30941869 | AC39: MV-80 PT | AD39: PT M80 | AE39: 3.12504107 | AF39: 37.41271807 | AJ39: 76.75734772 | AL39: MV-80 PT | AM39: PT M80 | AN39: 3.146828041 | AO39: 37.67354978 | AS39: 77.29247992
B41: S-HP50 | D41: 3.075179002 | E41: 36.81577376 | I41: 75.5326342 | K41: S-HP50 | M41: 3.092231276 | N41: 37.0199221 | R41: 75.95147264 | T41: S-HP50 | V41: 3.106804423 | W41: 37.19439053 | AA41: 76.30941869 | AC41: S-HP50 | AE41: 3.12504107 | AF41: 37.41271807 | AJ41: 76.75734772 | AL41: S-HP50 | AN41: 3.146828041 | AO41: 37.67354978 | AS41: 77.29247992
B42: S-HP50 | C42: S50 | D42: 3.075179002 | E42: 36.81577376 | I42: 75.5326342 | K42: S-HP50 | L42: S50 | M42: 3.092231276 | N42: 37.0199221 | R42: 75.95147264 | T42: S-HP50 | U42: S50 | V42: 3.106804423 | W42: 37.19439053 | AA42: 76.30941869 | AC42: S-HP50 | AD42: S50 | AE42: 3.12504107 | AF42: 37.41271807 | AJ42: 76.75734772 | AL42: S-HP50 | AM42: S50 | AN42: 3.146828041 | AO42: 37.67354978 | AS42: 77.29247992
B44: S-LP18 | D44: 3.075179002 | E44: 36.81577376 | I44: 75.5326342 | K44: S-LP18 | M44: 3.092231276 | N44: 37.0199221 | R44: 75.95147264 | T44: S-LP18 | V44: 3.106804423 | W44: 37.19439053 | AA44: 76.30941869 | AC44: S-LP18 | AE44: 3.12504107 | AF44: 37.41271807 | AJ44: 76.75734772 | AL44: S-LP18 | AN44: 3.146828041 | AO44: 37.67354978 | AS44: 77.29247992
B45: S-LP18 | C45: L18 | D45: 3.075179002 | E45: 36.81577376 | I45: 75.5326342 | K45: S-LP18 | L45: L18 | M45: 3.092231276 | N45: 37.0199221 | R45: 75.95147264 | T45: S-LP18 | U45: L18 | V45: 3.106804423 | W45: 37.19439053 | AA45: 76.30941869 | AC45: S-LP18 | AD45: L18 | AE45: 3.12504107 | AF45: 37.41271807 | AJ45: 76.75734772 | AL45: S-LP18 | AM45: L18 | AN45: 3.146828041 | AO45: 37.67354978 | AS45: 77.29247992
B46: S-LP18 | C46: L26 | D46: 3.075179002 | E46: 36.81577376 | I46: 75.5326342 | K46: S-LP18 | L46: L26 | M46: 3.092231276 | N46: 37.0199221 | R46: 75.95147264 | T46: S-LP18 | U46: L26 | V46: 3.106804423 | W46: 37.19439053 | AA46: 76.30941869 | AC46: S-LP18 | AD46: L26 | AE46: 3.12504107 | AF46: 37.41271807 | AJ46: 76.75734772 | AL46: S-LP18 | AM46: L26 | AN46: 3.146828041 | AO46: 37.67354978 | AS46: 77.29247992
B47: S-LP18 | C47: PT L18 | D47: 3.075179002 | E47: 36.81577376 | I47: 75.5326342 | K47: S-LP18 | L47: PT L18 | M47: 3.092231276 | N47: 37.0199221 | R47: 75.95147264 | T47: S-LP18 | U47: PT L18 | V47: 3.106804423 | W47: 37.19439053 | AA47: 76.30941869 | AC47: S-LP18 | AD47: PT L18 | AE47: 3.12504107 | AF47: 37.41271807 | AJ47: 76.75734772 | AL47: S-LP18 | AM47: PT L18 | AN47: 3.146828041 | AO47: 37.67354978 | AS47: 77.29247992
B49: S-HP Other | D49: 3.075179002 | E49: 36.81577376 | I49: 75.5326342 | K49: S-HP Other | M49: 3.092231276 | N49: 37.0199221 | R49: 75.95147264 | T49: S-HP Other | V49: 3.106804423 | W49: 37.19439053 | AA49: 76.30941869 | AC49: S-HP Other | AE49: 3.12504107 | AF49: 37.41271807 | AJ49: 76.75734772 | AL49: S-HP Other | AN49: 3.146828041 | AO49: 37.67354978 | AS49: 77.29247992
B50: S-HP Other | C50: MH100 | D50: 3.075179002 | E50: 36.81577376 | I50: 75.5326342 | K50: S-HP Other | L50: MH100 | M50: 3.092231276 | N50: 37.0199221 | R50: 75.95147264 | T50: S-HP Other | U50: MH100 | V50: 3.106804423 | W50: 37.19439053 | AA50: 76.30941869 | AC50: S-HP Other | AD50: MH100 | AE50: 3.12504107 | AF50: 37.41271807 | AJ50: 76.75734772 | AL50: S-HP Other | AM50: MH100 | AN50: 3.146828041 | AO50: 37.67354978 | AS50: 77.29247992
B51: S-HP Other | C51: MH125 | D51: 3.075179002 | E51: 36.81577376 | I51: 75.5326342 | K51: S-HP Other | L51: MH125 | M51: 3.092231276 | N51: 37.0199221 | R51: 75.95147264 | T51: S-HP Other | U51: MH125 | V51: 3.106804423 | W51: 37.19439053 | AA51: 76.30941869 | AC51: S-HP Other | AD51: MH125 | AE51: 3.12504107 | AF51: 37.41271807 | AJ51: 76.75734772 | AL51: S-HP Other | AM51: MH125 | AN51: 3.146828041 | AO51: 37.67354978 | AS51: 77.29247992
B52: S-HP Other | C52: MH150 | D52: 3.075179002 | E52: 36.81577376 | I52: 75.5326342 | K52: S-HP Other | L52: MH150 | M52: 3.092231276 | N52: 37.0199221 | R52: 75.95147264 | T52: S-HP Other | U52: MH150 | V52: 3.106804423 | W52: 37.19439053 | AA52: 76.30941869 | AC52: S-HP Other | AD52: MH150 | AE52: 3.12504107 | AF52: 37.41271807 | AJ52: 76.75734772 | AL52: S-HP Other | AM52: MH150 | AN52: 3.146828041 | AO52: 37.67354978 | AS52: 77.29247992
B53: S-HP Other | C53: MH250 | D53: 3.075179002 | E53: 36.81577376 | I53: 75.5326342 | K53: S-HP Other | L53: MH250 | M53: 3.092231276 | N53: 37.0199221 | R53: 75.95147264 | T53: S-HP Other | U53: MH250 | V53: 3.106804423 | W53: 37.19439053 | AA53: 76.30941869 | AC53: S-HP Other | AD53: MH250 | AE53: 3.12504107 | AF53: 37.41271807 | AJ53: 76.75734772 | AL53: S-HP Other | AM53: MH250 | AN53: 3.146828041 | AO53: 37.67354978 | AS53: 77.29247992
B54: S-HP Other | C54: MH400 | D54: 3.075179002 | E54: 36.81577376 | I54: 75.5326342 | K54: S-HP Other | L54: MH400 | M54: 3.092231276 | N54: 37.0199221 | R54: 75.95147264 | T54: S-HP Other | U54: MH400 | V54: 3.106804423 | W54: 37.19439053 | AA54: 76.30941869 | AC54: S-HP Other | AD54: MH400 | AE54: 3.12504107 | AF54: 37.41271807 | AJ54: 76.75734772 | AL54: S-HP Other | AM54: MH400 | AN54: 3.146828041 | AO54: 37.67354978 | AS54: 77.29247992
B55: S-HP Other | C55: MH50 | D55: 3.075179002 | E55: 36.81577376 | I55: 75.5326342 | K55: S-HP Other | L55: MH50 | M55: 3.092231276 | N55: 37.0199221 | R55: 75.95147264 | T55: S-HP Other | U55: MH50 | V55: 3.106804423 | W55: 37.19439053 | AA55: 76.30941869 | AC55: S-HP Other | AD55: MH50 | AE55: 3.12504107 | AF55: 37.41271807 | AJ55: 76.75734772 | AL55: S-HP Other | AM55: MH50 | AN55: 3.146828041 | AO55: 37.67354978 | AS55: 77.29247992
B56: S-HP Other | C56: MH70 | D56: 3.075179002 | E56: 36.81577376 | I56: 75.5326342 | K56: S-HP Other | L56: MH70 | M56: 3.092231276 | N56: 37.0199221 | R56: 75.95147264 | T56: S-HP Other | U56: MH70 | V56: 3.106804423 | W56: 37.19439053 | AA56: 76.30941869 | AC56: S-HP Other | AD56: MH70 | AE56: 3.12504107 | AF56: 37.41271807 | AJ56: 76.75734772 | AL56: S-HP Other | AM56: MH70 | AN56: 3.146828041 | AO56: 37.67354978 | AS56: 77.29247992
B57: S-HP Other | C57: PT MH100 | D57: 3.075179002 | E57: 36.81577376 | I57: 75.5326342 | K57: S-HP Other | L57: PT MH100 | M57: 3.092231276 | N57: 37.0199221 | R57: 75.95147264 | T57: S-HP Other | U57: PT MH100 | V57: 3.106804423 | W57: 37.19439053 | AA57: 76.30941869 | AC57: S-HP Other | AD57: PT MH100 | AE57: 3.12504107 | AF57: 37.41271807 | AJ57: 76.75734772 | AL57: S-HP Other | AM57: PT MH100 | AN57: 3.146828041 | AO57: 37.67354978 | AS57: 77.29247992
B58: S-HP Other | C58: PT S70 | D58: 3.075179002 | E58: 36.81577376 | I58: 75.5326342 | K58: S-HP Other | L58: PT S70 | M58: 3.092231276 | N58: 37.0199221 | R58: 75.95147264 | T58: S-HP Other | U58: PT S70 | V58: 3.106804423 | W58: 37.19439053 | AA58: 76.30941869 | AC58: S-HP Other | AD58: PT S70 | AE58: 3.12504107 | AF58: 37.41271807 | AJ58: 76.75734772 | AL58: S-HP Other | AM58: PT S70 | AN58: 3.146828041 | AO58: 37.67354978 | AS58: 77.29247992
B59: S-HP Other | C59: S70 | D59: 3.075179002 | E59: 36.81577376 | I59: 75.5326342 | K59: S-HP Other | L59: S70 | M59: 3.092231276 | N59: 37.0199221 | R59: 75.95147264 | T59: S-HP Other | U59: S70 | V59: 3.106804423 | W59: 37.19439053 | AA59: 76.30941869 | AC59: S-HP Other | AD59: S70 | AE59: 3.12504107 | AF59: 37.41271807 | AJ59: 76.75734772 | AL59: S-HP Other | AM59: S70 | AN59: 3.146828041 | AO59: 37.67354978 | AS59: 77.29247992
B61: S-HP50 PT | D61: 3.075179002 | E61: 37.82456232 | I61: 75.5326342 | K61: S-HP50 PT | M61: 3.092231276 | N61: 38.03430452 | R61: 75.95147264 | T61: S-HP50 PT | V61: 3.106804423 | W61: 38.21355356 | AA61: 76.30941869 | AC61: S-HP50 PT | AE61: 3.12504107 | AF61: 38.43786349 | AJ61: 76.75734772 | AL61: S-HP50 PT | AN61: 3.146828041 | AO61: 38.70584225 | AS61: 77.29247992
B62: S-HP50 PT | C62: PT S50 | D62: 3.075179002 | E62: 37.82456232 | I62: 75.5326342 | K62: S-HP50 PT | L62: PT S50 | M62: 3.092231276 | N62: 38.03430452 | R62: 75.95147264 | T62: S-HP50 PT | U62: PT S50 | V62: 3.106804423 | W62: 38.21355356 | AA62: 76.30941869 | AC62: S-HP50 PT | AD62: PT S50 | AE62: 3.12504107 | AF62: 38.43786349 | AJ62: 76.75734772 | AL62: S-HP50 PT | AM62: PT S50 | AN62: 3.146828041 | AO62: 38.70584225 | AS62: 77.29247992
B64: HID-V | K64: HID-V | T64: HID-V | AC64: HID-V | AL64: HID-V
B65: MV-80+ | D65: 3.075179002 | E65: 36.81577376 | I65: 75.5326342 | K65: MV-80+ | M65: 3.092231276 | N65: 37.0199221 | R65: 75.95147264 | T65: MV-80+ | V65: 3.106804423 | W65: 37.19439053 | AA65: 76.30941869 | AC65: MV-80+ | AE65: 3.12504107 | AF65: 37.41271807 | AJ65: 76.75734772 | AL65: MV-80+ | AN65: 3.146828041 | AO65: 37.67354978 | AS65: 77.29247992
B66: MV-80+ | C66: M100 | D66: 3.075179002 | E66: 36.81577376 | I66: 75.5326342 | K66: MV-80+ | L66: M100 | M66: 3.092231276 | N66: 37.0199221 | R66: 75.95147264 | T66: MV-80+ | U66: M100 | V66: 3.106804423 | W66: 37.19439053 | AA66: 76.30941869 | AC66: MV-80+ | AD66: M100 | AE66: 3.12504107 | AF66: 37.41271807 | AJ66: 76.75734772 | AL66: MV-80+ | AM66: M100 | AN66: 3.146828041 | AO66: 37.67354978 | AS66: 77.29247992
B67: MV-80+ | C67: M125 | D67: 3.075179002 | E67: 36.81577376 | I67: 75.5326342 | K67: MV-80+ | L67: M125 | M67: 3.092231276 | N67: 37.0199221 | R67: 75.95147264 | T67: MV-80+ | U67: M125 | V67: 3.106804423 | W67: 37.19439053 | AA67: 76.30941869 | AC67: MV-80+ | AD67: M125 | AE67: 3.12504107 | AF67: 37.41271807 | AJ67: 76.75734772 | AL67: MV-80+ | AM67: M125 | AN67: 3.146828041 | AO67: 37.67354978 | AS67: 77.29247992
B68: MV-80+ | C68: M125X3 | D68: 3.075179002 | E68: 36.81577376 | I68: 75.5326342 | K68: MV-80+ | L68: M125X3 | M68: 3.092231276 | N68: 37.0199221 | R68: 75.95147264 | T68: MV-80+ | U68: M125X3 | V68: 3.106804423 | W68: 37.19439053 | AA68: 76.30941869 | AC68: MV-80+ | AD68: M125X3 | AE68: 3.12504107 | AF68: 37.41271807 | AJ68: 76.75734772 | AL68: MV-80+ | AM68: M125X3 | AN68: 3.146828041 | AO68: 37.67354978 | AS68: 77.29247992
B69: MV-80+ | C69: M250 | D69: 3.075179002 | E69: 36.81577376 | I69: 75.5326342 | K69: MV-80+ | L69: M250 | M69: 3.092231276 | N69: 37.0199221 | R69: 75.95147264 | T69: MV-80+ | U69: M250 | V69: 3.106804423 | W69: 37.19439053 | AA69: 76.30941869 | AC69: MV-80+ | AD69: M250 | AE69: 3.12504107 | AF69: 37.41271807 | AJ69: 76.75734772 | AL69: MV-80+ | AM69: M250 | AN69: 3.146828041 | AO69: 37.67354978 | AS69: 77.29247992
B70: MV-80+ | C70: M400 | D70: 3.075179002 | E70: 36.81577376 | I70: 75.5326342 | K70: MV-80+ | L70: M400 | M70: 3.092231276 | N70: 37.0199221 | R70: 75.95147264 | T70: MV-80+ | U70: M400 | V70: 3.106804423 | W70: 37.19439053 | AA70: 76.30941869 | AC70: MV-80+ | AD70: M400 | AE70: 3.12504107 | AF70: 37.41271807 | AJ70: 76.75734772 | AL70: MV-80+ | AM70: M400 | AN70: 3.146828041 | AO70: 37.67354978 | AS70: 77.29247992
B71: MV-80+ | C71: M400X2 | D71: 3.075179002 | E71: 36.81577376 | I71: 75.5326342 | K71: MV-80+ | L71: M400X2 | M71: 3.092231276 | N71: 37.0199221 | R71: 75.95147264 | T71: MV-80+ | U71: M400X2 | V71: 3.106804423 | W71: 37.19439053 | AA71: 76.30941869 | AC71: MV-80+ | AD71: M400X2 | AE71: 3.12504107 | AF71: 37.41271807 | AJ71: 76.75734772 | AL71: MV-80+ | AM71: M400X2 | AN71: 3.146828041 | AO71: 37.67354978 | AS71: 77.29247992
B72: MV-80+ | C72: PT M125 | D72: 3.075179002 | E72: 36.81577376 | I72: 75.5326342 | K72: MV-80+ | L72: PT M125 | M72: 3.092231276 | N72: 37.0199221 | R72: 75.95147264 | T72: MV-80+ | U72: PT M125 | V72: 3.106804423 | W72: 37.19439053 | AA72: 76.30941869 | AC72: MV-80+ | AD72: PT M125 | AE72: 3.12504107 | AF72: 37.41271807 | AJ72: 76.75734772 | AL72: MV-80+ | AM72: PT M125 | AN72: 3.146828041 | AO72: 37.67354978 | AS72: 77.29247992
B74: S-HP100 | D74: 3.075179002 | E74: 36.81577376 | I74: 75.5326342 | K74: S-HP100 | M74: 3.092231276 | N74: 37.0199221 | R74: 75.95147264 | T74: S-HP100 | V74: 3.106804423 | W74: 37.19439053 | AA74: 76.30941869 | AC74: S-HP100 | AE74: 3.12504107 | AF74: 37.41271807 | AJ74: 76.75734772 | AL74: S-HP100 | AN74: 3.146828041 | AO74: 37.67354978 | AS74: 77.29247992
B75: S-HP100 | C75: PT S100 | D75: 3.075179002 | E75: 36.81577376 | I75: 75.5326342 | K75: S-HP100 | L75: PT S100 | M75: 3.092231276 | N75: 37.0199221 | R75: 75.95147264 | T75: S-HP100 | U75: PT S100 | V75: 3.106804423 | W75: 37.19439053 | AA75: 76.30941869 | AC75: S-HP100 | AD75: PT S100 | AE75: 3.12504107 | AF75: 37.41271807 | AJ75: 76.75734772 | AL75: S-HP100 | AM75: PT S100 | AN75: 3.146828041 | AO75: 37.67354978 | AS75: 77.29247992
B76: S-HP100 | C76: S100 | D76: 3.075179002 | E76: 36.81577376 | I76: 75.5326342 | K76: S-HP100 | L76: S100 | M76: 3.092231276 | N76: 37.0199221 | R76: 75.95147264 | T76: S-HP100 | U76: S100 | V76: 3.106804423 | W76: 37.19439053 | AA76: 76.30941869 | AC76: S-HP100 | AD76: S100 | AE76: 3.12504107 | AF76: 37.41271807 | AJ76: 76.75734772 | AL76: S-HP100 | AM76: S100 | AN76: 3.146828041 | AO76: 37.67354978 | AS76: 77.29247992
B78: S-HP150 | D78: 3.075179002 | E78: 36.81577376 | I78: 75.5326342 | K78: S-HP150 | M78: 3.092231276 | N78: 37.0199221 | R78: 75.95147264 | T78: S-HP150 | V78: 3.106804423 | W78: 37.19439053 | AA78: 76.30941869 | AC78: S-HP150 | AE78: 3.12504107 | AF78: 37.41271807 | AJ78: 76.75734772 | AL78: S-HP150 | AN78: 3.146828041 | AO78: 37.67354978 | AS78: 77.29247992
B79: S-HP150 | C79: PT S150 | D79: 3.075179002 | E79: 36.81577376 | I79: 75.5326342 | K79: S-HP150 | L79: PT S150 | M79: 3.092231276 | N79: 37.0199221 | R79: 75.95147264 | T79: S-HP150 | U79: PT S150 | V79: 3.106804423 | W79: 37.19439053 | AA79: 76.30941869 | AC79: S-HP150 | AD79: PT S150 | AE79: 3.12504107 | AF79: 37.41271807 | AJ79: 76.75734772 | AL79: S-HP150 | AM79: PT S150 | AN79: 3.146828041 | AO79: 37.67354978 | AS79: 77.29247992
B80: S-HP150 | C80: S150 | D80: 3.075179002 | E80: 36.81577376 | I80: 75.5326342 | K80: S-HP150 | L80: S150 | M80: 3.092231276 | N80: 37.0199221 | R80: 75.95147264 | T80: S-HP150 | U80: S150 | V80: 3.106804423 | W80: 37.19439053 | AA80: 76.30941869 | AC80: S-HP150 | AD80: S150 | AE80: 3.12504107 | AF80: 37.41271807 | AJ80: 76.75734772 | AL80: S-HP150 | AM80: S150 | AN80: 3.146828041 | AO80: 37.67354978 | AS80: 77.29247992
B82: S-HP250 | D82: 3.075179002 | E82: 36.81577376 | I82: 75.5326342 | K82: S-HP250 | M82: 3.092231276 | N82: 37.0199221 | R82: 75.95147264 | T82: S-HP250 | V82: 3.106804423 | W82: 37.19439053 | AA82: 76.30941869 | AC82: S-HP250 | AE82: 3.12504107 | AF82: 37.41271807 | AJ82: 76.75734772 | AL82: S-HP250 | AN82: 3.146828041 | AO82: 37.67354978 | AS82: 77.29247992
B83: S-HP250 | C83: S250 | D83: 3.075179002 | E83: 36.81577376 | I83: 75.5326342 | K83: S-HP250 | L83: S250 | M83: 3.092231276 | N83: 37.0199221 | R83: 75.95147264 | T83: S-HP250 | U83: S250 | V83: 3.106804423 | W83: 37.19439053 | AA83: 76.30941869 | AC83: S-HP250 | AD83: S250 | AE83: 3.12504107 | AF83: 37.41271807 | AJ83: 76.75734772 | AL83: S-HP250 | AM83: S250 | AN83: 3.146828041 | AO83: 37.67354978 | AS83: 77.29247992
B84: S-HP250 | C84: S400 | D84: 3.075179002 | E84: 36.81577376 | I84: 75.5326342 | K84: S-HP250 | L84: S400 | M84: 3.092231276 | N84: 37.0199221 | R84: 75.95147264 | T84: S-HP250 | U84: S400 | V84: 3.106804423 | W84: 37.19439053 | AA84: 76.30941869 | AC84: S-HP250 | AD84: S400 | AE84: 3.12504107 | AF84: 37.41271807 | AJ84: 76.75734772 | AL84: S-HP250 | AM84: S400 | AN84: 3.146828041 | AO84: 37.67354978 | AS84: 77.29247992
B86: S-LP90 | D86: 3.075179002 | E86: 36.81577376 | I86: 75.5326342 | K86: S-LP90 | M86: 3.092231276 | N86: 37.0199221 | R86: 75.95147264 | T86: S-LP90 | V86: 3.106804423 | W86: 37.19439053 | AA86: 76.30941869 | AC86: S-LP90 | AE86: 3.12504107 | AF86: 37.41271807 | AJ86: 76.75734772 | AL86: S-LP90 | AN86: 3.146828041 | AO86: 37.67354978 | AS86: 77.29247992
B87: S-LP90 | C87: L135 | D87: 3.075179002 | E87: 36.81577376 | I87: 75.5326342 | K87: S-LP90 | L87: L135 | M87: 3.092231276 | N87: 37.0199221 | R87: 75.95147264 | T87: S-LP90 | U87: L135 | V87: 3.106804423 | W87: 37.19439053 | AA87: 76.30941869 | AC87: S-LP90 | AD87: L135 | AE87: 3.12504107 | AF87: 37.41271807 | AJ87: 76.75734772 | AL87: S-LP90 | AM87: L135 | AN87: 3.146828041 | AO87: 37.67354978 | AS87: 77.29247992
B88: S-LP90 | C88: L55 | D88: 3.075179002 | E88: 36.81577376 | I88: 75.5326342 | K88: S-LP90 | L88: L55 | M88: 3.092231276 | N88: 37.0199221 | R88: 75.95147264 | T88: S-LP90 | U88: L55 | V88: 3.106804423 | W88: 37.19439053 | AA88: 76.30941869 | AC88: S-LP90 | AD88: L55 | AE88: 3.12504107 | AF88: 37.41271807 | AJ88: 76.75734772 | AL88: S-LP90 | AM88: L55 | AN88: 3.146828041 | AO88: 37.67354978 | AS88: 77.29247992
B89: S-LP90 | C89: L90 | D89: 3.075179002 | E89: 36.81577376 | I89: 75.5326342 | K89: S-LP90 | L89: L90 | M89: 3.092231276 | N89: 37.0199221 | R89: 75.95147264 | T89: S-LP90 | U89: L90 | V89: 3.106804423 | W89: 37.19439053 | AA89: 76.30941869 | AC89: S-LP90 | AD89: L90 | AE89: 3.12504107 | AF89: 37.41271807 | AJ89: 76.75734772 | AL89: S-LP90 | AM89: L90 | AN89: 3.146828041 | AO89: 37.67354978 | AS89: 77.29247992
B91: HID-F | K91: HID-F | T91: HID-F | AC91: HID-F | AL91: HID-F
B92: S-HP360f | D92: 3.075179002 | E92: 37.82456232 | I92: 75.5326342 | K92: S-HP360f | M92: 3.092231276 | N92: 38.03430452 | R92: 75.95147264 | T92: S-HP360f | V92: 3.106804423 | W92: 38.21355356 | AA92: 76.30941869 | AC92: S-HP360f | AE92: 3.12504107 | AF92: 38.43786349 | AJ92: 76.75734772 | AL92: S-HP360f | AN92: 3.146828041 | AO92: 38.70584225 | AS92: 77.29247992
B93: S-HP360f | C93: I1000 F | D93: 3.075179002 | E93: 37.82456232 | I93: 75.5326342 | K93: S-HP360f | L93: I1000 F | M93: 3.092231276 | N93: 38.03430452 | R93: 75.95147264 | T93: S-HP360f | U93: I1000 F | V93: 3.106804423 | W93: 38.21355356 | AA93: 76.30941869 | AC93: S-HP360f | AD93: I1000 F | AE93: 3.12504107 | AF93: 38.43786349 | AJ93: 76.75734772 | AL93: S-HP360f | AM93: I1000 F | AN93: 3.146828041 | AO93: 38.70584225 | AS93: 77.29247992
B94: S-HP360f | C94: I150 F | D94: 3.075179002 | E94: 37.82456232 | I94: 75.5326342 | K94: S-HP360f | L94: I150 F | M94: 3.092231276 | N94: 38.03430452 | R94: 75.95147264 | T94: S-HP360f | U94: I150 F | V94: 3.106804423 | W94: 38.21355356 | AA94: 76.30941869 | AC94: S-HP360f | AD94: I150 F | AE94: 3.12504107 | AF94: 38.43786349 | AJ94: 76.75734772 | AL94: S-HP360f | AM94: I150 F | AN94: 3.146828041 | AO94: 38.70584225 | AS94: 77.29247992
B95: S-HP360f | C95: I1500 F | D95: 3.075179002 | E95: 37.82456232 | I95: 75.5326342 | K95: S-HP360f | L95: I1500 F | M95: 3.092231276 | N95: 38.03430452 | R95: 75.95147264 | T95: S-HP360f | U95: I1500 F | V95: 3.106804423 | W95: 38.21355356 | AA95: 76.30941869 | AC95: S-HP360f | AD95: I1500 F | AE95: 3.12504107 | AF95: 38.43786349 | AJ95: 76.75734772 | AL95: S-HP360f | AM95: I1500 F | AN95: 3.146828041 | AO95: 38.70584225 | AS95: 77.29247992
B96: S-HP360f | C96: I500 F | D96: 3.075179002 | E96: 37.82456232 | I96: 75.5326342 | K96: S-HP360f | L96: I500 F | M96: 3.092231276 | N96: 38.03430452 | R96: 75.95147264 | T96: S-HP360f | U96: I500 F | V96: 3.106804423 | W96: 38.21355356 | AA96: 76.30941869 | AC96: S-HP360f | AD96: I500 F | AE96: 3.12504107 | AF96: 38.43786349 | AJ96: 76.75734772 | AL96: S-HP360f | AM96: I500 F | AN96: 3.146828041 | AO96: 38.70584225 | AS96: 77.29247992
B97: S-HP360f | C97: I750 F | D97: 3.075179002 | E97: 37.82456232 | I97: 75.5326342 | K97: S-HP360f | L97: I750 F | M97: 3.092231276 | N97: 38.03430452 | R97: 75.95147264 | T97: S-HP360f | U97: I750 F | V97: 3.106804423 | W97: 38.21355356 | AA97: 76.30941869 | AC97: S-HP360f | AD97: I750 F | AE97: 3.12504107 | AF97: 38.43786349 | AJ97: 76.75734772 | AL97: S-HP360f | AM97: I750 F | AN97: 3.146828041 | AO97: 38.70584225 | AS97: 77.29247992
B98: S-HP360f | C98: M1000 F | D98: 3.075179002 | E98: 37.82456232 | I98: 75.5326342 | K98: S-HP360f | L98: M1000 F | M98: 3.092231276 | N98: 38.03430452 | R98: 75.95147264 | T98: S-HP360f | U98: M1000 F | V98: 3.106804423 | W98: 38.21355356 | AA98: 76.30941869 | AC98: S-HP360f | AD98: M1000 F | AE98: 3.12504107 | AF98: 38.43786349 | AJ98: 76.75734772 | AL98: S-HP360f | AM98: M1000 F | AN98: 3.146828041 | AO98: 38.70584225 | AS98: 77.29247992
B99: S-HP360f | C99: M250 F | D99: 3.075179002 | E99: 37.82456232 | I99: 75.5326342 | K99: S-HP360f | L99: M250 F | M99: 3.092231276 | N99: 38.03430452 | R99: 75.95147264 | T99: S-HP360f | U99: M250 F | V99: 3.106804423 | W99: 38.21355356 | AA99: 76.30941869 | AC99: S-HP360f | AD99: M250 F | AE99: 3.12504107 | AF99: 38.43786349 | AJ99: 76.75734772 | AL99: S-HP360f | AM99: M250 F | AN99: 3.146828041 | AO99: 38.70584225 | AS99: 77.29247992
B100: S-HP360f | C100: M400 F | D100: 3.075179002 | E100: 37.82456232 | I100: 75.5326342 | K100: S-HP360f | L100: M400 F | M100: 3.092231276 | N100: 38.03430452 | R100: 75.95147264 | T100: S-HP360f | U100: M400 F | V100: 3.106804423 | W100: 38.21355356 | AA100: 76.30941869 | AC100: S-HP360f | AD100: M400 F | AE100: 3.12504107 | AF100: 38.43786349 | AJ100: 76.75734772 | AL100: S-HP360f | AM100: M400 F | AN100: 3.146828041 | AO100: 38.70584225 | AS100: 77.29247992
B101: S-HP360f | C101: M400 F COST | D101: 3.075179002 | E101: 37.82456232 | I101: 75.5326342 | K101: S-HP360f | L101: M400 F COST | M101: 3.092231276 | N101: 38.03430452 | R101: 75.95147264 | T101: S-HP360f | U101: M400 F COST | V101: 3.106804423 | W101: 38.21355356 | AA101: 76.30941869 | AC101: S-HP360f | AD101: M400 F COST | AE101: 3.12504107 | AF101: 38.43786349 | AJ101: 76.75734772 | AL101: S-HP360f | AM101: M400 F COST | AN101: 3.146828041 | AO101: 38.70584225 | AS101: 77.29247992
B102: S-HP360f | C102: M400 F SACON | D102: 3.075179002 | E102: 37.82456232 | I102: 75.5326342 | K102: S-HP360f | L102: M400 F SACON | M102: 3.092231276 | N102: 38.03430452 | R102: 75.95147264 | T102: S-HP360f | U102: M400 F SACON | V102: 3.106804423 | W102: 38.21355356 | AA102: 76.30941869 | AC102: S-HP360f | AD102: M400 F SACON | AE102: 3.12504107 | AF102: 38.43786349 | AJ102: 76.75734772 | AL102: S-HP360f | AM102: M400 F SACON | AN102: 3.146828041 | AO102: 38.70584225 | AS102: 77.29247992
B103: S-HP360f | C103: M750 F | D103: 3.075179002 | E103: 37.82456232 | I103: 75.5326342 | K103: S-HP360f | L103: M750 F | M103: 3.092231276 | N103: 38.03430452 | R103: 75.95147264 | T103: S-HP360f | U103: M750 F | V103: 3.106804423 | W103: 38.21355356 | AA103: 76.30941869 | AC103: S-HP360f | AD103: M750 F | AE103: 3.12504107 | AF103: 38.43786349 | AJ103: 76.75734772 | AL103: S-HP360f | AM103: M750 F | AN103: 3.146828041 | AO103: 38.70584225 | AS103: 77.29247992
B104: S-HP360f | C104: M80 F | D104: 3.075179002 | E104: 37.82456232 | I104: 75.5326342 | K104: S-HP360f | L104: M80 F | M104: 3.092231276 | N104: 38.03430452 | R104: 75.95147264 | T104: S-HP360f | U104: M80 F | V104: 3.106804423 | W104: 38.21355356 | AA104: 76.30941869 | AC104: S-HP360f | AD104: M80 F | AE104: 3.12504107 | AF104: 38.43786349 | AJ104: 76.75734772 | AL104: S-HP360f | AM104: M80 F | AN104: 3.146828041 | AO104: 38.70584225 | AS104: 77.29247992
B105: S-HP360f | C105: S360 F | D105: 3.075179002 | E105: 37.82456232 | I105: 75.5326342 | K105: S-HP360f | L105: S360 F | M105: 3.092231276 | N105: 38.03430452 | R105: 75.95147264 | T105: S-HP360f | U105: S360 F | V105: 3.106804423 | W105: 38.21355356 | AA105: 76.30941869 | AC105: S-HP360f | AD105: S360 F | AE105: 3.12504107 | AF105: 38.43786349 | AJ105: 76.75734772 | AL105: S-HP360f | AM105: S360 F | AN105: 3.146828041 | AO105: 38.70584225 | AS105: 77.29247992
B106: S-HP360f | C106: S400 F | D106: 3.075179002 | E106: 37.82456232 | I106: 75.5326342 | K106: S-HP360f | L106: S400 F | M106: 3.092231276 | N106: 38.03430452 | R106: 75.95147264 | T106: S-HP360f | U106: S400 F | V106: 3.106804423 | W106: 38.21355356 | AA106: 76.30941869 | AC106: S-HP360f | AD106: S400 F | AE106: 3.12504107 | AF106: 38.43786349 | AJ106: 76.75734772 | AL106: S-HP360f | AM106: S400 F | AN106: 3.146828041 | AO106: 38.70584225 | AS106: 77.29247992

Sheet LED Tariffs Unsmoothed
A1: Public Lighting Model
A2: LED Tariffs Unsmoothed
F3: Year | G3: 2025/26 | N3: Year | O3: 2026/27 | V3: Year | W3: 2027/28 | AD3: Year | AE3: 2028/29 | AL3: Year | AM3: 2029/30
F5: CPI Index | G5: June 2025 $ | N5: CPI Index | O5: June 2025 $ | V5: CPI Index | W5: June 2025 $ | AD5: CPI Index | AE5: June 2025 $ | AL5: CPI Index | AM5: June 2025 $
F6: Labour | G6: June 2026 $ | N6: Labour | O6: June 2027 $ | V6: Labour | W6: June 2028 $ | AD6: Labour | AE6: June 2029 $ | AL6: Labour | AM6: June 2030 $
B7: Base Lamp | C7: Lamp Type | D7: ENERGY | E7: CLER | F7: PLC | G7: TFI | H7: SAPN | J7: Base Lamp | K7: Lamp Type | L7: ENERGY | M7: CLER | N7: PLC | O7: TFI | P7: SAPN | R7: Base Lamp | S7: Lamp Type | T7: ENERGY | U7: CLER | V7: PLC | W7: TFI | X7: SAPN | Z7: Base Lamp | AA7: Lamp Type | AB7: ENERGY | AC7: CLER | AD7: PLC | AE7: TFI | AF7: SAPN | AH7: Base Lamp | AI7: Lamp Type | AJ7: ENERGY | AK7: CLER | AL7: PLC | AM7: TFI | AN7: SAPN
B8: LED-P | J8: LED-P | R8: LED-P | Z8: LED-P | AH8: LED-P
C9: LED16 | D9: 3.075179002 | E9: 15.79839635 | F9: 61.01004462 | G9: 83.65275282 | H9: 97.79249053 | K9: LED16 | L9: 3.092231276 | M9: 15.88600054 | N9: 61.34835338 | O9: 84.1166184 | P9: 98.33476282 | S9: LED16 | T9: 3.106804423 | U9: 15.96086849 | V9: 61.63747747 | W9: 84.51304535 | X9: 98.79819741 | AA9: LED16 | AB9: 3.12504107 | AC9: 16.05455727 | AD9: 61.9992836 | AE9: 85.00912888 | AF9: 99.37813343 | AI9: LED16 | AJ9: 3.146828041 | AK9: 16.16648546 | AL9: 62.43152643 | AM9: 85.60179036 | AN9: 100.0709718
C10: LED17 | D10: 3.075179002 | E10: 16.15879431 | F10: 61.3500427 | G10: 87.89859637 | H10: 104.4774253 | K10: LED17 | L10: 3.092231276 | M10: 16.24839696 | N10: 61.6902368 | O10: 88.38600571 | P10: 105.0567664 | S10: LED17 | T10: 3.106804423 | U10: 16.32497282 | V10: 61.98097212 | W10: 88.80255354 | X10: 105.5518806 | AA10: LED17 | AB10: 3.12504107 | AC10: 16.42079886 | AD10: 62.34479453 | AE10: 89.32381608 | AF10: 106.1714601 | AI10: LED17 | AJ10: 3.146828041 | AK10: 16.53528039 | AL10: 62.77944618 | AM10: 89.94655843 | AN10: 106.9116599
C11: LED29 | D11: 3.075179002 | E11: 16.28725845 | F11: 61.47123528 | G11: 89.41203065 | H11: 106.8602755 | K11: LED29 | L11: 3.092231276 | M11: 16.37757345 | N11: 61.81210141 | O11: 89.90783218 | P11: 107.4528299 | S11: LED29 | T11: 3.106804423 | U11: 16.4547581 | V11: 62.10341106 | W11: 90.33155211 | X11: 107.9592363 | AA11: LED29 | AB11: 3.12504107 | AC11: 16.55134596 | AD11: 62.46795218 | AE11: 90.86178973 | AF11: 108.5929468 | AI11: LED29 | AJ11: 3.146828041 | AK11: 16.66673763 | AL11: 62.90346244 | AM11: 91.49525443 | AN11: 109.3500285
C12: LED22 | D12: 3.075179002 | E12: 16.65912832 | F12: 61.82205592 | G12: 93.7930246 | H12: 113.758 | K12: LED22 | L12: 3.092231276 | M12: 16.75150539 | N12: 62.16486739 | O12: 94.31311933 | P12: 114.3888031 | S12: LED22 | T12: 3.106804423 | U12: 16.83045232 | V12: 62.45783957 | W12: 94.75760061 | X12: 114.9278976 | AA12: LED22 | AB12: 3.12504107 | AC12: 16.92924547 | AD12: 62.82446115 | AE12: 95.31381871 | AF12: 115.6025134 | AI12: LED22 | AJ12: 3.146828041 | AK12: 17.04727175 | AL12: 63.2624569 | AM12: 95.97832179 | AN12: 116.408464
C13: LED46 | D13: 3.075179002 | E13: 16.18583939 | F13: 61.37555692 | G13: 88.21721411 | H13: 104.979078 | K13: LED46 | L13: 3.092231276 | M13: 16.27559201 | N13: 61.71589251 | O13: 88.70639023 | P13: 105.5612008 | S13: LED46 | T13: 3.106804423 | U13: 16.35229604 | V13: 62.00674874 | W13: 89.12444798 | X13: 106.0586924 | AA13: LED46 | AB13: 3.12504107 | AC13: 16.44828246 | AD13: 62.37072246 | AE13: 89.64760001 | AF13: 106.6812468 | AI13: LED46 | AJ13: 3.146828041 | AK13: 16.5629556 | AL13: 62.80555487 | AM13: 90.27259969 | AN13: 107.4250006
C14: LED43 | D14: 3.075179002 | E14: 16.18583939 | F14: 61.37555692 | G14: 88.21721411 | H14: 104.979078 | K14: LED43 | L14: 3.092231276 | M14: 16.27559201 | N14: 61.71589251 | O14: 88.70639023 | P14: 105.5612008 | S14: LED43 | T14: 3.106804423 | U14: 16.35229604 | V14: 62.00674874 | W14: 89.12444798 | X14: 106.0586924 | AA14: LED43 | AB14: 3.12504107 | AC14: 16.44828246 | AD14: 62.37072246 | AE14: 89.64760001 | AF14: 106.6812468 | AI14: LED43 | AJ14: 3.146828041 | AK14: 16.5629556 | AL14: 62.80555487 | AM14: 90.27259969 | AN14: 107.4250006
C15: LED17 PT | D15: 3.075179002 | E15: 20.93672622 | F15: 65.85752563 | G15: 144.1873475 | H15: 193.1021296 | K15: LED17 PT | L15: 3.092231276 | M15: 21.05282314 | N15: 66.22271432 | O15: 144.9868854 | P15: 194.1729064 | S15: LED17 PT | T15: 3.106804423 | U15: 21.15204142 | V15: 66.53481042 | W15: 145.6701833 | X15: 195.0880095 | AA15: LED17 PT | AB15: 3.12504107 | AC15: 21.27620189 | AD15: 66.92536343 | AE15: 146.5252535 | AF15: 196.2331575 | AI15: LED17 PT | AJ15: 3.146828041 | AK15: 21.42453402 | AL15: 67.39194961 | AM15: 147.5467893 | AN15: 197.6012439
C16: LED35 | D16: 3.075179002 | E16: 19.41096539 | F16: 64.41812862 | G16: 126.2123799 | H16: 164.8011607 | K16: LED35 | L16: 3.092231276 | M16: 19.51860176 | N16: 64.77533566 | O16: 126.9122442 | P16: 165.7150049 | S16: LED35 | T16: 3.106804423 | U16: 19.61058953 | V16: 65.08061052 | W16: 127.5103595 | X16: 166.4959908 | AA16: LED35 | AB16: 3.12504107 | AC16: 19.72570182 | AD16: 65.46262752 | AE16: 128.2588332 | AF16: 167.4733065 | AI16: LED35 | AJ16: 3.146828041 | AK16: 19.86322427 | AL16: 65.91901588 | AM16: 129.1530203 | AN16: 168.6408867
C17: LED39 | D17: 3.075179002 | E17: 16.18583939 | F17: 61.37555692 | G17: 88.21721411 | H17: 104.979078 | K17: LED39 | L17: 3.092231276 | M17: 16.27559201 | N17: 61.71589251 | O17: 88.70639023 | P17: 105.5612008 | S17: LED39 | T17: 3.106804423 | U17: 16.35229604 | V17: 62.00674874 | W17: 89.12444798 | X17: 106.0586924 | AA17: LED39 | AB17: 3.12504107 | AC17: 16.44828246 | AD17: 62.37072246 | AE17: 89.64760001 | AF17: 106.6812468 | AI17: LED39 | AJ17: 3.146828041 | AK17: 16.5629556 | AL17: 62.80555487 | AM17: 90.27259969 | AN17: 107.4250006
C18: LED26 | D18: 3.075179002 | E18: 16.18583939 | F18: 61.37555692 | G18: 88.21721411 | H18: 104.979078 | K18: LED26 | L18: 3.092231276 | M18: 16.27559201 | N18: 61.71589251 | O18: 88.70639023 | P18: 105.5612008 | S18: LED26 | T18: 3.106804423 | U18: 16.35229604 | V18: 62.00674874 | W18: 89.12444798 | X18: 106.0586924 | AA18: LED26 | AB18: 3.12504107 | AC18: 16.44828246 | AD18: 62.37072246 | AE18: 89.64760001 | AF18: 106.6812468 | AI18: LED26 | AJ18: 3.146828041 | AK18: 16.5629556 | AL18: 62.80555487 | AM18: 90.27259969 | AN18: 107.4250006
C19: LED20 | D19: 3.075179002 | E19: 19.41096539 | F19: 64.41812862 | G19: 126.2123799 | H19: 164.8011607 | K19: LED20 | L19: 3.092231276 | M19: 19.51860176 | N19: 64.77533566 | O19: 126.9122442 | P19: 165.7150049 | S19: LED20 | T19: 3.106804423 | U19: 19.61058953 | V19: 65.08061052 | W19: 127.5103595 | X19: 166.4959908 | AA19: LED20 | AB19: 3.12504107 | AC19: 19.72570182 | AD19: 65.46262752 | AE19: 128.2588332 | AF19: 167.4733065 | AI19: LED20 | AJ19: 3.146828041 | AK19: 19.86322427 | AL19: 65.91901588 | AM19: 129.1530203 | AN19: 168.6408867
C20: LED28 | D20: 3.075179002 | E20: 19.41096539 | F20: 64.41812862 | G20: 126.2123799 | H20: 164.8011607 | K20: LED28 | L20: 3.092231276 | M20: 19.51860176 | N20: 64.77533566 | O20: 126.9122442 | P20: 165.7150049 | S20: LED28 | T20: 3.106804423 | U20: 19.61058953 | V20: 65.08061052 | W20: 127.5103595 | X20: 166.4959908 | AA20: LED28 | AB20: 3.12504107 | AC20: 19.72570182 | AD20: 65.46262752 | AE20: 128.2588332 | AF20: 167.4733065 | AI20: LED28 | AJ20: 3.146828041 | AK20: 19.86322427 | AL20: 65.91901588 | AM20: 129.1530203 | AN20: 168.6408867
C21: LED23 PT | D21: 3.075179002 | E21: 19.07604027 | F21: 64.10216153 | G21: 122.2666316 | H21: 158.5887156 | K21: LED23 PT | L21: 3.092231276 | M21: 19.18181944 | N21: 64.45761649 | O21: 122.9446162 | P21: 159.468111 | S21: LED23 PT | T21: 3.106804423 | U21: 19.27222001 | V21: 64.761394 | W21: 123.5240327 | X21: 160.2196564 | AA21: LED23 PT | AB21: 3.12504107 | AC21: 19.38534611 | AD21: 65.14153722 | AE21: 124.2491071 | AF21: 161.1601305 | AI21: LED23 PT | AJ21: 3.146828041 | AK21: 19.52049568 | AL21: 65.59568702 | AM21: 125.1153394 | AN21: 162.2836969
C22: LED24 | D22: 3.075179002 | E22: 16.14526418 | F22: 61.33727843 | G22: 87.73919813 | H22: 104.2264582 | K22: LED24 | L22: 3.092231276 | M22: 16.23479181 | N22: 61.67740175 | O22: 88.22572359 | P22: 104.8044077 | S22: LED24 | T22: 3.106804423 | U22: 16.31130355 | V22: 61.96807658 | W22: 88.64151604 | X22: 105.2983326 | AA22: LED24 | AB22: 3.12504107 | AC22: 16.40704935 | AD22: 62.3318233 | AE22: 89.16183331 | AF22: 105.9164238 | AI22: LED24 | AJ22: 3.146828041 | AK22: 16.52143502 | AL22: 62.76638451 | AM22: 89.78344635 | AN22: 106.6548455
C23: LED18 PT | D23: 3.075179002 | E23: 18.44527796 | F23: 63.50710275 | G23: 114.8356294 | H23: 146.888858 | K23: LED18 PT | L23: 3.092231276 | M23: 18.54755947 | N23: 63.85925803 | O23: 115.4724081 | P23: 147.7033761 | S23: LED18 PT | T23: 3.106804423 | U23: 18.63497088 | V23: 64.16021558 | W23: 116.0166094 | X23: 148.3994764 | AA23: LED18 PT | AB23: 3.12504107 | AC23: 18.74435639 | AD23: 64.53682994 | AE23: 116.6976159 | AF23: 149.2705672 | AI23: LED18 PT | AJ23: 3.146828041 | AK23: 18.87503715 | AL23: 64.98676388 | AM23: 117.5112012 | AN23: 150.3112427
C24: LED19 PT | D24: 3.075179002 | E24: 18.79220295 | F24: 63.83439047 | G24: 118.9227479 | H24: 153.3238857 | K24: LED19 PT | L24: 3.092231276 | M24: 18.8964082 | N24: 64.18836061 | O24: 119.5821903 | P24: 154.1740869 | S24: LED19 PT | T24: 3.106804423 | U24: 18.98546367 | V24: 64.49086915 | W24: 120.1457603 | X24: 154.9006825 | AA24: LED19 PT | AB24: 3.12504107 | AC24: 19.09690654 | AD24: 64.86942442 | AE24: 120.8510044 | AF24: 155.8099348 | AI24: LED19 PT | AJ24: 3.146828041 | AK24: 19.23004519 | AL24: 65.32167713 | AM24: 121.6935461 | AN24: 156.896201
C25: LED32 PT | D25: 3.075179002 | E25: 18.83611862 | F25: 63.87582035 | G25: 119.4401178 | H25: 154.1384668 | K25: LED32 PT | L25: 3.092231276 | M25: 18.94056739 | N25: 64.23002022 | O25: 120.1024291 | P25: 154.993185 | S25: LED32 PT | T25: 3.106804423 | U25: 19.02983098 | V25: 64.5327251 | W25: 120.6684509 | X25: 155.7236409 | AA25: LED32 PT | AB25: 3.12504107 | AC25: 19.14153428 | AD25: 64.91152606 | AE25: 121.3767632 | AF25: 156.6377238 | AI25: LED32 PT | AJ25: 3.146828041 | AK25: 19.27498406 | AL25: 65.36407228 | AM25: 122.2229703 | AN25: 157.7297612
C26: LED33 PT | D26: 3.075179002 | E26: 19.77493528 | F26: 64.76149644 | G26: 130.5003042 | H26: 171.5523502 | K26: LED33 PT | L26: 3.092231276 | M26: 19.88458991 | N26: 65.1206075 | O26: 131.2239456 | P26: 172.5036307 | S26: LED33 PT | T26: 3.106804423 | U26: 19.97830252 | V26: 65.42750957 | W26: 131.8423812 | X26: 173.3166102 | AA26: LED33 PT | AB26: 3.12504107 | AC26: 20.09557325 | AD26: 65.81156283 | AE26: 132.6162834 | AF26: 174.3339622 | AI26: LED33 PT | AJ26: 3.146828041 | AK26: 20.23567435 | AL26: 66.27038388 | AM26: 133.5408496 | AN26: 175.5493731
B28: LED-V | J28: LED-V | R28: LED-V | Z28: LED-V | AH28: LED-V
C29: LED200 | D29: 3.075179002 | E29: 21.78119098 | F29: 66.6541905 | G29: 113.793266 | H29: 143.2302997 | K29: LED200 | L29: 3.092231276 | M29: 21.90197057 | N29: 67.0237968 | O29: 114.4242647 | P29: 144.0245307 | S29: LED200 | T29: 3.106804423 | U29: 22.00519073 | V29: 67.33966826 | W29: 114.9635263 | X29: 144.7032932 | AA29: LED200 | AB29: 3.12504107 | AC29: 22.13435911 | AD29: 67.73494571 | AE29: 115.6383513 | AF29: 145.5526877 | AI29: LED200 | AJ29: 3.146828041 | AK29: 22.28867409 | AL29: 68.20717608 | AM29: 116.4445517 | AN29: 146.5674431
C30: LED105 | D30: 3.075179002 | E30: 26.17597449 | F30: 70.80021268 | G30: 152.6720546 | H30: 203.7987291 | K30: LED105 | L30: 3.092231276 | M30: 26.32112373 | N30: 71.19280922 | O30: 153.5186414 | P30: 204.92882 | S30: LED105 | T30: 3.106804423 | U30: 26.44517059 | V30: 71.52832851 | W30: 154.2421479 | X30: 205.8946138 | AA30: LED105 | AB30: 3.12504107 | AC30: 26.60040123 | AD30: 71.948193 | AE30: 155.1475347 | AF30: 207.1031956 | AI30: LED105 | AJ30: 3.146828041 | AK30: 26.78585229 | AL30: 72.44979703 | AM30: 156.2291828 | AN30: 208.547065
C31: LED198 | D31: 3.075179002 | E31: 26.17597449 | F31: 70.80021268 | G31: 152.6720546 | H31: 203.7987291 | K31: LED198 | L31: 3.092231276 | M31: 26.32112373 | N31: 71.19280922 | O31: 153.5186414 | P31: 204.92882 | S31: LED198 | T31: 3.106804423 | U31: 26.44517059 | V31: 71.52832851 | W31: 154.2421479 | X31: 205.8946138 | AA31: LED198 | AB31: 3.12504107 | AC31: 26.60040123 | AD31: 71.948193 | AE31: 155.1475347 | AF31: 207.1031956 | AI31: LED198 | AJ31: 3.146828041 | AK31: 26.78585229 | AL31: 72.44979703 | AM31: 156.2291828 | AN31: 208.547065
C32: LED88 | D32: 3.075179002 | E32: 21.78119098 | F32: 66.6541905 | G32: 113.793266 | H32: 143.2302997 | K32: LED88 | L32: 3.092231276 | M32: 21.90197057 | N32: 67.0237968 | O32: 114.4242647 | P32: 144.0245307 | S32: LED88 | T32: 3.106804423 | U32: 22.00519073 | V32: 67.33966826 | W32: 114.9635263 | X32: 144.7032932 | AA32: LED88 | AB32: 3.12504107 | AC32: 22.13435911 | AD32: 67.73494571 | AE32: 115.6383513 | AF32: 145.5526877 | AI32: LED88 | AJ32: 3.146828041 | AK32: 22.28867409 | AL32: 68.20717608 | AM32: 116.4445517 | AN32: 146.5674431
C33: LED70 | D33: 3.075179002 | E33: 21.78119098 | F33: 66.6541905 | G33: 113.793266 | H33: 143.2302997 | K33: LED70 | L33: 3.092231276 | M33: 21.90197057 | N33: 67.0237968 | O33: 114.4242647 | P33: 144.0245307 | S33: LED70 | T33: 3.106804423 | U33: 22.00519073 | V33: 67.33966826 | W33: 114.9635263 | X33: 144.7032932 | AA33: LED70 | AB33: 3.12504107 | AC33: 22.13435911 | AD33: 67.73494571 | AE33: 115.6383513 | AF33: 145.5526877 | AI33: LED70 | AJ33: 3.146828041 | AK33: 22.28867409 | AL33: 68.20717608 | AM33: 116.4445517 | AN33: 146.5674431
C34: LED150 | D34: 3.075179002 | E34: 20.94673842 | F34: 65.8669711 | G34: 106.4112176 | H34: 131.729965 | K34: LED150 | L34: 3.092231276 | M34: 21.06289085 | N34: 66.23221216 | O34: 107.0012818 | P34: 132.4604251 | S34: LED150 | T34: 3.106804423 | U34: 21.16215658 | V34: 66.54435303 | W34: 107.5055602 | X34: 133.084688 | AA34: LED150 | AB34: 3.12504107 | AC34: 21.28637643 | AD34: 66.93496205 | AE34: 108.1366076 | AF34: 133.8658824 | AI34: LED150 | AJ34: 3.146828041 | AK34: 21.43477949 | AL34: 67.40161515 | AM34: 108.8905079 | AN34: 134.7991605
C35: LED90 | D35: 3.075179002 | E35: 21.78119098 | F35: 66.6541905 | G35: 113.793266 | H35: 143.2302997 | K35: LED90 | L35: 3.092231276 | M35: 21.90197057 | N35: 67.0237968 | O35: 114.4242647 | P35: 144.0245307 | S35: LED90 | T35: 3.106804423 | U35: 22.00519073 | V35: 67.33966826 | W35: 114.9635263 | X35: 144.7032932 | AA35: LED90 | AB35: 3.12504107 | AC35: 22.13435911 | AD35: 67.73494571 | AE35: 115.6383513 | AF35: 145.5526877 | AI35: LED90 | AJ35: 3.146828041 | AK35: 22.28867409 | AL35: 68.20717608 | AM35: 116.4445517 | AN35: 146.5674431
C36: LED72 | D36: 3.075179002 | E36: 21.78119098 | F36: 66.6541905 | G36: 113.793266 | H36: 143.2302997 | K36: LED72 | L36: 3.092231276 | M36: 21.90197057 | N36: 67.0237968 | O36: 114.4242647 | P36: 144.0245307 | S36: LED72 | T36: 3.106804423 | U36: 22.00519073 | V36: 67.33966826 | W36: 114.9635263 | X36: 144.7032932 | AA36: LED72 | AB36: 3.12504107 | AC36: 22.13435911 | AD36: 67.73494571 | AE36: 115.6383513 | AF36: 145.5526877 | AI36: LED72 | AJ36: 3.146828041 | AK36: 22.28867409 | AL36: 68.20717608 | AM36: 116.4445517 | AN36: 146.5674431
C37: LED117 | D37: 3.075179002 | E37: 23.63553001 | F37: 68.40356694 | G37: 130.1978182 | H37: 168.786599 | K37: LED117 | L37: 3.092231276 | M37: 23.76659215 | N37: 68.78287377 | O37: 130.9197823 | P37: 169.722543 | S37: LED117 | T37: 3.106804423 | U37: 23.87859996 | V37: 69.10703546 | W37: 131.5367844 | X37: 170.5224158 | AA37: LED117 | AB37: 3.12504107 | AC37: 24.01876507 | AD37: 69.51268718 | AE37: 132.3088928 | AF37: 171.5233661 | AI37: LED117 | AJ37: 3.146828041 | AK37: 24.18621763 | AL37: 69.9973115 | AM37: 133.2313159 | AN37: 172.7191823
C38: LED158 | D38: 3.075179002 | E38: 23.63553001 | F38: 68.40356694 | G38: 130.1978182 | H38: 168.786599 | K38: LED158 | L38: 3.092231276 | M38: 23.76659215 | N38: 68.78287377 | O38: 130.9197823 | P38: 169.722543 | S38: LED158 | T38: 3.106804423 | U38: 23.87859996 | V38: 69.10703546 | W38: 131.5367844 | X38: 170.5224158 | AA38: LED158 | AB38: 3.12504107 | AC38: 24.01876507 | AD38: 69.51268718 | AE38: 132.3088928 | AF38: 171.5233661 | AI38: LED158 | AJ38: 3.146828041 | AK38: 24.18621763 | AL38: 69.9973115 | AM38: 133.2313159 | AN38: 172.7191823
C39: LED298 | D39: 3.075179002 | E39: 26.17597449 | F39: 70.80021268 | G39: 152.6720546 | H39: 203.7987291 | K39: LED298 | L39: 3.092231276 | M39: 26.32112373 | N39: 71.19280922 | O39: 153.5186414 | P39: 204.92882 | S39: LED298 | T39: 3.106804423 | U39: 26.44517059 | V39: 71.52832851 | W39: 154.2421479 | X39: 205.8946138 | AA39: LED298 | AB39: 3.12504107 | AC39: 26.60040123 | AD39: 71.948193 | AE39: 155.1475347 | AF39: 207.1031956 | AI39: LED298 | AJ39: 3.146828041 | AK39: 26.78585229 | AL39: 72.44979703 | AM39: 156.2291828 | AN39: 208.547065
C40: LED178 | D40: 3.075179002 | E40: 21.78119098 | F40: 66.6541905 | G40: 113.793266 | H40: 143.2302997 | K40: LED178 | L40: 3.092231276 | M40: 21.90197057 | N40: 67.0237968 | O40: 114.4242647 | P40: 144.0245307 | S40: LED178 | T40: 3.106804423 | U40: 22.00519073 | V40: 67.33966826 | W40: 114.9635263 | X40: 144.7032932 | AA40: LED178 | AB40: 3.12504107 | AC40: 22.13435911 | AD40: 67.73494571 | AE40: 115.6383513 | AF40: 145.5526877 | AI40: LED178 | AJ40: 3.146828041 | AK40: 22.28867409 | AL40: 68.20717608 | AM40: 116.4445517 | AN40: 146.5674431
C41: LED175 | D41: 3.075179002 | E41: 22.24477574 | F41: 67.09153461 | G41: 117.8944041 | H41: 149.6193745 | K41: LED175 | L41: 3.092231276 | M41: 22.36812596 | N41: 67.46356604 | O41: 118.5481441 | P41: 150.4490338 | S41: LED175 | T41: 3.106804423 | U41: 22.47354304 | V41: 67.78151006 | W41: 119.1068409 | X41: 151.1580738 | AA41: LED175 | AB41: 3.12504107 | AC41: 22.6054606 | AD41: 68.17938108 | AE41: 119.8059867 | AF41: 152.0453573 | AI41: LED175 | AJ41: 3.146828041 | AK41: 22.76305997 | AL41: 68.65470994 | AM41: 120.6412428 | AN41: 153.1053779
C42: LED79 | D42: 3.075179002 | E42: 23.63553001 | F42: 68.40356694 | G42: 130.1978182 | H42: 168.786599 | K42: LED79 | L42: 3.092231276 | M42: 23.76659215 | N42: 68.78287377 | O42: 130.9197823 | P42: 169.722543 | S42: LED79 | T42: 3.106804423 | U42: 23.87859996 | V42: 69.10703546 | W42: 131.5367844 | X42: 170.5224158 | AA42: LED79 | AB42: 3.12504107 | AC42: 24.01876507 | AD42: 69.51268718 | AE42: 132.3088928 | AF42: 171.5233661 | AI42: LED79 | AJ42: 3.146828041 | AK42: 24.18621763 | AL42: 69.9973115 | AM42: 133.2313159 | AN42: 172.7191823
C43: LED80 | D43: 3.075179002 | E43: 20.94673842 | F43: 65.8669711 | G43: 106.4112176 | H43: 131.729965 | K43: LED80 | L43: 3.092231276 | M43: 21.06289085 | N43: 66.23221216 | O43: 107.0012818 | P43: 132.4604251 | S43: LED80 | T43: 3.106804423 | U43: 21.16215658 | V43: 66.54435303 | W43: 107.5055602 | X43: 133.084688 | AA43: LED80 | AB43: 3.12504107 | AC43: 21.28637643 | AD43: 66.93496205 | AE43: 108.1366076 | AF43: 133.8658824 | AI43: LED80 | AJ43: 3.146828041 | AK43: 21.43477949 | AL43: 67.40161515 | AM43: 108.8905079 | AN43: 134.7991605
C44: LED60 | D44: 3.075179002 | E44: 20.71494604 | F44: 65.64829904 | G44: 104.3606485 | H44: 128.5354276 | K44: LED60 | L44: 3.092231276 | M44: 20.82981315 | N44: 66.01232754 | O44: 104.9393421 | P44: 129.2481736 | S44: LED60 | T44: 3.106804423 | U44: 20.92798043 | V44: 66.32343213 | W44: 105.433903 | X44: 129.8572977 | AA44: LED60 | AB44: 3.12504107 | AC44: 21.05082568 | AD44: 66.71274437 | AE44: 106.0527899 | AF44: 130.6195476 | AI44: LED60 | AJ44: 3.146828041 | AK44: 21.19758655 | AL44: 67.17784822 | AM44: 106.7921623 | AN44: 131.5301931
C45: LED155 TM | D45: 3.075179002 | E45: 24.86291522 | F45: 69.56147751 | G45: 141.0559753 | H45: 185.7022887 | K45: LED155 TM | L45: 3.092231276 | M45: 25.00078337 | N45: 69.94720511 | O45: 141.8381493 | P45: 186.7320324 | S45: LED155 TM | T45: 3.106804423 | U45: 25.1186077 | V45: 70.27685408 | W45: 142.5066078 | X45: 187.6120679 | AA45: LED155 TM | AB45: 3.12504107 | AC45: 25.26605154 | AD45: 70.68937253 | AE45: 143.343108 | AF45: 188.7133329 | AI45: LED155 TM | AJ45: 3.146828041 | AK45: 25.44219986 | AL45: 71.1822004 | AM45: 144.3424588 | AN45: 190.0289931
C46: LED81 TM | D46: 3.075179002 | E46: 24.51694645 | F46: 69.23509189 | G46: 137.9953362 | H46: 180.9341847 | K46: LED81 TM | L46: 3.092231276 | M46: 24.65289616 | N46: 69.61900963 | O46: 138.7605386 | P46: 181.9374887 | S46: LED81 TM | T46: 3.106804423 | U46: 24.76908096 | V46: 69.94711188 | W46: 139.4144928 | X46: 182.7949284 | AA46: LED81 TM | AB46: 3.12504107 | AC46: 24.91447311 | AD46: 70.35769477 | AE46: 140.2328426 | AF46: 183.8679172 | AI46: LED81 TM | AJ46: 3.146828041 | AK46: 25.08817032 | AL46: 70.84821027 | AM46: 141.2105094 | AN46: 185.1497964
C47: LED101 TM | D47: 3.075179002 | E47: 24.68989165 | F47: 69.39824774 | G47: 139.5253091 | H47: 183.3176967 | K47: LED101 TM | L47: 3.092231276 | M47: 24.82680037 | N47: 69.7830702 | O47: 140.2989954 | P47: 184.3342176 | S47: LED101 TM | T47: 3.106804423 | U47: 24.94380475 | V47: 70.11194564 | W47: 140.9602001 | X47: 185.2029526 | AA47: LED101 TM | AB47: 3.12504107 | AC47: 25.09022251 | AD47: 70.52349609 | AE47: 141.7876231 | AF47: 186.2900763 | AI47: LED101 TM | AJ47: 3.146828041 | AK47: 25.265145 | AL47: 71.01516751 | AM47: 142.7761294 | AN47: 187.5888421
C48: LED58 | D48: 3.075179002 | E48: 20.70972282 | F48: 65.64337148 | G48: 104.314441 | H48: 128.4634418 | K48: LED58 | L48: 3.092231276 | M48: 20.82456097 | N48: 66.00737266 | O48: 104.8928783 | P48: 129.1757886 | S48: LED58 | T48: 3.106804423 | U48: 20.9227035 | V48: 66.31845389 | W48: 105.3872202 | X48: 129.7845715 | AA48: LED58 | AB48: 3.12504107 | AC48: 21.04551778 | AD48: 66.70773691 | AE48: 106.0058331 | AF48: 130.5463946 | AI48: LED58 | AJ48: 3.146828041 | AK48: 21.19224164 | AL48: 67.17280585 | AM48: 106.7448781 | AN48: 131.45653
C49: LED78 | D49: 3.075179002 | E49: 20.93430866 | F49: 65.85524491 | G49: 106.3012568 | H49: 131.5586594 | K49: LED78 | L49: 3.092231276 | M49: 21.05039217 | N49: 66.22042095 | O49: 106.8907113 | P49: 132.2881696 | S49: LED78 | T49: 3.106804423 | U49: 21.149599 | V49: 66.53250625 | W49: 107.3944686 | X49: 132.9116207 | AA49: LED78 | AB49: 3.12504107 | AC49: 21.27374513 | AD49: 66.92304573 | AE49: 108.0248639 | AF49: 133.6917993 | AI49: LED78 | AJ49: 3.146828041 | AK49: 21.42206013 | AL49: 67.38961575 | AM49: 108.7779851 | AN49: 134.6238636
C50: LED151 | D50: 3.075179002 | E50: 20.958836 | F50: 65.87838392 | G50: 106.5182398 | H50: 131.8966926 | K50: LED151 | L50: 3.092231276 | M50: 21.07505552 | N50: 66.24368827 | O50: 107.1088975 | P50: 132.6280772 | S50: LED151 | T50: 3.106804423 | U50: 21.17437858 | V50: 66.55588322 | W50: 107.6136831 | X50: 133.2531302 | AA50: LED151 | AB50: 3.12504107 | AC50: 21.29867017 | AD50: 66.94655992 | AE50: 108.2453651 | AF50: 134.0353134 | AI50: LED151 | AJ50: 3.146828041 | AK50: 21.44715894 | AL50: 67.41329387 | AM50: 109.0000236 | AN50: 134.9697727
C51: LED180 F | D51: 3.075179002 | E51: 25.71017044 | F51: 70.36077489 | G51: 144.9211002 | H51: 191.4819371 | K51: LED180 F | L51: 3.092231276 | M51: 25.85273673 | N51: 70.75093469 | O51: 145.7247068 | P51: 192.5437297 | S51: LED180 F | T51: 3.106804423 | U51: 25.97457617 | V51: 71.08437151 | W51: 146.411482 | X51: 193.4511547 | AA51: LED180 F | AB51: 3.12504107 | AC51: 26.12704446 | AD51: 71.50163001 | AE51: 147.2709034 | AF51: 194.5866946 | AI51: LED180 F | AJ51: 3.146828041 | AK51: 26.3091954 | AL51: 72.00012072 | AM51: 148.2976378 | AN51: 195.9433023
C52: LED360 F | D52: 3.075179002 | E52: 31.96715068 | F52: 76.26358645 | G52: 202.6979206 | H52: 281.6526245 | K52: LED360 F | L52: 3.092231276 | M52: 32.14441276 | N52: 76.68647812 | O52: 203.8219074 | P52: 283.2144256 | S52: LED360 F | T52: 3.106804423 | U52: 32.29590377 | V52: 77.04788811 | W52: 204.7824845 | X52: 284.5491658 | AA52: LED360 F | AB52: 3.12504107 | AC52: 32.48547766 | AD52: 77.50015189 | AE52: 205.9845382 | AF52: 286.2194423 | AI52: LED360 F | AJ52: 3.146828041 | AK52: 32.71195793 | AL52: 78.04046273 | AM52: 207.4206086 | AN52: 288.2148896
C53: LED100 | D53: 3.075179002 | E53: 20.91181873 | F53: 65.834028 | G53: 106.1022979 | H53: 131.2487057 | K53: LED100 | L53: 3.092231276 | M53: 21.02777753 | N53: 66.19908639 | O53: 106.6906492 | P53: 131.9764971 | S53: LED100 | T53: 3.106804423 | U53: 21.12687778 | V53: 66.51107114 | W53: 107.1934636 | X53: 132.5984793 | AA53: LED100 | AB53: 3.12504107 | AC53: 21.25089054 | AD53: 66.9014848 | AE53: 107.822679 | AF53: 133.3768198 | AI53: LED100 | AJ53: 3.146828041 | AK53: 21.39904621 | AL53: 67.3679045 | AM53: 108.5743906 | AN53: 134.3066882
C54: LED120 | D54: 3.075179002 | E54: 20.91181873 | F54: 65.834028 | G54: 106.1022979 | H54: 131.2487057 | K54: LED120 | L54: 3.092231276 | M54: 21.02777753 | N54: 66.19908639 | O54: 106.6906492 | P54: 131.9764971 | S54: LED120 | T54: 3.106804423 | U54: 21.12687778 | V54: 66.51107114 | W54: 107.1934636 | X54: 132.5984793 | AA54: LED120 | AB54: 3.12504107 | AC54: 21.25089054 | AD54: 66.9014848 | AE54: 107.822679 | AF54: 133.3768198 | AI54: LED120 | AJ54: 3.146828041 | AK54: 21.39904621 | AL54: 67.3679045 | AM54: 108.5743906 | AN54: 134.3066882

Sheet HID
B2: Dollars | C2: June 2025 $ | D2: 2025/26
B4: CLER Tariff | C4: CLER
B6: Lights | C6: Total Cost | D6: Lights | E6: F-40 | F6: MV-80 | G6: S-HP50 | H6: CF-42 | I6: S-LP18 | J6: S-HP100 | K6: S-HP150 | L6: S-HP250 | M6: S-LP90 | N6: MV-80+ | O6: S-HP360f | P6: cf-42 PT | Q6: MV-80 PT | R6: S-HP Other | S6: S-HP50 PT
B7: TFI Future Replacement
B8: HID to HID Luminaire Annuity
B9: SLO (OPEX)
B10: CLER SLO | E10: 34.56500158 | F10: 37.16017609 | G10: 31.55344049 | H10: 31.55344049 | I10: 31.55344049 | J10: 31.55344049 | K10: 31.55344049 | L10: 31.55344049 | M10: 31.55344049 | N10: 31.55344049 | O10: 31.55344049 | P10: 31.55344049 | Q10: 31.55344049 | R10: 31.55344049 | S10: 31.55344049
B11: Bulk HID Lamp Program
B12: Infrastructure Capital | C12: 5956638.611 | D12: 204522
B13: Column Inspections/Repairs | C13: 1182271.866 | D13: 204522
B14: Cable Repairs (SLO fault) | C14: 1992248.434 | D14: 204522
B15: GSL
B16: SAP Maintenance | C16: 125488.8898 | D16: 242002 | E16: 0.518544846 | F16: 0.518544846 | G16: 0.518544846 | H16: 0.518544846 | I16: 0.518544846 | J16: 0.518544846 | K16: 0.518544846 | L16: 0.518544846 | M16: 0.518544846 | N16: 0.518544846 | O16: 0.518544846 | P16: 0.518544846 | Q16: 0.518544846 | R16: 0.518544846 | S16: 0.518544846
B17: SLO reporting Tool | C17: 72120.05162 | D17: 242002 | E17: 0.2980142793 | F17: 0.2980142793 | G17: 0.2980142793 | H17: 0.2980142793 | I17: 0.2980142793 | J17: 0.2980142793 | K17: 0.2980142793 | L17: 0.2980142793 | M17: 0.2980142793 | N17: 0.2980142793 | O17: 0.2980142793 | P17: 0.2980142793 | Q17: 0.2980142793 | R17: 0.2980142793 | S17: 0.2980142793
B18: GIS Maintenance | C18: 100968.0723 | D18: 242002 | E18: 0.4172199911 | F18: 0.4172199911 | G18: 0.4172199911 | H18: 0.4172199911 | I18: 0.4172199911 | J18: 0.4172199911 | K18: 0.4172199911 | L18: 0.4172199911 | M18: 0.4172199911 | N18: 0.4172199911 | O18: 0.4172199911 | P18: 0.4172199911 | Q18: 0.4172199911 | R18: 0.4172199911 | S18: 0.4172199911
B19: Customer Management | C19: 253141.3812 | D19: 242002 | E19: 1.04603012 | F19: 1.04603012 | G19: 1.04603012 | H19: 1.04603012 | I19: 1.04603012 | J19: 1.04603012 | K19: 1.04603012 | L19: 1.04603012 | M19: 1.04603012 | N19: 1.04603012 | O19: 1.04603012 | P19: 1.04603012 | Q19: 1.04603012 | R19: 1.04603012 | S19: 1.04603012
B20: Asset Data Audit | C20: 144240.1032 | D20: 242002 | E20: 0.5960285586 | F20: 0.5960285586 | G20: 0.5960285586 | H20: 0.5960285586 | I20: 0.5960285586 | J20: 0.5960285586 | K20: 0.5960285586 | L20: 0.5960285586 | M20: 0.5960285586 | N20: 0.5960285586 | O20: 0.5960285586 | P20: 0.5960285586 | Q20: 0.5960285586 | R20: 0.5960285586 | S20: 0.5960285586
B21: Asset Management | C21: 216360.1549 | D21: 204522
B22: Margin | D22: 37480 | E22: 2.246450363 | F22: 2.402160833 | G22: 2.065756697 | H22: 2.065756697 | I22: 2.065756697 | J22: 2.065756697 | K22: 2.065756697 | L22: 2.065756697 | M22: 2.065756697 | N22: 2.065756697 | O22: 2.065756697 | P22: 2.065756697 | Q22: 2.065756697 | R22: 2.065756697 | S22: 2.065756697
B23: Use of Pole Charge | D23: 204522 | E23: 0 | F23: 0 | G23: 0 | H23: 0 | I23: 0 | J23: 0 | K23: 0 | L23: 0 | M23: 0 | N23: 0 | O23: 1 | P23: 0 | Q23: 0 | R23: 0 | S23: 1
B25: Total | E25: 39.68728974 | F25: 42.43817472 | G25: 36.49503499 | H25: 36.49503499 | I25: 36.49503499 | J25: 36.49503499 | K25: 36.49503499 | L25: 36.49503499 | M25: 36.49503499 | N25: 36.49503499 | O25: 37.49503499 | P25: 36.49503499 | Q25: 36.49503499 | R25: 36.49503499 | S25: 37.49503499
B27: ENERGY Tariff | C27: ENERGY
B29: Lights | C29: Total Cost | D29: Lights | E29: F-40 | F29: MV-80 | G29: S-HP50 | H29: CF-42 | I29: S-LP18 | J29: S-HP100 | K29: S-HP150 | L29: S-HP250 | M29: S-LP90 | N29: MV-80+ | O29: S-HP360f | P29: cf-42 PT | Q29: MV-80 PT | R29: S-HP Other | S29: S-HP50 PT
B30: TFI Future Replacement
B31: HID to HID Luminaire Annuity
B32: SLO (OPEX)
B33: CLER SLO
B34: Bulk HID Lamp Program
B35: Infrastructure Capital | C35: 5956638.611 | D35: 204522
B36: Column Inspections/Repairs | C36: 1182271.866 | D36: 204522
B37: Cable Repairs (SLO fault) | C37: 1992248.434 | D37: 204522
B38: GSL
B39: SAP Maintenance | C39: 125488.8898 | D39: 242002 | E39: 0.518544846 | F39: 0.518544846 | G39: 0.518544846 | H39: 0.518544846 | I39: 0.518544846 | J39: 0.518544846 | K39: 0.518544846 | L39: 0.518544846 | M39: 0.518544846 | N39: 0.518544846 | O39: 0.518544846 | P39: 0.518544846 | Q39: 0.518544846 | R39: 0.518544846 | S39: 0.518544846
B40: SLO reporting Tool | C40: 72120.05162 | D40: 242002 | E40: 0.2980142793 | F40: 0.2980142793 | G40: 0.2980142793 | H40: 0.2980142793 | I40: 0.2980142793 | J40: 0.2980142793 | K40: 0.2980142793 | L40: 0.2980142793 | M40: 0.2980142793 | N40: 0.2980142793 | O40: 0.2980142793 | P40: 0.2980142793 | Q40: 0.2980142793 | R40: 0.2980142793 | S40: 0.2980142793
B41: GIS Maintenance | C41: 100968.0723 | D41: 242002 | E41: 0.4172199911 | F41: 0.4172199911 | G41: 0.4172199911 | H41: 0.4172199911 | I41: 0.4172199911 | J41: 0.4172199911 | K41: 0.4172199911 | L41: 0.4172199911 | M41: 0.4172199911 | N41: 0.4172199911 | O41: 0.4172199911 | P41: 0.4172199911 | Q41: 0.4172199911 | R41: 0.4172199911 | S41: 0.4172199911
B42: Customer Management | C42: 253141.3812 | D42: 242002 | E42: 1.04603012 | F42: 1.04603012 | G42: 1.04603012 | H42: 1.04603012 | I42: 1.04603012 | J42: 1.04603012 | K42: 1.04603012 | L42: 1.04603012 | M42: 1.04603012 | N42: 1.04603012 | O42: 1.04603012 | P42: 1.04603012 | Q42: 1.04603012 | R42: 1.04603012 | S42: 1.04603012
B43: Asset Data Audit | C43: 144240.1032 | D43: 242002 | E43: 0.5960285586 | F43: 0.5960285586 | G43: 0.5960285586 | H43: 0.5960285586 | I43: 0.5960285586 | J43: 0.5960285586 | K43: 0.5960285586 | L43: 0.5960285586 | M43: 0.5960285586 | N43: 0.5960285586 | O43: 0.5960285586 | P43: 0.5960285586 | Q43: 0.5960285586 | R43: 0.5960285586 | S43: 0.5960285586
B44: Asset Management | C44: 216360.1549 | D44: 204522
B45: Margin | D45: 37480 | E45: 0.1725502677 | F45: 0.1725502677 | G45: 0.1725502677 | H45: 0.1725502677 | I45: 0.1725502677 | J45: 0.1725502677 | K45: 0.1725502677 | L45: 0.1725502677 | M45: 0.1725502677 | N45: 0.1725502677 | O45: 0.1725502677 | P45: 0.1725502677 | Q45: 0.1725502677 | R45: 0.1725502677 | S45: 0.1725502677
B46: Use of Pole Charge | D46: 204522 | E46: 0 | F46: 0 | G46: 0 | H46: 0 | I46: 0 | J46: 0 | K46: 0 | L46: 0 | M46: 0 | N46: 0 | O46: 0 | P46: 0 | Q46: 0 | R46: 0 | S46: 0
B48: Total | E48: 3.048388063 | F48: 3.048388063 | G48: 3.048388063 | H48: 3.048388063 | I48: 3.048388063 | J48: 3.048388063 | K48: 3.048388063 | L48: 3.048388063 | M48: 3.048388063 | N48: 3.048388063 | O48: 3.048388063 | P48: 3.048388063 | Q48: 3.048388063 | R48: 3.048388063 | S48: 3.048388063
B51: SLUOS Tariff | C51: SLUOS
B53: Lights | C53: Total Cost | D53: Lights | E53: F-40 | F53: MV-80 | G53: S-HP50 | H53: CF-42 | I53: S-LP18 | J53: S-HP100 | K53: S-HP150 | L53: S-HP250 | M53: S-LP90 | N53: MV-80+ | O53: S-HP360f | P53: cf-42 PT | Q53: MV-80 PT | R53: S-HP Other | S53: S-HP50 PT
B54: TFI Future Replacement
B55: HID to HID Luminaire Annuity
B56: SLO (OPEX) | E56: 29.9631538 | F56: 32.71504143 | G56: 26.29453374 | H56: 26.29453374 | I56: 26.29453374 | J56: 26.29453374 | K56: 26.29453374 | L56: 26.29453374 | M56: 26.29453374 | N56: 26.29453374 | O56: 26.29453374 | P56: 26.29453374 | Q56: 26.29453374 | R56: 26.29453374 | S56: 26.29453374
B57: CLER SLO
B58: Bulk HID Lamp Program
B59: Infrastructure Capital | C59: 5956638.611 | D59: 204522 | E59: 29.12468395 | F59: 29.12468395 | G59: 29.12468395 | H59: 29.12468395 | I59: 29.12468395 | J59: 29.12468395 | K59: 29.12468395 | L59: 29.12468395 | M59: 29.12468395 | N59: 29.12468395 | O59: 29.12468395 | P59: 29.12468395 | Q59: 29.12468395 | R59: 29.12468395 | S59: 29.12468395
B60: Column Inspections/Repairs | C60: 1182271.866 | D60: 204522 | E60: 5.78065864 | F60: 5.78065864 | G60: 5.78065864 | H60: 5.78065864 | I60: 5.78065864 | J60: 5.78065864 | K60: 5.78065864 | L60: 5.78065864 | M60: 5.78065864 | N60: 5.78065864 | O60: 5.78065864 | P60: 5.78065864 | Q60: 5.78065864 | R60: 5.78065864 | S60: 5.78065864
B61: Cable Repairs (SLO fault) | C61: 1992248.434 | D61: 204522 | E61: 9.740998199 | F61: 9.740998199 | G61: 9.740998199 | H61: 9.740998199 | I61: 9.740998199 | J61: 9.740998199 | K61: 9.740998199 | L61: 9.740998199 | M61: 9.740998199 | N61: 9.740998199 | O61: 9.740998199 | P61: 9.740998199 | Q61: 9.740998199 | R61: 9.740998199 | S61: 9.740998199
B62: GSL
B63: SAP Maintenance | C63: 125488.8898 | D63: 242002 | E63: 0.518544846 | F63: 0.518544846 | G63: 0.518544846 | H63: 0.518544846 | I63: 0.518544846 | J63: 0.518544846 | K63: 0.518544846 | L63: 0.518544846 | M63: 0.518544846 | N63: 0.518544846 | O63: 0.518544846 | P63: 0.518544846 | Q63: 0.518544846 | R63: 0.518544846 | S63: 0.518544846
B64: SLO reporting Tool | C64: 72120.05162 | D64: 242002 | E64: 0.2980142793 | F64: 0.2980142793 | G64: 0.2980142793 | H64: 0.2980142793 | I64: 0.2980142793 | J64: 0.2980142793 | K64: 0.2980142793 | L64: 0.2980142793 | M64: 0.2980142793 | N64: 0.2980142793 | O64: 0.2980142793 | P64: 0.2980142793 | Q64: 0.2980142793 | R64: 0.2980142793 | S64: 0.2980142793
B65: GIS Maintenance | C65: 100968.0723 | D65: 242002 | E65: 0.4172199911 | F65: 0.4172199911 | G65: 0.4172199911 | H65: 0.4172199911 | I65: 0.4172199911 | J65: 0.4172199911 | K65: 0.4172199911 | L65: 0.4172199911 | M65: 0.4172199911 | N65: 0.4172199911 | O65: 0.4172199911 | P65: 0.4172199911 | Q65: 0.4172199911 | R65: 0.4172199911 | S65: 0.4172199911
B66: Customer Management | C66: 253141.3812 | D66: 242002 | E66: 1.04603012 | F66: 1.04603012 | G66: 1.04603012 | H66: 1.04603012 | I66: 1.04603012 | J66: 1.04603012 | K66: 1.04603012 | L66: 1.04603012 | M66: 1.04603012 | N66: 1.04603012 | O66: 1.04603012 | P66: 1.04603012 | Q66: 1.04603012 | R66: 1.04603012 | S66: 1.04603012
B67: Asset Data Audit | C67: 144240.1032 | D67: 242002 | E67: 0.5960285586 | F67: 0.5960285586 | G67: 0.5960285586 | H67: 0.5960285586 | I67: 0.5960285586 | J67: 0.5960285586 | K67: 0.5960285586 | L67: 0.5960285586 | M67: 0.5960285586 | N67: 0.5960285586 | O67: 0.5960285586 | P67: 0.5960285586 | Q67: 0.5960285586 | R67: 0.5960285586 | S67: 0.5960285586
B68: Asset Management | C68: 216360.1549 | D68: 204522 | E68: 1.057882061 | F68: 1.057882061 | G68: 1.057882061 | H68: 1.057882061 | I68: 1.057882061 | J68: 1.057882061 | K68: 1.057882061 | L68: 1.057882061 | M68: 1.057882061 | N68: 1.057882061 | O68: 1.057882061 | P68: 1.057882061 | Q68: 1.057882061 | R68: 1.057882061 | S68: 1.057882061
B69: Margin | D69: 37480
B70: Use of Pole Charge | D70: 204522 | E70: 0 | F70: 0 | G70: 0 | H70: 0 | I70: 0 | J70: 0 | K70: 0 | L70: 0 | M70: 0 | N70: 0 | O70: 0 | P70: 0 | Q70: 0 | R70: 0 | S70: 0
B72: Total | E72: 78.54321445 | F72: 81.29510208 | G72: 74.87459439 | H72: 74.87459439 | I72: 74.87459439 | J72: 74.87459439 | K72: 74.87459439 | L72: 74.87459439 | M72: 74.87459439 | N72: 74.87459439 | O72: 74.87459439 | P72: 74.87459439 | Q72: 74.87459439 | R72: 74.87459439 | S72: 74.87459439

Sheet LED
B2: Dollars | C2: June 2025 $ | D2: 2025/26
B4: SAPN Tariff | C4: SAPN
B6: Lights | C6: Total Cost | D6: Lights | E6: LED16 | F6: LED17 | G6: LED29 | H6: LED22 | I6: LED46 | J6: LED43 | K6: LED17 PT | L6: LED35 | M6: LED39 | N6: LED26 | O6: LED20 | P6: LED28 | Q6: LED200 | R6: LED105 | S6: LED198 | T6: LED88 | U6: LED70 | V6: LED150 | W6: LED90 | X6: LED72 | Y6: LED117 | Z6: LED158 | AA6: LED298 | AB6: LED178 | AC6: LED175 | AD6: LED79 | AE6: LED80 | AF6: LED60 | AG6: LED23 PT | AH6: LED155 TM | AI6: LED81 TM | AJ6: LED101 TM | AK6: LED24 | AL6: LED58 | AM6: LED78 | AN6: LED151 | AO6: LED18 PT | AP6: LED19 PT | AQ6: LED32 PT | AR6: LED33 PT | AS6: LED180 F | AT6: LED360 F | AU6: LED100 | AV6: LED120
B7: LED Luminaire Annuity | E7: 36.46199749 | F7: 42.75165712 | G7: 44.99361125 | H7: 51.48347845 | I7: 43.22364746 | J7: 43.22364746 | K7: 126.1360498 | L7: 99.50849577 | M7: 43.22364746 | N7: 43.22364746 | O7: 99.50849577 | P7: 99.50849577 | Q7: 75.90897866 | R7: 131.8398342 | S7: 131.8398342 | T7: 75.90897866 | U7: 75.90897866 | V7: 65.28919596 | W7: 75.90897866 | X7: 75.90897866 | Y7: 99.50849577 | Z7: 99.50849577 | AA7: 131.8398342 | AB7: 75.90897866 | AC7: 81.80885794 | AD7: 99.50849577 | AE7: 65.28919596 | AF7: 62.33925632 | AG7: 93.66338785 | AH7: 115.1289932 | AI7: 110.7259711 | AJ7: 112.9269835 | AK7: 42.51552957 | AL7: 62.27278229 | AM7: 65.13100683 | AN7: 65.44315766 | AO7: 82.65533396 | AP7: 88.70986333 | AQ7: 89.47627892 | AR7: 105.8604926 | AS7: 120.0659554 | AT7: 203.5996901 | AU7: 64.84478546 | AV7: 64.84478546
B8: TFI Future Replacement
B9: LED O&M Annuity | E9: 11.89846487 | F9: 12.23550089 | G9: 12.35563764 | H9: 12.70340193 | I9: 12.26079283 | J9: 12.26079283 | K9: 16.70371466 | L9: 15.27685767 | M9: 12.26079283 | N9: 12.26079283 | O9: 15.27685767 | P9: 15.27685767 | Q9: 17.49343899 | R9: 21.60334105 | S9: 21.60334105 | T9: 17.49343899 | U9: 17.49343899 | V9: 16.71307784 | W9: 17.49343899 | X9: 17.49343899 | Y9: 19.22757488 | Z9: 19.22757488 | AA9: 21.60334105 | AB9: 17.49343899 | AC9: 17.92697296 | AD9: 19.22757488 | AE9: 16.71307784 | AF9: 16.49631085 | AG9: 14.96364328 | AH9: 20.37539774 | AI9: 20.05185558 | AJ9: 20.21359002 | AK9: 12.22284782 | AL9: 16.49142622 | AM9: 16.70145381 | AN9: 16.72439123 | AO9: 14.37376864 | AP9: 14.69820504 | AQ9: 14.73927398 | AR9: 15.61723407 | AS9: 21.16773164 | AT9: 27.01911794 | AU9: 16.68042174 | AV9: 16.68042174
B10: Infrastructure Capital | C10: 5956638.611 | D10: 204522 | E10: 29.12468395 | F10: 29.12468395 | G10: 29.12468395 | H10: 29.12468395 | I10: 29.12468395 | J10: 29.12468395 | K10: 29.12468395 | L10: 29.12468395 | M10: 29.12468395 | N10: 29.12468395 | O10: 29.12468395 | P10: 29.12468395 | Q10: 29.12468395 | R10: 29.12468395 | S10: 29.12468395 | T10: 29.12468395 | U10: 29.12468395 | V10: 29.12468395 | W10: 29.12468395 | X10: 29.12468395 | Y10: 29.12468395 | Z10: 29.12468395 | AA10: 29.12468395 | AB10: 29.12468395 | AC10: 29.12468395 | AD10: 29.12468395 | AE10: 29.12468395 | AF10: 29.12468395 | AG10: 29.12468395 | AH10: 29.12468395 | AI10: 29.12468395 | AJ10: 29.12468395 | AK10: 29.12468395 | AL10: 29.12468395 | AM10: 29.12468395 | AN10: 29.12468395 | AO10: 29.12468395 | AP10: 29.12468395 | AQ10: 29.12468395 | AR10: 29.12468395 | AS10: 29.12468395 | AT10: 29.12468395 | AU10: 29.12468395 | AV10: 29.12468395
B11: Column Inspections/Repairs | C11: 1182271.866 | D11: 204522 | E11: 5.78065864 | F11: 5.78065864 | G11: 5.78065864 | H11: 5.78065864 | I11: 5.78065864 | J11: 5.78065864 | K11: 5.78065864 | L11: 5.78065864 | M11: 5.78065864 | N11: 5.78065864 | O11: 5.78065864 | P11: 5.78065864 | Q11: 5.78065864 | R11: 5.78065864 | S11: 5.78065864 | T11: 5.78065864 | U11: 5.78065864 | V11: 5.78065864 | W11: 5.78065864 | X11: 5.78065864 | Y11: 5.78065864 | Z11: 5.78065864 | AA11: 5.78065864 | AB11: 5.78065864 | AC11: 5.78065864 | AD11: 5.78065864 | AE11: 5.78065864 | AF11: 5.78065864 | AG11: 5.78065864 | AH11: 5.78065864 | AI11: 5.78065864 | AJ11: 5.78065864 | AK11: 5.78065864 | AL11: 5.78065864 | AM11: 5.78065864 | AN11: 5.78065864 | AO11: 5.78065864 | AP11: 5.78065864 | AQ11: 5.78065864 | AR11: 5.78065864 | AS11: 5.78065864 | AT11: 5.78065864 | AU11: 5.78065864 | AV11: 5.78065864
B12: Cable Repairs (SLO fault) | C12: 1992248.434 | D12: 204522 | E12: 9.740998199 | F12: 9.740998199 | G12: 9.740998199 | H12: 9.740998199 | I12: 9.740998199 | J12: 9.740998199 | K12: 9.740998199 | L12: 9.740998199 | M12: 9.740998199 | N12: 9.740998199 | O12: 9.740998199 | P12: 9.740998199 | Q12: 9.740998199 | R12: 9.740998199 | S12: 9.740998199 | T12: 9.740998199 | U12: 9.740998199 | V12: 9.740998199 | W12: 9.740998199 | X12: 9.740998199 | Y12: 9.740998199 | Z12: 9.740998199 | AA12: 9.740998199 | AB12: 9.740998199 | AC12: 9.740998199 | AD12: 9.740998199 | AE12: 9.740998199 | AF12: 9.740998199 | AG12: 9.740998199 | AH12: 9.740998199 | AI12: 9.740998199 | AJ12: 9.740998199 | AK12: 9.740998199 | AL12: 9.740998199 | AM12: 9.740998199 | AN12: 9.740998199 | AO12: 9.740998199 | AP12: 9.740998199 | AQ12: 9.740998199 | AR12: 9.740998199 | AS12: 9.740998199 | AT12: 9.740998199 | AU12: 9.740998199 | AV12: 9.740998199
B13: GSL
B14: SAP Maintenance | C14: 125488.8898 | D14: 242002 | E14: 0.518544846 | F14: 0.518544846 | G14: 0.518544846 | H14: 0.518544846 | I14: 0.518544846 | J14: 0.518544846 | K14: 0.518544846 | L14: 0.518544846 | M14: 0.518544846 | N14: 0.518544846 | O14: 0.518544846 | P14: 0.518544846 | Q14: 0.518544846 | R14: 0.518544846 | S14: 0.518544846 | T14: 0.518544846 | U14: 0.518544846 | V14: 0.518544846 | W14: 0.518544846 | X14: 0.518544846 | Y14: 0.518544846 | Z14: 0.518544846 | AA14: 0.518544846 | AB14: 0.518544846 | AC14: 0.518544846 | AD14: 0.518544846 | AE14: 0.518544846 | AF14: 0.518544846 | AG14: 0.518544846 | AH14: 0.518544846 | AI14: 0.518544846 | AJ14: 0.518544846 | AK14: 0.518544846 | AL14: 0.518544846 | AM14: 0.518544846 | AN14: 0.518544846 | AO14: 0.518544846 | AP14: 0.518544846 | AQ14: 0.518544846 | AR14: 0.518544846 | AS14: 0.518544846 | AT14: 0.518544846 | AU14: 0.518544846 | AV14: 0.518544846
B15: SLO reporting Tool | C15: 72120.05162 | D15: 242002 | E15: 0.2980142793 | F15: 0.2980142793 | G15: 0.2980142793 | H15: 0.2980142793 | I15: 0.2980142793 | J15: 0.2980142793 | K15: 0.2980142793 | L15: 0.2980142793 | M15: 0.2980142793 | N15: 0.2980142793 | O15: 0.2980142793 | P15: 0.2980142793 | Q15: 0.2980142793 | R15: 0.2980142793 | S15: 0.2980142793 | T15: 0.2980142793 | U15: 0.2980142793 | V15: 0.2980142793 | W15: 0.2980142793 | X15: 0.2980142793 | Y15: 0.2980142793 | Z15: 0.2980142793 | AA15: 0.2980142793 | AB15: 0.2980142793 | AC15: 0.2980142793 | AD15: 0.2980142793 | AE15: 0.2980142793 | AF15: 0.2980142793 | AG15: 0.2980142793 | AH15: 0.2980142793 | AI15: 0.2980142793 | AJ15: 0.2980142793 | AK15: 0.2980142793 | AL15: 0.2980142793 | AM15: 0.2980142793 | AN15: 0.2980142793 | AO15: 0.2980142793 | AP15: 0.2980142793 | AQ15: 0.2980142793 | AR15: 0.2980142793 | AS15: 0.2980142793 | AT15: 0.2980142793 | AU15: 0.2980142793 | AV15: 0.2980142793
B16: GIS Maintenance | C16: 100968.0723 | D16: 242002 | E16: 0.4172199911 | F16: 0.4172199911 | G16: 0.4172199911 | H16: 0.4172199911 | I16: 0.4172199911 | J16: 0.4172199911 | K16: 0.4172199911 | L16: 0.4172199911 | M16: 0.4172199911 | N16: 0.4172199911 | O16: 0.4172199911 | P16: 0.4172199911 | Q16: 0.4172199911 | R16: 0.4172199911 | S16: 0.4172199911 | T16: 0.4172199911 | U16: 0.4172199911 | V16: 0.4172199911 | W16: 0.4172199911 | X16: 0.4172199911 | Y16: 0.4172199911 | Z16: 0.4172199911 | AA16: 0.4172199911 | AB16: 0.4172199911 | AC16: 0.4172199911 | AD16: 0.4172199911 | AE16: 0.4172199911 | AF16: 0.4172199911 | AG16: 0.4172199911 | AH16: 0.4172199911 | AI16: 0.4172199911 | AJ16: 0.4172199911 | AK16: 0.4172199911 | AL16: 0.4172199911 | AM16: 0.4172199911 | AN16: 0.4172199911 | AO16: 0.4172199911 | AP16: 0.4172199911 | AQ16: 0.4172199911 | AR16: 0.4172199911 | AS16: 0.4172199911 | AT16: 0.4172199911 | AU16: 0.4172199911 | AV16: 0.4172199911
B17: Customer Management | C17: 253141.3812 | D17: 242002 | E17: 1.04603012 | F17: 1.04603012 | G17: 1.04603012 | H17: 1.04603012 | I17: 1.04603012 | J17: 1.04603012 | K17: 1.04603012 | L17: 1.04603012 | M17: 1.04603012 | N17: 1.04603012 | O17: 1.04603012 | P17: 1.04603012 | Q17: 1.04603012 | R17: 1.04603012 | S17: 1.04603012 | T17: 1.04603012 | U17: 1.04603012 | V17: 1.04603012 | W17: 1.04603012 | X17: 1.04603012 | Y17: 1.04603012 | Z17: 1.04603012 | AA17: 1.04603012 | AB17: 1.04603012 | AC17: 1.04603012 | AD17: 1.04603012 | AE17: 1.04603012 | AF17: 1.04603012 | AG17: 1.04603012 | AH17: 1.04603012 | AI17: 1.04603012 | AJ17: 1.04603012 | AK17: 1.04603012 | AL17: 1.04603012 | AM17: 1.04603012 | AN17: 1.04603012 | AO17: 1.04603012 | AP17: 1.04603012 | AQ17: 1.04603012 | AR17: 1.04603012 | AS17: 1.04603012 | AT17: 1.04603012 | AU17: 1.04603012 | AV17: 1.04603012
B18: Asset Data Audit | C18: 144240.1032 | D18: 242002 | E18: 0.5960285586 | F18: 0.5960285586 | G18: 0.5960285586 | H18: 0.5960285586 | I18: 0.5960285586 | J18: 0.5960285586 | K18: 0.5960285586 | L18: 0.5960285586 | M18: 0.5960285586 | N18: 0.5960285586 | O18: 0.5960285586 | P18: 0.5960285586 | Q18: 0.5960285586 | R18: 0.5960285586 | S18: 0.5960285586 | T18: 0.5960285586 | U18: 0.5960285586 | V18: 0.5960285586 | W18: 0.5960285586 | X18: 0.5960285586 | Y18: 0.5960285586 | Z18: 0.5960285586 | AA18: 0.5960285586 | AB18: 0.5960285586 | AC18: 0.5960285586 | AD18: 0.5960285586 | AE18: 0.5960285586 | AF18: 0.5960285586 | AG18: 0.5960285586 | AH18: 0.5960285586 | AI18: 0.5960285586 | AJ18: 0.5960285586 | AK18: 0.5960285586 | AL18: 0.5960285586 | AM18: 0.5960285586 | AN18: 0.5960285586 | AO18: 0.5960285586 | AP18: 0.5960285586 | AQ18: 0.5960285586 | AR18: 0.5960285586 | AS18: 0.5960285586 | AT18: 0.5960285586 | AU18: 0.5960285586 | AV18: 0.5960285586
B19: Asset Management | C19: 216360.1549 | D19: 204522 | E19: 1.057882061 | F19: 1.057882061 | G19: 1.057882061 | H19: 1.057882061 | I19: 1.057882061 | J19: 1.057882061 | K19: 1.057882061 | L19: 1.057882061 | M19: 1.057882061 | N19: 1.057882061 | O19: 1.057882061 | P19: 1.057882061 | Q19: 1.057882061 | R19: 1.057882061 | S19: 1.057882061 | T19: 1.057882061 | U19: 1.057882061 | V19: 1.057882061 | W19: 1.057882061 | X19: 1.057882061 | Y19: 1.057882061 | Z19: 1.057882061 | AA19: 1.057882061 | AB19: 1.057882061 | AC19: 1.057882061 | AD19: 1.057882061 | AE19: 1.057882061 | AF19: 1.057882061 | AG19: 1.057882061 | AH19: 1.057882061 | AI19: 1.057882061 | AJ19: 1.057882061 | AK19: 1.057882061 | AL19: 1.057882061 | AM19: 1.057882061 | AN19: 1.057882061 | AO19: 1.057882061 | AP19: 1.057882061 | AQ19: 1.057882061 | AR19: 1.057882061 | AS19: 1.057882061 | AT19: 1.057882061 | AU19: 1.057882061 | AV19: 1.057882061
B20: Margin
B22: Total Tariff | E22: 96.940523 | F22: 103.5672187 | G22: 105.9293095 | H22: 112.766941 | I22: 104.0645009 | J22: 104.0645009 | K22: 191.4198251 | L22: 163.3654141 | M22: 104.0645009 | N22: 104.0645009 | O22: 163.3654141 | P22: 163.3654141 | Q22: 141.9824783 | R22: 202.0232359 | S22: 202.0232359 | T22: 141.9824783 | U22: 141.9824783 | V22: 130.5823344 | W22: 141.9824783 | X22: 141.9824783 | Y22: 167.3161313 | Z22: 167.3161313 | AA22: 202.0232359 | AB22: 141.9824783 | AC22: 148.3158915 | AD22: 167.3161313 | AE22: 130.5823344 | AF22: 127.4156278 | AG22: 157.2070918 | AH22: 184.0844516 | AI22: 179.3578873 | AJ22: 181.7206342 | AK22: 103.318438 | AL22: 127.3442692 | AM22: 130.4125213 | AN22: 130.7476095 | AO22: 145.6091633 | AP22: 151.988129 | AQ22: 152.7956135 | AR22: 170.0577873 | AS22: 189.8137477 | AT22: 279.1988687 | AU22: 130.1052678 | AV22: 130.1052678
B25: TFI Tariff | C25: TFI
B27: Lights | C27: Total Cost | D27: Lights | E27: LED16 | F27: LED17 | G27: LED29 | H27: LED22 | I27: LED46 | J27: LED43 | K27: LED17 PT | L27: LED35 | M27: LED39 | N27: LED26 | O27: LED20 | P27: LED28 | Q27: LED200 | R27: LED105 | S27: LED198 | T27: LED88 | U27: LED70 | V27: LED150 | W27: LED90 | X27: LED72 | Y27: LED117 | Z27: LED158 | AA27: LED298 | AB27: LED178 | AC27: LED175 | AD27: LED79 | AE27: LED80 | AF27: LED60 | AG27: LED23 PT | AH27: LED155 TM | AI27: LED81 TM | AJ27: LED101 TM | AK27: LED24 | AL27: LED58 | AM27: LED78 | AN27: LED151 | AO27: LED18 PT | AP27: LED19 PT | AQ27: LED32 PT | AR27: LED33 PT | AS27: LED180 F | AT27: LED360 F | AU27: LED100 | AV27: LED120
B28: LED Luminaire Annuity
B29: TFI Future Replacement | E29: 22.44544508 | F29: 26.31726285 | G29: 27.69737534 | H29: 31.69243782 | I29: 26.60781285 | J29: 26.60781285 | K29: 77.64741302 | L29: 61.25590013 | M29: 26.60781285 | N29: 26.60781285 | O29: 61.25590013 | P29: 61.25590013 | Q29: 46.72840022 | R29: 81.15857501 | S29: 81.15857501 | T29: 46.72840022 | U29: 46.72840022 | V29: 40.19102526 | W29: 46.72840022 | X29: 46.72840022 | Y29: 61.25590013 | Z29: 61.25590013 | AA29: 81.15857501 | AB29: 46.72840022 | AC29: 50.3602752 | AD29: 61.25590013 | AE29: 40.19102526 | AF29: 38.37508778 | AG29: 57.65774156 | AH29: 70.8716382 | AI29: 68.16120549 | AJ29: 69.51611489 | AK29: 26.17190636 | AL29: 38.33416738 | AM29: 40.09364647 | AN29: 40.28580172 | AO29: 50.88135283 | AP29: 54.60842802 | AQ29: 55.08022168 | AR29: 65.1660917 | AS29: 73.91075623 | AT29: 125.3328391 | AU29: 39.91745299 | AV29: 39.91745299
B30: LED O&M Annuity | E30: 11.89846487 | F30: 12.23550089 | G30: 12.35563764 | H30: 12.70340193 | I30: 12.26079283 | J30: 12.26079283 | K30: 16.70371466 | L30: 15.27685767 | M30: 12.26079283 | N30: 12.26079283 | O30: 15.27685767 | P30: 15.27685767 | Q30: 17.49343899 | R30: 21.60334105 | S30: 21.60334105 | T30: 17.49343899 | U30: 17.49343899 | V30: 16.71307784 | W30: 17.49343899 | X30: 17.49343899 | Y30: 19.22757488 | Z30: 19.22757488 | AA30: 21.60334105 | AB30: 17.49343899 | AC30: 17.92697296 | AD30: 19.22757488 | AE30: 16.71307784 | AF30: 16.49631085 | AG30: 14.96364328 | AH30: 20.37539774 | AI30: 20.05185558 | AJ30: 20.21359002 | AK30: 12.22284782 | AL30: 16.49142622 | AM30: 16.70145381 | AN30: 16.72439123 | AO30: 14.37376864 | AP30: 14.69820504 | AQ30: 14.73927398 | AR30: 15.61723407 | AS30: 21.16773164 | AT30: 27.01911794 | AU30: 16.68042174 | AV30: 16.68042174
B31: Infrastructure Capital | C31: 5956638.611 | D31: 204522 | E31: 29.12468395 | F31: 29.12468395 | G31: 29.12468395 | H31: 29.12468395 | I31: 29.12468395 | J31: 29.12468395 | K31: 29.12468395 | L31: 29.12468395 | M31: 29.12468395 | N31: 29.12468395 | O31: 29.12468395 | P31: 29.12468395 | Q31: 29.12468395 | R31: 29.12468395 | S31: 29.12468395 | T31: 29.12468395 | U31: 29.12468395 | V31: 29.12468395 | W31: 29.12468395 | X31: 29.12468395 | Y31: 29.12468395 | Z31: 29.12468395 | AA31: 29.12468395 | AB31: 29.12468395 | AC31: 29.12468395 | AD31: 29.12468395 | AE31: 29.12468395 | AF31: 29.12468395 | AG31: 29.12468395 | AH31: 29.12468395 | AI31: 29.12468395 | AJ31: 29.12468395 | AK31: 29.12468395 | AL31: 29.12468395 | AM31: 29.12468395 | AN31: 29.12468395 | AO31: 29.12468395 | AP31: 29.12468395 | AQ31: 29.12468395 | AR31: 29.12468395 | AS31: 29.12468395 | AT31: 29.12468395 | AU31: 29.12468395 | AV31: 29.12468395
B32: Column Inspections/Repairs | C32: 1182271.866 | D32: 204522 | E32: 5.78065864 | F32: 5.78065864 | G32: 5.78065864 | H32: 5.78065864 | I32: 5.78065864 | J32: 5.78065864 | K32: 5.78065864 | L32: 5.78065864 | M32: 5.78065864 | N32: 5.78065864 | O32: 5.78065864 | P32: 5.78065864 | Q32: 5.78065864 | R32: 5.78065864 | S32: 5.78065864 | T32: 5.78065864 | U32: 5.78065864 | V32: 5.78065864 | W32: 5.78065864 | X32: 5.78065864 | Y32: 5.78065864 | Z32: 5.78065864 | AA32: 5.78065864 | AB32: 5.78065864 | AC32: 5.78065864 | AD32: 5.78065864 | AE32: 5.78065864 | AF32: 5.78065864 | AG32: 5.78065864 | AH32: 5.78065864 | AI32: 5.78065864 | AJ32: 5.78065864 | AK32: 5.78065864 | AL32: 5.78065864 | AM32: 5.78065864 | AN32: 5.78065864 | AO32: 5.78065864 | AP32: 5.78065864 | AQ32: 5.78065864 | AR32: 5.78065864 | AS32: 5.78065864 | AT32: 5.78065864 | AU32: 5.78065864 | AV32: 5.78065864
B33: Cable Repairs (SLO fault) | C33: 1992248.434 | D33: 204522 | E33: 9.740998199 | F33: 9.740998199 | G33: 9.740998199 | H33: 9.740998199 | I33: 9.740998199 | J33: 9.740998199 | K33: 9.740998199 | L33: 9.740998199 | M33: 9.740998199 | N33: 9.740998199 | O33: 9.740998199 | P33: 9.740998199 | Q33: 9.740998199 | R33: 9.740998199 | S33: 9.740998199 | T33: 9.740998199 | U33: 9.740998199 | V33: 9.740998199 | W33: 9.740998199 | X33: 9.740998199 | Y33: 9.740998199 | Z33: 9.740998199 | AA33: 9.740998199 | AB33: 9.740998199 | AC33: 9.740998199 | AD33: 9.740998199 | AE33: 9.740998199 | AF33: 9.740998199 | AG33: 9.740998199 | AH33: 9.740998199 | AI33: 9.740998199 | AJ33: 9.740998199 | AK33: 9.740998199 | AL33: 9.740998199 | AM33: 9.740998199 | AN33: 9.740998199 | AO33: 9.740998199 | AP33: 9.740998199 | AQ33: 9.740998199 | AR33: 9.740998199 | AS33: 9.740998199 | AT33: 9.740998199 | AU33: 9.740998199 | AV33: 9.740998199
B34: GSL
B35: SAP Maintenance | C35: 125488.8898 | D35: 242002 | E35: 0.518544846 | F35: 0.518544846 | G35: 0.518544846 | H35: 0.518544846 | I35: 0.518544846 | J35: 0.518544846 | K35: 0.518544846 | L35: 0.518544846 | M35: 0.518544846 | N35: 0.518544846 | O35: 0.518544846 | P35: 0.518544846 | Q35: 0.518544846 | R35: 0.518544846 | S35: 0.518544846 | T35: 0.518544846 | U35: 0.518544846 | V35: 0.518544846 | W35: 0.518544846 | X35: 0.518544846 | Y35: 0.518544846 | Z35: 0.518544846 | AA35: 0.518544846 | AB35: 0.518544846 | AC35: 0.518544846 | AD35: 0.518544846 | AE35: 0.518544846 | AF35: 0.518544846 | AG35: 0.518544846 | AH35: 0.518544846 | AI35: 0.518544846 | AJ35: 0.518544846 | AK35: 0.518544846 | AL35: 0.518544846 | AM35: 0.518544846 | AN35: 0.518544846 | AO35: 0.518544846 | AP35: 0.518544846 | AQ35: 0.518544846 | AR35: 0.518544846 | AS35: 0.518544846 | AT35: 0.518544846 | AU35: 0.518544846 | AV35: 0.518544846
B36: SLO reporting Tool | C36: 72120.05162 | D36: 242002 | E36: 0.2980142793 | F36: 0.2980142793 | G36: 0.2980142793 | H36: 0.2980142793 | I36: 0.2980142793 | J36: 0.2980142793 | K36: 0.2980142793 | L36: 0.2980142793 | M36: 0.2980142793 | N36: 0.2980142793 | O36: 0.2980142793 | P36: 0.2980142793 | Q36: 0.2980142793 | R36: 0.2980142793 | S36: 0.2980142793 | T36: 0.2980142793 | U36: 0.2980142793 | V36: 0.2980142793 | W36: 0.2980142793 | X36: 0.2980142793 | Y36: 0.2980142793 | Z36: 0.2980142793 | AA36: 0.2980142793 | AB36: 0.2980142793 | AC36: 0.2980142793 | AD36: 0.2980142793 | AE36: 0.2980142793 | AF36: 0.2980142793 | AG36: 0.2980142793 | AH36: 0.2980142793 | AI36: 0.2980142793 | AJ36: 0.2980142793 | AK36: 0.2980142793 | AL36: 0.2980142793 | AM36: 0.2980142793 | AN36: 0.2980142793 | AO36: 0.2980142793 | AP36: 0.2980142793 | AQ36: 0.2980142793 | AR36: 0.2980142793 | AS36: 0.2980142793 | AT36: 0.2980142793 | AU36: 0.2980142793 | AV36: 0.2980142793
B37: GIS Maintenance | C37: 100968.0723 | D37: 242002 | E37: 0.4172199911 | F37: 0.4172199911 | G37: 0.4172199911 | H37: 0.4172199911 | I37: 0.4172199911 | J37: 0.4172199911 | K37: 0.4172199911 | L37: 0.4172199911 | M37: 0.4172199911 | N37: 0.4172199911 | O37: 0.4172199911 | P37: 0.4172199911 | Q37: 0.4172199911 | R37: 0.4172199911 | S37: 0.4172199911 | T37: 0.4172199911 | U37: 0.4172199911 | V37: 0.4172199911 | W37: 0.4172199911 | X37: 0.4172199911 | Y37: 0.4172199911 | Z37: 0.4172199911 | AA37: 0.4172199911 | AB37: 0.4172199911 | AC37: 0.4172199911 | AD37: 0.4172199911 | AE37: 0.4172199911 | AF37: 0.4172199911 | AG37: 0.4172199911 | AH37: 0.4172199911 | AI37: 0.4172199911 | AJ37: 0.4172199911 | AK37: 0.4172199911 | AL37: 0.4172199911 | AM37: 0.4172199911 | AN37: 0.4172199911 | AO37: 0.4172199911 | AP37: 0.4172199911 | AQ37: 0.4172199911 | AR37: 0.4172199911 | AS37: 0.4172199911 | AT37: 0.4172199911 | AU37: 0.4172199911 | AV37: 0.4172199911
B38: Customer Management | C38: 253141.3812 | D38: 242002 | E38: 1.04603012 | F38: 1.04603012 | G38: 1.04603012 | H38: 1.04603012 | I38: 1.04603012 | J38: 1.04603012 | K38: 1.04603012 | L38: 1.04603012 | M38: 1.04603012 | N38: 1.04603012 | O38: 1.04603012 | P38: 1.04603012 | Q38: 1.04603012 | R38: 1.04603012 | S38: 1.04603012 | T38: 1.04603012 | U38: 1.04603012 | V38: 1.04603012 | W38: 1.04603012 | X38: 1.04603012 | Y38: 1.04603012 | Z38: 1.04603012 | AA38: 1.04603012 | AB38: 1.04603012 | AC38: 1.04603012 | AD38: 1.04603012 | AE38: 1.04603012 | AF38: 1.04603012 | AG38: 1.04603012 | AH38: 1.04603012 | AI38: 1.04603012 | AJ38: 1.04603012 | AK38: 1.04603012 | AL38: 1.04603012 | AM38: 1.04603012 | AN38: 1.04603012 | AO38: 1.04603012 | AP38: 1.04603012 | AQ38: 1.04603012 | AR38: 1.04603012 | AS38: 1.04603012 | AT38: 1.04603012 | AU38: 1.04603012 | AV38: 1.04603012
B39: Asset Data Audit | C39: 144240.1032 | D39: 242002 | E39: 0.5960285586 | F39: 0.5960285586 | G39: 0.5960285586 | H39: 0.5960285586 | I39: 0.5960285586 | J39: 0.5960285586 | K39: 0.5960285586 | L39: 0.5960285586 | M39: 0.5960285586 | N39: 0.5960285586 | O39: 0.5960285586 | P39: 0.5960285586 | Q39: 0.5960285586 | R39: 0.5960285586 | S39: 0.5960285586 | T39: 0.5960285586 | U39: 0.5960285586 | V39: 0.5960285586 | W39: 0.5960285586 | X39: 0.5960285586 | Y39: 0.5960285586 | Z39: 0.5960285586 | AA39: 0.5960285586 | AB39: 0.5960285586 | AC39: 0.5960285586 | AD39: 0.5960285586 | AE39: 0.5960285586 | AF39: 0.5960285586 | AG39: 0.5960285586 | AH39: 0.5960285586 | AI39: 0.5960285586 | AJ39: 0.5960285586 | AK39: 0.5960285586 | AL39: 0.5960285586 | AM39: 0.5960285586 | AN39: 0.5960285586 | AO39: 0.5960285586 | AP39: 0.5960285586 | AQ39: 0.5960285586 | AR39: 0.5960285586 | AS39: 0.5960285586 | AT39: 0.5960285586 | AU39: 0.5960285586 | AV39: 0.5960285586
B40: Asset Management | C40: 216360.1549 | D40: 204522 | E40: 1.057882061 | F40: 1.057882061 | G40: 1.057882061 | H40: 1.057882061 | I40: 1.057882061 | J40: 1.057882061 | K40: 1.057882061 | L40: 1.057882061 | M40: 1.057882061 | N40: 1.057882061 | O40: 1.057882061 | P40: 1.057882061 | Q40: 1.057882061 | R40: 1.057882061 | S40: 1.057882061 | T40: 1.057882061 | U40: 1.057882061 | V40: 1.057882061 | W40: 1.057882061 | X40: 1.057882061 | Y40: 1.057882061 | Z40: 1.057882061 | AA40: 1.057882061 | AB40: 1.057882061 | AC40: 1.057882061 | AD40: 1.057882061 | AE40: 1.057882061 | AF40: 1.057882061 | AG40: 1.057882061 | AH40: 1.057882061 | AI40: 1.057882061 | AJ40: 1.057882061 | AK40: 1.057882061 | AL40: 1.057882061 | AM40: 1.057882061 | AN40: 1.057882061 | AO40: 1.057882061 | AP40: 1.057882061 | AQ40: 1.057882061 | AR40: 1.057882061 | AS40: 1.057882061 | AT40: 1.057882061 | AU40: 1.057882061 | AV40: 1.057882061
B41: Margin
B43: Total Tariff | E43: 82.92397059 | F43: 87.13282439 | G43: 88.63307363 | H43: 92.97590039 | I43: 87.44866633 | J43: 87.44866633 | K43: 142.9311883 | L43: 125.1128184 | M43: 87.44866633 | N43: 87.44866633 | O43: 125.1128184 | P43: 125.1128184 | Q43: 112.8018999 | R43: 151.3419767 | S43: 151.3419767 | T43: 112.8018999 | U43: 112.8018999 | V43: 105.4841638 | W43: 112.8018999 | X43: 112.8018999 | Y43: 129.0635357 | Z43: 129.0635357 | AA43: 151.3419767 | AB43: 112.8018999 | AC43: 116.8673088 | AD43: 129.0635357 | AE43: 105.4841638 | AF43: 103.4514593 | AG43: 121.2014455 | AH43: 139.8270966 | AI43: 136.7931217 | AJ43: 138.3097656 | AK43: 86.97481482 | AL43: 103.4056542 | AM43: 105.3751609 | AN43: 105.5902536 | AO43: 113.8351821 | AP43: 117.8866937 | AQ43: 118.3995563 | AR43: 129.3633864 | AS43: 143.6585485 | AT43: 200.9320177 | AU43: 105.1779354 | AV43: 105.1779354
B46: PLC Tariff | C46: PLC
B48: Lights | C48: Total Cost | D48: Lights | E48: LED16 | F48: LED17 | G48: LED29 | H48: LED22 | I48: LED46 | J48: LED43 | K48: LED17 PT | L48: LED35 | M48: LED39 | N48: LED26 | O48: LED20 | P48: LED28 | Q48: LED200 | R48: LED105 | S48: LED198 | T48: LED88 | U48: LED70 | V48: LED150 | W48: LED90 | X48: LED72 | Y48: LED117 | Z48: LED158 | AA48: LED298 | AB48: LED178 | AC48: LED175 | AD48: LED79 | AE48: LED80 | AF48: LED60 | AG48: LED23 PT | AH48: LED155 TM | AI48: LED81 TM | AJ48: LED101 TM | AK48: LED24 | AL48: LED58 | AM48: LED78 | AN48: LED151 | AO48: LED18 PT | AP48: LED19 PT | AQ48: LED32 PT | AR48: LED33 PT | AS48: LED180 F | AT48: LED360 F | AU48: LED100 | AV48: LED120
B49: LED Luminaire Annuity
B50: TFI Future Replacement
B51: LED O&M Annuity | E51: 11.89846487 | F51: 12.23550089 | G51: 12.35563764 | H51: 12.70340193 | I51: 12.26079283 | J51: 12.26079283 | K51: 16.70371466 | L51: 15.27685767 | M51: 12.26079283 | N51: 12.26079283 | O51: 15.27685767 | P51: 15.27685767 | Q51: 17.49343899 | R51: 21.60334105 | S51: 21.60334105 | T51: 17.49343899 | U51: 17.49343899 | V51: 16.71307784 | W51: 17.49343899 | X51: 17.49343899 | Y51: 19.22757488 | Z51: 19.22757488 | AA51: 21.60334105 | AB51: 17.49343899 | AC51: 17.92697296 | AD51: 19.22757488 | AE51: 16.71307784 | AF51: 16.49631085 | AG51: 14.96364328 | AH51: 20.37539774 | AI51: 20.05185558 | AJ51: 20.21359002 | AK51: 12.22284782 | AL51: 16.49142622 | AM51: 16.70145381 | AN51: 16.72439123 | AO51: 14.37376864 | AP51: 14.69820504 | AQ51: 14.73927398 | AR51: 15.61723407 | AS51: 21.16773164 | AT51: 27.01911794 | AU51: 16.68042174 | AV51: 16.68042174
B52: Infrastructure Capital | C52: 5956638.611 | D52: 204522 | E52: 29.12468395 | F52: 29.12468395 | G52: 29.12468395 | H52: 29.12468395 | I52: 29.12468395 | J52: 29.12468395 | K52: 29.12468395 | L52: 29.12468395 | M52: 29.12468395 | N52: 29.12468395 | O52: 29.12468395 | P52: 29.12468395 | Q52: 29.12468395 | R52: 29.12468395 | S52: 29.12468395 | T52: 29.12468395 | U52: 29.12468395 | V52: 29.12468395 | W52: 29.12468395 | X52: 29.12468395 | Y52: 29.12468395 | Z52: 29.12468395 | AA52: 29.12468395 | AB52: 29.12468395 | AC52: 29.12468395 | AD52: 29.12468395 | AE52: 29.12468395 | AF52: 29.12468395 | AG52: 29.12468395 | AH52: 29.12468395 | AI52: 29.12468395 | AJ52: 29.12468395 | AK52: 29.12468395 | AL52: 29.12468395 | AM52: 29.12468395 | AN52: 29.12468395 | AO52: 29.12468395 | AP52: 29.12468395 | AQ52: 29.12468395 | AR52: 29.12468395 | AS52: 29.12468395 | AT52: 29.12468395 | AU52: 29.12468395 | AV52: 29.12468395
B53: Column Inspections/Repairs | C53: 1182271.866 | D53: 204522 | E53: 5.78065864 | F53: 5.78065864 | G53: 5.78065864 | H53: 5.78065864 | I53: 5.78065864 | J53: 5.78065864 | K53: 5.78065864 | L53: 5.78065864 | M53: 5.78065864 | N53: 5.78065864 | O53: 5.78065864 | P53: 5.78065864 | Q53: 5.78065864 | R53: 5.78065864 | S53: 5.78065864 | T53: 5.78065864 | U53: 5.78065864 | V53: 5.78065864 | W53: 5.78065864 | X53: 5.78065864 | Y53: 5.78065864 | Z53: 5.78065864 | AA53: 5.78065864 | AB53: 5.78065864 | AC53: 5.78065864 | AD53: 5.78065864 | AE53: 5.78065864 | AF53: 5.78065864 | AG53: 5.78065864 | AH53: 5.78065864 | AI53: 5.78065864 | AJ53: 5.78065864 | AK53: 5.78065864 | AL53: 5.78065864 | AM53: 5.78065864 | AN53: 5.78065864 | AO53: 5.78065864 | AP53: 5.78065864 | AQ53: 5.78065864 | AR53: 5.78065864 | AS53: 5.78065864 | AT53: 5.78065864 | AU53: 5.78065864 | AV53: 5.78065864
B54: Cable Repairs (SLO fault) | C54: 1992248.434 | D54: 204522 | E54: 9.740998199 | F54: 9.740998199 | G54: 9.740998199 | H54: 9.740998199 | I54: 9.740998199 | J54: 9.740998199 | K54: 9.740998199 | L54: 9.740998199 | M54: 9.740998199 | N54: 9.740998199 | O54: 9.740998199 | P54: 9.740998199 | Q54: 9.740998199 | R54: 9.740998199 | S54: 9.740998199 | T54: 9.740998199 | U54: 9.740998199 | V54: 9.740998199 | W54: 9.740998199 | X54: 9.740998199 | Y54: 9.740998199 | Z54: 9.740998199 | AA54: 9.740998199 | AB54: 9.740998199 | AC54: 9.740998199 | AD54: 9.740998199 | AE54: 9.740998199 | AF54: 9.740998199 | AG54: 9.740998199 | AH54: 9.740998199 | AI54: 9.740998199 | AJ54: 9.740998199 | AK54: 9.740998199 | AL54: 9.740998199 | AM54: 9.740998199 | AN54: 9.740998199 | AO54: 9.740998199 | AP54: 9.740998199 | AQ54: 9.740998199 | AR54: 9.740998199 | AS54: 9.740998199 | AT54: 9.740998199 | AU54: 9.740998199 | AV54: 9.740998199
B55: GSL
B56: SAP Maintenance | C56: 125488.8898 | D56: 242002 | E56: 0.518544846 | F56: 0.518544846 | G56: 0.518544846 | H56: 0.518544846 | I56: 0.518544846 | J56: 0.518544846 | K56: 0.518544846 | L56: 0.518544846 | M56: 0.518544846 | N56: 0.518544846 | O56: 0.518544846 | P56: 0.518544846 | Q56: 0.518544846 | R56: 0.518544846 | S56: 0.518544846 | T56: 0.518544846 | U56: 0.518544846 | V56: 0.518544846 | W56: 0.518544846 | X56: 0.518544846 | Y56: 0.518544846 | Z56: 0.518544846 | AA56: 0.518544846 | AB56: 0.518544846 | AC56: 0.518544846 | AD56: 0.518544846 | AE56: 0.518544846 | AF56: 0.518544846 | AG56: 0.518544846 | AH56: 0.518544846 | AI56: 0.518544846 | AJ56: 0.518544846 | AK56: 0.518544846 | AL56: 0.518544846 | AM56: 0.518544846 | AN56: 0.518544846 | AO56: 0.518544846 | AP56: 0.518544846 | AQ56: 0.518544846 | AR56: 0.518544846 | AS56: 0.518544846 | AT56: 0.518544846 | AU56: 0.518544846 | AV56: 0.518544846
B57: SLO reporting Tool | C57: 72120.05162 | D57: 242002 | E57: 0.2980142793 | F57: 0.2980142793 | G57: 0.2980142793 | H57: 0.2980142793 | I57: 0.2980142793 | J57: 0.2980142793 | K57: 0.2980142793 | L57: 0.2980142793 | M57: 0.2980142793 | N57: 0.2980142793 | O57: 0.2980142793 | P57: 0.2980142793 | Q57: 0.2980142793 | R57: 0.2980142793 | S57: 0.2980142793 | T57: 0.2980142793 | U57: 0.2980142793 | V57: 0.2980142793 | W57: 0.2980142793 | X57: 0.2980142793 | Y57: 0.2980142793 | Z57: 0.2980142793 | AA57: 0.2980142793 | AB57: 0.2980142793 | AC57: 0.2980142793 | AD57: 0.2980142793 | AE57: 0.2980142793 | AF57: 0.2980142793 | AG57: 0.2980142793 | AH57: 0.2980142793 | AI57: 0.2980142793 | AJ57: 0.2980142793 | AK57: 0.2980142793 | AL57: 0.2980142793 | AM57: 0.2980142793 | AN57: 0.2980142793 | AO57: 0.2980142793 | AP57: 0.2980142793 | AQ57: 0.2980142793 | AR57: 0.2980142793 | AS57: 0.2980142793 | AT57: 0.2980142793 | AU57: 0.2980142793 | AV57: 0.2980142793
B58: GIS Maintenance | C58: 100968.0723 | D58: 242002 | E58: 0.4172199911 | F58: 0.4172199911 | G58: 0.4172199911 | H58: 0.4172199911 | I58: 0.4172199911 | J58: 0.4172199911 | K58: 0.4172199911 | L58: 0.4172199911 | M58: 0.4172199911 | N58: 0.4172199911 | O58: 0.4172199911 | P58: 0.4172199911 | Q58: 0.4172199911 | R58: 0.4172199911 | S58: 0.4172199911 | T58: 0.4172199911 | U58: 0.4172199911 | V58: 0.4172199911 | W58: 0.4172199911 | X58: 0.4172199911 | Y58: 0.4172199911 | Z58: 0.4172199911 | AA58: 0.4172199911 | AB58: 0.4172199911 | AC58: 0.4172199911 | AD58: 0.4172199911 | AE58: 0.4172199911 | AF58: 0.4172199911 | AG58: 0.4172199911 | AH58: 0.4172199911 | AI58: 0.4172199911 | AJ58: 0.4172199911 | AK58: 0.4172199911 | AL58: 0.4172199911 | AM58: 0.4172199911 | AN58: 0.4172199911 | AO58: 0.4172199911 | AP58: 0.4172199911 | AQ58: 0.4172199911 | AR58: 0.4172199911 | AS58: 0.4172199911 | AT58: 0.4172199911 | AU58: 0.4172199911 | AV58: 0.4172199911
B59: Customer Management | C59: 253141.3812 | D59: 242002 | E59: 1.04603012 | F59: 1.04603012 | G59: 1.04603012 | H59: 1.04603012 | I59: 1.04603012 | J59: 1.04603012 | K59: 1.04603012 | L59: 1.04603012 | M59: 1.04603012 | N59: 1.04603012 | O59: 1.04603012 | P59: 1.04603012 | Q59: 1.04603012 | R59: 1.04603012 | S59: 1.04603012 | T59: 1.04603012 | U59: 1.04603012 | V59: 1.04603012 | W59: 1.04603012 | X59: 1.04603012 | Y59: 1.04603012 | Z59: 1.04603012 | AA59: 1.04603012 | AB59: 1.04603012 | AC59: 1.04603012 | AD59: 1.04603012 | AE59: 1.04603012 | AF59: 1.04603012 | AG59: 1.04603012 | AH59: 1.04603012 | AI59: 1.04603012 | AJ59: 1.04603012 | AK59: 1.04603012 | AL59: 1.04603012 | AM59: 1.04603012 | AN59: 1.04603012 | AO59: 1.04603012 | AP59: 1.04603012 | AQ59: 1.04603012 | AR59: 1.04603012 | AS59: 1.04603012 | AT59: 1.04603012 | AU59: 1.04603012 | AV59: 1.04603012
B60: Asset Data Audit | C60: 144240.1032 | D60: 242002 | E60: 0.5960285586 | F60: 0.5960285586 | G60: 0.5960285586 | H60: 0.5960285586 | I60: 0.5960285586 | J60: 0.5960285586 | K60: 0.5960285586 | L60: 0.5960285586 | M60: 0.5960285586 | N60: 0.5960285586 | O60: 0.5960285586 | P60: 0.5960285586 | Q60: 0.5960285586 | R60: 0.5960285586 | S60: 0.5960285586 | T60: 0.5960285586 | U60: 0.5960285586 | V60: 0.5960285586 | W60: 0.5960285586 | X60: 0.5960285586 | Y60: 0.5960285586 | Z60: 0.5960285586 | AA60: 0.5960285586 | AB60: 0.5960285586 | AC60: 0.5960285586 | AD60: 0.5960285586 | AE60: 0.5960285586 | AF60: 0.5960285586 | AG60: 0.5960285586 | AH60: 0.5960285586 | AI60: 0.5960285586 | AJ60: 0.5960285586 | AK60: 0.5960285586 | AL60: 0.5960285586 | AM60: 0.5960285586 | AN60: 0.5960285586 | AO60: 0.5960285586 | AP60: 0.5960285586 | AQ60: 0.5960285586 | AR60: 0.5960285586 | AS60: 0.5960285586 | AT60: 0.5960285586 | AU60: 0.5960285586 | AV60: 0.5960285586
B61: Asset Management | C61: 216360.1549 | D61: 204522 | E61: 1.057882061 | F61: 1.057882061 | G61: 1.057882061 | H61: 1.057882061 | I61: 1.057882061 | J61: 1.057882061 | K61: 1.057882061 | L61: 1.057882061 | M61: 1.057882061 | N61: 1.057882061 | O61: 1.057882061 | P61: 1.057882061 | Q61: 1.057882061 | R61: 1.057882061 | S61: 1.057882061 | T61: 1.057882061 | U61: 1.057882061 | V61: 1.057882061 | W61: 1.057882061 | X61: 1.057882061 | Y61: 1.057882061 | Z61: 1.057882061 | AA61: 1.057882061 | AB61: 1.057882061 | AC61: 1.057882061 | AD61: 1.057882061 | AE61: 1.057882061 | AF61: 1.057882061 | AG61: 1.057882061 | AH61: 1.057882061 | AI61: 1.057882061 | AJ61: 1.057882061 | AK61: 1.057882061 | AL61: 1.057882061 | AM61: 1.057882061 | AN61: 1.057882061 | AO61: 1.057882061 | AP61: 1.057882061 | AQ61: 1.057882061 | AR61: 1.057882061 | AS61: 1.057882061 | AT61: 1.057882061 | AU61: 1.057882061 | AV61: 1.057882061
B62: Margin
B64: Total Tariff | E64: 60.47852551 | F64: 60.81556153 | G64: 60.93569829 | H64: 61.28346258 | I64: 60.84085348 | J64: 60.84085348 | K64: 65.28377531 | L64: 63.85691831 | M64: 60.84085348 | N64: 60.84085348 | O64: 63.85691831 | P64: 63.85691831 | Q64: 66.07349964 | R64: 70.18340169 | S64: 70.18340169 | T64: 66.07349964 | U64: 66.07349964 | V64: 65.29313849 | W64: 66.07349964 | X64: 66.07349964 | Y64: 67.80763553 | Z64: 67.80763553 | AA64: 70.18340169 | AB64: 66.07349964 | AC64: 66.50703361 | AD64: 67.80763553 | AE64: 65.29313849 | AF64: 65.0763715 | AG64: 63.54370392 | AH64: 68.95545838 | AI64: 68.63191623 | AJ64: 68.79365067 | AK64: 60.80290847 | AL64: 65.07148687 | AM64: 65.28151446 | AN64: 65.30445187 | AO64: 62.95382929 | AP64: 63.27826568 | AQ64: 63.31933462 | AR64: 64.19729472 | AS64: 69.74779229 | AT64: 75.59917859 | AU64: 65.26048238 | AV64: 65.26048238
B67: CLER Tariff | C67: CLER
B69: Lights | C69: Total Cost | D69: Lights | E69: LED16 | F69: LED17 | G69: LED29 | H69: LED22 | I69: LED46 | J69: LED43 | K69: LED17 PT | L69: LED35 | M69: LED39 | N69: LED26 | O69: LED20 | P69: LED28 | Q69: LED200 | R69: LED105 | S69: LED198 | T69: LED88 | U69: LED70 | V69: LED150 | W69: LED90 | X69: LED72 | Y69: LED117 | Z69: LED158 | AA69: LED298 | AB69: LED178 | AC69: LED175 | AD69: LED79 | AE69: LED80 | AF69: LED60 | AG69: LED23 PT | AH69: LED155 TM | AI69: LED81 TM | AJ69: LED101 TM | AK69: LED24 | AL69: LED58 | AM69: LED78 | AN69: LED151 | AO69: LED18 PT | AP69: LED19 PT | AQ69: LED32 PT | AR69: LED33 PT | AS69: LED180 F | AT69: LED360 F | AU69: LED100 | AV69: LED120
B70: LED Luminaire Annuity
B71: TFI Future Replacement
B72: LED O&M Annuity | E72: 11.89846487 | F72: 12.23550089 | G72: 12.35563764 | H72: 12.70340193 | I72: 12.26079283 | J72: 12.26079283 | K72: 16.70371466 | L72: 15.27685767 | M72: 12.26079283 | N72: 12.26079283 | O72: 15.27685767 | P72: 15.27685767 | Q72: 17.49343899 | R72: 21.60334105 | S72: 21.60334105 | T72: 17.49343899 | U72: 17.49343899 | V72: 16.71307784 | W72: 17.49343899 | X72: 17.49343899 | Y72: 19.22757488 | Z72: 19.22757488 | AA72: 21.60334105 | AB72: 17.49343899 | AC72: 17.92697296 | AD72: 19.22757488 | AE72: 16.71307784 | AF72: 16.49631085 | AG72: 14.96364328 | AH72: 20.37539774 | AI72: 20.05185558 | AJ72: 20.21359002 | AK72: 12.22284782 | AL72: 16.49142622 | AM72: 16.70145381 | AN72: 16.72439123 | AO72: 14.37376864 | AP72: 14.69820504 | AQ72: 14.73927398 | AR72: 15.61723407 | AS72: 21.16773164 | AT72: 27.01911794 | AU72: 16.68042174 | AV72: 16.68042174
B73: Infrastructure Capital
B74: Column Inspections/Repairs
B75: Cable Repairs (SLO fault)
B76: GSL
B77: SAP Maintenance | C77: 125488.8898 | D77: 242002 | E77: 0.518544846 | F77: 0.518544846 | G77: 0.518544846 | H77: 0.518544846 | I77: 0.518544846 | J77: 0.518544846 | K77: 0.518544846 | L77: 0.518544846 | M77: 0.518544846 | N77: 0.518544846 | O77: 0.518544846 | P77: 0.518544846 | Q77: 0.518544846 | R77: 0.518544846 | S77: 0.518544846 | T77: 0.518544846 | U77: 0.518544846 | V77: 0.518544846 | W77: 0.518544846 | X77: 0.518544846 | Y77: 0.518544846 | Z77: 0.518544846 | AA77: 0.518544846 | AB77: 0.518544846 | AC77: 0.518544846 | AD77: 0.518544846 | AE77: 0.518544846 | AF77: 0.518544846 | AG77: 0.518544846 | AH77: 0.518544846 | AI77: 0.518544846 | AJ77: 0.518544846 | AK77: 0.518544846 | AL77: 0.518544846 | AM77: 0.518544846 | AN77: 0.518544846 | AO77: 0.518544846 | AP77: 0.518544846 | AQ77: 0.518544846 | AR77: 0.518544846 | AS77: 0.518544846 | AT77: 0.518544846 | AU77: 0.518544846 | AV77: 0.518544846
B78: SLO reporting Tool | C78: 72120.05162 | D78: 242002 | E78: 0.2980142793 | F78: 0.2980142793 | G78: 0.2980142793 | H78: 0.2980142793 | I78: 0.2980142793 | J78: 0.2980142793 | K78: 0.2980142793 | L78: 0.2980142793 | M78: 0.2980142793 | N78: 0.2980142793 | O78: 0.2980142793 | P78: 0.2980142793 | Q78: 0.2980142793 | R78: 0.2980142793 | S78: 0.2980142793 | T78: 0.2980142793 | U78: 0.2980142793 | V78: 0.2980142793 | W78: 0.2980142793 | X78: 0.2980142793 | Y78: 0.2980142793 | Z78: 0.2980142793 | AA78: 0.2980142793 | AB78: 0.2980142793 | AC78: 0.2980142793 | AD78: 0.2980142793 | AE78: 0.2980142793 | AF78: 0.2980142793 | AG78: 0.2980142793 | AH78: 0.2980142793 | AI78: 0.2980142793 | AJ78: 0.2980142793 | AK78: 0.2980142793 | AL78: 0.2980142793 | AM78: 0.2980142793 | AN78: 0.2980142793 | AO78: 0.2980142793 | AP78: 0.2980142793 | AQ78: 0.2980142793 | AR78: 0.2980142793 | AS78: 0.2980142793 | AT78: 0.2980142793 | AU78: 0.2980142793 | AV78: 0.2980142793
B79: GIS Maintenance | C79: 100968.0723 | D79: 242002 | E79: 0.4172199911 | F79: 0.4172199911 | G79: 0.4172199911 | H79: 0.4172199911 | I79: 0.4172199911 | J79: 0.4172199911 | K79: 0.4172199911 | L79: 0.4172199911 | M79: 0.4172199911 | N79: 0.4172199911 | O79: 0.4172199911 | P79: 0.4172199911 | Q79: 0.4172199911 | R79: 0.4172199911 | S79: 0.4172199911 | T79: 0.4172199911 | U79: 0.4172199911 | V79: 0.4172199911 | W79: 0.4172199911 | X79: 0.4172199911 | Y79: 0.4172199911 | Z79: 0.4172199911 | AA79: 0.4172199911 | AB79: 0.4172199911 | AC79: 0.4172199911 | AD79: 0.4172199911 | AE79: 0.4172199911 | AF79: 0.4172199911 | AG79: 0.4172199911 | AH79: 0.4172199911 | AI79: 0.4172199911 | AJ79: 0.4172199911 | AK79: 0.4172199911 | AL79: 0.4172199911 | AM79: 0.4172199911 | AN79: 0.4172199911 | AO79: 0.4172199911 | AP79: 0.4172199911 | AQ79: 0.4172199911 | AR79: 0.4172199911 | AS79: 0.4172199911 | AT79: 0.4172199911 | AU79: 0.4172199911 | AV79: 0.4172199911
B80: Customer Management | C80: 253141.3812 | D80: 242002 | E80: 1.04603012 | F80: 1.04603012 | G80: 1.04603012 | H80: 1.04603012 | I80: 1.04603012 | J80: 1.04603012 | K80: 1.04603012 | L80: 1.04603012 | M80: 1.04603012 | N80: 1.04603012 | O80: 1.04603012 | P80: 1.04603012 | Q80: 1.04603012 | R80: 1.04603012 | S80: 1.04603012 | T80: 1.04603012 | U80: 1.04603012 | V80: 1.04603012 | W80: 1.04603012 | X80: 1.04603012 | Y80: 1.04603012 | Z80: 1.04603012 | AA80: 1.04603012 | AB80: 1.04603012 | AC80: 1.04603012 | AD80: 1.04603012 | AE80: 1.04603012 | AF80: 1.04603012 | AG80: 1.04603012 | AH80: 1.04603012 | AI80: 1.04603012 | AJ80: 1.04603012 | AK80: 1.04603012 | AL80: 1.04603012 | AM80: 1.04603012 | AN80: 1.04603012 | AO80: 1.04603012 | AP80: 1.04603012 | AQ80: 1.04603012 | AR80: 1.04603012 | AS80: 1.04603012 | AT80: 1.04603012 | AU80: 1.04603012 | AV80: 1.04603012
B81: Asset Data Audit | C81: 144240.1032 | D81: 242002 | E81: 0.5960285586 | F81: 0.5960285586 | G81: 0.5960285586 | H81: 0.5960285586 | I81: 0.5960285586 | J81: 0.5960285586 | K81: 0.5960285586 | L81: 0.5960285586 | M81: 0.5960285586 | N81: 0.5960285586 | O81: 0.5960285586 | P81: 0.5960285586 | Q81: 0.5960285586 | R81: 0.5960285586 | S81: 0.5960285586 | T81: 0.5960285586 | U81: 0.5960285586 | V81: 0.5960285586 | W81: 0.5960285586 | X81: 0.5960285586 | Y81: 0.5960285586 | Z81: 0.5960285586 | AA81: 0.5960285586 | AB81: 0.5960285586 | AC81: 0.5960285586 | AD81: 0.5960285586 | AE81: 0.5960285586 | AF81: 0.5960285586 | AG81: 0.5960285586 | AH81: 0.5960285586 | AI81: 0.5960285586 | AJ81: 0.5960285586 | AK81: 0.5960285586 | AL81: 0.5960285586 | AM81: 0.5960285586 | AN81: 0.5960285586 | AO81: 0.5960285586 | AP81: 0.5960285586 | AQ81: 0.5960285586 | AR81: 0.5960285586 | AS81: 0.5960285586 | AT81: 0.5960285586 | AU81: 0.5960285586 | AV81: 0.5960285586
B82: Asset Management
B83: Margin | D83: 37480 | E83: 0.8864581597 | F83: 0.9066803209 | G83: 0.9138885261 | H83: 0.9347543835 | I83: 0.9081978378 | J83: 0.9081978378 | K83: 1.174773147 | L83: 1.089161728 | M83: 0.9081978378 | N83: 0.9081978378 | O83: 1.089161728 | P83: 1.089161728 | Q83: 1.222156607 | R83: 1.468750731 | S83: 1.468750731 | T83: 1.222156607 | U83: 1.222156607 | V83: 1.175334938 | W83: 1.222156607 | X83: 1.222156607 | Y83: 1.32620476 | Z83: 1.32620476 | AA83: 1.468750731 | AB83: 1.222156607 | AC83: 1.248168645 | AD83: 1.32620476 | AE83: 1.175334938 | AF83: 1.162328919 | AG83: 1.070368864 | AH83: 1.395074132 | AI83: 1.375661603 | AJ83: 1.385365669 | AK83: 0.9059211368 | AL83: 1.162035841 | AM83: 1.174637496 | AN83: 1.176013741 | AO83: 1.034976386 | AP83: 1.05444257 | AQ83: 1.056906706 | AR83: 1.109584312 | AS83: 1.442614166 | AT83: 1.793697344 | AU83: 1.173375572 | AV83: 1.173375572
B85: Total Tariff | E85: 15.66076082 | F85: 16.018019 | G85: 16.14536396 | H85: 16.51399411 | I85: 16.04482847 | J85: 16.04482847 | K85: 20.7543256 | L85: 19.24185719 | M85: 16.04482847 | N85: 16.04482847 | O85: 19.24185719 | P85: 19.24185719 | Q85: 21.59143339 | R85: 25.94792957 | S85: 25.94792957 | T85: 21.59143339 | U85: 21.59143339 | V85: 20.76425057 | W85: 21.59143339 | X85: 21.59143339 | Y85: 23.42961743 | Z85: 23.42961743 | AA85: 25.94792957 | AB85: 21.59143339 | AC85: 22.0509794 | AD85: 23.42961743 | AE85: 20.76425057 | AF85: 20.53447757 | AG85: 18.90984994 | AH85: 24.64630966 | AI85: 24.30335498 | AJ85: 24.47479348 | AK85: 16.00460675 | AL85: 20.52929985 | AM85: 20.7519291 | AN85: 20.77624276 | AO85: 18.28458283 | AP85: 18.6284854 | AQ85: 18.67201848 | AR85: 19.60265618 | AS85: 25.4861836 | AT85: 31.68865308 | AU85: 20.7296351 | AV85: 20.7296351
B88: ENERGY Tariff | C88: ENERGY
B90: Lights | C90: Total Cost | D90: Lights | E90: LED16 | F90: LED17 | G90: LED29 | H90: LED22 | I90: LED46 | J90: LED43 | K90: LED17 PT | L90: LED35 | M90: LED39 | N90: LED26 | O90: LED20 | P90: LED28 | Q90: LED200 | R90: LED105 | S90: LED198 | T90: LED88 | U90: LED70 | V90: LED150 | W90: LED90 | X90: LED72 | Y90: LED117 | Z90: LED158 | AA90: LED298 | AB90: LED178 | AC90: LED175 | AD90: LED79 | AE90: LED80 | AF90: LED60 | AG90: LED23 PT | AH90: LED155 TM | AI90: LED81 TM | AJ90: LED101 TM | AK90: LED24 | AL90: LED58 | AM90: LED78 | AN90: LED151 | AO90: LED18 PT | AP90: LED19 PT | AQ90: LED32 PT | AR90: LED33 PT | AS90: LED180 F | AT90: LED360 F | AU90: LED100 | AV90: LED120
B91: LED Luminaire Annuity
B92: TFI Future Replacement
B93: LED O&M Annuity
B94: Infrastructure Capital
B95: Column Inspections/Repairs
B96: Cable Repairs (SLO fault)
B97: GSL
B98: SAP Maintenance | C98: 125488.8898 | D98: 242002 | E98: 0.518544846 | F98: 0.518544846 | G98: 0.518544846 | H98: 0.518544846 | I98: 0.518544846 | J98: 0.518544846 | K98: 0.518544846 | L98: 0.518544846 | M98: 0.518544846 | N98: 0.518544846 | O98: 0.518544846 | P98: 0.518544846 | Q98: 0.518544846 | R98: 0.518544846 | S98: 0.518544846 | T98: 0.518544846 | U98: 0.518544846 | V98: 0.518544846 | W98: 0.518544846 | X98: 0.518544846 | Y98: 0.518544846 | Z98: 0.518544846 | AA98: 0.518544846 | AB98: 0.518544846 | AC98: 0.518544846 | AD98: 0.518544846 | AE98: 0.518544846 | AF98: 0.518544846 | AG98: 0.518544846 | AH98: 0.518544846 | AI98: 0.518544846 | AJ98: 0.518544846 | AK98: 0.518544846 | AL98: 0.518544846 | AM98: 0.518544846 | AN98: 0.518544846 | AO98: 0.518544846 | AP98: 0.518544846 | AQ98: 0.518544846 | AR98: 0.518544846 | AS98: 0.518544846 | AT98: 0.518544846 | AU98: 0.518544846 | AV98: 0.518544846
B99: SLO reporting Tool | C99: 72120.05162 | D99: 242002 | E99: 0.2980142793 | F99: 0.2980142793 | G99: 0.2980142793 | H99: 0.2980142793 | I99: 0.2980142793 | J99: 0.2980142793 | K99: 0.2980142793 | L99: 0.2980142793 | M99: 0.2980142793 | N99: 0.2980142793 | O99: 0.2980142793 | P99: 0.2980142793 | Q99: 0.2980142793 | R99: 0.2980142793 | S99: 0.2980142793 | T99: 0.2980142793 | U99: 0.2980142793 | V99: 0.2980142793 | W99: 0.2980142793 | X99: 0.2980142793 | Y99: 0.2980142793 | Z99: 0.2980142793 | AA99: 0.2980142793 | AB99: 0.2980142793 | AC99: 0.2980142793 | AD99: 0.2980142793 | AE99: 0.2980142793 | AF99: 0.2980142793 | AG99: 0.2980142793 | AH99: 0.2980142793 | AI99: 0.2980142793 | AJ99: 0.2980142793 | AK99: 0.2980142793 | AL99: 0.2980142793 | AM99: 0.2980142793 | AN99: 0.2980142793 | AO99: 0.2980142793 | AP99: 0.2980142793 | AQ99: 0.2980142793 | AR99: 0.2980142793 | AS99: 0.2980142793 | AT99: 0.2980142793 | AU99: 0.2980142793 | AV99: 0.2980142793
B100: GIS Maintenance | C100: 100968.0723 | D100: 242002 | E100: 0.4172199911 | F100: 0.4172199911 | G100: 0.4172199911 | H100: 0.4172199911 | I100: 0.4172199911 | J100: 0.4172199911 | K100: 0.4172199911 | L100: 0.4172199911 | M100: 0.4172199911 | N100: 0.4172199911 | O100: 0.4172199911 | P100: 0.4172199911 | Q100: 0.4172199911 | R100: 0.4172199911 | S100: 0.4172199911 | T100: 0.4172199911 | U100: 0.4172199911 | V100: 0.4172199911 | W100: 0.4172199911 | X100: 0.4172199911 | Y100: 0.4172199911 | Z100: 0.4172199911 | AA100: 0.4172199911 | AB100: 0.4172199911 | AC100: 0.4172199911 | AD100: 0.4172199911 | AE100: 0.4172199911 | AF100: 0.4172199911 | AG100: 0.4172199911 | AH100: 0.4172199911 | AI100: 0.4172199911 | AJ100: 0.4172199911 | AK100: 0.4172199911 | AL100: 0.4172199911 | AM100: 0.4172199911 | AN100: 0.4172199911 | AO100: 0.4172199911 | AP100: 0.4172199911 | AQ100: 0.4172199911 | AR100: 0.4172199911 | AS100: 0.4172199911 | AT100: 0.4172199911 | AU100: 0.4172199911 | AV100: 0.4172199911
B101: Customer Management | C101: 253141.3812 | D101: 242002 | E101: 1.04603012 | F101: 1.04603012 | G101: 1.04603012 | H101: 1.04603012 | I101: 1.04603012 | J101: 1.04603012 | K101: 1.04603012 | L101: 1.04603012 | M101: 1.04603012 | N101: 1.04603012 | O101: 1.04603012 | P101: 1.04603012 | Q101: 1.04603012 | R101: 1.04603012 | S101: 1.04603012 | T101: 1.04603012 | U101: 1.04603012 | V101: 1.04603012 | W101: 1.04603012 | X101: 1.04603012 | Y101: 1.04603012 | Z101: 1.04603012 | AA101: 1.04603012 | AB101: 1.04603012 | AC101: 1.04603012 | AD101: 1.04603012 | AE101: 1.04603012 | AF101: 1.04603012 | AG101: 1.04603012 | AH101: 1.04603012 | AI101: 1.04603012 | AJ101: 1.04603012 | AK101: 1.04603012 | AL101: 1.04603012 | AM101: 1.04603012 | AN101: 1.04603012 | AO101: 1.04603012 | AP101: 1.04603012 | AQ101: 1.04603012 | AR101: 1.04603012 | AS101: 1.04603012 | AT101: 1.04603012 | AU101: 1.04603012 | AV101: 1.04603012
B102: Asset Data Audit | C102: 144240.1032 | D102: 242002 | E102: 0.5960285586 | F102: 0.5960285586 | G102: 0.5960285586 | H102: 0.5960285586 | I102: 0.5960285586 | J102: 0.5960285586 | K102: 0.5960285586 | L102: 0.5960285586 | M102: 0.5960285586 | N102: 0.5960285586 | O102: 0.5960285586 | P102: 0.5960285586 | Q102: 0.5960285586 | R102: 0.5960285586 | S102: 0.5960285586 | T102: 0.5960285586 | U102: 0.5960285586 | V102: 0.5960285586 | W102: 0.5960285586 | X102: 0.5960285586 | Y102: 0.5960285586 | Z102: 0.5960285586 | AA102: 0.5960285586 | AB102: 0.5960285586 | AC102: 0.5960285586 | AD102: 0.5960285586 | AE102: 0.5960285586 | AF102: 0.5960285586 | AG102: 0.5960285586 | AH102: 0.5960285586 | AI102: 0.5960285586 | AJ102: 0.5960285586 | AK102: 0.5960285586 | AL102: 0.5960285586 | AM102: 0.5960285586 | AN102: 0.5960285586 | AO102: 0.5960285586 | AP102: 0.5960285586 | AQ102: 0.5960285586 | AR102: 0.5960285586 | AS102: 0.5960285586 | AT102: 0.5960285586 | AU102: 0.5960285586 | AV102: 0.5960285586
B103: Asset Management
B104: Margin | D104: 37480 | E104: 0.1725502677 | F104: 0.1725502677 | G104: 0.1725502677 | H104: 0.1725502677 | I104: 0.1725502677 | J104: 0.1725502677 | K104: 0.1725502677 | L104: 0.1725502677 | M104: 0.1725502677 | N104: 0.1725502677 | O104: 0.1725502677 | P104: 0.1725502677 | Q104: 0.1725502677 | R104: 0.1725502677 | S104: 0.1725502677 | T104: 0.1725502677 | U104: 0.1725502677 | V104: 0.1725502677 | W104: 0.1725502677 | X104: 0.1725502677 | Y104: 0.1725502677 | Z104: 0.1725502677 | AA104: 0.1725502677 | AB104: 0.1725502677 | AC104: 0.1725502677 | AD104: 0.1725502677 | AE104: 0.1725502677 | AF104: 0.1725502677 | AG104: 0.1725502677 | AH104: 0.1725502677 | AI104: 0.1725502677 | AJ104: 0.1725502677 | AK104: 0.1725502677 | AL104: 0.1725502677 | AM104: 0.1725502677 | AN104: 0.1725502677 | AO104: 0.1725502677 | AP104: 0.1725502677 | AQ104: 0.1725502677 | AR104: 0.1725502677 | AS104: 0.1725502677 | AT104: 0.1725502677 | AU104: 0.1725502677 | AV104: 0.1725502677
B106: Total Tariff | E106: 3.048388063 | F106: 3.048388063 | G106: 3.048388063 | H106: 3.048388063 | I106: 3.048388063 | J106: 3.048388063 | K106: 3.048388063 | L106: 3.048388063 | M106: 3.048388063 | N106: 3.048388063 | O106: 3.048388063 | P106: 3.048388063 | Q106: 3.048388063 | R106: 3.048388063 | S106: 3.048388063 | T106: 3.048388063 | U106: 3.048388063 | V106: 3.048388063 | W106: 3.048388063 | X106: 3.048388063 | Y106: 3.048388063 | Z106: 3.048388063 | AA106: 3.048388063 | AB106: 3.048388063 | AC106: 3.048388063 | AD106: 3.048388063 | AE106: 3.048388063 | AF106: 3.048388063 | AG106: 3.048388063 | AH106: 3.048388063 | AI106: 3.048388063 | AJ106: 3.048388063 | AK106: 3.048388063 | AL106: 3.048388063 | AM106: 3.048388063 | AN106: 3.048388063 | AO106: 3.048388063 | AP106: 3.048388063 | AQ106: 3.048388063 | AR106: 3.048388063 | AS106: 3.048388063 | AT106: 3.048388063 | AU106: 3.048388063 | AV106: 3.048388063

Sheet PTRM Integration
B2: PTRM Inputs
F3: 0 | G3: 1 | H3: 2 | I3: 3 | J3: 4
B4: Capital Forecast for PTRM | F4: =Start_Year+F3&"/"&RIGHT(Start_Year+F3+1,2) -> 2025/26 | G4: =Start_Year+G3&"/"&RIGHT(Start_Year+G3+1,2) -> 2026/27 | H4: =Start_Year+H3&"/"&RIGHT(Start_Year+H3+1,2) -> 2027/28 | I4: =Start_Year+I3&"/"&RIGHT(Start_Year+I3+1,2) -> 2028/29 | J4: =Start_Year+J3&"/"&RIGHT(Start_Year+J3+1,2) -> 2029/30
D5: Cable Replacement | E5: June 2025 $ Inclusive of Labour Escalation | F5: ='Cable Replacement'!J13 -> 1952801.882 | G5: ='Cable Replacement'!K13 -> 1963630.427 | H5: ='Cable Replacement'!L13 -> 1972884.674 | I5: ='Cable Replacement'!M13 -> 1984465.32 | J5: ='Cable Replacement'!N13 -> 1998300.494
D6: Column Replacement | E6: June 2025 $ Inclusive of Labour Escalation | F6: ='Column Replacement'!J15 -> 1180468.738 | G6: ='Column Replacement'!K15 -> 1187014.593 | H6: ='Column Replacement'!L15 -> 1192608.786 | I6: ='Column Replacement'!M15 -> 1199609.286 | J6: ='Column Replacement'!N15 -> 1207972.649
D7: Brackets Replacement | E7: June 2025 $ Inclusive of Labour Escalation | F7: ='Brackets Replacement'!J15 -> 83099.07911 | G7: ='Brackets Replacement'!K15 -> 83559.8745 | H7: ='Brackets Replacement'!L15 -> 83953.67761 | I7: ='Brackets Replacement'!M15 -> 84446.47771 | J7: ='Brackets Replacement'!N15 -> 85035.21653
D9: Total Infrastructure | E9: June 2025 $ Inclusive of Labour Escalation | F9: =SUM(F5:F7) -> 3216369.699 | G9: =SUM(G5:G7) -> 3234204.894 | H9: 3249447.138 | I9: 3268521.083 | J9: 3291308.36
D10: Total Infrastructure in $ m | E10: June 2025 $ m Inclusive of Labour Escalation | F10: =F9/1000000 -> 3.216369699 | G10: =G9/1000000 -> 3.234204894 | H10: 3.249447138 | I10: 3.268521083 | J10: 3.29130836 | L10: updates PTRM|PTRM input - (row 93 - row 255)
D12: Total IT Projects | E12: June 2025 $ | F12: 150000 | G12: 150000 | H12: 150000 | I12: 150000 | J12: 150000
D13: Total IT Projects | E13: June 2025 $ Inclusive of Labour Escalation | F13: =F12*'Global Assumptions'!J$20 -> 151318.2839 | G13: =G12*'Global Assumptions'!K$20 -> 152157.3638 | H13: =H12*'Global Assumptions'!L$20 -> 152874.4549 | I13: =I12*'Global Assumptions'!M$20 -> 153771.8134 | J13: =J12*'Global Assumptions'!N$20 -> 154843.8704
D14: Total IT Projects | E14: June 2025 $ m Inclusive of Labour Escalation in | F14: =F13/1000000 -> 0.1513182839 | G14: =G13/1000000 -> 0.1521573638 | H14: 0.1528744549 | I14: 0.1537718134 | J14: 0.1548438704 | L14: updates PTRM|PTRM input - row 94
D16: Regional LED Installations in $ m | E16: June 2025 $ | F16: 230000 | G16: 230000 | H16: 230000 | I16: 230000 | J16: 230000
D17: Regional LED Installations in $ m | E17: June 2025 $ Inclusive of Labour Escalation | F17: =F16*'Global Assumptions'!J$20 -> 232021.3686 | G17: =G16*'Global Assumptions'!K$20 -> 233307.9578 | H17: =H16*'Global Assumptions'!L$20 -> 234407.4975 | I17: =I16*'Global Assumptions'!M$20 -> 235783.4472 | J17: =J16*'Global Assumptions'!N$20 -> 237427.2679
D18: Regional LED Installations in $ m | E18: June 2025 $ m Inclusive of Labour Escalation | F18: =F17/1000000 -> 0.2320213686 | G18: =G17/1000000 -> 0.2333079578 | H18: 0.2344074975 | I18: 0.2357834472 | J18: 0.2374272679 | L18: updates PTRM|PTRM input - row 91
D20: Capital Contributions Type 1 - Customer Contributions
D21: Capital contributions | E21: June 2025 $ | F21: 600000 | G21: 600000 | H21: 600000 | I21: 600000 | J21: 600000
D22: Capital contributions | E22: June 2025 $ Inclusive of Labour Escalation | F22: =F21*'Global Assumptions'!J$20 -> 605273.1355 | G22: =G21*'Global Assumptions'!K20 -> 608629.4551 | H22: =H21*'Global Assumptions'!L20 -> 611497.8196 | I22: =I21*'Global Assumptions'!M20 -> 615087.2536 | J22: =J21*'Global Assumptions'!N20 -> 619375.4815
D23: Capital contributions | E23: June 2025 $ m Inclusive of Labour Escalation | F23: =F22/1000000 -> 0.6052731355 | G23: =G22/1000000 -> 0.6086294551 | H23: 0.6114978196 | I23: 0.6150872536 | J23: 0.6193754815 | L23: updates PTRM|PTRM input - row 255
D25: Total Infrastructure | E25: June 2025 $ m Inclusive of Labour Escalation | F25: =F10 -> 3.216369699 | G25: =G10 -> 3.234204894 | H25: 3.249447138 | I25: 3.268521083 | J25: 3.29130836
D26: Regional LED Installations | E26: June 2025 $ m Inclusive of Labour Escalation | F26: =F18 -> 0.2320213686 | G26: =G18 -> 0.2333079578 | H26: 0.2344074975 | I26: 0.2357834472 | J26: 0.2374272679
D27: Total IT | E27: June 2025 $ m Inclusive of Labour Escalation | F27: =F14 -> 0.1513182839 | G27: =G14 -> 0.1521573638 | H27: 0.1528744549 | I27: 0.1537718134 | J27: 0.1548438704
D28: Total Capital Contributions | E28: June 2025 $ m Inclusive of Labour Escalation | F28: 0.6041250423 | G28: 0.6063225672 | H28: 0.6082020776 | I28: 0.6105882274 | J28: 0.613246439
B30: Current Revenue | F30: 2020/21 | G30: 2021/22 | H30: 2022/23 | I30: 2023/24 | J30: 2024/25
D31: Nominal Smoothed - Expected Revenue | E31: Nominal | F31: 3.824578268 | G31: =F31*(G32/F32) -> 3.857492022 | H31: =G31*(H32/G32) -> 3.992438415 | I31: =H31*(I32/H32) -> 4.305119083 | J31: =I31*(J32/I32) -> 4.498849441
E32: CPI December Index Lagged | F32: 116.2 | G32: 117.2 | H32: 121.3 | I32: 130.8 | J32: =I32*J33 -> 136.686
E33: CPI December (Percentage Year on Year Change) | G33: =G32/F32 -> 1.008605852 | H33: =H32/G32 -> 1.034982935 | I33: =I32/H32 -> 1.078318219 | J33: 1.045
B35: PTRM Outputs
B37: Building Block Components ($m Real 2024-25)
F39: =F4 -> 2025/26 | G39: =G4 -> 2026/27 | H39: 2027/28 | I39: 2028/29 | J39: 2029/30
D40: Return on Capital | E40: June 2025 $ Inclusive of Labour Escalation | F40: 3.385669425 | G40: 3.366607782 | H40: 3.363399762 | I40: 3.387367348 | J40: 3.409366776
D41: Return of Capital (regulatory depreciation) | E41: June 2025 $ Inclusive of Labour Escalation | F41: 2.566471604 | G41: 2.57897333 | H41: 2.480222241 | I41: 2.508993819 | J41: 2.592460888
D42: Operating Expenditure | E42: June 2025 $ Inclusive of Labour Escalation | F42: 0.02949267119 | G42: 0.02923056604 | H42: 0.02897985785 | I42: 0.02879570554 | J42: 0.02861377656
D43: Revenue Adjustments | E43: June 2025 $ Inclusive of Labour Escalation | F43: 0 | G43: 0 | H43: 0 | I43: 0 | J43: 0
D44: Net Tax Allowance | E44: June 2025 $ Inclusive of Labour Escalation | F44: 0 | G44: 0 | H44: 0 | I44: 0 | J44: 0
D45: Annual Revenue Requirement (unsmoothed) | E45: June 2025 $ Inclusive of Labour Escalation | F45: 5.9816337 | G45: 5.974811679 | H45: 5.872601862 | I45: 5.925156873 | J45: 6.030441441
C47: Revenue Cap
D48: Expected Revenue (smoothed) | F48: 5.956638611 | G48: 5.956638611 | H48: 5.956638611 | I48: 5.956638611 | J48: 5.956638611
D49: X-Factor | F49: -0.3240359983 | G49: 0 | H49: 0 | I49: 0 | J49: 0
B51: Building Block Components (Nominal)
F52: 2025/26 | G52: 2026/27 | H52: 2027/28 | I52: 2028/29 | J52: 2029/30
D53: Return on Capital | E53: June 2025 $ Inclusive of Labour Escalation | F53: 3.482148906 | G53: 3.561214209 | H53: 3.659205928 | I53: 3.790298781 | J53: 3.923626516
D54: Return of Capital (regulatory depreciation) | E54: June 2025 $ Inclusive of Labour Escalation | F54: 2.639606874 | G54: 2.728050626 | H54: 2.698354216 | I54: 2.807441661 | J54: 2.983500734
D55: Operating Expenditure | E55: June 2025 $ Inclusive of Labour Escalation | F55: 0.03033310694 | G55: 0.03092023599 | H55: 0.03152859462 | I55: 0.03222098945 | J55: 0.03292980186
D56: Revenue Adjustments | E56: June 2025 $ Inclusive of Labour Escalation | F56: 0 | G56: 0 | H56: 0 | I56: 0 | J56: 0
D57: Net Tax Allowance | E57: June 2025 $ Inclusive of Labour Escalation | F57: 0 | G57: 0 | H57: 0 | I57: 0 | J57: 0
D58: Annual Revenue Requirement (unsmoothed) | E58: June 2025 $ Inclusive of Labour Escalation | F58: 6.152088887 | G58: 6.32018507 | H58: 6.389088738 | I58: 6.629961431 | J58: 6.940057051
C60: Weighted Average Price Cap
D61: Expected Revenue (smoothed) | F61: 6.126381528 | G61: 6.300961511 | H61: 6.480516399 | I61: 6.665187961 | J61: 6.855122002
D62: X-Factor | F62: 0 | G62: 0 | H62: 0 | I62: 0 | J62: 0
B65: 5 Year Average of Cost of Capital Parameters | G65: Comments
D67: Nominal Vanilla WACC | E67: 0.06021482186 | G67: A five year average is used because the annuities are not updated annually for the change in cost of debt
D68: Real Vanilla WACC | E68: 0.03083957728
D69: Post-tax Nominal WACC | E69: 0.05681889562
D70: Post-tax Real WACC | E70: 0.02753774156
D71: Pre-tax Nominal WACC | E71: 0.06034151075
D72: Pre-tax Real WACC | E72: 0.03096275602
D73: Nominal Tax Allowance | E73: 0.003522615134
D74: Real Tax Allowance | E74: 0.00342501446
D75: Nominal Pre-tax Return on Debt | E75: 0.0465385034
D76: Real Pre-tax Return on Debt | E76: 0.01754159775

Sheet Cable Replacement
A1: =A_Name_Model -> Public Lighting Model
A2: =RIGHT(CELL("filename",A2),LEN(CELL("filename",A2))-FIND("]",CELL("filename",A2))) -> Cable Replacement
J4: =Start_Year+J5&"/"&RIGHT(Start_Year+J5+1,2) -> 2025/26 | K4: 2026/27 | L4: 2027/28 | M4: 2028/29 | N4: 2029/30
H5: -2 | I5: -1 | J5: 0 | K5: =J5+1 -> 1 | L5: 2 | M5: 3 | N5: 4
A8: Output
B9: Transferred to Total Expenditure
F10: Total Cable Replacements Cost | G10: Nominal | J10: =J13*'Global Assumptions'!J$12 -> 2015291.542 | K10: =K13*'Global Assumptions'!K$12 -> 2087767.215 | L10: =L13*'Global Assumptions'!L$12 -> 2157388.283 | M10: =M13*'Global Assumptions'!M$12 -> 2228100.837 | N10: =N13*'Global Assumptions'!N$12 -> 2299725.439
B12: Transferred to PTRM Integration
F13: Real Input Cost Escalation for Cable Replacements | G13: June 2025 $ Inclusive of Labour Escalation | J13: =J15*J41 -> 1952801.882 | K13: =K15*K41 -> 1963630.427 | L13: 1972884.674 | M13: 1984465.32 | N13: 1998300.494
F15: Total Cable Replacements Cost | G15: June 2025 $ | J15: =J24 -> 1935789.085 | K15: =K24 -> 1935789.085 | L15: 1935789.085 | M15: 1935789.085 | N15: 1935789.085
A17: Calculations
J18: =J$4 -> 2025/26 | K18: 2026/27 | L18: 2027/28 | M18: 2028/29 | N18: 2029/30 | S18: Notes
F22: Planned cable replacements | G22: inc. On Cost & OH | J22: =J30*$H$37 -> 1935789.085 | K22: =K30*$H$37 -> 1935789.085 | L22: 1935789.085 | M22: 1935789.085 | N22: 1935789.085
F24: Total Cable Replacements | G24: $ | J24: =SUM(J20:J23) -> 1935789.085 | K24: =SUM(K20:K23) -> 1935789.085 | L24: =SUM(L20:L23) -> 1935789.085 | M24: =SUM(M20:M23) -> 1935789.085 | N24: =SUM(N20:N23) -> 1935789.085
D26: Cable Replacements
F27: =AMP!F9 -> Metro Cable Replacements | G27: km | J27: =AMP!J9 -> 4 | K27: =AMP!K9 -> 4 | L27: =AMP!L9 -> 4 | M27: =AMP!M9 -> 4 | N27: =AMP!N9 -> 4 | S27: from Asset Management Plan see AMP tab
F28: =AMP!F10 -> Regional Cable Replacements | G28: km | J28: =AMP!J10 -> 0.5 | K28: =AMP!K10 -> 0.5 | L28: =AMP!L10 -> 0.5 | M28: =AMP!M10 -> 0.5 | N28: =AMP!N10 -> 0.5 | S28: from Asset Management Plan see AMP tab
F30: Total Cable Replacements | G30: km | J30: =SUM(J26:J29) -> 4.5 | K30: =SUM(K27:K29) -> 4.5 | L30: 4.5 | M30: 4.5 | N30: 4.5
A32: > | B32: OPEN TO SHOW DETAILED WORKINGS
A33: Assumptions
F35: Planned Cable Replacements | H35: June 2025 $
G36: =AMP!G13 -> 0
F37: =AMP!F12 -> Average cable planned replacement costs | G37: =AMP!G12 -> per km | H37: =INDEX(AMP!$J:$J,MATCH(F37,AMP!F:F,0)) -> 430175.3522 | S37: from Asset Management Plan see AMP tab
H40: 2023/24 | I40: 2024/25 | J40: =J$4 -> 2025/26 | K40: 2026/27 | L40: 2027/28 | M40: 2028/29 | N40: 2029/30
F41: Labour Escalation | H41: ='Global Assumptions'!H20 -> 0.9990924184 | I41: ='Global Assumptions'!I20 -> 1 | J41: ='Global Assumptions'!J20 -> 1.008788559 | K41: ='Global Assumptions'!K20 -> 1.014382425 | L41: ='Global Assumptions'!L20 -> 1.019163033 | M41: ='Global Assumptions'!M20 -> 1.025145423 | N41: ='Global Assumptions'!N20 -> 1.032292469

Sheet Column Replacement
A1: =A_Name_Model -> Public Lighting Model
A2: =RIGHT(CELL("filename",A2),LEN(CELL("filename",A2))-FIND("]",CELL("filename",A2))) -> Column Replacement
J4: =Start_Year+J5&"/"&RIGHT(Start_Year+J5+1,2) -> 2025/26 | K4: =Start_Year+K5&"/"&RIGHT(Start_Year+K5+1,2) -> 2026/27 | L4: 2027/28 | M4: 2028/29 | N4: 2029/30
H5: -2 | I5: -1 | J5: 0 | K5: =J5+1 -> 1 | L5: 2 | M5: 3 | N5: 4
A7: Output
F8: Planned | G8: Nominal | J8: =J13*'Global Assumptions'!J$12 -> 1118285.277 | K8: =K13*'Global Assumptions'!K$12 -> 1158502.028 | L8: =L13*'Global Assumptions'!L$12 -> 1197134.758 | M8: =M13*'Global Assumptions'!M$12 -> 1236373.154 | N8: =N13*'Global Assumptions'!N$12 -> 1276117.646
F9: Unplanned | G9: Nominal | J9: =J14*'Global Assumptions'!J$12 -> 99958.4605 | K9: =K14*'Global Assumptions'!K$12 -> 103553.2539 | L9: =L14*'Global Assumptions'!L$12 -> 107006.4588 | M9: =M14*'Global Assumptions'!M$12 -> 110513.8015 | N9: =N14*'Global Assumptions'!N$12 -> 114066.3818
F10: Total Column Replacements Cost | J10: =SUM(J8:J9) -> 1218243.737 | K10: =SUM(K8:K9) -> 1262055.282 | L10: =SUM(L8:L9) -> 1304141.217 | M10: 1346886.956 | N10: 1390184.028
B12: Transferred to PTRM Integration
F13: Planned | G13: June 2025 $ Inclusive of Labour Escalation | J13: =J17*J$56 -> 1083609.764 | K13: 1089618.524 | L13: 1094753.706 | M13: 1101179.806 | N13: 1108856.944
F14: Unplanned | G14: June 2025 $ Inclusive of Labour Escalation | J14: 96858.97335 | K14: 97396.06917 | L14: 97855.07985 | M14: 98429.47986 | N14: 99115.70452
F15: Real Input Cost Escalation for Column Replacements | J15: =SUM(J13:J14) -> 1180468.738 | K15: 1187014.593 | L15: 1192608.786 | M15: 1199609.286 | N15: 1207972.649
F17: Planned | G17: June 2025 $ | J17: =J29 -> 1074169.363 | K17: =K29 -> 1074169.363 | L17: 1074169.363 | M17: 1074169.363 | N17: 1074169.363
F18: Unplanned | G18: June 2025 $ | J18: =J35 -> 96015.13862 | K18: 96015.13862 | L18: 96015.13862 | M18: 96015.13862 | N18: 96015.13862
F19: Total Column Replacement Cost | J19: =SUM(J17:J18) -> 1170184.502 | K19: =SUM(K17:K18) -> 1170184.502 | L19: 1170184.502 | M19: 1170184.502 | N19: 1170184.502
A21: Calculations
J22: =J$4 -> 2025/26 | K22: 2026/27 | L22: 2027/28 | M22: 2028/29 | N22: 2029/30 | S22: Notes
B24: Total CAPEX
D25: Planned
F27: Columns | G27: inc. On costs + FS O/H | J27: =J39*$H$53 -> 1074169.363 | K27: =K39*$H$53 -> 1074169.363 | L27: =L39*$H$53 -> 1074169.363 | M27: =M39*$H$53 -> 1074169.363 | N27: =N39*$H$53 -> 1074169.363
F29: Total Planned Column Replacement | J29: =SUM(J25:J28) -> 1074169.363 | K29: =SUM(K25:K28) -> 1074169.363 | L29: 1074169.363 | M29: 1074169.363 | N29: 1074169.363
D31: Unplanned
F32: =F42 -> Metro Column Replacements | G32: inc. On costs + FS O/H | J32: =J42*$H$53 -> 78012.30013 | K32: =K42*$H$53 -> 78012.30013 | L32: 78012.30013 | M32: 78012.30013 | N32: 78012.30013
F33: =F43 -> Regional Column Replacements | G33: inc. On costs + FS O/H | J33: =J43*$H$53 -> 18002.83849 | K33: =K43*$H$53 -> 18002.83849 | L33: 18002.83849 | M33: 18002.83849 | N33: 18002.83849
F35: Total Unplanned Column Replacement | G35: $ | J35: =SUM(J31:J34) -> 96015.13862 | K35: =SUM(K31:K34) -> 96015.13862 | L35: =SUM(L31:L34) -> 96015.13862 | M35: =SUM(M31:M34) -> 96015.13862 | N35: =SUM(N31:N34) -> 96015.13862
B37: Column Replacements
D38: Planned
F39: Column Replacements | J39: =ColumnData!$H$6 -> 179 | K39: =ColumnData!$H$6 -> 179 | L39: =ColumnData!$H$6 -> 179 | M39: =ColumnData!$H$6 -> 179 | N39: =ColumnData!$H$6 -> 179 | S39: From column data tab
D41: Unplanned
F42: =AMP!F17 -> Metro Column Replacements | G42: # | J42: =INDEX(AMP!$17:$17,MATCH(J$4,AMP!$4:$4,0)) -> 13 | K42: =INDEX(AMP!$17:$17,MATCH(K$4,AMP!$4:$4,0)) -> 13 | L42: =INDEX(AMP!$17:$17,MATCH(L$4,AMP!$4:$4,0)) -> 13 | M42: =INDEX(AMP!$17:$17,MATCH(M$4,AMP!$4:$4,0)) -> 13 | N42: =INDEX(AMP!$17:$17,MATCH(N$4,AMP!$4:$4,0)) -> 13 | S42: From Asset Management Plan see AMP tab
F43: =AMP!F18 -> Regional Column Replacements | G43: # | J43: =INDEX(AMP!$18:$18,MATCH(J$4,AMP!$4:$4,0)) -> 3 | K43: =INDEX(AMP!$18:$18,MATCH(K$4,AMP!$4:$4,0)) -> 3 | L43: =INDEX(AMP!$18:$18,MATCH(L$4,AMP!$4:$4,0)) -> 3 | M43: =INDEX(AMP!$18:$18,MATCH(M$4,AMP!$4:$4,0)) -> 3 | N43: =INDEX(AMP!$18:$18,MATCH(N$4,AMP!$4:$4,0)) -> 3 | S43: From Asset Management Plan see AMP tab
F45: Subtotal Unplanned | J45: =SUBTOTAL(9,J41:J44) -> 16 | K45: 16 | L45: 16 | M45: 16 | N45: 16 | S45: Excludes third party damage from vehicles, only includes corrison damage
F47: Total Column Replacements | G47: # | J47: =SUBTOTAL(9,J38:J46) -> 195 | K47: =SUBTOTAL(9,K38:K46) -> 195 | L47: 195 | M47: 195 | N47: 195
A49: > | B49: OPEN TO SHOW DETAILED WORKINGS
A50: Assumptions
F52: Planned Column Replacements | H52: June 2025 $
F53: =AMP!F20 -> Average column unplanned replacement costs | G53: =AMP!G20 -> per. Column | H53: =INDEX(AMP!$J:$J,MATCH(F53,AMP!F:F,0)) -> 6000.946164 | I53: inc. On costs + FS O/H
H55: 2023/24 | I55: 2024/25 | J55: =J$4 -> 2025/26 | K55: 2026/27 | L55: 2027/28 | M55: 2028/29 | N55: 2029/30
F56: Labour Esclation | H56: ='Global Assumptions'!H20 -> 0.9990924184 | I56: ='Global Assumptions'!I20 -> 1 | J56: ='Global Assumptions'!J20 -> 1.008788559 | K56: ='Global Assumptions'!K20 -> 1.014382425 | L56: ='Global Assumptions'!L20 -> 1.019163033 | M56: ='Global Assumptions'!M20 -> 1.025145423 | N56: ='Global Assumptions'!N20 -> 1.032292469

Sheet Brackets Replacement
A1: Public Lighting Model
A2: Brackets Replacement | J2: Bracket on Stobie Pole
J4: 2025/26 | K4: 2026/27 | L4: 2027/28 | M4: 2028/29 | N4: 2029/30
H5: -2 | I5: -1 | J5: 0 | K5: 1 | L5: 2 | M5: 3 | N5: 4
A7: Output
F8: Unplanned - Materials | G8: Nominal | J8: 27753.12889 | K8: 28751.21113 | L8: 29709.98182 | M8: 30683.78366 | N8: 31670.14557
F9: Unplanned - Labour | G9: Nominal | J9: 58005.12075 | K9: 60091.15152 | L9: 62095.01963 | M9: 64130.30342 | N9: 66191.83824
F10: Total Brackets on Stobie Pole Replacement Cost | J10: 85758.24964 | K10: 88842.36264 | L10: 91805.00145 | M10: 94814.08708 | N10: 97861.98381
B12: Transferred to PTRM Integration
F13: Unplanned - Materials | G13: June 2025 $ Inclusive of Labour Escalation | J13: 26892.56675 | K13: 27041.68959 | L13: 27169.13236 | M13: 27328.61258 | N13: 27519.14054
F14: Unplanned - Labour | G14: June 2025 $ Inclusive of Labour Escalation | J14: 56206.51236 | K14: 56518.1849 | L14: 56784.54525 | M14: 57117.86513 | N14: 57516.07599
F15: Real Input Cost Escalation for Brackets on Stobie Pole Replacements | J15: 83099.07911 | K15: 83559.8745 | L15: 83953.67761 | M15: 84446.47771 | N15: 85035.21653
F17: Unplanned - Materials | G17: June 2025 $ | J17: 26658.27889 | K17: 26658.27889 | L17: 26658.27889 | M17: 26658.27889 | N17: 26658.27889
F18: Unplanned - Labour | G18: June 2025 $ | J18: 55716.8416 | K18: 55716.8416 | L18: 55716.8416 | M18: 55716.8416 | N18: 55716.8416
F19: Total Cost Brackets on Stobie Pole Replacements | J19: 82375.12049 | K19: 82375.12049 | L19: 82375.12049 | M19: 82375.12049 | N19: 82375.12049
A21: Calculations
J22: 2025/26 | K22: 2026/27 | L22: 2027/28 | M22: 2028/29 | N22: 2029/30 | S22: Notes
B24: Total CAPEX
D26: Unplanned
F27: Materials | G27: inc. On Cost & OH | J27: 26658.27889 | K27: 26658.27889 | L27: 26658.27889 | M27: 26658.27889 | N27: 26658.27889
F28: Labour | G28: inc. OH | J28: 55716.8416 | K28: 55716.8416 | L28: 55716.8416 | M28: 55716.8416 | N28: 55716.8416
A34: > | B34: OPEN TO SHOW DETAILED WORKINGS
A35: Assumptions
E37: Unplanned Bracket Replacements
L39: June 2025 $ | M39: June 2025 $ | N39: June 2025 $ | O39: June 2025 $
H40: Bracket Type | K40: Average Replacements Per Year | L40: Material Unit Cost | M40: Labour Cost | N40: Total Material Cost | O40: Total Labour Cost | S40: Average replacements per year are based on the last 2 years of actual data. Unplanned bracket replacements are bracket replacements that occur separate from other single light outages.
H41: Res Long Pipe / X-Arm Bracket Long Pipe | K41: 2
H42: Wall Bracket | K42: 2
H43: Long Pipe - Shortest | K43: 2
H44: Long Pipe - Arrangement 1 | K44: 0
H45: Long Pipe - Arrangement 2 | K45: 2
H46: Long Pipe - Longest | K46: 1
H47: Pole Bracket | K47: 30
H48: Highway X-Arm Bracket / Crank Handle | K48: 9
H49: 9M Highway Pole Bracket | K49: 3
H50: 10.5M Highway Pole Bracket | K50: 2
H51: Res X-Arm Bracket | K51: 53
H52: Traffic Route Bracket - Shortest | K52: 1
H53: Traffic Route Bracket - Med | K53: 0
H54: Traffic Route Bracket - Long | K54: 2
H55: Total | L55: 5160.577599 | M55: 13584.59348 | N55: 18078.99859 | O55: 44360.54267
H58: 2023/24 | I58: 2024/25 | J58: 2025/26 | K58: 2026/27 | L58: 2027/28 | M58: 2028/29 | N58: 2029/30
F59: Labour Escalation | H59: 0.9990924184 | I59: 1 | J59: 1.008788559 | K59: 1.014382425 | L59: 1.019163033 | M59: 1.025145423 | N59: 1.032292469

Sheet Column Inspections
A1: =A_Name_Model -> Public Lighting Model
A2: =RIGHT(CELL("filename",A2),LEN(CELL("filename",A2))-FIND("]",CELL("filename",A2))) -> Column Inspections
J4: =Start_Year+J5&"/"&RIGHT(Start_Year+J5+1,2) -> 2025/26 | K4: 2026/27 | L4: 2027/28 | M4: 2028/29 | N4: 2029/30 | S4: Notes
H5: -2 | I5: -1 | J5: 0 | K5: =J5+1 -> 1 | L5: 2 | M5: 3 | N5: 4
A7: Output
F8: Total Nominal Column Inspection/Repair Cost | G8: Nominal | J8: =J10*'Global Assumptions'!J$12 -> 1220104.566 | K8: =K10*'Global Assumptions'!K$12 -> 1263983.031 | L8: =L10*'Global Assumptions'!L$12 -> 1306133.251 | M8: =M10*'Global Assumptions'!M$12 -> 1348944.283 | N8: =N10*'Global Assumptions'!N$12 -> 1392307.49
F10: Real Input Cost Escalation for Column Inspections/Repairs | G10: June 2025 $ Inclusive of Labour Escalation | J10: =J12*J78 -> 1182271.866 | K10: 1188827.72 | L10: 1194430.458 | M10: 1201441.651 | N10: 1209817.789
F12: Total Column Inspections/Repairs Cost | G12: June 2025 $ | J12: =J28 -> 1171971.922 | K12: =K28 -> 1171971.922 | L12: 1171971.922 | M12: 1171971.922 | N12: 1171971.922 | S12: Excludes Replacement Columns included on "Column Replacement" Sheet
A14: Calculations
J15: =J$4 -> 2025/26 | K15: 2026/27 | L15: 2027/28 | M15: 2028/29 | N15: 2029/30
E17: Inspection Cost
F18: Inspection Service | G18: Inc. FS OH | J18: =(J40)*$I$72*-1 -> 456423.5289 | K18: =(K40)*$I$72*-1 -> 456423.5289 | L18: 456423.5289 | M18: 456423.5289 | N18: 456423.5289 | S18: Initial Inspection of Column Cost
F19: Re-inspection | G19: Inc. FS OH | J19: =J47*$I$74 -> 0 | K19: =K47*$I$74 -> 0 | L19: =L47*$I$74 -> 0 | M19: =M47*$I$74 -> 0 | N19: =N47*$I$74 -> 0
E21: Repair Cost | G21: All inclusive
F22: Fix wiring | G22: =INDEX('Column Inspections'!$I$85:$I$91,MATCH(F22,'Column Inspections'!$H$85:$H$91,0)) -> 941.008583 | J22: =$G22*J31 -> 114469.629 | K22: =$G22*K31 -> 114469.629 | L22: 114469.629 | M22: 114469.629 | N22: 114469.629 | S22: Repair to Column (all inclusive)
F23: Replace Panel | G23: =INDEX('Column Inspections'!$I$85:$I$91,MATCH(F23,'Column Inspections'!$H$85:$H$91,0)) -> 344.1402818 | J23: 83726.35719 | K23: 83726.35719 | L23: 83726.35719 | M23: 83726.35719 | N23: 83726.35719 | S23: Repair to Column (all inclusive)
F24: Fix column | G24: =INDEX('Column Inspections'!$I$85:$I$91,MATCH(F24,'Column Inspections'!$H$85:$H$91,0)) -> 4011.38516 | J24: 262751.8253 | K24: 262751.8253 | L24: 262751.8253 | M24: 262751.8253 | N24: 262751.8253 | S24: Repair to Column (all inclusive)
F25: Fix Earthing | G25: =INDEX('Column Inspections'!$I$85:$I$91,MATCH(F25,'Column Inspections'!$H$85:$H$91,0)) -> 505.4560389 | J25: 23648.6706 | K25: 23648.6706 | L25: 23648.6706 | M25: 23648.6706 | N25: 23648.6706 | S25: Repair to Column (all inclusive)
F26: Retest | G26: =INDEX('Column Inspections'!$I$85:$I$91,MATCH(F26,'Column Inspections'!$H$85:$H$91,0)) -> 822.7103612 | J26: 230951.9108 | K26: 230951.9108 | L26: 230951.9108 | M26: 230951.9108 | N26: 230951.9108 | S26: Repair to Column (all inclusive)
F28: Total Cost Column Inspections/Repairs | J28: =SUM(J18:J26) -> 1171971.922 | K28: =SUM(K18:K26) -> 1171971.922 | L28: =SUM(L18:L26) -> 1171971.922 | M28: 1171971.922 | N28: 1171971.922
E30: Failure Rate for Repair/Replace
F31: Fix wiring | G31: =I64 -> 0.013 | J31: =$G31*J$40*-1 -> 121.64568 | K31: =$G31*K$40*-1 -> 121.64568 | L31: 121.64568 | M31: 121.64568 | N31: 121.64568
F32: Replace Panel | G32: =I65 -> 0.026 | J32: =$G32*J$40*-1 -> 243.29136 | K32: 243.29136 | L32: 243.29136 | M32: 243.29136 | N32: 243.29136
F33: Fix column | G33: =I66 -> 0.007 | J33: 65.50152 | K33: 65.50152 | L33: 65.50152 | M33: 65.50152 | N33: 65.50152
F34: Fix Earthing | G34: =I67 -> 0.005 | J34: 46.7868 | K34: 46.7868 | L34: 46.7868 | M34: 46.7868 | N34: 46.7868
F35: Retest | G35: =I68 -> 0.03 | J35: 280.7208 | K35: 280.7208 | L35: 280.7208 | M35: 280.7208 | N35: 280.7208
E37: Inspections | H37: 2023/24 | I37: 2024/25 | J37: =J$4 -> 2025/26 | K37: 2026/27 | L37: 2027/28 | M37: 2028/29 | N37: 2029/30
F38: Opening Inspection Pool | G38: # | H38: 24540 | I38: =H42 -> 15540 | J38: =I56-I42 -> 77500 | K38: =J42 -> 68142.64 | L38: =K42 -> 58785.28 | M38: =L42 -> 49427.92 | N38: 40070.56
F39: Return to Inspection Pool | G39: # | H39: =-IF(H5<$I$58,0,OFFSET(H40,0,-$I$58)*(1-#REF!)) -> 0 | I39: =-IF(I5<$I$58,0,OFFSET(I40,0,-$I$58)*(1-#REF!)) -> 0 | K39: =-IF(K5<$I$58,0,OFFSET(K40,0,-$I$58)*(1-#REF!)) -> 0 | L39: =-IF(L5<$I$58,0,OFFSET(L40,0,-$I$58)*(1-#REF!)) -> 0 | M39: =-IF(M5<$I$58,0,OFFSET(M40,0,-$I$58)*(1-#REF!)) -> 0 | N39: =-IF(N5<$I$58,0,OFFSET(N40,0,-$I$58)*(1-#REF!)) -> 0
F40: Inspections | G40: # | H40: =-$H$60 -> -9000 | I40: =-$H$60 -> -9000 | J40: =-$I$60 -> -9357.36 | K40: =-$I$60 -> -9357.36 | L40: =-$I$60 -> -9357.36 | M40: =-$I$60 -> -9357.36 | N40: =-$I$60 -> -9357.36 | S40: Annual Column Inspection forecast
F41: Increase in Inspection Pool | G41: # | H41: =H57 -> 0 | I41: =I57 -> 0 | J41: =$I$57 -> 0 | K41: =$I$57 -> 0 | L41: 0 | M41: 0 | N41: 0
F42: Remaining Assets to be Inspected over a 7.5 year cycle | G42: # | H42: =SUM(H38:H41) -> 15540 | I42: =SUM(I38:I41) -> 6540 | J42: =SUM(J38:J41) -> 68142.64 | K42: =SUM(K38:K41) -> 58785.28 | L42: 49427.92 | M42: 40070.56 | N42: 30713.2
E44: Re-Inspections
F45: Very High - Condition Rating | G45: # | J45: 0 | K45: 0 | L45: 0 | M45: 0 | N45: 0 | S45: Re-inspection of columns has been removed
F46: High - Condition Rating | G46: # | J46: 0 | K46: 0 | L46: 0 | M46: 0 | N46: 0 | S46: Re-inspection of columns has been removed
F47: Total Re-inspection | G47: # | J47: =SUM(J45:J46) -> 0 | K47: =SUM(K45:K46) -> 0 | L47: 0 | M47: 0 | N47: 0
A50: > | B50: OPEN TO SHOW DETAILED WORKINGS
A51: Assumptions
H52: 2020/21-2024/25 | I52: 2025/26 - 2029/30
F53: Total Columns | G53: # | I53: =ColumnData!E25 -> 84040 | S53: Total Columns + Post Tops identified from Equipment Data
F54: Greater than 20 yo. | G54: % | I54: 1
F56: Opening Inspection Pool | G56: # | I56: =I53*I54 -> 84040
F57: Year on Year growth in Columns | G57: # pa. | I57: =ColumnData!C28 -> 0
F58: Inspection Interval | G58: Yrs. | I58: 7.5 | S58: Inspection cycle
F60: Inspections per year | G60: Total | H60: 9000 | I60: =ColumnData!I12 -> 9357.36 | S60: Inspections included in the pricing have increased slightly even though the rate of average inspections is greater.
E62: Failure Rate for Repair/Replace
I63: 2025/26 - 2029/30 | S63: Only extreme columns are actioned
F64: Fix wiring | I64: =G85 -> 0.013
F65: Replace Panel | I65: =G86 -> 0.026
F66: Fix column | I66: =G87 -> 0.007
F67: Fix Earthing | I67: =G90 -> 0.005
F68: Retest | I68: =G91 -> 0.03
E70: Service Cost | I70: 2025/26 - 2029/30
F71: Average Column Inspection Cost | G71: June 2025 $ | I71: ='Global Assumptions'!I90 -> 38.83515536 | S71: Average cost has been updated to reflect the latest costs.
G72: $ inc FS OH | I72: =I71*OH_FS -> 48.77695513
F73: Average Column Re-Inspection Cost | G73: June 2025 $ | I73: ='Global Assumptions'!I90 -> 38.83515536
G74: $ inc FS OH | I74: =I73*OH_FS -> 48.77695513
H77: 2023/24 | I77: 2024/25 | J77: ='Column Inspections'!J$4 -> 2025/26 | K77: ='Column Inspections'!K$4 -> 2026/27 | L77: ='Column Inspections'!L$4 -> 2027/28 | M77: ='Column Inspections'!M$4 -> 2028/29 | N77: ='Column Inspections'!N$4 -> 2029/30
F78: Labour Escalation | H78: ='Global Assumptions'!H20 -> 0.9990924184 | I78: ='Global Assumptions'!I20 -> 1 | J78: ='Global Assumptions'!J20 -> 1.008788559 | K78: ='Global Assumptions'!K20 -> 1.014382425 | L78: ='Global Assumptions'!L20 -> 1.019163033 | M78: ='Global Assumptions'!M20 -> 1.025145423 | N78: ='Global Assumptions'!N20 -> 1.032292469
A81: From Global Assumptions
F83: Column Inspection Assumptions | I83: June 2025 $
F84: Damage | G84: Failure Rate | H84: Repair Type | I84: Average Cost | S84: Notes
F85: Internal Wiring | G85: 0.013 | H85: Fix wiring | I85: ='Global Assumptions'!I94 -> 941.008583 | S85: Average cost is inclusive of labour and overhead
F86: Access Panel | G86: 0.026 | H86: Replace Panel | I86: ='Global Assumptions'!I95 -> 344.1402818 | S86: Average cost is inclusive of labour and overhead
F87: Column Leaning | G87: 0.007 | H87: Fix column | I87: ='Global Assumptions'!I96 -> 4011.38516 | S87: Average cost is inclusive of labour and overhead
F88: Above Ground Corrosion | G88: 0.003 | H88: Replace Column | I88: ='Global Assumptions'!I97 -> 6000.946164 | S88: Average cost is inclusive of labour and overhead
F89: Below Ground Corrosion | G89: 0.015 | H89: Replace Column | I89: ='Global Assumptions'!I98 -> 6000.946164 | S89: Average cost is inclusive of labour and overhead
F90: Earthing damaged | G90: 0.005 | H90: Fix Earthing | I90: ='Global Assumptions'!I99 -> 505.4560389 | S90: Average cost is inclusive of labour and overhead
F91: High Earth Test | G91: 0.03 | H91: Retest | I91: ='Global Assumptions'!I100 -> 822.7103612 | S91: Average cost is inclusive of labour and overhead

Sheet Cable Faults
A1: =A_Name_Model -> Public Lighting Model
A2: =RIGHT(CELL("filename",A2),LEN(CELL("filename",A2))-FIND("]",CELL("filename",A2))) -> Cable Faults | F2: Single Light Out (Cable Faults)
G4: Units | J4: =Start_Year+J5&"/"&RIGHT(Start_Year+J5+1,2) -> 2025/26 | K4: 2026/27 | L4: 2027/28 | M4: 2028/29 | N4: 2029/30 | S4: Notes
H5: -2 | I5: -1 | J5: 0 | K5: =J5+1 -> 1 | L5: 2 | M5: 3 | N5: 4
A7: Output
F8: Nominal Cost Escalation | G8: Nominal | J8: =J10*'Global Assumptions'!J$12 -> 2056000.384 | K8: =K10*'Global Assumptions'!K$12 -> 2129940.063 | L8: =L10*'Global Assumptions'!L$12 -> 2200967.475 | M8: =M10*'Global Assumptions'!M$12 -> 2273108.421 | N8: =N10*'Global Assumptions'!N$12 -> 2346179.838
F10: Real Input Cost Escalation | G10: June 2025 $ Inclusive of Labour Escalation | J10: =J12*J34 -> 1992248.434 | K10: =K12*K34 -> 2003295.715 | L10: =L12*L34 -> 2012736.898 | M10: =M12*M34 -> 2024551.472 | N10: =N12*N34 -> 2038666.117
F12: Total Cost Cable Faults | G12: June 2025 $ | J12: =SUM(J16:J19) -> 1974891.979 | K12: =SUM(K16:K19) -> 1974891.979 | L12: =SUM(L16:L19) -> 1974891.979 | M12: 1974891.979 | N12: 1974891.979
A14: Calculations
J15: =J$4 -> 2025/26 | K15: 2026/27 | L15: 2027/28 | M15: 2028/29 | N15: 2029/30
F16: Cable Fault
A17: Cable Fault | F17: Cable fault cost annually | G17: Inc. FS OH | J17: =J21*J29 -> 1974891.979 | K17: =J17 -> 1974891.979 | L17: =K17 -> 1974891.979 | M17: 1974891.979 | N17: 1974891.979 | S17: Inclusive of overheads
Q20: Total over Regulatory Period
F21: Forecast Cable Faults | G21: # | J21: =$J$31 -> 741 | K21: =$J$31 -> 741 | L21: =$J$31 -> 741 | M21: =$J$31 -> 741 | N21: =$J$31 -> 741 | Q21: =SUM(J21:N21) -> 3705 | S21: Cable Fault Forecast
A24: > | B24: OPEN TO SHOW DETAILED WORKINGS
A25: Assumptions
F27: Cable Faults | J27: Inc. FS OH
F29: Average cable fault cost per noti | G29: June 2025 $ | J29: ='Global Assumptions'!I106*(1+'Global Assumptions'!G29) -> 2665.171361
F31: Cable Faults | G31: Average | J31: =SLOFault_Data!C35 -> 741
H33: 2023/24 | I33: 2024/25 | J33: =J$4 -> 2025/26 | K33: 2026/27 | L33: 2027/28 | M33: 2028/29 | N33: 2029/30
F34: Labour Esclation | H34: ='Global Assumptions'!H20 -> 0.9990924184 | I34: ='Global Assumptions'!I20 -> 1 | J34: ='Global Assumptions'!J20 -> 1.008788559 | K34: ='Global Assumptions'!K20 -> 1.014382425 | L34: ='Global Assumptions'!L20 -> 1.019163033 | M34: ='Global Assumptions'!M20 -> 1.025145423 | N34: ='Global Assumptions'!N20 -> 1.032292469

Sheet GSL
A1: =A_Name_Model -> Public Lighting Model
A2: =RIGHT(CELL("filename",A2),LEN(CELL("filename",A2))-FIND("]",CELL("filename",A2))) -> GSL | F2: Guaranteed Service Level
G4: Units | J4: =Start_Year+J5&"/"&RIGHT(Start_Year+J5+1,2) -> 2025/26 | K4: 2026/27 | L4: 2027/28 | M4: 2028/29 | N4: 2029/30 | S4: Notes
J5: 0 | K5: =J5+1 -> 1 | L5: 2 | M5: 3 | N5: 4 | O5: 5 | P5: 6
A7: Output
F8: Nominal Cost Escalation | G8: Nominal | J8: 0 | K8: 0 | L8: 0 | M8: 0 | N8: 0 | S8: GSLs for Public Lighting are no longer required to be paid as determined by ESCoSA
F10: Real Input Cost Escalation | G10: June 2025 $ Inclusive of Labour Escalation | J10: 0 | K10: 0 | L10: 0 | M10: 0 | N10: 0
F12: Total GSL | G12: June 2025 $ | J12: 0 | K12: 0 | L12: 0 | M12: 0 | N12: 0

Sheet FailureRates-HIDOpex
C2: Population as of RIN Data
C4: Base Lamp | D4: PLC | E4: TFI | F4: SAPN | G4: SLUOS | H4: Energy | I4: CLER | J4: Total | L4: Total SLUOS and CLER Lights
C5: cf-42 | D5: 0 | E5: 0 | F5: 0 | G5: 7382 | H5: 488 | I5: 401 | J5: =SUM(D5:I5) -> 8271 | L5: =SUM(G5,I5) -> 7783
C6: F-40 | D6: 0 | E6: 0 | F6: 0 | G6: 3417 | H6: 157 | I6: 205 | J6: =SUM(D6:I6) -> 3779 | L6: =SUM(G6,I6) -> 3622
C7: S-HP50 PT | D7: 0 | E7: 0 | F7: 0 | G7: 1048 | H7: 51 | I7: 1 | J7: 1100 | L7: 1049
C8: S-HP Other | D8: 0 | E8: 0 | F8: 0 | G8: 305 | H8: 3081 | I8: 632 | J8: 4018 | L8: 937
C9: S-LP18 | D9: 0 | E9: 0 | F9: 0 | G9: 1565 | H9: 282 | I9: 182 | J9: 2029 | L9: 1747
C10: MV-80 | D10: 0 | E10: 0 | F10: 0 | G10: 17278 | H10: 832 | I10: 1676 | J10: 19786 | L10: 18954
C11: MV-80+ | D11: 0 | E11: 0 | F11: 0 | G11: 2949 | H11: 301 | I11: 279 | J11: 3529 | L11: 3228
C12: S-HP100 | D12: 0 | E12: 0 | F12: 0 | G12: 12153 | H12: 796 | I12: 2514 | J12: 15463 | L12: 14667
C13: S-HP150 | D13: 0 | E13: 0 | F13: 0 | G13: 7328 | H13: 251 | I13: 3786 | J13: 11365 | L13: 11114
C14: S-HP250 | D14: 0 | E14: 0 | F14: 0 | G14: 2186 | H14: 682 | I14: 8020 | J14: 10888 | L14: 10206
C15: S-LP90 | D15: 0 | E15: 0 | F15: 0 | G15: 3497 | H15: 21 | I15: 147 | J15: 3665 | L15: 3644
C16: S-HP360f | D16: 0 | E16: 0 | F16: 0 | G16: 61 | H16: 5 | I16: 1 | J16: 67 | L16: =SUM(G16,I16) -> 62
C17: LED-P | D17: 64858 | E17: 1969 | F17: 46937 | G17: 0 | H17: =2876+267 -> 3143 | I17: 0 | J17: =SUM(D17:I17) -> 116907 | L17: 0
C18: LED-V | D18: 7091 | E18: 646 | F18: 6834 | G18: 0 | H18: 6682 | I18: 21 | J18: 21274 | L18: 21
C19: cf-42 PT | D19: 0 | E19: 0 | F19: 0 | G19: 779 | H19: 3 | I19: 8 | J19: 790 | L19: 787
C20: MV-80 PT | D20: 0 | E20: 0 | F20: 0 | G20: 4028 | H20: 71 | I20: 139 | J20: 4238 | L20: 4167
C21: S-HP50 | D21: 0 | E21: 0 | F21: 0 | G21: 9177 | H21: 1757 | I21: 309 | J21: 11243 | L21: 9486
D22: =SUM(D5:D21) -> 71949 | E22: =SUM(E5:E21) -> 2615 | F22: 53771 | G22: 73153 | H22: 18603 | I22: 18321 | J22: =SUM(J5:J21) -> 238412 | L22: 91474
C24: SLUOS HIDs to be converted to LED-P | G24: =SUM(G5:G11,G19:G21) -> 47928
C25: SLUOS HIDs to be converted to LED-V | G25: =SUM(G12:G16) -> 25225
C28: Installed Year of LED Population | D28: 2017/18 | E28: 2018/19 | F28: 2019/20 | G28: 2020/21 | H28: 2021/22 | I28: 2022/23 | J28: Total
C29: All LEDs (LED and LED-V) | D29: 35256 | E29: 32782 | F29: 29207 | G29: 11658 | H29: 19357 | I29: 9921 | J29: =SUM(D29:I29) -> 138181
C30: LEDs (LED-P and LED-V) Excluding Energy Tariffs | D30: 32749 | E30: 30451 | F30: 27130 | G30: 10829 | H30: 17981 | I30: 9216 | J30: 128356
C33: Population Growth | D33: Total | E33: Growth Factor to Apply Per Year | F33: Population End of 2024-25 (or Beg 2025-26)
C34: Total light population | D34: =J22 -> 238412 | E34: 0.0075 | F34: =ROUND(D34*(1+E34)^2,0) -> 242002
C36: Populations for Relevant Tariffs | D36: Total | E36: Addtional Lights for 2 years of Growth | F36: Population End of 2024-25 (or Beg 2025-26)
C37: Infrastructure Capital | D37: =SUM($D$22:$G$22) -> 201488 | E37: =ROUND(($F$34-$D$34)*(D37/$D$34),0) -> 3034 | F37: =D37+E37 -> 204522
C38: Column Inspections/Repairs | D38: =SUM($D$22:$G$22) -> 201488 | E38: =ROUND(($F$34-$D$34)*(D38/$D$34),0) -> 3034 | F38: =D38+E38 -> 204522
C39: Cable Repairs (SLO fault) | D39: 201488 | E39: 3034 | F39: 204522
C40: SAP Maintenance | D40: =SUM($D$22:$I$22) -> 238412 | E40: 3590 | F40: 242002
C41: GSL | D41: =SUM($D$22:$G$22) -> 201488 | E41: 3034 | F41: 204522
C42: SLO reporting Tool | D42: =SUM($D$22:$I$22) -> 238412 | E42: 3590 | F42: 242002
C43: GIS Maintenance | D43: 238412 | E43: 3590 | F43: 242002
C44: Customer Management | D44: 238412 | E44: 3590 | F44: 242002
C45: Asset Data Audit | D45: 238412 | E45: 3590 | F45: 242002
C46: Asset Management | D46: =SUM($D$22:$G$22) -> 201488 | E46: 3034 | F46: 204522
C47: Margin | D47: =SUM($H$22:$I$22) -> 36924 | E47: 556 | F47: 37480
C48: Use of Pole Charge | D48: =SUM($D$22:$G$22) -> 201488 | E48: 3034 | F48: 204522
B51: Failure Rates for SLUOS Lights | J51: Failure Rates for CLER Lights
C53: Base Lamp | D53: Failure Rate | E53: Lamp | F53: PE Cell | G53: Misc. Other | H53: Fittings | K53: Base Lamp | L53: Failure Rate | M53: Lamp | N53: PE Cell | O53: Misc. Other | P53: Fittings
C54: cf-42 | D54: =SLOFault_Data!$L$14 -> 0.1712118879 | E54: =SLOFault_Data!C$21*$D54 -> 0.09121868912 | F54: =SLOFault_Data!D$21*$D54 -> 0.01110874318 | G54: =SUM(SLOFault_Data!E$21:I$21,SLOFault_Data!K$21)*$D54 -> 0.04865067733 | H54: =SLOFault_Data!J$21*$D54 -> 0.02023377822 | K54: cf-42 | L54: =D54*(1.2) -> 0.2054542654 | M54: =E54*(1.2) -> 0.1094624269 | N54: =F54*(1.2) -> 0.01333049182 | O54: =G54*(1.2) -> 0.0583808128 | P54: =H54*(1.2) -> 0.02428053387
C55: F-40 | D55: =SLOFault_Data!$L$14 -> 0.1712118879 | E55: =SLOFault_Data!C$21*$D55 -> 0.09121868912 | F55: =SLOFault_Data!D$21*$D55 -> 0.01110874318 | G55: =SUM(SLOFault_Data!E$21:I$21,SLOFault_Data!K$21)*$D55 -> 0.04865067733 | H55: =SLOFault_Data!J$21*$D55 -> 0.02023377822 | K55: F-40 | L55: =D55*(1.2) -> 0.2054542654 | M55: =E55*(1.2) -> 0.1094624269 | N55: 0.01333049182 | O55: 0.0583808128 | P55: 0.02428053387
C56: S-HP50 PT | D56: =SLOFault_Data!$L$14 -> 0.1712118879 | E56: =SLOFault_Data!C$21*$D56 -> 0.09121868912 | F56: =SLOFault_Data!D$21*$D56 -> 0.01110874318 | G56: =SUM(SLOFault_Data!E$21:I$21,SLOFault_Data!K$21)*$D56 -> 0.04865067733 | H56: =SLOFault_Data!J$21*$D56 -> 0.02023377822 | K56: S-HP50 PT | L56: 0.2054542654 | M56: 0.1094624269 | N56: 0.01333049182 | O56: 0.0583808128 | P56: 0.02428053387
C57: S-HP Other | D57: =SLOFault_Data!$L$14 -> 0.1712118879 | E57: =SLOFault_Data!C$21*$D57 -> 0.09121868912 | F57: =SLOFault_Data!D$21*$D57 -> 0.01110874318 | G57: =SUM(SLOFault_Data!E$21:I$21,SLOFault_Data!K$21)*$D57 -> 0.04865067733 | H57: =SLOFault_Data!J$21*$D57 -> 0.02023377822 | K57: S-HP Other | L57: 0.2054542654 | M57: 0.1094624269 | N57: 0.01333049182 | O57: 0.0583808128 | P57: 0.02428053387
C58: S-LP18 | D58: =SLOFault_Data!$L$14 -> 0.1712118879 | E58: =SLOFault_Data!C$21*$D58 -> 0.09121868912 | F58: =SLOFault_Data!D$21*$D58 -> 0.01110874318 | G58: =SUM(SLOFault_Data!E$21:I$21,SLOFault_Data!K$21)*$D58 -> 0.04865067733 | H58: =SLOFault_Data!J$21*$D58 -> 0.02023377822 | K58: S-LP18 | L58: 0.2054542654 | M58: 0.1094624269 | N58: 0.01333049182 | O58: 0.0583808128 | P58: 0.02428053387
C59: MV-80 | D59: =SLOFault_Data!$L$14 -> 0.1712118879 | E59: =SLOFault_Data!C$21*$D59 -> 0.09121868912 | F59: =SLOFault_Data!D$21*$D59 -> 0.01110874318 | G59: =SUM(SLOFault_Data!E$21:I$21,SLOFault_Data!K$21)*$D59 -> 0.04865067733 | H59: =SLOFault_Data!J$21*$D59 -> 0.02023377822 | K59: MV-80 | L59: 0.2054542654 | M59: 0.1094624269 | N59: 0.01333049182 | O59: 0.0583808128 | P59: 0.02428053387
C60: MV-80+ | D60: =SLOFault_Data!$L$14 -> 0.1712118879 | E60: =SLOFault_Data!C$21*$D60 -> 0.09121868912 | F60: =SLOFault_Data!D$21*$D60 -> 0.01110874318 | G60: =SUM(SLOFault_Data!E$21:I$21,SLOFault_Data!K$21)*$D60 -> 0.04865067733 | H60: =SLOFault_Data!J$21*$D60 -> 0.02023377822 | K60: MV-80+ | L60: 0.2054542654 | M60: 0.1094624269 | N60: 0.01333049182 | O60: 0.0583808128 | P60: 0.02428053387
C61: S-HP100 | D61: =SLOFault_Data!$L$14 -> 0.1712118879 | E61: =SLOFault_Data!C$21*$D61 -> 0.09121868912 | F61: =SLOFault_Data!D$21*$D61 -> 0.01110874318 | G61: =SUM(SLOFault_Data!E$21:I$21,SLOFault_Data!K$21)*$D61 -> 0.04865067733 | H61: =SLOFault_Data!J$21*$D61 -> 0.02023377822 | K61: S-HP100 | L61: 0.2054542654 | M61: 0.1094624269 | N61: 0.01333049182 | O61: 0.0583808128 | P61: 0.02428053387
C62: S-HP150 | D62: =SLOFault_Data!$L$14 -> 0.1712118879 | E62: =SLOFault_Data!C$21*$D62 -> 0.09121868912 | F62: =SLOFault_Data!D$21*$D62 -> 0.01110874318 | G62: =SUM(SLOFault_Data!E$21:I$21,SLOFault_Data!K$21)*$D62 -> 0.04865067733 | H62: =SLOFault_Data!J$21*$D62 -> 0.02023377822 | K62: S-HP150 | L62: 0.2054542654 | M62: 0.1094624269 | N62: 0.01333049182 | O62: 0.0583808128 | P62: 0.02428053387
C63: S-HP250 | D63: =SLOFault_Data!$L$14 -> 0.1712118879 | E63: =SLOFault_Data!C$21*$D63 -> 0.09121868912 | F63: =SLOFault_Data!D$21*$D63 -> 0.01110874318 | G63: =SUM(SLOFault_Data!E$21:I$21,SLOFault_Data!K$21)*$D63 -> 0.04865067733 | H63: =SLOFault_Data!J$21*$D63 -> 0.02023377822 | K63: S-HP250 | L63: 0.2054542654 | M63: 0.1094624269 | N63: 0.01333049182 | O63: 0.0583808128 | P63: 0.02428053387
C64: S-LP90 | D64: =SLOFault_Data!$L$14 -> 0.1712118879 | E64: =SLOFault_Data!C$21*$D64 -> 0.09121868912 | F64: =SLOFault_Data!D$21*$D64 -> 0.01110874318 | G64: =SUM(SLOFault_Data!E$21:I$21,SLOFault_Data!K$21)*$D64 -> 0.04865067733 | H64: =SLOFault_Data!J$21*$D64 -> 0.02023377822 | K64: S-LP90 | L64: 0.2054542654 | M64: 0.1094624269 | N64: 0.01333049182 | O64: 0.0583808128 | P64: 0.02428053387
C65: S-HP360f | D65: =SLOFault_Data!$L$14 -> 0.1712118879 | E65: =SLOFault_Data!C$21*$D65 -> 0.09121868912 | F65: =SLOFault_Data!D$21*$D65 -> 0.01110874318 | G65: =SUM(SLOFault_Data!E$21:I$21,SLOFault_Data!K$21)*$D65 -> 0.04865067733 | H65: =SLOFault_Data!J$21*$D65 -> 0.02023377822 | K65: S-HP360f | L65: 0.2054542654 | M65: 0.1094624269 | N65: 0.01333049182 | O65: 0.0583808128 | P65: =H65*(1.2) -> 0.02428053387
C66: cf-42 PT | D66: =SLOFault_Data!$L$14 -> 0.1712118879 | E66: =SLOFault_Data!C$21*$D66 -> 0.09121868912 | F66: =SLOFault_Data!D$21*$D66 -> 0.01110874318 | G66: =SUM(SLOFault_Data!E$21:I$21,SLOFault_Data!K$21)*$D66 -> 0.04865067733 | H66: =SLOFault_Data!J$21*$D66 -> 0.02023377822 | K66: cf-42 PT | L66: 0.2054542654 | M66: 0.1094624269 | N66: 0.01333049182 | O66: 0.0583808128 | P66: 0.02428053387
C67: MV-80 PT | D67: =SLOFault_Data!$L$14 -> 0.1712118879 | E67: =SLOFault_Data!C$21*$D67 -> 0.09121868912 | F67: =SLOFault_Data!D$21*$D67 -> 0.01110874318 | G67: =SUM(SLOFault_Data!E$21:I$21,SLOFault_Data!K$21)*$D67 -> 0.04865067733 | H67: =SLOFault_Data!J$21*$D67 -> 0.02023377822 | K67: MV-80 PT | L67: 0.2054542654 | M67: 0.1094624269 | N67: 0.01333049182 | O67: 0.0583808128 | P67: 0.02428053387
C68: S-HP50 | D68: =SLOFault_Data!$L$14 -> 0.1712118879 | E68: =SLOFault_Data!C$21*$D68 -> 0.09121868912 | F68: =SLOFault_Data!D$21*$D68 -> 0.01110874318 | G68: =SUM(SLOFault_Data!E$21:I$21,SLOFault_Data!K$21)*$D68 -> 0.04865067733 | H68: =SLOFault_Data!J$21*$D68 -> 0.02023377822 | K68: S-HP50 | L68: 0.2054542654 | M68: =E68*(1.2) -> 0.1094624269 | N68: =F68*(1.2) -> 0.01333049182 | O68: =G68*(1.2) -> 0.0583808128 | P68: =H68*(1.2) -> 0.02428053387
B70: LED Current Populations
D71: Including Energy Tariff | E71: Excluding Energy Tariff
C72: LED-P | D72: =SUM(J17) -> 116907 | E72: =D72-H17 -> 113764
C73: LED-V | D73: =SUM(J18) -> 21274 | E73: =D73-H18 -> 14592
C74: Total | D74: =SUM(D72:D73) -> 138181 | E74: =SUM(E72:E73) -> 128356
B76: LED Roll out
E77: 2023/24 | F77: 2024/25 | G77: 2025/26 | H77: 2026/27 | I77: 2027/28 | J77: 2028/29 | K77: 2029/30
C78: Total Predicted Conversion to LED | E78: 10000 | F78: 10000 | G78: 10000 | H78: 10000 | I78: 10000 | J78: 10000 | K78: 10000
C79: LED-P | E79: =ROUND(($G24/SUM($G$24:$G$25))*E78,0) -> 6552 | F79: 6552 | G79: 6552 | H79: 6552 | I79: 6552 | J79: 6552 | K79: 6552
C80: LED-V | E80: =ROUND(($G25/SUM($G$24:$G$25))*E78,0) -> 3448 | F80: 3448 | G80: 3448 | H80: 3448 | I80: 3448 | J80: 3448 | K80: 3448
B82: LED Conversion from Failure due to low stock no lamps left to replace
E83: SLUOS Population at the Beginning of the Year | M83: SLUOS Replacements due to Lamp and Fitting Failures | Z83: SLUOS Lights Converted as Part of the LED Conversion Program | AH83: SLUOS Light Population After Unplanned Replacements and Planned LED Conversion Program | AP83: SLUOS Lights able to be replaced when lamp failure occurs | AX83: SLUOS Fittings able to be replaced in event of failure
C84: Base Lamp | D84: LED Type Converted to | E84: 2023/24 | F84: 2024/25 | G84: 2025/26 | H84: 2026/27 | I84: 2027/28 | J84: 2028/29 | K84: 2029/30 | M84: 2023/24 | N84: 2024/25 | O84: 2025/26 | P84: 2026/27 | Q84: 2027/28 | R84: 2028/29 | S84: 2029/30 | T84: Comments | Z84: 2023/24 | AA84: 2024/25 | AB84: 2025/26 | AC84: 2026/27 | AD84: 2027/28 | AE84: 2028/29 | AF84: 2029/30 | AH84: 2023-24 Ending | AI84: 2024-25 Ending | AJ84: 2025/26 Ending | AK84: 2026/27 Ending | AL84: 2027/28 Ending | AM84: 2028/29 Ending | AN84: 2029/30 Ending | AP84: 2023/24 | AQ84: 2024/25 | AR84: 2025/26 | AS84: 2026/27 | AT84: 2027/28 | AU84: 2028/29 | AV84: 2029/30 | AX84: 2023/24 | AY84: 2024/25 | AZ84: 2025/26 | BA84: 2026/27 | BB84: 2027/28 | BC84: 2028/29 | BD84: 2029/30
C85: cf-42 | D85: LED-P | E85: =G5 -> 7382 | F85: =ROUND(AH85,0) -> 6017 | G85: =ROUND(AI85,0) -> 4753 | H85: 3596 | I85: 2585 | J85: =ROUND(AL85,0) -> 1805 | K85: =ROUND(AM85,0) -> 1025 | M85: =ROUND((($E54+$H54)*E85),0) -> 823 | N85: =ROUND((F85*($E54+$H54)),0) -> 671 | O85: 530 | P85: 401 | Q85: 288 | R85: 201 | S85: 114 | T85: No lamp stocks available | Y85: =D85 -> LED-P | Z85: =E$127*E85/SUMIF($D$85:$D$99,$C$127,E$85:E$99) -> 541.5438157 | AA85: 592.8873985 | AB85: 627.4637011 | AC85: 610.2935163 | AD85: 491.8878913 | AE85: 578.542422 | AF85: 665.1734943 | AH85: =E85-Z85-M85 -> 6017.456184 | AI85: =F85-AA85-N85 -> 4753.112602 | AJ85: =G85-AB85-O85 -> 3595.536299 | AK85: =H85-AC85-P85 -> 2584.706484 | AL85: =I85-AD85-Q85 -> 1805.112109 | AM85: =J85-AE85-R85 -> 1025.457578 | AN85: =K85-AF85-S85 -> 245.8265057 | AP85: 0 | AQ85: 0 | AR85: 0 | AS85: 0 | AT85: 0 | AU85: 0 | AV85: 0 | AX85: 0 | AY85: 0 | AZ85: 0 | BA85: 0 | BB85: 0 | BC85: 0 | BD85: 0
C86: F-40 | D86: LED-P | E86: 3417 | F86: =ROUND(AH86,0) -> 3166 | G86: 2854 | H86: 2477 | I86: 1781 | J86: =ROUND(AL86,0) -> 1244 | K86: 706 | M86: 0 | N86: 0 | O86: 0 | P86: =ROUND((H86*($E55+$H55)),0) -> 276 | Q86: 198 | R86: 139 | S86: 79 | T86: Lamp stocks predicted to be exhausted by 2026-27 | Y86: LED-P | Z86: 250.6712569 | AA86: 311.963022 | AB86: 376.768652 | AC86: 420.3829366 | AD86: 338.8983886 | AE86: 398.7295141 | AF86: 458.1585238 | AH86: 3166.328743 | AI86: 2854.036978 | AJ86: 2477.231348 | AK86: 1780.617063 | AL86: 1244.101611 | AM86: 706.2704859 | AN86: 168.8414762 | AP86: =ROUND((($E55)*E86),0) -> 312 | AQ86: =ROUND((($E55)*F86),0) -> 289 | AR86: =ROUND((($E55)*G86),0) -> 260 | AS86: 0 | AT86: 0 | AU86: 0 | AV86: 0 | AX86: =ROUND((($H55)*E86),0) -> 69 | AY86: =ROUND((($H55)*F86),0) -> 64 | AZ86: =ROUND((($H55)*G86),0) -> 58 | BA86: 0 | BB86: 0 | BC86: 0 | BD86: 0
C87: S-HP50 PT | D87: LED-P | E87: 1048 | F87: 854 | G87: 675 | H87: 511 | I87: 367 | J87: 256 | K87: 145 | M87: =ROUND((($E56+$H56)*E87),0) -> 117 | N87: =ROUND((F87*($E56+$H56)),0) -> 95 | O87: 75 | P87: 57 | Q87: 41 | R87: 29 | S87: 16 | T87: No lamp stocks available | Y87: LED-P | Z87: 76.88132198 | AA87: 84.14921694 | AB87: 89.10961461 | AC87: 86.72413427 | AD87: 69.83476059 | AE87: 82.05366207 | AF87: 94.09771382 | AH87: 854.118678 | AI87: 674.8507831 | AJ87: 510.8903854 | AK87: 367.2758657 | AL87: 256.1652394 | AM87: 144.9463379 | AN87: 34.90228618 | AP87: 0 | AQ87: 0 | AR87: 0 | AS87: 0 | AT87: 0 | AU87: 0 | AV87: 0 | AX87: 0 | AY87: 0 | AZ87: 0 | BA87: 0 | BB87: 0 | BC87: 0 | BD87: 0
C88: S-HP Other | D88: LED-P | E88: 305 | F88: 249 | G88: 196 | H88: 148 | I88: 107 | J88: 75 | K88: 43 | M88: =ROUND((($E57+$H57)*E88),0) -> 34 | N88: 28 | O88: 22 | P88: 16 | Q88: 12 | R88: 8 | S88: 5 | T88: No lamp stocks available | Y88: LED-P | Z88: 22.37481222 | AA88: 24.53531032 | AB88: 25.8747918 | AC88: 25.11775317 | AD88: 20.36054328 | AE88: 24.03915881 | AF88: 27.90483927 | AH88: 248.6251878 | AI88: 196.4646897 | AJ88: 148.1252082 | AK88: 106.8822468 | AL88: 74.63945672 | AM88: 42.96084119 | AN88: 10.09516073 | AP88: 0 | AQ88: 0 | AR88: 0 | AS88: 0 | AT88: 0 | AU88: 0 | AV88: 0 | AX88: 0 | AY88: 0 | AZ88: 0 | BA88: 0 | BB88: 0 | BC88: 0 | BD88: 0
C89: S-LP18 | D89: LED-P | E89: 1565 | F89: 1276 | G89: 1008 | H89: 763 | I89: 549 | J89: 384 | K89: 218 | M89: =ROUND((($E58+$H58)*E89),0) -> 174 | N89: 142 | O89: 112 | P89: 85 | Q89: 61 | R89: 43 | S89: 24 | T89: No lamp stocks available | Y89: LED-P | Z89: 114.8084627 | AA89: 125.7311485 | AB89: 133.0703578 | AC89: 129.4922005 | AD89: 104.4667127 | AE89: 123.0804931 | AF89: 141.4710456 | AH89: 1276.191537 | AI89: 1008.268852 | AJ89: 762.9296422 | AK89: 548.5077995 | AL89: 383.5332873 | AM89: 217.9195069 | AN89: 52.52895439 | AP89: 0 | AQ89: 0 | AR89: 0 | AS89: 0 | AT89: 0 | AU89: 0 | AV89: 0 | AX89: 0 | AY89: 0 | AZ89: 0 | BA89: 0 | BB89: 0 | BC89: 0 | BD89: 0
C90: MV-80 | D90: LED-P | E90: 17278 | F90: =ROUND(AH90,0) -> 16010 | G90: 14432 | H90: 12527 | I90: 10401 | J90: 7263 | K90: 4126 | M90: 0 | N90: 0 | O90: 0 | P90: 0 | Q90: =ROUND((I90*($E59+$H59)),0) -> 1159 | R90: 809 | S90: 460 | T90: Lamp stocks predicted to be exhausted by 2027-28 | Y90: LED-P | Z90: 1267.514772 | AA90: 1577.551479 | AB90: 1905.229568 | AC90: 2126.014149 | AD90: 1979.158978 | AE90: 2327.952139 | AF90: 2677.566671 | AH90: 16010.48523 | AI90: 14432.44852 | AJ90: 12526.77043 | AK90: 10400.98585 | AL90: 7262.841022 | AM90: 4126.047861 | AN90: 988.4333295 | AP90: =ROUND((($E59)*E90),0) -> 1576 | AQ90: =ROUND((($E59)*F90),0) -> 1460 | AR90: =ROUND((($E59)*G90),0) -> 1316 | AS90: =ROUND((($E59)*H90),0) -> 1143 | AT90: 0 | AU90: 0 | AV90: 0 | AX90: =ROUND((($H59)*E90),0) -> 350 | AY90: =ROUND((($H59)*F90),0) -> 324 | AZ90: =ROUND((($H59)*G90),0) -> 292 | BA90: =ROUND((($H59)*H90),0) -> 253 | BB90: 0 | BC90: 0 | BD90: 0
C91: MV-80+ | D91: LED-P | E91: 2949 | F91: =ROUND(AH91,0) -> 2404 | G91: 1899 | H91: 1436 | I91: 1032 | J91: 721 | K91: 410 | M91: =ROUND((($E60+$H60)*E91),0) -> 329 | N91: =ROUND((F91*($E60+$H60)),0) -> 268 | O91: 212 | P91: 160 | Q91: 115 | R91: 80 | S91: 46 | T91: No lamp stocks available | Y91: LED-P | Z91: 216.3387581 | AA91: 236.8790603 | AB91: 250.6950491 | AC91: 243.7100916 | AD91: 196.3745856 | AE91: 231.0964467 | AF91: 266.0693977 | AH91: 2403.661242 | AI91: 1899.12094 | AJ91: 1436.304951 | AK91: 1032.289908 | AL91: 720.6254144 | AM91: 409.9035533 | AN91: 97.9306023 | AP91: 0 | AQ91: 0 | AR91: 0 | AS91: 0 | AT91: 0 | AU91: 0 | AV91: 0 | AX91: 0 | AY91: 0 | AZ91: 0 | BA91: 0 | BB91: 0 | BC91: 0 | BD91: 0
C92: S-HP100 | D92: LED-V | E92: 12153 | F92: 10493 | G92: 8832 | H92: 7171 | I92: 5510 | J92: 3848 | K92: =ROUND(AM92,0) -> 2187 | M92: =ROUND((($E61+$H61)*E92),0) -> 1354 | N92: 1169 | O92: 984 | P92: 799 | Q92: 614 | R92: 429 | S92: 244 | T92: No lamp stocks available | Y92: LED-V | Z92: =E$128*E92/SUMIF($D$85:$D$99,$C$128,E$85:E$99) -> 306.4145887 | AA92: 492.4390871 | AB92: 677.4942441 | AC92: 862.042669 | AD92: 1047.64212 | AE92: 1232.400651 | AF92: 1417.526768 | AH92: 10492.58541 | AI92: 8831.560913 | AJ92: 7170.505756 | AK92: 5509.957331 | AL92: 3848.35788 | AM92: 2186.599349 | AN92: 525.473232 | AP92: 0 | AQ92: 0 | AR92: 0 | AS92: 0 | AT92: 0 | AU92: 0 | AV92: 0 | AX92: 0 | AY92: 0 | AZ92: 0 | BA92: 0 | BB92: 0 | BC92: 0 | BD92: 0
C93: S-HP150 | D93: LED-V | E93: 7328 | F93: 6326 | G93: 5324 | H93: 4323 | I93: 3321 | J93: 2320 | K93: 1318 | M93: =ROUND((($E62+$H62)*E93),0) -> 817 | N93: 705 | O93: 593 | P93: 482 | Q93: 370 | R93: 259 | S93: 147 | T93: No lamp stocks available | Y93: LED-V | Z93: 184.7614668 | AA93: 296.8807457 | AB93: 408.3989307 | AC93: 519.6779331 | AD93: 631.4372923 | AE93: 743.0274196 | AF93: 854.2753911 | AH93: 6326.238533 | AI93: 5324.119254 | AJ93: 4322.601069 | AK93: 3321.322067 | AL93: 2319.562708 | AM93: 1317.97258 | AN93: 316.7246089 | AP93: 0 | AQ93: 0 | AR93: 0 | AS93: 0 | AT93: 0 | AU93: 0 | AV93: 0 | AX93: 0 | AY93: 0 | AZ93: 0 | BA93: 0 | BB93: 0 | BC93: 0 | BD93: 0
C94: S-HP250 | D94: LED-V | E94: 2186 | F94: 1887 | G94: 1588 | H94: 1289 | I94: 990 | J94: 692 | K94: 393 | M94: =ROUND((($E63+$H63)*E94),0) -> 244 | N94: 210 | O94: 177 | P94: 144 | Q94: 110 | R94: 77 | S94: 44 | T94: No lamp stocks available | Y94: LED-V | Z94: 55.11579782 | AA94: 88.55737705 | AB94: 121.813956 | AC94: 154.9537025 | AD94: 188.2333392 | AE94: 221.6271441 | AF94: 254.7270324 | AH94: 1886.884202 | AI94: 1588.442623 | AJ94: 1289.186044 | AK94: 990.0462975 | AL94: 691.7666608 | AM94: 393.3728559 | AN94: 94.27296761 | AP94: 0 | AQ94: 0 | AR94: 0 | AS94: 0 | AT94: 0 | AU94: 0 | AV94: 0 | AX94: 0 | AY94: 0 | AZ94: 0 | BA94: 0 | BB94: 0 | BC94: 0 | BD94: 0
C95: S-LP90 | D95: LED-V | E95: 3497 | F95: 3019 | G95: 2541 | H95: 2063 | I95: 1585 | J95: 1107 | K95: 629 | M95: =ROUND((($E64+$H64)*E95),0) -> 390 | N95: 336 | O95: 283 | P95: 230 | Q95: 177 | R95: 123 | S95: 70 | T95: No lamp stocks available | Y95: LED-V | Z95: 88.17014866 | AA95: 141.6824172 | AB95: 194.9176714 | AC95: 247.9980513 | AD95: 301.3634773 | AE95: 354.5393765 | AF95: 407.6928839 | AH95: 3018.829851 | AI95: 2541.317583 | AJ95: 2063.082329 | AK95: 1585.001949 | AL95: 1106.636523 | AM95: 629.4606235 | AN95: 151.3071161 | AP95: 0 | AQ95: 0 | AR95: 0 | AS95: 0 | AT95: 0 | AU95: 0 | AV95: 0 | AX95: 0 | AY95: 0 | AZ95: 0 | BA95: 0 | BB95: 0 | BC95: 0 | BD95: 0
C96: S-HP360f | D96: LED-V | E96: 61 | F96: 52 | G96: 44 | H96: 36 | I96: 28 | J96: 20 | K96: 12 | M96: =ROUND((($E65+$H65)*E96),0) -> 7 | N96: 6 | O96: 5 | P96: 4 | Q96: 3 | R96: 2 | S96: 1 | T96: No lamp stocks available | Y96: LED-V | Z96: 1.537998018 | AA96: 2.44037287 | AB96: 3.375197774 | AC96: 4.327644134 | AD96: 5.323771209 | AE96: 6.405408789 | AF96: 7.777924653 | AH96: 52.46200198 | AI96: 43.55962713 | AJ96: 35.62480223 | AK96: 27.67235587 | AL96: 19.67622879 | AM96: 11.59459121 | AN96: 3.222075347 | AP96: 0 | AQ96: 0 | AR96: 0 | AS96: 0 | AT96: 0 | AU96: 0 | AV96: 0 | AX96: 0 | AY96: 0 | AZ96: 0 | BA96: 0 | BB96: 0 | BC96: 0 | BD96: 0
C97: cf-42 PT | D97: LED-P | E97: =G19 -> 779 | F97: 635 | G97: 501 | H97: 379 | I97: 273 | J97: 191 | K97: 109 | M97: =ROUND((($E66+$H66)*E97),0) -> 87 | N97: 71 | O97: 56 | P97: 42 | Q97: 30 | R97: 21 | S97: 12 | T97: No lamp stocks available | Y97: LED-P | Z97: =E$127*E97/SUMIF($D$85:$D$99,$C$127,E$85:E$99) -> 57.14747121 | AA97: 62.5699681 | AB97: 66.13913618 | AC97: 64.32181387 | AD97: 51.94792818 | AE97: 61.21972444 | AF97: 70.7355228 | AH97: 634.8525288 | AI97: 501.4300319 | AJ97: 378.8608638 | AK97: 272.6781861 | AL97: 191.0520718 | AM97: 108.7802756 | AN97: 26.2644772 | AP97: 0 | AQ97: 0 | AR97: 0 | AS97: 0 | AT97: 0 | AU97: 0 | AV97: 0 | AX97: 0 | AY97: 0 | AZ97: 0 | BA97: 0 | BB97: 0 | BC97: 0 | BD97: 0
C98: MV-80 PT | D98: LED-P | E98: =G20 -> 4028 | F98: 3284 | G98: 2594 | H98: 1963 | I98: 1411 | J98: 986 | K98: 560 | M98: =ROUND((($E67+$H67)*E98),0) -> 449 | N98: =ROUND((($E67+$H67)*F98),0) -> 366 | O98: 289 | P98: 219 | Q98: 157 | R98: 110 | S98: 62 | T98: No lamp stocks available | Y98: LED-P | Z98: 295.4942414 | AA98: 323.5901972 | AB98: 342.4449486 | AC98: 333.1496587 | AD98: 268.4927716 | AE98: 316.0348078 | AF98: 363.4118603 | AH98: 3283.505759 | AI98: 2594.409803 | AJ98: 1962.555051 | AK98: 1410.850341 | AL98: 985.5072284 | AM98: 559.9651922 | AN98: 134.5881397 | AP98: 0 | AQ98: 0 | AR98: 0 | AS98: 0 | AT98: 0 | AU98: 0 | AV98: 0 | AX98: 0 | AY98: 0 | AZ98: 0 | BA98: 0 | BB98: 0 | BC98: 0 | BD98: 0
C99: S-HP50 | D99: LED-P | E99: =G21 -> 9177 | F99: 7481 | G99: 5910 | H99: 4471 | I99: 3214 | J99: =ROUND(AL99,0) -> 2244 | K99: 1275 | M99: =ROUND((($E66+$H66)*E99),0) -> 1023 | N99: =ROUND((($E66+$H66)*F99),0) -> 834 | O99: 659 | P99: 498 | Q99: 358 | R99: =ROUND((($E66+$H66)*J99),0) -> 250 | S99: =ROUND((($E66+$H66)*K99),0) -> 142 | T99: No lamp stocks available | Y99: LED-P | Z99: 673.2250876 | AA99: 737.143199 | AB99: 780.2041813 | AC99: 758.7937462 | AD99: 611.5774401 | AE99: 719.2516316 | AF99: 827.4109319 | AH99: 7480.774912 | AI99: 5909.856801 | AJ99: 4470.795819 | AK99: 3214.206254 | AL99: 2244.42256 | AM99: 1274.748368 | AN99: 305.5890681 | AP99: 0 | AQ99: 0 | AR99: 0 | AS99: 0 | AT99: 0 | AU99: 0 | AV99: 0 | AX99: 0 | AY99: 0 | AZ99: 0 | BA99: 0 | BB99: 0 | BC99: 0 | BD99: 0
C100: Total HID Light Population | E100: =SUM(E85:E99) -> 73153 | F100: =SUM(F85:F99) -> 63153 | G100: =SUM(G85:G99) -> 53151 | H100: =SUM(H85:H99) -> 43153 | I100: =SUM(I85:I99) -> 33154 | J100: =SUM(J85:J99) -> 23156 | K100: =SUM(K85:K99) -> 13156 | M100: =SUM(M85:M99) -> 5848 | N100: =SUM(N85:N99) -> 4901 | O100: =SUM(O85:O99) -> 3997 | P100: =SUM(P85:P99) -> 3413 | Q100: =SUM(Q85:Q99) -> 3693 | R100: 2580 | S100: =SUM(S85:S99) -> 1466 | Z100: =SUM(Z85:Z99) -> 4152 | AA100: =SUM(AA85:AA99) -> 5099 | AB100: 6003 | AC100: 6587 | AD100: =SUM(AD85:AD99) -> 6307 | AE100: 7420 | AF100: =SUM(AF85:AF99) -> 8534 | AH100: =SUM(AH85:AH99) -> 63153 | AI100: =SUM(AI85:AI99) -> 53153 | AJ100: =SUM(AJ85:AJ99) -> 43151 | AK100: =SUM(AK85:AK99) -> 33153 | AL100: 23154 | AM100: 13156 | AN100: 3156 | AP100: =SUM(AP85:AP99) -> 1888 | AQ100: =SUM(AQ85:AQ99) -> 1749 | AR100: 1576 | AS100: 1143 | AT100: 0 | AU100: 0 | AV100: 0 | AX100: =SUM(AX85:AX99) -> 419 | AY100: =SUM(AY85:AY99) -> 388 | AZ100: 350 | BA100: 253 | BB100: 0 | BC100: 0 | BD100: 0
C101: Check difference in population year on year should match total new LEDs | F101: =E100-F100-E130 -> 0 | G101: 2 | H101: -2 | I101: -1 | J101: -2 | K101: 0
E103: CLER Population at Beginning of the Year | M103: CLER Lights Unplanned Failure | Z103: No LED conversion program exists for CLER Lights | AH103: CLER Population after Unplanned failure at end of Year | AP103: CLER Lights able to be replaced when lamp failure occurs | AX103: SLUOS Fittings able to be replaced in event of failure
C104: Base Lamp | D104: LED Type Converted to | E104: 2023/24 | F104: 2024/25 | G104: 2025/26 | H104: 2026/27 | I104: 2027/28 | J104: 2028/29 | K104: 2029/30 | M104: 2023/24 | N104: 2024/25 | O104: 2025/26 | P104: 2026/27 | Q104: 2027/28 | R104: 2028/29 | S104: 2029/30 | T104: Comments | Z104: 2023/24 | AA104: 2024/25 | AB104: 2025/26 | AC104: 2026/27 | AD104: 2027/28 | AE104: 2028/29 | AF104: 2029/30 | AH104: 2023/24 | AI104: 2024/25 | AJ104: 2025/26 | AK104: 2026/27 | AL104: 2027/28 | AM104: 2028/29 | AN104: 2029/30 | AP104: 2023/24 | AQ104: 2024/25 | AR104: 2025/26 | AS104: 2026/27 | AT104: 2027/28 | AU104: 2028/29 | AV104: 2029/30 | AX104: 2023/24 | AY104: 2024/25 | AZ104: 2025/26 | BA104: 2026/27 | BB104: 2027/28 | BC104: 2028/29 | BD104: 2029/30
C105: cf-42 | D105: LED-P | E105: =I5 -> 401 | F105: =AH105 -> 347 | G105: =AI105 -> 301 | H105: =AJ105 -> 261 | I105: =AK105 -> 226 | J105: =AL105 -> 196 | K105: 170 | M105: =ROUND(E105*($M54+$P54),0) -> 54 | N105: 46 | O105: 40 | P105: 35 | Q105: 30 | R105: =ROUND(J105*($M54+$P54),0) -> 26 | S105: 23 | T105: No lamp stocks available | AH105: =E105-M105 -> 347 | AI105: =AH105-N105-AA105 -> 301 | AJ105: =AI105-O105-AB105 -> 261 | AK105: =AJ105-P105-AC105 -> 226 | AL105: =IF((AK105-Q105-AD105)<0,0,(AK105-Q105-AD105)) -> 196 | AM105: =IF((AL105-R105-AE105)<0,0,(AL105-R105-AE105)) -> 170 | AN105: 147 | AP105: 0 | AQ105: 0 | AR105: 0 | AS105: 0 | AT105: 0 | AU105: 0 | AV105: 0 | AX105: 0 | AY105: 0 | AZ105: 0 | BA105: 0 | BB105: 0 | BC105: 0 | BD105: 0
C106: F-40 | D106: LED-P | E106: 205 | F106: 205 | G106: =AI106 -> 205 | H106: 205 | I106: 205 | J106: 178 | K106: 154 | M106: 0 | N106: 0 | O106: 0 | P106: 0 | Q106: =ROUND(I106*($M55+$P55),0) -> 27 | R106: 24 | S106: 21 | T106: Lamp stocks predicted to be exhausted by 2026-27 | AH106: 205 | AI106: 205 | AJ106: 205 | AK106: 205 | AL106: 178 | AM106: =IF((AL106-R106-AE106)<0,0,(AL106-R106-AE106)) -> 154 | AN106: 133 | AP106: =ROUND(E106*$M$55,0) -> 22 | AQ106: =ROUND(F106*$M$55,0) -> 22 | AR106: =ROUND(G106*$M$55,0) -> 22 | AS106: 0 | AT106: 0 | AU106: 0 | AV106: 0 | AX106: =ROUND((($P$55)*E106),0) -> 5 | AY106: =ROUND((($P$55)*F106),0) -> 5 | AZ106: =ROUND((($P$55)*G106),0) -> 5 | BA106: 0 | BB106: 0 | BC106: 0 | BD106: 0
C107: S-HP50 PT | D107: LED-P | E107: 1 | F107: 1 | G107: 1 | H107: 1 | I107: 1 | J107: 1 | K107: 1 | M107: =ROUND(E107*($M56+$P56),0) -> 0 | N107: 0 | O107: 0 | P107: 0 | Q107: =ROUND(I107*($M56+$P56),0) -> 0 | R107: 0 | S107: 0 | T107: No lamp stocks available | AH107: 1 | AI107: 1 | AJ107: 1 | AK107: 1 | AL107: 1 | AM107: =IF((AL107-R107-AE107)<0,0,(AL107-R107-AE107)) -> 1 | AN107: 1 | AP107: 0 | AQ107: 0 | AR107: 0 | AS107: 0 | AT107: 0 | AU107: 0 | AV107: 0 | AX107: 0 | AY107: 0 | AZ107: 0 | BA107: 0 | BB107: 0 | BC107: 0 | BD107: 0
C108: S-HP Other | D108: LED-P | E108: 632 | F108: 547 | G108: 474 | H108: 411 | I108: 356 | J108: 308 | K108: 267 | M108: 85 | N108: 73 | O108: 63 | P108: 55 | Q108: =ROUND(I108*($M57+$P57),0) -> 48 | R108: 41 | S108: 36 | T108: No lamp stocks available | AH108: 547 | AI108: 474 | AJ108: 411 | AK108: 356 | AL108: 308 | AM108: =IF((AL108-R108-AE108)<0,0,(AL108-R108-AE108)) -> 267 | AN108: 231 | AP108: 0 | AQ108: 0 | AR108: 0 | AS108: 0 | AT108: 0 | AU108: 0 | AV108: 0 | AX108: 0 | AY108: 0 | AZ108: 0 | BA108: 0 | BB108: 0 | BC108: 0 | BD108: 0
C109: S-LP18 | D109: LED-P | E109: 182 | F109: 158 | G109: 137 | H109: 119 | I109: 103 | J109: 89 | K109: 77 | M109: 24 | N109: 21 | O109: 18 | P109: 16 | Q109: =ROUND(I109*($M58+$P58),0) -> 14 | R109: 12 | S109: 10 | T109: No lamp stocks available | AH109: 158 | AI109: 137 | AJ109: 119 | AK109: 103 | AL109: 89 | AM109: =IF((AL109-R109-AE109)<0,0,(AL109-R109-AE109)) -> 77 | AN109: 67 | AP109: 0 | AQ109: 0 | AR109: 0 | AS109: 0 | AT109: 0 | AU109: 0 | AV109: 0 | AX109: 0 | AY109: 0 | AZ109: 0 | BA109: 0 | BB109: 0 | BC109: 0 | BD109: 0
C110: MV-80 | D110: LED-P | E110: 1676 | F110: 1676 | G110: 1676 | H110: 1676 | I110: 1676 | J110: 1676 | K110: 1672 | M110: 0 | N110: 0 | O110: 0 | P110: 0 | Q110: 0 | R110: 4 | S110: 5 | T110: Lamp stocks predicted to be exhausted by 2027-28 | AH110: 1676 | AI110: 1676 | AJ110: 1676 | AK110: 1676 | AL110: 1676 | AM110: =IF((AL110-R110-AE110)<0,0,(AL110-R110-AE110)) -> 1672 | AN110: 1667 | AP110: =ROUND(E110*$M59,0) -> 183 | AQ110: =ROUND(F110*$M59,0) -> 183 | AR110: =ROUND(G110*$M59,0) -> 183 | AS110: =ROUND(H110*$M59,0) -> 183 | AT110: 0 | AU110: 0 | AV110: 0 | AX110: =ROUND($P59*E110,0) -> 41 | AY110: =ROUND($P59*F110,0) -> 41 | AZ110: =ROUND($P59*G110,0) -> 41 | BA110: =ROUND($P59*H110,0) -> 41 | BB110: 0 | BC110: 0 | BD110: 0
C111: MV-80+ | D111: LED-P | E111: 279 | F111: 242 | G111: 210 | H111: 182 | I111: 158 | J111: 137 | K111: 119 | M111: =ROUND(E111*($M60+$P60),0) -> 37 | N111: 32 | O111: 28 | P111: 24 | Q111: 21 | R111: 18 | S111: 16 | T111: No lamp stocks available | AH111: 242 | AI111: 210 | AJ111: 182 | AK111: 158 | AL111: 137 | AM111: =IF((AL111-R111-AE111)<0,0,(AL111-R111-AE111)) -> 119 | AN111: 103 | AP111: 0 | AQ111: 0 | AR111: 0 | AS111: 0 | AT111: 0 | AU111: 0 | AV111: 0 | AX111: 0 | AY111: 0 | AZ111: 0 | BA111: 0 | BB111: 0 | BC111: 0 | BD111: 0
C112: S-HP100 | D112: LED-V | E112: 2514 | F112: 2178 | G112: 1887 | H112: 1635 | I112: 1416 | J112: 1227 | K112: 1063 | M112: 336 | N112: 291 | O112: 252 | P112: 219 | Q112: 189 | R112: 164 | S112: 142 | T112: No lamp stocks available | AH112: 2178 | AI112: 1887 | AJ112: 1635 | AK112: 1416 | AL112: 1227 | AM112: =IF((AL112-R112-AE112)<0,0,(AL112-R112-AE112)) -> 1063 | AN112: 921 | AP112: 0 | AQ112: 0 | AR112: 0 | AS112: 0 | AT112: 0 | AU112: 0 | AV112: 0 | AX112: 0 | AY112: 0 | AZ112: 0 | BA112: 0 | BB112: 0 | BC112: 0 | BD112: 0
C113: S-HP150 | D113: LED-V | E113: 3786 | F113: 3280 | G113: 2841 | H113: 2461 | I113: 2132 | J113: 1847 | K113: 1600 | M113: 506 | N113: 439 | O113: 380 | P113: 329 | Q113: 285 | R113: 247 | S113: 214 | T113: No lamp stocks available | AH113: 3280 | AI113: 2841 | AJ113: 2461 | AK113: 2132 | AL113: 1847 | AM113: =IF((AL113-R113-AE113)<0,0,(AL113-R113-AE113)) -> 1600 | AN113: 1386 | AP113: 0 | AQ113: 0 | AR113: 0 | AS113: 0 | AT113: 0 | AU113: 0 | AV113: 0 | AX113: 0 | AY113: 0 | AZ113: 0 | BA113: 0 | BB113: 0 | BC113: 0 | BD113: 0
C114: S-HP250 | D114: LED-V | E114: 8020 | F114: 6947 | G114: 6018 | H114: 5213 | I114: 4516 | J114: 3912 | K114: 3389 | M114: 1073 | N114: 929 | O114: 805 | P114: 697 | Q114: 604 | R114: 523 | S114: 453 | T114: No lamp stocks available | AH114: 6947 | AI114: 6018 | AJ114: 5213 | AK114: 4516 | AL114: 3912 | AM114: =IF((AL114-R114-AE114)<0,0,(AL114-R114-AE114)) -> 3389 | AN114: 2936 | AP114: 0 | AQ114: 0 | AR114: 0 | AS114: 0 | AT114: 0 | AU114: 0 | AV114: 0 | AX114: 0 | AY114: 0 | AZ114: 0 | BA114: 0 | BB114: 0 | BC114: 0 | BD114: 0
C115: S-LP90 | D115: LED-V | E115: 147 | F115: 127 | G115: 110 | H115: 95 | I115: 82 | J115: 71 | K115: 62 | M115: 20 | N115: 17 | O115: 15 | P115: 13 | Q115: 11 | R115: 9 | S115: 8 | T115: No lamp stocks available | AH115: 127 | AI115: =F115-N115 -> 110 | AJ115: 95 | AK115: 82 | AL115: 71 | AM115: 62 | AN115: 54 | AP115: 0 | AQ115: 0 | AR115: 0 | AS115: 0 | AT115: 0 | AU115: 0 | AV115: 0 | AX115: 0 | AY115: 0 | AZ115: 0 | BA115: 0 | BB115: 0 | BC115: 0 | BD115: 0
C116: S-HP360f | D116: LED-V | E116: 1 | F116: 1 | G116: 1 | H116: 1 | I116: 1 | J116: 1 | K116: 1 | M116: 0 | N116: 0 | O116: 0 | P116: 0 | Q116: 0 | R116: 0 | S116: 0 | T116: No lamp stocks available | AH116: 1 | AI116: 1 | AJ116: 1 | AK116: 1 | AL116: 1 | AM116: 1 | AN116: 1 | AP116: =$G41 -> 0 | AQ116: 0 | AR116: 0 | AS116: 0 | AT116: 0 | AU116: 0 | AV116: 0 | AX116: 0 | AY116: 0 | AZ116: 0 | BA116: 0 | BB116: 0 | BC116: 0 | BD116: 0
C117: cf-42 PT | D117: LED-P | E117: =I19 -> 8 | F117: =AH117 -> 7 | G117: 6 | H117: 5 | I117: 4 | J117: 3 | K117: 3 | M117: 1 | N117: 1 | O117: 1 | P117: 1 | Q117: 1 | R117: 0 | S117: 0 | T117: No lamp stocks available | AH117: 7 | AI117: 6 | AJ117: 5 | AK117: 4 | AL117: 3 | AM117: 3 | AN117: 3 | AP117: =$G44 -> 0 | AQ117: 0 | AR117: 0 | AS117: 0 | AT117: 0 | AU117: 0 | AV117: 0 | AX117: =$G40 -> 0 | AY117: 0 | AZ117: 0 | BA117: 0 | BB117: 0 | BC117: 0 | BD117: 0
C118: MV-80 PT | D118: LED-P | E118: =I20 -> 139 | F118: 120 | G118: 104 | H118: 90 | I118: 78 | J118: 68 | K118: 59 | M118: 19 | N118: 16 | O118: 14 | P118: 12 | Q118: 10 | R118: 9 | S118: 8 | T118: No lamp stocks available | AH118: 120 | AI118: 104 | AJ118: 90 | AK118: 78 | AL118: 68 | AM118: 59 | AN118: 51 | AP118: 0 | AQ118: 0 | AR118: 0 | AS118: 0 | AT118: 0 | AU118: 0 | AV118: 0 | AX118: 0 | AY118: 0 | AZ118: 0 | BA118: 0 | BB118: 0 | BC118: 0 | BD118: 0
C119: S-HP50 | D119: LED-P | E119: =I21 -> 309 | F119: 268 | G119: 232 | H119: 201 | I119: 174 | J119: 151 | K119: 131 | M119: =ROUND(E119*($M66+$P66),0) -> 41 | N119: =ROUND(F119*($M66+$P66),0) -> 36 | O119: =ROUND(G119*($M66+$P66),0) -> 31 | P119: =ROUND(H119*($M66+$P66),0) -> 27 | Q119: =ROUND(I119*($M66+$P66),0) -> 23 | R119: =ROUND(J119*($M66+$P66),0) -> 20 | S119: =ROUND(K119*($M66+$P66),0) -> 18 | T119: No lamp stocks available | AH119: 268 | AI119: 232 | AJ119: 201 | AK119: 174 | AL119: 151 | AM119: 131 | AN119: 113 | AP119: 0 | AQ119: 0 | AR119: 0 | AS119: 0 | AT119: 0 | AU119: 0 | AV119: 0 | AX119: 0 | AY119: 0 | AZ119: 0 | BA119: 0 | BB119: 0 | BC119: 1 | BD119: 2
C122: Conversion to LED from Unplanned | E122: 2023/24 | F122: 2024/25 | G122: 2025/26 | H122: 2026/27 | I122: 2027/28 | J122: 2028/29 | K122: 2029/30
C123: LED-P | E123: =SUMIF($D$85:$D$99,$C123,M$85:M$99) -> 3036 | F123: =SUMIF($D$85:$D$99,$C123,N$85:N$99) -> 2475 | G123: 1955 | H123: =SUMIF($D$85:$D$99,$C123,P$85:P$99) -> 1754 | I123: 2419 | J123: =SUMIF($D$85:$D$99,$C123,R$85:R$99) -> 1690 | K123: =SUMIF($D$85:$D$99,$C123,S$85:S$99) -> 960
C124: LED-V | E124: =SUMIF($D$85:$D$99,$C124,M$85:M$99) -> 2812 | F124: 2426 | G124: 2042 | H124: 1659 | I124: 1274 | J124: =SUMIF($D$85:$D$99,$C124,R$85:R$99) -> 890 | K124: =SUMIF($D$85:$D$99,$C124,S$85:S$99) -> 506
C126: Forecast Remaining Planned Conversion Program | E126: 2023/24 | F126: 2024/25 | G126: 2025/26 | H126: 2026/27 | I126: 2027/28 | J126: 2028/29 | K126: 2029/30
C127: LED-P | E127: =E79-E123 -> 3516 | F127: =F79-F123 -> 4077 | G127: 4597 | H127: 4798 | I127: 4133 | J127: =J79-J123 -> 4862 | K127: 5592
C128: LED-V | E128: =E80-E124 -> 636 | F128: 1022 | G128: 1406 | H128: 1789 | I128: 2174 | J128: =J80-J124 -> 2558 | K128: 2942
C130: Total New LEDs (LEDs and LED-Vs) | E130: =SUM(E127:E128,E123:E124) -> 10000 | F130: =SUM(F127:F128,F123:F124) -> 10000 | G130: 10000 | H130: 10000 | I130: 10000 | J130: =SUM(J127:J128,J123:J124) -> 10000 | K130: 10000
B133: Single Light Outage - Opex Costs for SLUOS Real 2024/25 $
E135: Lamp Failure | M135: PE Cell Failure | U135: Misc Failure | AC135: Fitting Failure | AK135: Total Failure Costs | AS135: Unit Failure Costs in June 2024/25 $
C136: Base Lamp | E136: 2023/24 | F136: 2024/25 | G136: 2025/26 | H136: 2026/27 | I136: 2027/28 | J136: 2028/29 | K136: 2029/30 | M136: 2023/24 | N136: 2024/25 | O136: 2025/26 | P136: 2026/27 | Q136: 2027/28 | R136: 2028/29 | S136: 2029/30 | U136: 2023/24 | V136: 2024/25 | W136: 2025/26 | X136: 2026/27 | Y136: 2027/28 | Z136: 2028/29 | AA136: 2029/30 | AC136: 2023/24 | AD136: 2024/25 | AE136: 2025/26 | AF136: 2026/27 | AG136: 2027/28 | AH136: 2028/29 | AI136: 2029/30 | AK136: 2023/24 | AL136: 2024/25 | AM136: 2025/26 | AN136: 2026/27 | AO136: 2027/28 | AP136: 2028/29 | AQ136: 2029/30 | AS136: 2023/24 | AT136: 2024/25 | AU136: 2025/26 | AV136: 2026/27 | AW136: 2027/28 | AX136: 2028/29 | AY136: 2029/30 | BA136: Annualised Unit Cost from 2025/26 to 2029/30
